Workbook

Sheet اقتصادي
A1: سعر الترسية للوحدة | B1: سعر السوق الحالي بالوحدة | C1: الوحدة | D1: محلي/ مستورد | E1: الشركة المنتجة | F1: الاسم التجارى | G1: اسم الشركة الموزعة | H1: العبوة | I1: الاسم العلمى | J1: الاسم العام | K1: رقم البند | L1: Serial of Trade | M1: اسم المناقصة | N1: عام المناقصة | O1: رقم المناقصة | P1: تخصص المناقصة | Q1: مناقصة / استكمال / ممارسة | R1: Life Saving | S1: Category | T1: حالة البند | U1: الرصيد | V1: متوسط الاستهلاك الشهري | W1: معدل التغطية باليوم | X1: Class
A2: 11.5 | B2: 20 | C2: Tablet | E2: Amoun | F2: إم - إكس أقراص | G2: رامكو فارم لتجارة الادوية | H2: Capsule or Tablet | I2: مثبطات السيريتونين ضد القئ | J2: 5 HT antagonist antiemtic | K2: 434 | L2: A | M2: المناقصة الخامسة 2015-2016 | N2: 2015-2016 | O2: 5 | Q2: مناقصة | T2: ساري | W2: =IFERROR(($U2/$V2)*30,"") ->  | X2: =IF($W2="","",IF($W2<=30,"A",IF($W2<=60,"B",IF($W2>60,"C")))) -> 
A3: 9.5 | B3: 9.95 | C3: Ampoule | E3: Hikma - EUP | F3: Utoral 250 mg | G3: فارما أوفر سيز | H3: Injection | I3: 5فلورويوراسيل 250مجم | J3: 5-Fluorouracil 250 mg | K3: 1 | L3: A | M3: شراء موحد أدوية الأورام List 51 | N3: 2018 | O3: 51 | P3: Oncology | Q3: مناقصة | R3: Yes | S3: Oncology | T3: ساري
A4: 9.5 | B4: 9.95 | C4: Ampoule | E4: Hikma - EUP | F4: Utoral 250 mg | G4: المتحدة للصيادلة | H4: Injection | I4: 5فلورويوراسيل 250مجم | J4: 5-Fluorouracil 250 mg | K4: 1 | L4: B | M4: شراء موحد أدوية الأورام List 51 | N4: 2018 | O4: 51 | P4: Oncology | Q4: مناقصة | R4: Yes | S4: Oncology | T4: ساري
A5: 9.5 | B5: 9.95 | C5: Ampoule | E5: Hikma - EUP | F5: Utoral 250 mg | G5: رامكو فارم لتجارة الادوية | H5: Injection | I5: 5فلورويوراسيل 250مجم | J5: 5-Fluorouracil 250 mg | K5: 1 | L5: C | M5: شراء موحد أدوية الأورام List 51 | N5: 2018 | O5: 51 | P5: Oncology | Q5: مناقصة | R5: Yes | S5: Oncology | T5: ساري
A6: 12.8 | B6: 16.5 | C6: Vial | E6: Hikma - EUP | F6: Utoral 500 mg | G6: فارما أوفر سيز | H6: Injection | I6: 5فلورويوراسيل 500مجم | J6: 5-Fluorouracil 500 mg | K6: 2 | L6: A | M6: شراء موحد أدوية الأورام List 51 | N6: 2018 | O6: 51 | P6: Oncology | Q6: مناقصة | R6: Yes | S6: Oncology | T6: ساري
A7: 12.8 | B7: 16.5 | C7: Vial | E7: Hikma - EUP | F7: Utoral 500 mg | G7: المتحدة للصيادلة | H7: Injection | I7: 5فلورويوراسيل 500مجم | J7: 5-Fluorouracil 500 mg | K7: 2 | L7: B | M7: شراء موحد أدوية الأورام List 51 | N7: 2018 | O7: 51 | P7: Oncology | Q7: مناقصة | R7: Yes | S7: Oncology | T7: ساري
A8: 12.8 | B8: 16.5 | C8: Vial | E8: Hikma - EUP | F8: Utoral 500 mg | G8: رامكو فارم لتجارة الادوية | H8: Injection | I8: 5فلورويوراسيل 500مجم | J8: 5-Fluorouracil 500 mg | K8: 2 | L8: C | M8: شراء موحد أدوية الأورام List 51 | N8: 2018 | O8: 51 | P8: Oncology | Q8: مناقصة | R8: Yes | S8: Oncology | T8: ساري
A9: 0.15 | B9: 4.000 | C9: Tablet | E9: Amoun | F9: Cortilon 0.1mg | G9: المتحدة للصيادلة | H9: Capsule or Tablet | I9: فلودروهيدروكورتيزون 0.1 مجم | J9: 9-alpha fludrohydrocortisone 0.1mg | K9: 332 | L9: A | M9: المناقصة الثالثة 2010-2011 | N9: 2010-2011 | O9: 3 | Q9: مناقصة | T9: ساري
A10: 0.807 | B10: 1 | C10: Tablet | E10: Hikma Pharma | F10: glucobay 50mg | G10: سوفيكو فارم | H10: Capsule or Tablet | I10: اكربوز 50 مجم | J10: Acarbose 50 mg | K10: 16 | L10: A | M10: ممارسة استكمال الاورام و أدوية متنوعة 2012-2013 | N10: 2012-2013 | P10: Oncology | Q10: استكمال | S10: Oncology | T10: ساري
A11: 0.3105555556 | B11: 0.325 | C11: Tablet | E11: CID | F11: Cidamex | G11: المصرية لتجارة الأدوية | H11: Capsule or Tablet | I11: اسيتازولاميد 250 مجم | J11: Acetazolamide 250 mg | K11: 690 | L11: A | M11: المناقصة الثامنة 2015-2016 | N11: 2015-2016 | O11: 8 | Q11: مناقصة | T11: ساري
A12: 0.053 | B12: 0.106 | C12: Tablet | E12: Alexandria | F12: Aspin | G12: المصرية لتجارة الأدوية | H12: Capsule or Tablet | I12: اسيتيل ساليسيك اسيد 300 مجم | J12: Acetyl salicylic acid 300mg | K12: 78 | L12: A | M12: المناقصة الاولي 2013-2014 | N12: 2013-2014 | O12: 1 | Q12: مناقصة | T12: ساري
A13: 0.053 | B13: 0.158 | C13: Tablet | E13: Adco | F13: Rivo | G13: المصرية لتجارة الأدوية | H13: Capsule or Tablet | I13: اسيتيل ساليسيك اسيد 300 مجم | J13: Acetyl salicylic acid 300mg | K13: 78 | L13: B | M13: المناقصة الاولي 2013-2014 | N13: 2013-2014 | O13: 1 | Q13: مناقصة | T13: ساري
A14: 0.119 | B14: 391.70/1000tab. | C14: Tablet | E14: Adco | F14: Rivo 75 mg | G14: الشركة المصرية لتجارة الأدوية | H14: Capsules or Tablets | I14: اسيتيل ساليسيك اسيد 75 مجم | J14: Acetyl Salicylic Acid 75 mg | K14: 328 | L14: A | M14: المناقصة الثالثة 2018-2019 | N14: 2018/2019 | O14: 3 | Q14: مناقصة | R14: Yes | T14: ساري
A15: 69 | B15: 85 | C15: vial | E15: الشركة العربية للمستحضرات الطبية (ارابكوميد) لصالح شركة بيوكابيتال توزيع شركة ايجي فارما | F15: Rotacysteine 20% I.V Infusion | G15: فارما اوفر سيز | H15: Vial | I15: اسيتيل سيستايين | J15: ACETYL CYSTIENE | K15: 1 | L15: A | M15: المناقصة العامة لتوريد أدوية علاج السموم جلسة 13/11/2016 | Q15: مناقصة | T15: ساري
A16: 0.8357142857 | B16: 1.4 | C16: Sachet | E16: Sedico | F16: Acetylcistein | G16: سيديكو | H16: Sachet | I16: اسيتيل سيستايين 200مجم | J16: acetylcysteine 200mg | K16: 637 | L16: A | M16: المناقصة السابعة 2015-2016 | N16: 2015-2016 | O16: 7 | Q16: مناقصة | T16: ساري
A17: 0.8357142857 | B17: 0.9 | C17: Sachet | E17: Pharco | F17: Windy Effervescent | G17: فاركو للأدوية | H17: Sachet | I17: اسيتيل سيستايين 200مجم | J17: acetylcysteine 200mg | K17: 637 | L17: B | M17: المناقصة السابعة 2015-2016 | N17: 2015-2016 | O17: 7 | Q17: مناقصة | T17: ساري
A18: 7.333333333 | B18: 11 | C18: Bottle 250 ml | E18: Mash Premiere | F18: DOUCHEAL | G18: ابن سينا فارما | H18: Sachet or Bottle | I18: غسول مهبلى حامضى | J18: Acidic vaginal douche | K18: 678 | L18: A | M18: المناقصة السابعة 2015-2016 | N18: 2015-2016 | O18: 7 | Q18: مناقصة | T18: ساري
A19: 0.65 | B19: 25.20 | C19: Tab | E19: Sedico | F19: Cycloviral | G19: سيديكو | H19: Capsules or Tablets | I19: أسيكلوفير 200 مجم | J19: Acyclovir 200 mg | K19: 211 | L19: A | M19: المناقصة الثانية 2015-2016 | N19: 2015-2016 | O19: 2 | Q19: مناقصة | T19: ساري
A20: 0.65 | B20: 16.20 | C20: tablet | E20: pharo pharma | F20: Virustat 200 | G20: ابن سينا فارما | H20: Capsules or Tablets | I20: أسيكلوفير 200 مجم | J20: Acyclovir 200 mg | K20: 211 | L20: B | M20: المناقصة الثانية 2015-2016 | N20: 2015-2016 | O20: 2 | Q20: مناقصة | T20: ساري
A21: 0.914 | B21: 35.00 | C21: tablet | E21: pharo pharma | F21: Virustat 400 mg | G21: ابن سينا فارما | H21: Capsules or Tablets | I21: أسيكلوفير 400 مجم | J21: Acyclovir 400 mg | K21: 212 | L21: A | M21: المناقصة الثانية 2018-2019 | N21: 2019-2018 | O21: 2 | Q21: مناقصة | T21: ساري
A22: 49 | B22: 56 | C22: Vial | E22: Mylan | F22: Acyclovir 250 mg | G22: رامكو فارم لتجارة الادوية | H22: Injection | I22: اسيكلوفير250 مجم | J22: Acyclovir 250 mg | K22: 183 | L22: A | M22: مناقصة الاستكمال الرابعة 2014-2015 | N22: 2014-2015 | O22: 4 | Q22: استكمال | R22: Yes | T22: ساري
A23: 65.6 | B23: 80/ViaL | C23: VL | E23: MYLAN | F23: Acyclovir 500 mg | G23: الشركة المصرية لتجارة الأدوية | H23: Injection | I23: أسيكلوفير 500 مجم | J23: Acyclovir 500 mg | K23: 210 | L23: A | M23: المناقصة الثانية 2018-2019 | N23: 2019-2018 | O23: 2 | Q23: مناقصة | R23: Yes | T23: ساري
A24: 33 | B24: 47.00 L.E | C24: BOTTLE 100 ML | E24: GSK - E | F24: Zovirax Double strength | G24: ابن سينا فارما | H24: Bottle (100ml) | I24: أسيكلوفير 400 مجم / 5 مللي معلق | J24: Acyclovir 400 mg / 5 ml Suspension | K24: 213 | L24: A | M24: المناقصة الثانية 2018-2019 | N24: 2019-2018 | O24: 2 | Q24: مناقصة | T24: ساري
A25: 3.15 | B25: 5.5 | C25: Tube 10 gm | E25: pharo pharma | F25: Virustat 5% Cream | G25: ابن سينا فارما | H25: Tube (10gm) | I25: أسيكلوفير 5% كريم | J25: Acyclovir 5% Cream | K25: 417 | L25: A | M25: المناقصة الرابعة 2018-2019 | N25: 2018/2019 | O25: 4 | Q25: مناقصة | T25: ساري
A26: 2.3 | B26: 268.00/100A | C26: ampule | E26: misr | F26: Epinephrine | G26: الشركة المصرية لتجارة الأدوية | H26: Injection | I26: أدرينالين1مجم/مللي | J26: Adrenaline 1 mg / ml | K26: 444 | L26: A | M26: المناقصة الرابعة 2018-2019 | N26: 2018/2019 | O26: 4 | Q26: مناقصة | R26: Yes | T26: ساري
A27: 2.3 | B27: 26.00/10 amp. | C27: ampule | E27: Chemipharm | F27: Adrenamax | G27: الشركة المصرية لتجارة الأدوية | H27: Injection | I27: أدرينالين1مجم/مللي | J27: Adrenaline 1 mg / ml | K27: 444 | L27: B | M27: المناقصة الرابعة 2018-2019 | N27: 2018/2019 | O27: 4 | Q27: مناقصة | R27: Yes | T27: ساري
A28: 5.89 | B28: tender price | C28: Carton box containing aluminium tube | E28: zad industrial pharma | F28: Zadema | G28: المتحدة للصيادلة | H28: Tube (40mg) | I28: آيسين 1% + داي ايثيل أمينو ساليسيلات 5% جل | J28: Aescin 1% + Diethylamino Salicylate 5% gel | K28: 75 | L28: A | M28: المناقصة الأولى 2018-2019 | N28: 2019-2018 | O28: 1 | Q28: مناقصة | T28: ساري
A29: 0.585 | B29: 0.825 | C29: Tablet | D29: محلي | E29: CID | F29: Reparil | G29: المصرية لتجارة الأدوية | H29: Capsule or Tablet | I29: آيسين 40 مجم | J29: Aescin 40mg | K29: 72 | L29: A | M29: المناقصة الأولى 2015-2016 | N29: 2015-2016 | O29: 1 | Q29: مناقصة | T29: ساري
A30: 3.19 | B30: 6.75زجاجة20 مللي | C30: 20 ml | E30: Eipico | F30: Alzental | G30: ايبيكو | H30: Bottle (20ml) | I30: ألبيندازول 100 مجم / 5 مللي شراب | J30: Albendazole 100mg/5ml syrup | K30: 158 | L30: A | M30: مناقصة الأستكمال الثانية 2017-2018 | N30: 2017-2018 | O30: 2 | Q30: استكمال | T30: ساري
A31: 1.74 | B31: 2.625/ tab | C31: Tablet | E31: Eipico | F31: Alzental | G31: ايبيكو | H31: Capsules or Tablets | I31: ألبيندازول 200 مجم | J31: Albendazole 200mg Capsules or Tablets | K31: 159 | L31: A | M31: مناقصة الأستكمال الثانية 2017-2018 | N31: 2017-2018 | O31: 2 | Q31: استكمال | T31: ساري
A32: 0.66 | B32: 1.5/ tab | C32: Tablet | E32: Mina Pharm | F32: Bon-One 0.25 mcg Tablets | G32: مينا فارم | H32: Capsules or Tablets | I32: الفاكلسيدول 0,25 ميكروجرام | J32: Alfacalcidol 0.25mcg | K32: 201 | L32: A | M32: مناقصة الأستكمال الثانية 2017-2018 | N32: 2017-2018 | O32: 2 | Q32: استكمال | R32: Yes | T32: ساري
A33: 0.7425 | B33: 1.916666667 | C33: Capsule | E33: Arab Company for Gelatin لصالح مالتى كير | F33: BoneCare 0.5 | G33: فارما أوفر سيز | H33: Capsule or Tablet | I33: الفاكلسيدول 0,5 ميكروجرام | J33: AlfaCalcidol 0.5 mcg | K33: 771 | L33: A | M33: المناقصة الثامنة 2015-2016 | N33: 2015-2016 | O33: 8 | Q33: مناقصة | R33: Yes | T33: ساري
A34: 0.936 | B34: 1.95 | C34: Capsule | E34: Arab Company for Gelatin لصالح مالتى كير | F34: BoneCare 1 | G34: فارما أوفر سيز | H34: Capsule or Tablet | I34: الفاكلسيدول 1 ميكروجرام | J34: AlfaCalcidol 1 mcg | K34: 772 | L34: A | M34: المناقصة الثامنة 2015-2016 | N34: 2015-2016 | O34: 8 | Q34: مناقصة | R34: Yes | T34: ساري
A35: 14.29714286 | B35: 21.6 | C35: Ampoule | E35: Alexandria for Rotabiogen | F35: Alfabonid | G35: ابن سينا فارما | H35: Injection | I35: الفاكلسيدول 2 ميكروجرام/مللي | J35: AlfaCalcidol 2 mcg / ml | K35: 773 | L35: A | M35: المناقصة الثامنة 2015-2016 | N35: 2015-2016 | O35: 8 | Q35: مناقصة | R35: Yes | T35: ساري
A36: 49.5 | B36: 130 | C36: Bottle | E36: Alesraa for Rotabiogen | F36: Alfabonid | G36: ابن سينا فارما | H36: Bottle 20 ml | I36: الفاكلسيدول 2ميكروجرام/مللي نقط | J36: AlfaCalcidol 2 mcg / ml Oral Drops | K36: 774 | L36: A | M36: المناقصة الثامنة 2015-2016 | N36: 2015-2016 | O36: 8 | Q36: مناقصة | R36: Yes | T36: ساري
A37: 0.239 | B37: 12.00 علبة 50 قرص | C37: Tablet | E37: Eipico | F37: Nouric | G37: ايبيكو | H37: Capsules or Tablets | I37: أللوبيورينول 100 مجم | J37: Allopurinol 100 mg | K37: 78 | L37: A | M37: المناقصة الأولى 2018-2019 | N37: 2019-2018 | O37: 1 | Q37: مناقصة | T37: ساري
A38: 0.32 | B38: 5.25/10tab. | C38: Tablet | E38: Memphis | F38: Crystazol | G38: الشركة المصرية لتجارة الأدوية | H38: Capsules or Tablets | I38: أللوبيورينول 300 مجم | J38: Allopurinol 300 mg | K38: 79 | L38: A | M38: المناقصة الأولى 2018-2019 | N38: 2019-2018 | O38: 1 | Q38: مناقصة | T38: ساري
A39: 3200 | B39: 4050 | C39: injection | E39: Boehringer Ingelheim | F39: Actilyse 50mg injection | G39: المصرية لتجارة الأدوية | H39: injection | I39: التيبلاز 50مجم | J39: Alteplase 50mg | K39: 4 | L39: A | M39: مناقصة بدائل الاستربتوكينياز 2017-2018 | N39: 2017-2018 | P39: Streptokinase بدائل | Q39: مناقصة | R39: Yes | S39: Thrombolytics | T39: ساري
A40: 0.32 | C40: Tab | E40: sedico | F40: Magaldrate Chewable | G40: سيديكو | H40: Capsules or Tablets | I40: مضاد للحموضة أقراص تحتوي على ألومونيوم هيدروكسيد و ماجنيزيوم هيدروكسيد | J40: Aluminum Hydroxide Gel & Magnesium Salts Or Comb. Antacid | K40: 482 | L40: A | M40: المناقصة الخامسة 2018-2019 | N40: 2018/2019 | O40: 5 | Q40: مناقصة | T40: ساري
A41: 4.4685 | B41: 6 | C41: Bottle 100 ml | E41: Pharco | F41: Miopan susp. | G41: فاركو للأدوية | H41: Bottle 100 ml | I41: مضاد للحموضةشراب تحتوي على ألومونيوم هيدروكسيد و ماجنيزيوم هيدروكسيد | J41: Aluminum Hydroxide Gel & Magnesium salts or comb. antacid syrup | K41: 426 | L41: A | M41: المناقصة الخامسة 2015-2016 | N41: 2015-2016 | O41: 5 | Q41: مناقصة | T41: ساري
A42: 0.27 | B42: 0.35 | C42: Capsule | E42: Rameda | F42: Adamin | G42: ابن سينا فارما | H42: Capsule or Tablet | I42: أمانتادين 100 مجم | J42: Amantadine 100mg | K42: 194 | L42: A | M42: المناقصة الثانية 2015-2016 | N42: 2015-2016 | O42: 2 | Q42: مناقصة | T42: ساري
A43: 4 | B43: 5.00 LE /Bottle 15 ml | C43: Bottle 15 ml | E43: Rameda | F43: Mucosin Oral Drops | G43: فارما أوفر سيز | H43: Bottle (15ml) | I43: امبروكسول نقط فم | J43: Ambroxol oral drops | K43: 280 | L43: A | M43: مناقصة الاستكمال الثالثة 2017-2018 | N43: 2017-2018 | O43: 3 | Q43: استكمال | T43: ساري
A44: 4.9 | B44: 5.00للفيال | C44: Vial 2ml | E44: Eipico | F44: Amikacin | G44: ايبيكو | H44: Injection | I44: أميكاسين 100 مجم | J44: Amikacin 100mg Injection | K44: 51 | L44: A | M44: مناقصةا الاستكمال الاولى 2017-2018 | N44: 2017-2018 | O44: 1 | Q44: استكمال | R44: Yes | T44: ساري
A45: 7.25 | B45: 11 | C45: Vial | E45: HSPحكمة المتخصصة | F45: Emijectacin 500 mg | G45: ابن سينا فارما | H45: Injection | I45: أميكاسين 500 مجم | J45: Amikacin 500 mg | K45: 163 | L45: A | M45: المناقصة الثانية 2018-2019 | N45: 2019-2018 | O45: 2 | Q45: مناقصة | R45: Yes | T45: ساري
A46: 15.99 | B46: 21.75 | C46: Bottle 100ml | E46: ACDIMA | F46: Amikacin Lotion Spray | G46: المتحدة للصيادلة | H46: Bottle | I46: بخاخة مضاد حيوى تحتوي على اميكاسين | J46: Amikacin antibiotic spray | K46: 94 | L46: A | M46: مناقصةا الاستكمال الاولى 2017-2018 | N46: 2017-2018 | O46: 1 | Q46: استكمال | T46: ساري
A47: 0.15 | B47: 9.5/30 tab. | C47: Tablet | E47: Kahira | F47: Moduretic | G47: الشركة المصرية لتجارة الأدوية | H47: Capsules or Tablets | I47: اميلورايد 5 مجم+هيدروكلوروثيازيد 50 مجم | J47: Amiloride 5 mg + Hydrochlorothiazide 50 mg | K47: 312 | L47: A | M47: المناقصة الثالثة 2018-2019 | N47: 2018/2019 | O47: 3 | Q47: مناقصة | T47: ساري
A48: 51 | B48: 72 | C48: Bottle 500 ml WITH rubber cap | E48: مصر اوتسوكا | F48: امينوليبان | G48: مصر اوتسوكا للمستحضرات الطبية | H48: Bottle 500 ml WITH Rubber Cap | I48: احمااض أمنية للحقن الوريدي لمرضى الكبد | J48: Amino acid Combination I.V. Solution for Hepatic Patient | K48: 748 | L48: A | M48: المناقصة الثامنة 2015-2016 | N48: 2015-2016 | O48: 8 | Q48: مناقصة | T48: ساري
A49: 36 | B49: 57 | C49: Bottle 100 ml | E49: Fresenius Kabi | F49: Aminoven Infant 10% | G49: المصرية لتجارة الأدوية | H49: Bottle 100ml WITH Rubber Cap | I49: احماض امينية للحقن الوريدى أطفال | J49: Amino acid Combination I.V. Solution for infants | K49: 747 | L49: A | M49: المناقصة الثامنة 2015-2016 | N49: 2015-2016 | O49: 8 | Q49: مناقصة | T49: ساري
A50: 54 | B50: Tenders | C50: Bottle 500 ml WITH rubber cap | E50: مصر اوتسوكا | F50: كيدمين | G50: مصر اوتسوكا للمستحضرات الطبية | H50: Bottle 500 ml WITH Rubber Cap | I50: احمااض أمنية لمرضى الكلى | J50: Amino acid Combination I.V. Solution for Renal Patient | K50: 749 | L50: A | M50: المناقصة الثامنة 2015-2016 | N50: 2015-2016 | O50: 8 | Q50: مناقصة | T50: ساري
A51: 5.45 | B51: 7.50/120 ml | C51: Bottle 100 ml | E51: Alexandria | F51: Neo- minophylline | G51: المصرية لتجارة الأدوية | H51: Bottle 100 ml | I51: امينوفيللين او الثيوفيللين شراب | J51: Aminophylline or other theophylline syrup | K51: 107 | L51: A | M51: مناقصةا الاستكمال الاولى 2017-2018 | N51: 2017-2018 | O51: 1 | Q51: استكمال | T51: ساري
A52: 0.34 | B52: 0.358 | C52: Tablet | E52: Amriya | F52: Theophylline, S.R | G52: أبوقير للتجارة الدولية | H52: Capsule or Tablet | I52: امينوفيللين اوالثيوفيللين 200مجم | J52: Aminophylline or other theophylline 200mg Capsules or Tablets | K52: 108 | L52: A | M52: مناقصةا الاستكمال الاولى 2017-2018 | N52: 2017-2018 | O52: 1 | Q52: استكمال | T52: ساري
A53: 0.18 | B53: Tender | C53: Tablet | E53: Pharo Pharma | F53: Retaphylline 300 mg tablets | G53: ابن سينا فارما | H53: Capsule or Tablet | I53: امينوفيللين اوالثيوفيللين 300مجم | J53: Aminophylline or other theophylline 300mg Capsules or Tablets | K53: 109 | L53: A | M53: مناقصةا الاستكمال الاولى 2017-2018 | N53: 2017-2018 | O53: 1 | Q53: استكمال | T53: ساري | W53: =V50=IFERROR(($U53/$V53)*30,"") -> TRUE | X53: C
A54: 0.39 | B54: 12 | C54: Tab | E54: ElNileلصالح موندى | F54: Uniphylline continus 400 mg | G54: ابن سينا فارما | H54: Capsules or Tablets | I54: الثيوفيللين 400مجم طويل المفعول | J54: Theophylline 400 mg SR | K54: 768 | L54: A | M54: المناقصة السابعة 2018-2019 | N54: 2018/2019 | O54: 7 | Q54: مناقصة | T54: ساري | W54: =IFERROR(($U54/$V54)*30,"") -> 
A55: 2.45 | B55: 2.5 | C55: Ampoule | E55: Sedico | F55: Aminophylline | G55: سيديكو | H55: Injection | I55: امينوفيللين او الثيوفيللين | J55: Aminophylline or other theophylline Injection | K55: 106 | L55: A | M55: مناقصةا الاستكمال الاولى 2017-2018 | N55: 2017-2018 | O55: 1 | Q55: استكمال | R55: Yes | T55: ساري
A56: 0.825 | B56: 1.5 | C56: Suppository | E56: Alexandria | F56: Minophylline | G56: المصرية لتجارة الأدوية | H56: Suppository | I56: امينوفيللين اوالثيوفيللين بحد أقصي 500مجم (كبار) | J56: Aminophylline or other theophylline up to 500mg (adult) | K56: 615 | L56: A | M56: المناقصة السابعة 2015-2016 | N56: 2015-2016 | O56: 7 | Q56: مناقصة | T56: ساري
A57: 1.976047904 | B57: 2 | C57: Ampoule | E57: Sedico | F57: Amiron | G57: سيديكو | H57: Injection | I57: أميودارون 150 مجم | J57: Amiodarone 150mg | K57: 238 | L57: A | M57: المناقصة الثالثة 2015-2016 | N57: 2015-2016 | O57: 3 | Q57: مناقصة | R57: Yes | T57: ساري
A58: 0.45 | B58: 0.7 | C58: Tablet | E58: Mepaco | F58: Cardio-mep Tab. | G58: ايمك | H58: Capsule or Tablet | I58: أميودارون 200 مجم | J58: Amiodarone 200mg | K58: 239 | L58: A | M58: المناقصة الثالثة 2015-2016 | N58: 2015-2016 | O58: 3 | Q58: مناقصة | T58: ساري
A59: 0.195 | B59: .4/ tab | C59: Tablet | E59: El Kahira | F59: Tryptizol 25 mg | G59: المصرية لتجارة الأدوية | H59: Capsules or Tablets | I59: اميتربتيلين 25 مجم | J59: Amitriptyline 25mg | K59: 215 | L59: A | M59: مناقصة الأستكمال الثانية 2017-2018 | N59: 2017-2018 | O59: 2 | Q59: استكمال | S59: Psychoactive Drugs | T59: ساري
A60: 0.1 | B60: 0.2125/ tab | C60: Tablet | E60: El Kahira | F60: Tryptizole 10 mg | G60: المصرية لتجارة الأدوية | H60: Capsules or Tablets | I60: اميتربتيلين 10 مجم | J60: Amitriptyline 10mg | K60: 216 | L60: A | M60: مناقصة الأستكمال الثانية 2017-2018 | N60: 2017-2018 | O60: 2 | Q60: استكمال | S60: Psychoactive Drugs | T60: ساري
A61: 0.096 | B61: 8.00/10tab. | C61: Tablet | E61: Adco | F61: Vazopin | G61: الشركة المصرية لتجارة الأدوية | H61: Capsules or Tablets | I61: املوديبين 5 مجم | J61: Amlodipine 5 mg | K61: 302 | L61: A | M61: المناقصة الثالثة 2018-2019 | N61: 2018/2019 | O61: 3 | Q61: مناقصة | T61: ساري
A62: 0.154 | B62: 11.00علبة10 قرص | C62: Tablet | E62: Eipico | F62: Regcor | G62: ايبيكو | H62: Capsules or Tablets | I62: املوديبين 10 مجم | J62: Amlodipine 10 mg | K62: 303 | L62: A | M62: المناقصة الثالثة 2018-2019 | N62: 2018/2019 | O62: 3 | Q62: مناقصة | T62: ساري
A63: 0.725 | B63: 36.00 | C63: Tab | E63: Apex Pharma | F63: ErastapexCo 5 mg/ 20 mg | G63: المتحدة للصيادلة | H63: Film coated tablets | I63: مثبطات مستقبلات الانجيوتنسين + أملوديبين 5 مجم | J63: ARBs + Amlodipine 5 mg | K63: 282 | L63: A | M63: المناقصة الثالثة 2018-2019 | N63: 2018/2019 | O63: 3 | Q63: مناقصة | T63: ساري
A64: 1 | C64: tab | E64: أفروس | F64: Mesartanveros | G64: ابن سينا فارما | H64: Film coated tablets | I64: مثبطات مستقبلات الانجيوتنسين + أملوديبين 10 مجم | J64: ARBs + Amlodipine 10 mg | K64: 283 | L64: A | M64: المناقصة الثالثة 2018-2019 | N64: 2018/2019 | O64: 3 | Q64: مناقصة | T64: ساري
A65: 0.8 | C65: tab | E65: أفروس | F65: Averothiazide | G65: ابن سينا فارما | H65: Film coated tablets | I65: مثبطات مستقبلات الانجيوتنسين + أملوديبين 5 مجم + هيدروكلوروثيازيد 12.5 مجم | J65: ARBs + Amlodipine 5 mg + hydrochlorthiazide 12.5 mg | K65: 284 | L65: A | M65: المناقصة الثالثة 2018-2019 | N65: 2018/2019 | O65: 3 | Q65: مناقصة | T65: ساري
A66: 1.025 | B66: 78.00 | C66: Tab | E66: Apex Pharma | F66: Erastapex Trio 10/40/25 mg | G66: المتحدة للصيادلة | H66: Film coated tablets | I66: مثبطات مستقبلات الانجيوتنسين + أملوديبين 10 مجم + هيدروكلوروثيازيد 25 | J66: ARBs + Amlodipine 10 mg + hydrochlorthiazide 25 mg | K66: 285 | L66: A | M66: المناقصة الثالثة 2018-2019 | N66: 2018/2019 | O66: 3 | Q66: مناقصة | T66: ساري
A67: 9.99 | B67: 11.25 | C67: bottle 80 ml | E67: Sedico | F67: Flucamox | G67: سيديكو | H67: Bottle 80 ml + Water for Reconstitution | I67: أموكسيسيللين 125 مجم + فلوكساسيللين 125 مجم معلق | J67: Amoxicillin 125mg + Fluoxacillin 125mg Suspension | K67: 35 | L67: A | M67: مناقصةا الاستكمال الاولى 2017-2018 | N67: 2017-2018 | O67: 1 | Q67: استكمال | T67: ساري
A68: 11.7 | B68: 21.75 | C68: 156.25 mg/5 ml | E68: Sedico | F68: Magna-biotic | G68: سيديكو | H68: Bottle (80ml) + Water for reconstitution | I68: أموكسيسيللين 125 مجم + حمض كلافيولينيك 31 مجم / 5 مللي | J68: Amoxicillin 125 mg + Clavulanic acid 31 mg / 5 ml Suspension | K68: 101 | L68: A | M68: المناقصة الثانية 2018-2019 | N68: 2019-2018 | O68: 2 | Q68: مناقصة | T68: ساري
A69: 11.7 | B69: Tender | C69: (80ml) + Water | E69: Eipico | F69: Emoxclave | G69: ايبيكو | H69: Bottle (80ml) + Water for reconstitution | I69: أموكسيسيللين 125 مجم + حمض كلافيولينيك 31 مجم / 5 مللي | J69: Amoxicillin 125 mg + Clavulanic acid 31 mg / 5 ml Suspension | K69: 101 | L69: B | M69: المناقصة الثانية 2018-2019 | N69: 2019-2018 | O69: 2 | Q69: مناقصة | T69: ساري
A70: 21 | B70: 32.50 | C70: 312.5 mg/5 ml | E70: Sedico | F70: Magna-biotic | G70: سيديكو | H70: Bottle (80ml) + Water for reconstitution | I70: أموكسيسيللين 250 مجم + حمض كلافيولينيك 62 مجم /5 مللي | J70: Amoxicillin 250 mg + Clavulanic acid 62 mg / 5 ml Suspension | K70: 102 | L70: A | M70: المناقصة الثانية 2018-2019 | N70: 2019-2018 | O70: 2 | Q70: مناقصة | T70: ساري
A71: 21 | B71: Tender | C71: (80ml) + Water | E71: Eipico | F71: Emoxclave | G71: ايبيكو | H71: Bottle (80ml) + Water for reconstitution | I71: أموكسيسيللين 250 مجم + حمض كلافيولينيك 62 مجم /5 مللي | J71: Amoxicillin 250 mg + Clavulanic acid 62 mg / 5 ml Suspension | K71: 102 | L71: B | M71: المناقصة الثانية 2018-2019 | N71: 2019-2018 | O71: 2 | Q71: مناقصة | T71: ساري
A72: 0.633640553 | B72: 0.6875 | C72: Capsule | E72: Sedico | F72: Flucamox | G72: سيديكو | H72: Capsule or Tablet | I72: أموكسيسيللين 125 مجم + فلوكساسيللين 125 مجم | J72: Amoxicillin 125mg + Fluoxacillin 125mg | K72: 97 | L72: A | M72: المناقصة الثانية 2015-2016 | N72: 2015-2016 | O72: 2 | Q72: مناقصة | T72: ساري
A73: 0.633640553 | B73: 1.1875 | C73: Capsule | E73: Eipico | F73: Flumox | G73: ايبيكو | H73: Capsule or Tablet | I73: أموكسيسيللين 125 مجم + فلوكساسيللين 125 مجم | J73: Amoxicillin 125mg + Fluoxacillin 125mg | K73: 97 | L73: B | M73: المناقصة الثانية 2015-2016 | N73: 2015-2016 | O73: 2 | Q73: مناقصة | T73: ساري
A74: 5.95 | B74: عطاءات ومناقصات | C74: BOTTLE 80 ML | E74: M.U.P- TENDER | F74: MOXACIL125 MG DRY SUSPENSION | G74: فارما اوفر سيز | H74: Bottle (80ml) + Water for reconstitution | I74: أموكسيسيللين 125 مجم / 5 مللي معلق | J74: Amoxicillin 125 mg / 5 ml Suspension | K74: 94 | L74: A | M74: المناقصة الثانية 2018-2019 | N74: 2019-2018 | O74: 2 | Q74: مناقصة | T74: ساري
A75: 5.95 | B75: عطاءات | C75: Bottle 80ml | E75: ريفا فارما | F75: Rivamox 125 mg dry suspension | G75: فارما اوفر سيز | H75: Bottle (80ml) + Water for reconstitution | I75: أموكسيسيللين 125 مجم / 5 مللي معلق | J75: Amoxicillin 125 mg / 5 ml Suspension | K75: 94 | L75: B | M75: المناقصة الثانية 2018-2019 | N75: 2019-2018 | O75: 2 | Q75: مناقصة | T75: ساري
A76: 7.49 | B76: 8.25 | C76: Vial | E76: Sedico | F76: Biomox | G76: سيديكو | H76: Vial + Solvent | I76: أموكسيسيللين 1 جم | J76: Amoxicillin 1 g | K76: 93 | L76: A | M76: المناقصة الثانية 2018-2019 | N76: 2019-2018 | O76: 2 | Q76: مناقصة | T76: ساري
A77: 7.49 | B77: 8.25 | C77: Vial + Solvent | E77: Eipico | F77: Emox | G77: ايبيكو | H77: Vial + Solvent | I77: أموكسيسيللين 1 جم | J77: Amoxicillin 1 g | K77: 93 | L77: B | M77: المناقصة الثانية 2018-2019 | N77: 2019-2018 | O77: 2 | Q77: مناقصة | T77: ساري
A78: 24 | B78: 29.00 | C78: Vial | E78: Sedico | F78: Magna-biotic | G78: سيديكو | H78: Vial + Solvent | I78: أموكسيسيللين 1 جم + حمض كلافيولينيك 200 مجم | J78: Amoxicillin 1 g + Clavulanic acid 200 mg | K78: 108 | L78: A | M78: المناقصة الثانية 2018-2019 | N78: 2019-2018 | O78: 2 | Q78: مناقصة | T78: ساري
A79: 5.99 | B79: 6.00 | C79: Vial | E79: Sedico | F79: Flucamox | G79: سيديكو | H79: Vial + Solvent | I79: أموكسيسيللين 250 مجم + فلوكساسيللين 250 مجم | J79: Amoxicillin 250 mg + Fluoxacillin 250 mg | K79: 97 | L79: A | M79: المناقصة الثانية 2018-2019 | N79: 2019-2018 | O79: 2 | Q79: مناقصة | T79: ساري
A80: 5.99 | B80: 9.00للفيال | C80: Vial + Solvent | E80: Eipico | F80: Flumox | G80: ايبيكو | H80: Vial + Solvent | I80: أموكسيسيللين 250 مجم + فلوكساسيللين 250 مجم | J80: Amoxicillin 250 mg + Fluoxacillin 250 mg | K80: 97 | L80: B | M80: المناقصة الثانية 2018-2019 | N80: 2019-2018 | O80: 2 | Q80: مناقصة | T80: ساري
A81: 1.725 | B81: 3.3 | C81: Tablet | E81: Amoun | F81: HiBiotic 375 mg | G81: فارما أوفر سيز | H81: Capsule or Tablet | I81: أموكسيسيللين 250 مجم + حمض كلافيولينيك 125 مجم | J81: Amoxicillin 250mg + Clavulianic acid 125mg | K81: 104 | L81: A | M81: المناقصة الثانية 2015-2016 | N81: 2015-2016 | O81: 2 | Q81: مناقصة | T81: ساري
A82: 0.85 | B82: 10.5 | C82: Capsule | E82: Rameda | F82: Amofluxin500mg cap | G82: ابن سينا فارما | H82: Capsules or Tablets | I82: أموكسيسيللين 250 مجم + فلوكساسيللين 250 مجم | J82: Amoxicillin 250mg + Fluoxacillin 250mg | K82: 291 | L82: A | M82: مناقصة الاستكمال الثالثة 2017-2018 | N82: 2017-2018 | O82: 3 | Q82: استكمال | T82: ساري
A83: 5.21 | B83: 9.00/Bottle (80ml) | C83: Bottle (80ml) + Water for reconstitution | E83: misr | F83: Moxipen 250 mg / 5 ml suspension | G83: الشركة المصرية لتجارة الأدوية | H83: Bottle (80ml) + Water for reconstitution | I83: أموكسيسيللين 250 مجم / 5 مللي معلق | J83: Amoxicillin 250 mg / 5 ml Suspension | K83: 95 | L83: A | M83: المناقصة الثانية 2018-2019 | N83: 2019-2018 | O83: 2 | Q83: مناقصة | T83: ساري
A84: 26.85 | B84: 28 | C84: 460 mg/5 ml | E84: Sedico | F84: Magna-biotic | G84: سيديكو | H84: Bottle (80ml) + Water for reconstitution | I84: أموكسيسيللين 400 مجم + حمض كلافيولينيك 57 مجم / 5 مللي معلق | J84: Amoxicillin 400 mg + Clavulanic acid 57 mg /5ml Suspension | K84: 103 | L84: A | M84: المناقصة الثانية 2018-2019 | N84: 2019-2018 | O84: 2 | Q84: مناقصة | T84: ساري
A85: 26.85 | B85: 15.9 | C85: Bottle (80ml) + Water for reconstitution | E85: Alfacure | F85: Gardinova | G85: ابن سينا فارما | H85: Bottle (80ml) + Water for reconstitution | I85: أموكسيسيللين 400 مجم + حمض كلافيولينيك 57 مجم / 5 مللي معلق | J85: Amoxicillin 400 mg + Clavulanic acid 57 mg /5ml Suspension | K85: 103 | L85: B | M85: المناقصة الثانية 2018-2019 | N85: 2019-2018 | O85: 2 | Q85: مناقصة | T85: ساري
A86: 26.85 | B86: 36/70ml | C86: (80ml) + Water | E86: Eipico | F86: Emoxclave | G86: ايبيكو | H86: Bottle (80ml) + Water for reconstitution | I86: أموكسيسيللين 400 مجم + حمض كلافيولينيك 57 مجم / 5 مللي معلق | J86: Amoxicillin 400 mg + Clavulanic acid 57 mg /5ml Suspension | K86: 103 | L86: C | M86: المناقصة الثانية 2018-2019 | N86: 2019-2018 | O86: 2 | Q86: مناقصة | T86: ساري
A87: 26.85 | B87: 25.25 | C87: bottle 80 ml+solvent | E87: Pharco | F87: Clavimox 457 mg Suspension | G87: فاركو للأدوية | H87: Bottle (80ml) + Water for reconstitution | I87: أموكسيسيللين 400 مجم + حمض كلافيولينيك 57 مجم / 5 مللي معلق | J87: Amoxicillin 400 mg + Clavulanic acid 57 mg /5ml Suspension | K87: 103 | L87: D | M87: المناقصة الثانية 2018-2019 | N87: 2019-2018 | O87: 2 | Q87: مناقصة | T87: ساري
A88: 26.85 | B88: 29 / 80ml | C88: bottle 80 ml + water for reconstitution | E88: شركة مصر للمستحضرات الطبية لصالح شركة الدبيكي للادوية | F88: amoxilanic | G88: فارما اوفر سيز | H88: Bottle (80ml) + Water for reconstitution | I88: أموكسيسيللين 400 مجم + حمض كلافيولينيك 57 مجم / 5 مللي معلق | J88: Amoxicillin 400 mg + Clavulanic acid 57 mg /5ml Suspension | K88: 103 | L88: E | M88: المناقصة الثانية 2018-2019 | N88: 2019-2018 | O88: 2 | Q88: مناقصة | T88: ساري
A89: 27 | B89: 49.5 | C89: Bottle (80 ml) + water for reconstitution | E89: أفروس | F89: Averobios | G89: ابن سينا فارما | H89: Bottle (80ml) + Water for reconstitution | I89: أموكسيسيللين 600 مجم + حمض كلافيولينيك 42.9 مجم / 5 مللي معلق | J89: Amoxicillin 600 mg + Clavulanic acid 42.9 mg /5ml Suspension | K89: 104 | L89: A | M89: المناقصة الثانية 2018-2019 | N89: 2019-2018 | O89: 2 | Q89: مناقصة | T89: ساري
A90: 0.38 | B90: 11.00 | C90: Cap | E90: Sedico | F90: Biomox | G90: سيديكو | H90: Capsules or Tablets | I90: أموكسيسيللين 500 مجم | J90: Amoxicillin 500 mg | K90: 91 | L90: A | M90: المناقصة الثانية 2018-2019 | N90: 2019-2018 | O90: 2 | Q90: مناقصة | T90: ساري
A91: 5.9 | B91: 6.5 | C91: Vial | E91: Sedico | F91: Biomox | G91: سيديكو | H91: Vial + Solvent | I91: أموكسيسيللين 500 مجم | J91: Amoxicillin 500 mg | K91: 92 | L91: A | M91: المناقصة الثانية 2018-2019 | N91: 2019-2018 | O91: 2 | Q91: مناقصة | T91: ساري
A92: 5.9 | B92: 6 | C92: Vial + Solvent | E92: Eipico | F92: Emox | G92: ايبيكو | H92: Vial + Solvent | I92: أموكسيسيللين 500 مجم | J92: Amoxicillin 500 mg | K92: 92 | L92: B | M92: المناقصة الثانية 2018-2019 | N92: 2019-2018 | O92: 2 | Q92: مناقصة | T92: ساري
A93: 15.8 | B93: 16.5 | C93: vial | E93: Sedico | F93: Magna-biotic | G93: سيديكو | H93: Vial + Solvent | I93: أموكسيسيللين 500 مجم + حمض كلافيولينيك 100 مجم | J93: Amoxicillin 500mg + Clavulianic acid 100mg Vial | K93: 36 | L93: A | M93: مناقصةا الاستكمال الاولى 2017-2018 | N93: 2017-2018 | O93: 1 | Q93: استكمال | T93: ساري
A94: 2.4 | B94: 37.00 | C94: Tab | E94: Sedico | F94: Magna-biotic | G94: سيديكو | H94: Capsules or Tablets | I94: أموكسيسيللين 500 مجم + حمض كلافيولينيك 125 مجم | J94: Amoxicillin 500 mg + Clavulanic acid 125 mg | K94: 106 | L94: A | M94: المناقصة الثانية 2018-2019 | N94: 2019-2018 | O94: 2 | Q94: مناقصة | T94: ساري
A95: 2.4 | B95: 60.00 | C95: tab | E95: hikma import | F95: Megamox 625 mg | G95: المتحدة للصيادلة | H95: Capsules or Tablets | I95: أموكسيسيللين 500 مجم + حمض كلافيولينيك 125 مجم | J95: Amoxicillin 500 mg + Clavulanic acid 125 mg | K95: 106 | L95: B | M95: المناقصة الثانية 2018-2019 | N95: 2019-2018 | O95: 2 | Q95: مناقصة | T95: ساري
A96: 2.4 | B96: 29.00 | C96: tab. | E96: Pharco | F96: Clavimox 625 mg Tab | G96: فاركو للأدوية | H96: Capsules or Tablets | I96: أموكسيسيللين 500 مجم + حمض كلافيولينيك 125 مجم | J96: Amoxicillin 500 mg + Clavulanic acid 125 mg | K96: 106 | L96: C | M96: المناقصة الثانية 2018-2019 | N96: 2019-2018 | O96: 2 | Q96: مناقصة | T96: ساري
A97: 7.99 | B97: 8.00 | C97: Vial | E97: Sedico | F97: Flucamox | G97: سيديكو | H97: Vial + Solvent | I97: أموكسيسيللين 500 مجم + فلوكساسيللين 500 مجم | J97: Amoxicillin 500 mg + Fluoxacillin 500 mg Vial + Solvent | K97: 99 | L97: A | M97: المناقصة الثانية 2018-2019 | N97: 2019-2018 | O97: 2 | Q97: مناقصة | T97: ساري
A98: 7.99 | B98: 12.75للفيال | C98: Vial + Solvent | E98: Eipico | F98: Flumox | G98: ايبيكو | H98: Vial + Solvent | I98: أموكسيسيللين 500 مجم + فلوكساسيللين 500 مجم | J98: Amoxicillin 500 mg + Fluoxacillin 500 mg Vial + Solvent | K98: 99 | L98: B | M98: المناقصة الثانية 2018-2019 | N98: 2019-2018 | O98: 2 | Q98: مناقصة | T98: ساري
A99: 0.924 | B99: 26.40 | C99: Tab | E99: ماش بريمير | F99: Pencillimox 1 gm tab | G99: فارما اوفر سيز | H99: Capsules or Tablets | I99: أموكسيسيللين 500 مجم + فلوكلوكساسيللين 500 مجم | J99: Amoxicillin 500 mg + Flucloxacillin 500 mg Capsules or Tablets | K99: 98 | L99: A | M99: المناقصة الثانية 2018-2019 | N99: 2019-2018 | O99: 2 | Q99: مناقصة | T99: ساري
A100: 2.33 | B100: 48.75 | C100: Tablet | E100: Gulf pharmaceutical indutries JULPHAR | F100: julmentin 2X | G100: فارما اوفر سيز | H100: Capsules or Tablets | I100: أموكسيسيللين 875 مجم + حمض كلافيولينيك 125 مجم | J100: Amoxicillin 875 mg + Clavulanic acid 125 mg | K100: 107 | L100: A | M100: المناقصة الثانية 2018-2019 | N100: 2019-2018 | O100: 2 | Q100: مناقصة | T100: ساري
A101: 14.75 | B101: 21.75 | C101: 80 ml | E101: Sedico | F101: Magna-biotic | G101: سيديكو | H101: Bottle(80 ml) + Water for reconstitution | I101: أموكسيسيللين ترايهيدرات 200 مجم + حمض كلافيولينيك 28 مجم | J101: Amoxicillin trihydrate200 mg + Clavulianic acid 28mg | K101: 292 | L101: A | M101: مناقصة الاستكمال الثالثة 2017-2018 | N101: 2017-2018 | O101: 3 | Q101: استكمال | T101: ساري
A102: 14.74 | B102: 24.50زجاجة75 مللي | C102: Bottle 80 ml | E102: Eipico | F102: Emoxclav | G102: ايبيكو | H102: Bottle(80 ml) + Water for reconstitution | I102: أموكسيسيللين ترايهيدرات 200 مجم + حمض كلافيولينيك 28 مجم | J102: Amoxicillin trihydrate200 mg + Clavulianic acid 28mg | K102: 292 | L102: B | M102: مناقصة الاستكمال الثالثة 2017-2018 | N102: 2017-2018 | O102: 3 | Q102: استكمال | T102: ساري
A103: 14.74 | B103: 28.80 LE / Bottle 80ml | C103: Bottle 80ml | E103: Delta Pharma | F103: Deltaclav 228.5 | G103: فارما أوفر سيز | H103: Bottle(80 ml) + Water for reconstitution | I103: أموكسيسيللين ترايهيدرات 200 مجم + حمض كلافيولينيك 28 مجم | J103: Amoxicillin trihydrate200 mg + Clavulianic acid 28mg | K103: 292 | L103: C | M103: مناقصة الاستكمال الثالثة 2017-2018 | N103: 2017-2018 | O103: 3 | Q103: استكمال | T103: ساري
A104: 14.74 | B104: 21.00 LE / Bottle 80ml | C104: bottle 80 ml | E104: مصر للمستحضرات لصالح شركة الدبيكى | F104: amoxilanic | G104: فارما أوفر سيز | H104: Bottle(80 ml) + Water for reconstitution | I104: أموكسيسيللين ترايهيدرات 200 مجم + حمض كلافيولينيك 28 مجم | J104: Amoxicillin trihydrate200 mg + Clavulianic acid 28mg | K104: 292 | L104: D | M104: مناقصة الاستكمال الثالثة 2017-2018 | N104: 2017-2018 | O104: 3 | Q104: استكمال | T104: ساري
A105: 54 | B105: 55.00 | C105: amp | E105: Cipla | F105: Photercin | G105: المتحدة للصيادلة | H105: Injection | I105: امفوتريسين ب 50 مجم | J105: Amphotericin B 50 mg | K105: 232 | L105: A | M105: المناقصة الثانية 2018-2019 | N105: 2019-2018 | O105: 2 | Q105: مناقصة | R105: Yes | T105: ساري
A106: 4.45 | B106: 5.50/ Vial | C106: Vial + Solvent | E106: misr | F106: Ampicillin 1 gm | G106: الشركة المصرية لتجارة الأدوية | H106: Vial + Solvent | I106: أمبيسيللين 1 جم | J106: Ampicillin 1 g | K106: 88 | L106: A | M106: المناقصة الثانية 2018-2019 | N106: 2019-2018 | O106: 2 | Q106: مناقصة | T106: ساري
A107: 7.11 | B107: tender | C107: Bottle (80ml) + Water for reconstitution | E107: misr | F107: Ampicillin 250 mg / 5 ml suspension | G107: الشركة المصرية لتجارة الأدوية | H107: Bottle (80ml) + Water for reconstitution | I107: أمبيسيللين 250 مجم / 5 مللي معلق | J107: Ampicillin 250 mg / 5 ml Suspension | K107: 90 | L107: A | M107: المناقصة الثانية 2018-2019 | N107: 2019-2018 | O107: 2 | Q107: مناقصة | T107: ساري
A108: 4.8 | B108: Tenders | C108: Bottle 80 ml + Water for Reconstitution | E108: El Nasr | F108: Ampicillin | G108: المصرية لتجارة الأدوية | H108: Bottle 80 ml + Water for Reconstitution | I108: امبيسيللين 125 مجم/5مللي معلق | J108: Ampicillin 125mg/5ml Suspension | K108: 89 | L108: A | M108: المناقصة الثانية 2015-2016 | N108: 2015-2016 | O108: 2 | Q108: مناقصة | T108: ساري
A109: 13.15 | B109: 13.20 | C109: Vial | E109: Sedico | F109: Ultracillin | G109: سيديكو | H109: Vial + Solvent | I109: أمبيسيللين 1 جم + سالبكتام 500 مجم | J109: Ampicillin 1 gm + Sulbactam 500 mg | K109: 113 | L109: A | M109: المناقصة الثانية 2018-2019 | N109: 2019-2018 | O109: 2 | Q109: مناقصة | T109: ساري
A110: 13.15 | B110: 17.25/ | C110: one vial +one amp.5ml distilled water | E110: Nile | F110: Ampictam | G110: الشركة المصرية لتجارة الأدوية | H110: Vial + Solvent | I110: أمبيسيللين 1 جم + سالبكتام 500 مجم | J110: Ampicillin 1 gm + Sulbactam 500 mg | K110: 113 | L110: B | M110: المناقصة الثانية 2018-2019 | N110: 2019-2018 | O110: 2 | Q110: مناقصة | T110: ساري
A111: 13.15 | B111: 17.25للفيال | C111: Vial + Solvent | E111: Eipico | F111: NOVACTA | G111: ايبيكو | H111: Vial + Solvent | I111: أمبيسيللين 1 جم + سالبكتام 500 مجم | J111: Ampicillin 1 gm + Sulbactam 500 mg | K111: 113 | L111: C | M111: المناقصة الثانية 2018-2019 | N111: 2019-2018 | O111: 2 | Q111: مناقصة | T111: ساري
A112: 13.15 | B112: 20.75 | C112: vial+solvent | E112: Pharco | F112: Sulbin 1,5gm | G112: فاركو للأدوية | H112: Vial + Solvent | I112: أمبيسيللين 1 جم + سالبكتام 500 مجم | J112: Ampicillin 1 gm + Sulbactam 500 mg | K112: 113 | L112: D | M112: المناقصة الثانية 2018-2019 | N112: 2019-2018 | O112: 2 | Q112: مناقصة | T112: ساري
A113: 13.15 | B113: 20.00 | C113: ONE VIAL | E113: M U P | F113: UNICTAM 1.5 GM VIAL | G113: فارما اوفر سيز | H113: Vial + Solvent | I113: أمبيسيللين 1 جم + سالبكتام 500 مجم | J113: Ampicillin 1 gm + Sulbactam 500 mg | K113: 113 | L113: E | M113: المناقصة الثانية 2018-2019 | N113: 2019-2018 | O113: 2 | Q113: مناقصة | T113: ساري
A114: 1.99 | B114: 45/12tab | C114: Tablet | E114: MUP | F114: UNICTAM 375 MG TAB | G114: ابن سينا فارما | H114: Capsules or Tablets | I114: أمبيسيللين 250 مجم + سلباكتام 125 مجم | J114: Ampicillin 250mg+Sulbactam 125mg | K114: 294 | L114: A | M114: مناقصة الاستكمال الثالثة 2017-2018 | N114: 2017-2018 | O114: 3 | Q114: استكمال | T114: ساري
A115: 0.622 | B115: 9.25/12CAP | C115: 10 Capsules | E115: misr | F115: Ampicillin 500 mg | G115: الشركة المصرية لتجارة الأدوية | H115: Capsules or Tablets | I115: أمبيسيللين 500 مجم | J115: Ampicillin 500 mg | K115: 86 | L115: A | M115: المناقصة الثانية 2018-2019 | N115: 2019-2018 | O115: 2 | Q115: مناقصة | T115: ساري
A116: 3.5 | B116: 5.00/ Vial | C116: Vial + Solvent | E116: misr | F116: Ampicillin 500 mg | G116: الشركة المصرية لتجارة الأدوية | H116: Vial + Solvent | I116: أمبيسيللين 500 مجم | J116: Ampicillin 500 mg | K116: 87 | L116: A | M116: المناقصة الثانية 2018-2019 | N116: 2019-2018 | O116: 2 | Q116: مناقصة | T116: ساري
A117: 7.99 | B117: 8.00 | C117: Vial | E117: Sedico | F117: Ultracillin | G117: سيديكو | H117: Vial + Solvent | I117: أمبيسيللين 500 مجم + سالبكتام 250 مجم | J117: Ampicillin 500 mg + Sulbactam 250 mg | K117: 112 | L117: A | M117: المناقصة الثانية 2018-2019 | N117: 2019-2018 | O117: 2 | Q117: مناقصة | T117: ساري
A118: 7.99 | B118: 14.75 | C118: Vial + Solvent | E118: Alfacure | F118: Sabect | G118: ابن سينا فارما | H118: Vial + Solvent | I118: أمبيسيللين 500 مجم + سالبكتام 250 مجم | J118: Ampicillin 500 mg + Sulbactam 250 mg | K118: 112 | L118: B | M118: المناقصة الثانية 2018-2019 | N118: 2019-2018 | O118: 2 | Q118: مناقصة | T118: ساري
A119: 7.99 | B119: 12.00/ | C119: one vial +one amp.2ml distilled water | E119: Nile | F119: Ampictam | G119: الشركة المصرية لتجارة الأدوية | H119: Vial + Solvent | I119: أمبيسيللين 500 مجم + سالبكتام 250 مجم | J119: Ampicillin 500 mg + Sulbactam 250 mg | K119: 112 | L119: C | M119: المناقصة الثانية 2018-2019 | N119: 2019-2018 | O119: 2 | Q119: مناقصة | T119: ساري
A120: 7.99 | B120: 12.00للفيال | C120: Vial + Solvent | E120: Eipico | F120: NOVACTA | G120: ايبيكو | H120: Vial + Solvent | I120: أمبيسيللين 500 مجم + سالبكتام 250 مجم | J120: Ampicillin 500 mg + Sulbactam 250 mg | K120: 112 | L120: D | M120: المناقصة الثانية 2018-2019 | N120: 2019-2018 | O120: 2 | Q120: مناقصة | T120: ساري
A121: 7.99 | B121: 12.00 | C121: ONE VIAL | E121: M U P | F121: UNICTAM 750 MG VIAL | G121: فارما اوفر سيز | H121: Vial + Solvent | I121: أمبيسيللين 500 مجم + سالبكتام 250 مجم | J121: Ampicillin 500 mg + Sulbactam 250 mg | K121: 112 | L121: E | M121: المناقصة الثانية 2018-2019 | N121: 2019-2018 | O121: 2 | Q121: مناقصة | T121: ساري
A122: 24 | B122: 38/60ml | C122: Bottle 60 ml | E122: MUP | F122: UNICTAM 250 MG SUSPENSION | G122: ابن سينا فارما | H122: Bottle (60ml) + Water for reconstitution | I122: أمبيسيللين 250 مجم + سلباكتام 125 مجم | J122: Ampicillin125mg + Sulbactam 125mg | K122: 293 | L122: A | M122: مناقصة الاستكمال الثالثة 2017-2018 | N122: 2017-2018 | O122: 3 | Q122: استكمال | T122: ساري
A123: 5.99 | B123: 6.00 | C123: Vial | E123: Sedico | F123: Ultracillin | G123: سيديكو | H123: Vial + Solvent | I123: أمبيسيللين 250 مجم + سالبكتام 125 مجم | J123: Ampicillin 250 mg + Sulbactam 125 mg | K123: 111 | L123: A | M123: المناقصة الثانية 2018-2019 | N123: 2019-2018 | O123: 2 | Q123: مناقصة | T123: ساري
A124: 5.99 | B124: 8.75 | C124: ONE VIAL | E124: M U P | F124: UNICTAM 375 MG VIAL | G124: فارما اوفر سيز | H124: Vial + Solvent | I124: أمبيسيللين 250 مجم + سالبكتام 125 مجم | J124: Ampicillin 250 mg + Sulbactam 125 mg | K124: 111 | L124: B | M124: المناقصة الثانية 2018-2019 | N124: 2019-2018 | O124: 2 | Q124: مناقصة | T124: ساري
A125: 5 | B125: =400/28 -> 14.28571429 | C125: Tablet | E125: Astrazeneca | F125: Arimidex 1 mg | G125: المتحدة للصيادلة | H125: Capsules or Tablets | I125: اناسترازول 1 مجم | J125: Anastrozole 1 mg | K125: 3 | L125: A | M125: شراء موحد أدوية الأورام List 51 | N125: 2018 | O125: 51 | P125: Oncology | Q125: مناقصة | R125: Yes | S125: Oncology | T125: ساري
A126: 5 | B126: 14.28571429 | C126: Tablet | E126: Astrazeneca | F126: Arimidex 1 mg | G126: رامكو فارم لتجارة الادوية | H126: Capsules or Tablets | I126: اناسترازول 1 مجم | J126: Anastrozole 1 mg | K126: 3 | L126: B | M126: شراء موحد أدوية الأورام List 51 | N126: 2018 | O126: 51 | P126: Oncology | Q126: مناقصة | R126: Yes | S126: Oncology | T126: ساري
A127: 0.207 | B127: 9 | C127: cap. | E127: pharco | F127: Urinex cap. | G127: ابن سينا فارما | H127: Capsules or Tablets | I127: انيثول + برونول + ببين + كامبفين + فنكون + سينول | J127: Anethole +Broneol +Pinene + Camphene + Fenchone + Cineole | K127: 532 | L127: A | M127: المناقصة الخامسة 2018-2019 | N127: 2018/2019 | O127: 5 | Q127: مناقصة | T127: ساري
A128: 0.126 | B128: 0.285 | C128: Tablet | E128: El Kahira | F128: Flatidyl | G128: المصرية لتجارة الأدوية | H128: Chewable Tablet | I128: مضاد للحموضة يحتوي على سايميثيكون | J128: Antacids Containing Simethicone | K128: 117 | L128: A | M128: مناقصة الاستكمال الثانية 2013-2014 | N128: 2013-2014 | O128: 2 | Q128: استكمال | T128: ساري
A129: 4.97 | B129: 12 | C129: Bottle 10 ml | E129: Orchidia Pharmaceutical Industries | F129: Trillerg | G129: ابن سينا فارما | H129: Bottle (10ml) | I129: أنتازولين هيدروكلوريد + تيتريزولين هيدروكلوريد قطرة عين | J129: Antazoline hydrochloride+ tetryzoline hydrochloride Eye drops | K129: 270 | L129: A | M129: مناقصة الاستكمال الثالثة 2017-2018 | N129: 2017-2018 | O129: 3 | Q129: استكمال | T129: ساري
A130: 20 | B130: 27.600 / Can 150 ml | C130: Can 150 ml | E130: MUP | F130: Dermotracin Spray | G130: ابن سينا فارما | H130: Bottle | I130: بخاخة مضاد حيوى تحتوي على نيوميسن | J130: Antibiotic spray containing neomycin | K130: 93 | L130: A | M130: مناقصةا الاستكمال الاولى 2017-2018 | N130: 2017-2018 | O130: 1 | Q130: استكمال | T130: ساري
A131: 6 | B131: 6.25 | C131: Tube 20 gm | E131: El Nile | F131: Hemocure topical gel | G131: المصرية لتجارة الأدوية | H131: Tube (20gm) | I131: جل مضاد للتجلط | J131: Anticoagulant gel | K131: 27 | L131: A | M131: مناقصةا الاستكمال الاولى 2017-2018 | N131: 2017-2018 | O131: 1 | Q131: استكمال | T131: ساري
A132: 6.9 | B132: 12.75 | C132: Bottle 10 ml | E132: اكتوبر فارما | F132: Collomak paint | G132: فارما اوفر سيز | H132: Bottle (10ml) | I132: دهان لعلاج الكالو | J132: Anti-corn Paint | K132: 432 | L132: A | M132: المناقصة الرابعة 2018-2019 | N132: 2018/2019 | O132: 4 | Q132: مناقصة | T132: ساري
A133: 4.4 | B133: 4.550/120 ML | C133: Bottle 120 ml | E133: MUP | F133: SIMETHICONE ADULT SUSPENSION | G133: ابن سينا فارما | H133: Bottle (100ml) | I133: شراب مضاد للإنتفاخ يحتوي على سايميثيكون | J133: Anti-flatulance syrup containing Simethicone | K133: 137 | L133: A | M133: مناقصة الأستكمال الثانية 2017-2018 | N133: 2017-2018 | O133: 2 | Q133: استكمال | T133: ساري
A134: 0.245 | B134: .25 / lozenge | C134: Lozenge | E134: Medizen | F134: Bradozen Lozenges | G134: فارما أوفر سيز | H134: lozenge Tablet | I134: أقراص استحلاب مطهرة | J134: antiseptic lozenges | K134: 119 | L134: A | M134: مناقصة الأستكمال الثانية 2017-2018 | N134: 2017-2018 | O134: 2 | Q134: استكمال | T134: ساري
A135: 52.5 | B135: Tenders | C135: 5 L | E135: El Nasr | F135: Cidexin | G135: المصرية لتجارة الأدوية | H135: Container 5 liter | I135: محلول لتعقيم المناظير و الأدوات الجراحية تحتوي علي الدهايد | J135: Antiseptic solution for endoscopy and surgical instruments contains aldhyde | K135: 109 | L135: A | M135: مناقصة الاستكمال الأولي 2013-2014 | N135: 2013-2014 | O135: 1 | Q135: استكمال | T135: ساري
A136: 7.5 | B136: 11 | C136: plastic bottle 250 ml | E136: الدبيكى للصناعات الدوائية | F136: Microfree | G136: المصرية لتجارة الأدوية | H136: Sachet or Bottle | I136: غسول مهبلى مطهر | J136: Antiseptic vaginal douche | K136: 676 | L136: A | M136: المناقصة السابعة 2015-2016 | N136: 2015-2016 | O136: 7 | Q136: مناقصة | T136: ساري
A137: 7 | B137: 276.00 | C137: Tablet | E137: Pfizer | F137: Eliquis 5 mg | G137: فايزر مصر للادويه | H137: Capsules or Tablets | I137: أبيكسابان 5 مجم | J137: Apixaban 5 mg | K137: 360 | L137: A | M137: المناقصة الثالثة 2018-2019 | N137: 2018/2019 | O137: 3 | Q137: مناقصة | T137: ساري
A138: 3.5 | B138: 248.25 | C138: Tab | E138: Multi Apex | F138: Iksaront 2.5 mg | G138: المتحدة للصيادلة | H138: Capsules or Tablets | I138: أبيكسابان 2.5 مجم | J138: Apixaban 2.5 mg | K138: 361 | L138: A | M138: المناقصة الثالثة 2018-2019 | N138: 2018/2019 | O138: 3 | Q138: مناقصة | T138: ساري
A139: 0.349 | B139: 3 | C139: Tablet | E139: Adwia | F139: Adwiprazole 10mg tab | G139: فارما أوفر سيز | H139: Capsule or Tablet | I139: أريبيبرازول 10 مجم | J139: Aripiprazole 10 mg | K139: 3 | L139: A | M139: المناقصة النفسية 2015-2016 | N139: 2015-2016 | O139: 6 | P139: نفسية | Q139: مناقصة | T139: ساري
A140: 0.399 | B140: 4 | C140: Tablet | E140: Adwia | F140: adwiprazole 30mg tab | G140: فارما أوفر سيز | H140: Capsule or Tablet | I140: أريبيبرازول 30 مجم | J140: Aripiprazole 30 mg | K140: 4 | L140: A | M140: المناقصة النفسية 2015-2016 | N140: 2015-2016 | O140: 6 | P140: نفسية | Q140: مناقصة | T140: ساري
A141: 2.589230769 | B141: 8.5 | C141: Bottle 15 ml | E141: Orchidia Pharmaceutical Industries | F141: Orchatears Plus | G141: المتحدة للصيادلة | H141: Bottle 15 ml | I141: دموع صناعية نقط عين | J141: Artificial Tears Eye Drops | K141: 721 | L141: A | M141: المناقصة الثامنة 2015-2016 | N141: 2015-2016 | O141: 8 | Q141: مناقصة | T141: ساري
A142: 0.207 | B142: 0.6375 | C142: Tablet | E142: El Kahira | F142: Ruta - C | G142: المصرية لتجارة الأدوية | H142: Capsule or Tablet | I142: فيتامين سي 160 مجم + روتن 60 مجم | J142: Ascorbic Acid 160 mg + Rutin 60 mg | K142: 5 | L142: A | M142: المناقصة النفسية 2015-2016 | N142: 2015-2016 | O142: 6 | P142: نفسية | Q142: مناقصة | T142: ساري
A143: 0.134 | B143: 1.75 | C143: Tab | E143: Sedico | F143: Atenolol 50 mg | G143: سيديكو | H143: Capsules or Tablets | I143: أتينولول 50 مجم | J143: Atenolol 50 mg | K143: 289 | L143: A | M143: المناقصة الثالثة 2018-2019 | N143: 2018/2019 | O143: 3 | Q143: مناقصة | T143: ساري
A144: 0.134 | B144: Tender | C144: Tablet | E144: Cid | F144: Atenoblok | G144: الشركة المصرية لتجارة الأدوية | H144: Capsules or Tablets | I144: أتينولول 50 مجم | J144: Atenolol 50 mg | K144: 289 | L144: B | M144: المناقصة الثالثة 2018-2019 | N144: 2018/2019 | O144: 3 | Q144: مناقصة | T144: ساري
A145: 0.134 | B145: 5.25علبة20 قرص | C145: Tablet | E145: Eipico | F145: Ateno | G145: ايبيكو | H145: Capsules or Tablets | I145: أتينولول 50 مجم | J145: Atenolol 50 mg | K145: 289 | L145: C | M145: المناقصة الثالثة 2018-2019 | N145: 2018/2019 | O145: 3 | Q145: مناقصة | T145: ساري
A146: 0.174 | B146: 2.80 | C146: Tab | E146: Sedico | F146: Atenolol 100 mg | G146: سيديكو | H146: Capsules or Tablets | I146: أتينولول 100 مجم | J146: Atenolol 100 mg | K146: 290 | L146: A | M146: المناقصة الثالثة 2018-2019 | N146: 2018/2019 | O146: 3 | Q146: مناقصة | T146: ساري
A147: 0.174 | B147: 6.25علبة20 قرص | C147: Tablet | E147: Eipico | F147: Ateno | G147: ايبيكو | H147: Capsules or Tablets | I147: أتينولول 100 مجم | J147: Atenolol 100 mg | K147: 290 | L147: B | M147: المناقصة الثالثة 2018-2019 | N147: 2018/2019 | O147: 3 | Q147: مناقصة | T147: ساري
A148: 2.4 | B148: 3 | C148: Capsule | E148: Multi Apex Pharma | F148: Atomoxapex 10 mg | G148: ابن سينا فارما | H148: Capsule or Tablet | I148: اتوموكستين 10 مجم | J148: Atomoxtine 10 mg | K148: 6 | L148: A | M148: المناقصة النفسية 2015-2016 | N148: 2015-2016 | O148: 6 | P148: نفسية | Q148: مناقصة | T148: ساري
A149: 5.366 | B149: 8 | C149: Tablet | E149: Mash Premiere | F149: ATTENSERA | G149: ابن سينا فارما | H149: Capsule or Tablet | I149: اتوموكستين 40 مجم | J149: Atomoxtine 40 mg | K149: 7 | L149: A | M149: المناقصة النفسية 2015-2016 | N149: 2015-2016 | O149: 6 | P149: نفسية | Q149: مناقصة | T149: ساري
A150: 0.189 | B150: 21.6 | C150: tab | E150: pharo pharma | F150: lipicole 10 | G150: ابن سينا فارما | H150: Capsules or Tablets | I150: اتورفاستاتين 10مجم | J150: Atorvastatin 10 mg | K150: 331 | L150: A | M150: المناقصة الثالثة 2018-2019 | N150: 2018/2019 | O150: 3 | Q150: مناقصة | T150: ساري
A151: 0.224 | B151: 24 | C151: tab | E151: pharo pharma | F151: lipicole 20 | G151: ابن سينا فارما | H151: Capsules or Tablets | I151: اتورفاستاتين 20مجم | J151: Atorvastatin 20 mg | K151: 332 | L151: A | M151: المناقصة الثالثة 2018-2019 | N151: 2018/2019 | O151: 3 | Q151: مناقصة | T151: ساري
A152: 0.394 | B152: 25.2 | C152: tab | E152: pharo pharma | F152: Lipicole 40 | G152: ابن سينا فارما | H152: Capsules or Tablets | I152: اتورفاستاتين 40مجم | J152: Atorvastatin 40 mg | K152: 333 | L152: A | M152: المناقصة الثالثة 2018-2019 | N152: 2018/2019 | O152: 3 | Q152: مناقصة | T152: ساري
A153: 2.01 | B153: 40 | C153: tab. | E153: DELTA PHARMA | F153: Atorstat 80mg | G153: ابن سينا فارما | H153: Capsules or Tablets | I153: اتورفاستاتين 80مجم | J153: Atorvastatin 80 mg | K153: 334 | L153: A | M153: المناقصة الثالثة 2018-2019 | N153: 2018/2019 | O153: 3 | Q153: مناقصة | T153: ساري
A154: 9.9 | B154: 127.50 | C154: Amp | E154: شركة اسكندرية للأدوية لصالح ايجي فارما | F154: Atracurium Besylate50mg | G154: فارما اوفر سيز | H154: Injection | I154: اتراكيوريوم 50 مجم | J154: Atracurium 50 mg | K154: 27 | L154: A | M154: المناقصة الأولى 2018-2019 | N154: 2019-2018 | O154: 1 | Q154: مناقصة | R154: Yes | T154: ساري
A155: 7.29 | B155: 86.00 | C155: Amp | E155: شركة اسكندرية للأدوية لصالح ايجي فارما | F155: Atrabesylate 10mg/ml I.V | G155: فارما اوفر سيز | H155: Injection | I155: اتراكيوريوم 25 مجم | J155: Atracurium 25 mg | K155: 28 | L155: A | M155: المناقصة الأولى 2018-2019 | N155: 2019-2018 | O155: 1 | Q155: مناقصة | T155: ساري
A156: 1.995 | B156: 2.06 | C156: Amp | E156: Nile | F156: Atropine | G156: الشركة المصرية لتجارة الأدوية | H156: Injection | I156: أتروبين 1 مجم / مللي | J156: Atropine 1 mg / ml | K156: 22 | L156: A | M156: المناقصة الأولى 2018-2019 | N156: 2019-2018 | O156: 1 | Q156: مناقصة | T156: ساري
A157: 5.87 | B157: 6.5 | C157: Bottle 5 ml | E157: Alcon | F157: Isopto- Atropine Eye Drops | G157: المتحدة للصيادلة | H157: Bottle 5 ml | I157: أتروبين 0.1% قطرة عين | J157: Atropine 1% Eye Drops | K157: 220 | L157: A | M157: مناقصة الاستكمال الثانية 2013-2014 | N157: 2013-2014 | O157: 2 | Q157: استكمال | T157: ساري
A158: 0.885 | B158: 1.425 | C158: Tablet | E158: RBG استيراد المكتب التجاري الدولي | F158: Azathioprine 50 mg | G158: ابن سينا فارما | H158: Capsule or Tablet | I158: ازاثيوبرين 50 مجم | J158: Azathioprine 50 mg | K158: 8 | L158: A | M158: المناقصة النفسية 2015-2016 | N158: 2015-2016 | O158: 6 | P158: نفسية | Q158: مناقصة | T158: ساري
A159: 17 | B159: 21.600 / 30 GM | C159: TUBE 30 GM | E159: MUP | F159: AZADERM CREAM | G159: ابن سينا فارما | H159: Tube (30gm) | I159: حمض الأزيليك 20% كريم | J159: Azelaic Acid 20% Cream | K159: 418 | L159: A | M159: المناقصة الرابعة 2018-2019 | N159: 2018/2019 | O159: 4 | Q159: مناقصة | T159: ساري
A160: 5.43 | B160: 15 | C160: bottle 15 ml+ Water for reconstitution | E160: riva pharma | F160: azatribact | G160: ابن سينا فارما | H160: Bottle (15ml) + Water for reconstitution | I160: أزيثرومايسين 200 مجم /5 مللي معلق | J160: Azithromycin 200 mg / 5 ml Suspension | K160: 154 | L160: A | M160: المناقصة الثانية 2018-2019 | N160: 2019-2018 | O160: 2 | Q160: مناقصة | T160: ساري
A161: 2.066 | C161: Capsule | E161: Unipharma | F161: Unizithrin | G161: فارما أوفر سيز | H161: Capsules or Tablets | I161: أزيثرومايسين 500 مجم | J161: Azithromycin 500 mg | K161: 298 | L161: A | M161: مناقصة الاستكمال الثالثة 2017-2018 | N161: 2017-2018 | O161: 3 | Q161: استكمال | T161: ساري
A162: 100 | B162: 160 | C162: Vial | E162: Pfizer | F162: Zithromax 500 mg vial | G162: فايزر مصر للادويه | H162: Vial + Solvent | I162: ازيثروميسين 500 مجم للحقن بالوريد | J162: Azithromycin 500mg I.V | K162: 39 | L162: A | M162: مناقصةا الاستكمال الاولى 2017-2018 | N162: 2017-2018 | O162: 1 | Q162: استكمال | R162: Yes | T162: ساري
A163: 0.147 | B163: 6.50 | C163: tab | E163: pharo pharma | F163: Mylobac | G163: ابن سينا فارما | H163: Capsules or Tablets | I163: باكلوفين 10مجم | J163: Baclofen 10 mg | K163: 71 | L163: A | M163: المناقصة الاولي 2018-2019 | N163: 2018/2019 | O163: 1 | Q163: مناقصة | T163: ساري
A164: 0.45 | B164: 21.75 | C164: tab | E164: شركة مصر للمستحضرات الطبية لصالح شركة الدلتا لتجارة الادوية | F164: Baclofen | G164: ابن سينا فارما | H164: Capsules or Tablets | I164: باكلوفين 25مجم | J164: Baclofen 25 mg | K164: 72 | L164: A | M164: المناقصة الاولي 2018-2019 | N164: 2018/2019 | O164: 1 | Q164: مناقصة | T164: ساري
A165: 33.75 | B165: 45 | C165: Bottle 500 ml WITH rubber cap | E165: مصر اوتسوكا | F165: بانامين جي | G165: مصر اوتسوكا للمستحضرات الطبية | H165: Bottle 500 ml WITH Rubber Cap | I165: احماض امينية متوازنة للحقن الوريدى | J165: Balanced Amino Acid Combination I.V Solution for Adults | K165: 746 | L165: A | M165: المناقصة الثامنة 2015-2016 | N165: 2015-2016 | O165: 8 | Q165: مناقصة | T165: ساري
A166: 0.54 | B166: 6.000 / 10 SCHT | C166: Sachet | E166: MUP | F166: Vagyl Powder | G166: ابن سينا فارما | H166: Sachets or Bottle | I166: غسول مهبلى قاعدى | J166: Basic vaginal douche | K166: 329 | L166: A | M166: مناقصة الاستكمال الثالثة 2017-2018 | N166: 2017-2018 | O166: 3 | Q166: استكمال | T166: ساري
A167: 13 | B167: 22.5/ 200 dose | C167: inhaler | E167: Adco | F167: Beclosonenon CFC | G167: الشركة المصرية لتجارة الأدوية | H167: inhaler | I167: بكلوميثازون 50 ميكروجم/جرعة | J167: Beclomethasone 50 mcg / Dose | K167: 766 | L167: A | M167: المناقصة السابعة 2018-2019 | N167: 2018/2019 | O167: 7 | Q167: مناقصة | T167: ساري
A168: 24 | B168: 28.80 | C168: Aerosolbottle | E168: Adco | F168: Beclosone forte | G168: المصرية لتجارة الأدوية | H168: inhaler | I168: بيكلوميثازون استنشاق | J168: Beclomethasone 100 mcg/dose Inhalation | K168: 128 | L168: A | M168: مناقصة الأستكمال الثانية 2017-2018 | N168: 2017-2018 | O168: 2 | Q168: استكمال | T168: ساري
A169: 24 | B169: 28.8 | C169: Aerosol 200 doses | E169: Adco | F169: Beclosone forte | G169: المصرية لتجارة الأدوية | H169: Inhaler | I169: بيكلوميثازون استنشاق | J169: Beclomethasone 250 mcg/dose Inhalation | K169: 186 | L169: A | M169: مناقصة الاستكمال الثانية 2013-2014 | N169: 2013-2014 | O169: 2 | Q169: استكمال | T169: ساري
A170: 4.32 | B170: 6 | C170: Bottle 10 ml | E170: Eipico | F170: Benox | G170: ايبيكو | H170: Bottle 10 ml | I170: بينوكسينات هيدروكلورايد 0.4% نقط عين | J170: Benoxinate HCl 0.4 % Eye Drops | K170: 720 | L170: A | M170: المناقصة الثامنة 2015-2016 | N170: 2015-2016 | O170: 8 | Q170: مناقصة | T170: ساري
A171: 6 | B171: 7.00/ vial + solvent | C171: Vial | E171: El Nile | F171: Durapen - S | G171: المصرية لتجارة الأدوية | H171: Vial + Solvent | I171: بنزاثين بنيسيللين 1200000 وحدة دولية | J171: Benzathine penicillin 1200000 I.U. | K171: 285 | L171: A | M171: مناقصة الاستكمال الثالثة 2017-2018 | N171: 2017-2018 | O171: 3 | Q171: استكمال | R171: Yes | T171: ساري
A172: 4.425 | B172: 9 | C172: Tube 15 gm | E172: مصر للمستحضرات الطبية لصالح شركة الدلتا لتجارة الادوية | F172: dermacure oint | G172: ابن سينا فارما | H172: Tube 15 gm | I172: حمض البنزويك 6%+حمض الساليسيك 3%مرهم | J172: Benzoic acid 6% + Salicylic acid 3% Ointment | K172: 364 | L172: A | M172: المناقصة الرابعة 2015-2016 | N172: 2015-2016 | O172: 4 | Q172: مناقصة | T172: ساري
A173: 4.2 | B173: 4.250 / 20 GM | C173: TUBE 20 GM | E173: MUP | F173: AKNEROXID-5 GEL | G173: ابن سينا فارما | H173: Tube (20gm) | I173: بنزويل بيراوكسيد 5% جيل | J173: Benzoyl Peroxide 5% Gel | K173: 387 | L173: A | M173: المناقصة الرابعة 2018-2019 | N173: 2018/2019 | O173: 4 | Q173: مناقصة | T173: ساري
A174: 0.4485 | B174: 0.75 | C174: Tablet | E174: El Kahira | F174: Cogentol | G174: المصرية لتجارة الأدوية | H174: Capsule or Tablet | I174: بينزتروبين 2 مجم | J174: Benztropine 2 mg | K174: 10 | L174: A | M174: المناقصة النفسية 2015-2016 | N174: 2015-2016 | O174: 6 | P174: نفسية | Q174: مناقصة | T174: ساري
A175: 4.49 | B175: 6.75زجاجة125 مللي | C175: (125ml) | E175: Eipico | F175: Tantum verd | G175: ايبيكو | H175: Bottle | I175: بنزيدامين 0.15% غسول فم | J175: Benzydamine 0.15% Mouth Wash | K175: 460 | L175: A | M175: المناقصة الرابعة 2018-2019 | N175: 2018/2019 | O175: 4 | Q175: مناقصة | T175: ساري
A176: 4.425 | B176: 7.5 | C176: Tube 20 gm | E176: Eipico | F176: Tantm gel | G176: ايبيكو | H176: Tube 20 gm | I176: بنزيدامين 5% جيل | J176: Benzydamine 5% Gel | K176: 403 | L176: A | M176: المناقصة الرابعة 2015-2016 | N176: 2015-2016 | O176: 4 | Q176: مناقصة | T176: ساري
A177: 3.3 | B177: Tenders | C177: Bottle 120 ml | E177: UCCMA | F177: Scabidol lotion 25% | G177: المتحدة للكيماويات والمستحضرات الطبية | H177: Bottle 120 ml | I177: بنزويل بيراوكسيد 25% لوسيون | J177: Benzyl benzoate 25% lotion | K177: 367 | L177: A | M177: المناقصة الرابعة 2015-2016 | N177: 2015-2016 | O177: 4 | Q177: مناقصة | T177: ساري
A178: 2.775 | B178: 3.9 | C178: Tube 40 gm | E178: Pharo Pharma | F178: Benzyl Benzoate Topical Cream | G178: فارما أوفر سيز | H178: Tube( 40gm) | I178: بنزيل بنزوات 20% كريم | J178: benzyl benzoate 20% Cream | K178: 93 | L178: A | M178: مناقصة الاستكمال الأولي 2013-2014 | N178: 2013-2014 | O178: 1 | Q178: استكمال | T178: ساري
A179: 4.9 | B179: 7.5/ vial | C179: Vial + Solvent | E179: misr | F179: Benzyl penicillin G 1.000.000 I.U | G179: الشركة المصرية لتجارة الأدوية | H179: Vial + Solvent | I179: بنزيل بنسيللين ج صوديوم 1,000,000 وحدة دولية | J179: Benzyl Penicillin G Sodium 1,000,000 I.U. | K179: 83 | L179: A | M179: المناقصة الثانية 2018-2019 | N179: 2019-2018 | O179: 2 | Q179: مناقصة | R179: Yes | T179: ساري
A180: 0.255 | B180: 1.35 | C180: Tablet | E180: Chemipharm | F180: Versrc 16 mg | G180: المصرية لتجارة الأدوية | H180: Capsule or Tablet | I180: بيتاهيستين 16مجم | J180: Betahistine 16 mg | K180: 11 | L180: A | M180: المناقصة النفسية 2015-2016 | N180: 2015-2016 | O180: 6 | P180: نفسية | Q180: مناقصة | T180: ساري
A181: 0.15 | B181: 0.825 | C181: Tablet | E181: Future Pharmaceutical Industries | F181: Steady Futal 8mg | G181: ابن سينا فارما | H181: Capsule or Tablet | I181: بيتاهيستين 8مجم | J181: Betahistine 8 mg | K181: 12 | L181: A | M181: المناقصة النفسية 2015-2016 | N181: 2015-2016 | O181: 6 | P181: نفسية | Q181: مناقصة | T181: ساري
A182: 9 | B182: 12.00 L.E | C182: Bottle 30 ml | E182: Gsk - E | F182: Betnovate Scalp Lotion. | G182: ابن سينا فارما | H182: Bottle 15 ml | I182: بيتاميتازون 0.1% لوسيون | J182: Betamethasone 0 .1% Lotion | K182: 87 | L182: A | M182: مناقصةا الاستكمال الاولى 2017-2018 | N182: 2017-2018 | O182: 1 | Q182: استكمال | T182: ساري
A183: 2.6 | B183: 4.00 | C183: Tube 15 gm | E183: pharo pharma | F183: Cronomesone cream | G183: فارما اوفر سيز | H183: Tube | I183: بيتاميتازون 0.1% كريم | J183: Betamethasone 0.1 % Cream | K183: 395 | L183: A | M183: المناقصة الرابعة 2018-2019 | N183: 2018/2019 | O183: 4 | Q183: مناقصة | T183: ساري
A184: 2.8 | B184: 4.00 | C184: Tube 15 gm | E184: pharo pharma | F184: Cronomesone ointment | G184: فارما اوفر سيز | H184: Tube | I184: بيتاميتازون 0.1% مرهم | J184: Betamethasone 0.1 % Ointment | K184: 396 | L184: A | M184: المناقصة الرابعة 2018-2019 | N184: 2018/2019 | O184: 4 | Q184: مناقصة | T184: ساري
A185: 7.071428571 | B185: 9 | C185: Bottle 30 ml | E185: Memphis | F185: Betasalic | G185: المصرية لتجارة الأدوية | H185: Bottle 30 ml | I185: بيتاميتازون 0.05% +حمض الساليسليك 3% لوسيون | J185: Betamethasone 0.05%+ Salicylic acid 2% Lotion | K185: 161 | L185: A | M185: مناقصة الاستكمال الرابعة 2014-2015 | N185: 2014-2015 | O185: 4 | Q185: استكمال | T185: ساري
A186: 8.75 | B186: سعر الجمهور للامبول الواحد | C186: Ampoule | E186: Marcyrl | F186: Dexaglobe ampoule | G186: شركة رامكو | H186: Injection | I186: بيتاميثازون دايبروبيونات10مجم+ بيتاميثازون صوديوم فوسفات 4مجم | J186: Betamethasone dipropionate 10 mg+ Betamethasone Na PO4 4 mg | K186: 765 | L186: A | M186: المناقصة السابعة 2018-2019 | N186: 7 | O186: 7 | Q186: مناقصة | T186: ساري
A187: 3646 | B187: 4096 | E187: Roche | F187: Avastin 100mg | G187: المصرية لتجارة الأدوية | H187: Injection | J187: Bevacizumab 100mg | K187: 4 | L187: A | M187: شراء موحد أدوية الأورام List 51 | N187: 2018 | O187: 51 | P187: Oncology | Q187: مناقصة | R187: Yes | S187: Oncology | T187: ساري
A188: 3646 | B188: 4096 | E188: Roche | F188: Avastin 100mg | G188: فارما أوفر سيز | H188: Injection | J188: Bevacizumab 100mg | K188: 4 | L188: B | M188: شراء موحد أدوية الأورام List 51 | N188: 2018 | O188: 51 | P188: Oncology | Q188: مناقصة | R188: Yes | S188: Oncology | T188: ساري
A189: 13051 | B189: 13501 | E189: Roche | F189: Avastin 400mg | G189: المصرية لتجارة الأدوية | H189: Injection | J189: Bevacizumab 400mg | K189: 5 | L189: A | M189: شراء موحد أدوية الأورام List 51 | N189: 2018 | O189: 51 | P189: Oncology | Q189: مناقصة | R189: Yes | S189: Oncology | T189: ساري
A190: 13051 | B190: 13501 | E190: Roche | F190: Avastin 400mg | G190: فارما أوفر سيز | H190: Injection | J190: Bevacizumab 400mg | K190: 5 | L190: B | M190: شراء موحد أدوية الأورام List 51 | N190: 2018 | O190: 51 | P190: Oncology | Q190: مناقصة | R190: Yes | S190: Oncology | T190: ساري
A191: 18.75 | B191: =720/28 -> 25.71428571 | C191: Tablet | D191: مستورد | E191: Astrazeneca | F191: Casodex 50 mg | G191: ابن سينا فارما | H191: Capsules or Tablets | I191: بيكليوتامايد 50 مجم | J191: Bicalutamide 50 mg | K191: 6 | L191: A | M191: شراء موحد أدوية الأورام List 51 | N191: 2018 | O191: 51 لضمان التوافر | P191: Oncology | Q191: مناقصة | R191: Yes | S191: Oncology | T191: ساري
A192: 0.2997275204 | B192: 0.44 | C192: Tablet | E192: Pharco | F192: Biperiden Tab | G192: فاركو للأدوية | H192: Capsule or Tablet | I192: بيبريدين 2 مجم | J192: Biperiden 2 mg | K192: 13 | L192: A | M192: المناقصة النفسية 2015-2016 | N192: 2015-2016 | O192: 6 | P192: نفسية | Q192: مناقصة | T192: ساري
A193: 6.325 | B193: 9.2 | C193: Ampoule | E193: Delta Pharma | F193: Kinoprid | G193: فارما أوفر سيز | H193: Injection | I193: بيبريدين 5 مجم/ مللي | J193: Biperiden 5 mg / ml | K193: 14 | L193: A | M193: المناقصة النفسية 2015-2016 | N193: 2015-2016 | O193: 6 | P193: نفسية | Q193: مناقصة | T193: ساري
A194: 0.244 | B194: 0.25/ tab | C194: Tablet | E194: Amriya | F194: Bisadyl | G194: أبوقير للتجارة الدولية | H194: Capsules or Tablets | I194: بيساكوديل 5 مجم | J194: Bisacodyl 5mg Capsules or Tablets | K194: 144 | L194: A | M194: مناقصة الأستكمال الثانية 2017-2018 | N194: 2017-2018 | O194: 2 | Q194: استكمال | T194: ساري
A195: 0.199 | B195: 0.525 | C195: tab | E195: hikma pharma | F195: Bistol 2.5 mg | G195: ابن سينا فارما | H195: Capsules or Tablets | I195: بيسوبرولول 2.5 مجم | J195: Bisoprolol 2.5 mg | K195: 246 | L195: A | M195: المناقصة الثالثة 2018-2019 | N195: 2018-2019 | O195: 3 | Q195: مناقصة | T195: ساري
A196: 0.144 | B196: 0.65 | C196: tab | E196: EGPI | F196: egypro 5mg | G196: ابن سينا فارما | H196: Capsules or Tablets | I196: بيسوبرولول 5 مجم | J196: Bisoprolol 5 mg | K196: 247 | L196: A | M196: المناقصة الثالثة 2018-2019 | N196: 2018-2019 | O196: 3 | Q196: مناقصة | T196: ساري
A197: 0.344 | B197: 400 | C197: Tab | E197: unipharma | F197: unibisol | G197: فارما اوفر سيز | H197: Capsules or Tablets | I197: بيسوبرولول 10 مجم | J197: Bisoprolol 10 mg | K197: 248 | L197: A | M197: المناقصة الثالثة 2018-2019 | N197: 2018-2019 | O197: 3 | Q197: مناقصة | T197: ساري
A198: 0.2665 | B198: 0.75 | C198: tab | E198: hikma pharma | F198: Bistol plus 5/12.5 mg | G198: ابن سينا فارما | H198: Capsules or Tablets | I198: بيسوبرولول 5 مجم+ هيدروكلوروثيايد 12.5مجم | J198: Bisoprolol 5 mg + Hydrochlorothiazide 12.5 mg | K198: 249 | L198: A | M198: المناقصة الثالثة 2018-2019 | N198: 2018-2019 | O198: 3 | Q198: مناقصة | T198: ساري
A199: 105 | B199: 119 | C199: 1 Vial | D199: مستورد | E199: Cipla | F199: Belocip | G199: ستار انترناشونال | H199: Injection | I199: بليوميسين 15 وحدة | J199: Bleomycin 15 I.U. | K199: 2 | L199: A | M199: شراء موحد أدوية الأورام List 50 | N199: 2018 | O199: 50 لضمان التوافر | P199: Oncology | Q199: مناقصة | R199: Yes | S199: Oncology | T199: ساري
A200: 0.191 | B200: 5.9 | C200: cap. | E200: pharco | F200: Bilicol cap. | G200: ابن سينا فارما | H200: Capsules or Tablets | I200: بورنيول +بينين +كامفين +مينيتول +سينيول +مينيتون | J200: Borneol + Pinene + Camphene + Menthol + Cineole + Menthone | K200: 529 | L200: A | M200: المناقصة الخامسة 2018-2019 | N200: 2018/2019 | O200: 5 | Q200: مناقصة | T200: ساري
... 1241 more rows

Sheet مجاني
A1: سعر الترسية للوحدة | B1: سعر السوق الحالي بالوحدة | C1: الوحدة | D1: محلي/ مستورد | E1: الشركة المنتجة | F1: الاسم التجارى | G1: اسم الشركة الموزعة | H1: العبوة | I1: الاسم العلمى | J1: الاسم العام | K1: رقم البند | L1: Serial of Trade | M1: اسم المناقصة | N1: عام المناقصة | O1: رقم المناقصة | P1: تخصص المناقصة | Q1: مناقصة / استكمال / ممارسة | R1: Life Saving | S1: Category | T1: حالة البند | U1: الرصيد | V1: متوسط الاستهلاك الشهري | W1: معدل التغطية باليوم | X1: Class | Y1: معدل 3 شهور | Z1: Class1
A2: 11.5 | B2: 20 | C2: Tablet | E2: Amoun | F2: إم - إكس أقراص | G2: رامكو فارم لتجارة الادوية | H2: Capsule or Tablet | I2: مثبطات السيريتونين ضد القئ | J2: 5 HT antagonist antiemtic | K2: 434 | L2: A | M2: المناقصة الخامسة 2015-2016 | N2: 2015-2016 | O2: 5 | Q2: مناقصة | T2: ساري | U2: 810 | V2: 990 | W2: =IFERROR(($U2/$V2)*30,"") -> 24.54545455 | X2: =IF($W2="","",IF($W2<=30,"A",IF($W2<=60,"B",IF($W2>60,"C")))) -> A | Y2: =IFERROR(($V2)*3,"") -> 2970 | Z2: =CHOOSE(($U2<$Y2)+($Y2="")+1,"",F2) -> إم - إكس أقراص | AB2: إم - إكس أقراص
A3: 9.5 | B3: 9.95 | C3: Ampoule | E3: Hikma - EUP | F3: Utoral 250 mg | G3: فارما أوفر سيز | H3: Injection | I3: 5فلورويوراسيل 250مجم | J3: 5-Fluorouracil 250 mg | K3: 1 | L3: A | M3: شراء موحد أدوية الأورام List 51 | N3: 2018 | O3: 51 | P3: Oncology | Q3: مناقصة | R3: Yes | S3: Oncology | T3: ساري | U3: 2700 | V3: 3900 | W3: 20.76923077 | X3: A | Y3: =IFERROR(($V3)*3,"") -> 11700 | Z3: =CHOOSE(($U3<$Y3)+($Y3="")+1,"",F3) -> Utoral 250 mg | AA3: مطلوب تعديل المعادلة بالعمود z بحيث | AB3: Utoral 250 mg
A4: 9.5 | B4: 9.95 | C4: Ampoule | E4: Hikma - EUP | F4: Utoral 250 mg | G4: المتحدة للصيادلة | H4: Injection | I4: 5فلورويوراسيل 250مجم | J4: 5-Fluorouracil 250 mg | K4: 1 | L4: B | M4: شراء موحد أدوية الأورام List 51 | N4: 2018 | O4: 51 | P4: Oncology | Q4: مناقصة | R4: Yes | S4: Oncology | T4: ساري | U4: 0 | V4: 0 | Y4: 0 | AA4: تجلب اسم الصنف من العمودF
A5: 9.5 | B5: 9.95 | C5: Ampoule | E5: Hikma - EUP | F5: Utoral 250 mg | G5: رامكو فارم لتجارة الادوية | H5: Injection | I5: 5فلورويوراسيل 250مجم | J5: 5-Fluorouracil 250 mg | K5: 1 | L5: C | M5: شراء موحد أدوية الأورام List 51 | N5: 2018 | O5: 51 | P5: Oncology | Q5: مناقصة | R5: Yes | S5: Oncology | T5: ساري | U5: 0 | V5: 0 | Y5: 0 | AA5: بدلا من كتابة الحرف d
A6: 12.8 | B6: 16.5 | C6: Vial | E6: Hikma - EUP | F6: Utoral 500 mg | G6: فارما أوفر سيز | H6: Injection | I6: 5فلورويوراسيل 500مجم | J6: 5-Fluorouracil 500 mg | K6: 2 | L6: A | M6: شراء موحد أدوية الأورام List 51 | N6: 2018 | O6: 51 | P6: Oncology | Q6: مناقصة | R6: Yes | S6: Oncology | T6: ساري | U6: 0 | V6: 0 | Y6: 0 | AA6: ليكون الناتج مثل العمودAB
A7: 12.8 | B7: 16.5 | C7: Vial | E7: Hikma - EUP | F7: Utoral 500 mg | G7: المتحدة للصيادلة | H7: Injection | I7: 5فلورويوراسيل 500مجم | J7: 5-Fluorouracil 500 mg | K7: 2 | L7: B | M7: شراء موحد أدوية الأورام List 51 | N7: 2018 | O7: 51 | P7: Oncology | Q7: مناقصة | R7: Yes | S7: Oncology | T7: ساري | U7: 15000 | V7: 5000 | W7: 90 | X7: C | Y7: 15000
A8: 12.8 | B8: 16.5 | C8: Vial | E8: Hikma - EUP | F8: Utoral 500 mg | G8: رامكو فارم لتجارة الادوية | H8: Injection | I8: 5فلورويوراسيل 500مجم | J8: 5-Fluorouracil 500 mg | K8: 2 | L8: C | M8: شراء موحد أدوية الأورام List 51 | N8: 2018 | O8: 51 | P8: Oncology | Q8: مناقصة | R8: Yes | S8: Oncology | T8: ساري | U8: 3700 | V8: 650 | W8: 170.7692308 | X8: C | Y8: 1950
A9: 0.15 | B9: 4.000 | C9: Tablet | E9: Amoun | F9: Cortilon 0.1mg | G9: المتحدة للصيادلة | H9: Capsule or Tablet | I9: فلودروهيدروكورتيزون 0.1 مجم | J9: 9-alpha fludrohydrocortisone 0.1mg | K9: 332 | L9: A | M9: المناقصة الثالثة 2010-2011 | N9: 2010-2011 | O9: 3 | Q9: مناقصة | T9: ساري | U9: 0 | V9: 0 | Y9: 0
A10: 0.807 | B10: 1 | C10: Tablet | E10: Hikma Pharma | F10: glucobay 50mg | G10: سوفيكو فارم | H10: Capsule or Tablet | I10: اكربوز 50 مجم | J10: Acarbose 50 mg | K10: 16 | L10: A | M10: ممارسة استكمال الاورام و أدوية متنوعة 2012-2013 | N10: 2012-2013 | P10: Oncology | Q10: استكمال | S10: Oncology | T10: ساري | U10: 780000 | V10: 350000 | W10: 66.85714286 | X10: C | Y10: 1050000 | Z10: glucobay 50mg | AB10: glucobay 50mg
A11: 0.3105555556 | B11: 0.325 | C11: Tablet | E11: CID | F11: Cidamex | G11: المصرية لتجارة الأدوية | H11: Capsule or Tablet | I11: اسيتازولاميد 250 مجم | J11: Acetazolamide 250 mg | K11: 690 | L11: A | M11: المناقصة الثامنة 2015-2016 | N11: 2015-2016 | O11: 8 | Q11: مناقصة | T11: ساري | U11: 4000 | V11: 2300 | W11: 52.17391304 | X11: B | Y11: 6900 | Z11: Cidamex | AB11: Cidamex
A12: 0.053 | B12: 0.106 | C12: Tablet | E12: Alexandria | F12: Aspin | G12: المصرية لتجارة الأدوية | H12: Capsule or Tablet | I12: اسيتيل ساليسيك اسيد 300 مجم | J12: Acetyl salicylic acid 300mg | K12: 78 | L12: A | M12: المناقصة الاولي 2013-2014 | N12: 2013-2014 | O12: 1 | Q12: مناقصة | T12: ساري | U12: 0 | V12: 0 | Y12: 0
A13: 0.053 | B13: 0.158 | C13: Tablet | E13: Adco | F13: Rivo | G13: المصرية لتجارة الأدوية | H13: Capsule or Tablet | I13: اسيتيل ساليسيك اسيد 300 مجم | J13: Acetyl salicylic acid 300mg | K13: 78 | L13: B | M13: المناقصة الاولي 2013-2014 | N13: 2013-2014 | O13: 1 | Q13: مناقصة | T13: ساري | U13: 0 | V13: 0 | Y13: 0
A14: 0.119 | B14: 391.70/1000tab. | C14: Tablet | E14: Adco | F14: Rivo 75 mg | G14: الشركة المصرية لتجارة الأدوية | H14: Capsules or Tablets | I14: اسيتيل ساليسيك اسيد 75 مجم | J14: Acetyl Salicylic Acid 75 mg | K14: 328 | L14: A | M14: المناقصة الثالثة 2018-2019 | N14: 2018/2019 | O14: 3 | Q14: مناقصة | R14: Yes | T14: ساري | U14: 710000 | V14: 300000 | W14: 71 | X14: C | Y14: 900000 | Z14: Rivo 75 mg | AB14: Rivo 75 mg
A15: 69 | B15: 85 | C15: vial | E15: الشركة العربية للمستحضرات الطبية (ارابكوميد) لصالح شركة بيوكابيتال توزيع شركة ايجي فارما | F15: Rotacysteine 20% I.V Infusion | G15: فارما اوفر سيز | H15: Vial | I15: اسيتيل سيستايين | J15: ACETYL CYSTIENE | K15: 1 | L15: A | M15: المناقصة العامة لتوريد أدوية علاج السموم جلسة 13/11/2016 | Q15: مناقصة | T15: ساري | U15: 100 | V15: 300 | W15: 10 | X15: A | Y15: 900 | Z15: Rotacysteine 20% I.V Infusion | AB15: Rotacysteine 20% I.V Infusion
A16: 0.8357142857 | B16: 1.4 | C16: Sachet | E16: Sedico | F16: Acetylcistein | G16: سيديكو | H16: Sachet | I16: اسيتيل سيستايين 200مجم | J16: acetylcysteine 200mg | K16: 637 | L16: A | M16: المناقصة السابعة 2015-2016 | N16: 2015-2016 | O16: 7 | Q16: مناقصة | T16: ساري | U16: 225 | V16: 130 | W16: 51.92307692 | X16: B | Y16: 390 | Z16: Acetylcistein | AB16: Acetylcistein
A17: 0.8357142857 | B17: 0.9 | C17: Sachet | E17: Pharco | F17: Windy Effervescent | G17: فاركو للأدوية | H17: Sachet | I17: اسيتيل سيستايين 200مجم | J17: acetylcysteine 200mg | K17: 637 | L17: B | M17: المناقصة السابعة 2015-2016 | N17: 2015-2016 | O17: 7 | Q17: مناقصة | T17: ساري | U17: 0 | V17: 0 | Y17: 0
A18: 7.333333333 | B18: 11 | C18: Bottle 250 ml | E18: Mash Premiere | F18: DOUCHEAL | G18: ابن سينا فارما | H18: Sachet or Bottle | I18: غسول مهبلى حامضى | J18: Acidic vaginal douche | K18: 678 | L18: A | M18: المناقصة السابعة 2015-2016 | N18: 2015-2016 | O18: 7 | Q18: مناقصة | T18: ساري | U18: 0 | V18: 0 | Y18: 0
A19: 0.65 | B19: 25.20 | C19: Tab | E19: Sedico | F19: Cycloviral | G19: سيديكو | H19: Capsules or Tablets | I19: أسيكلوفير 200 مجم | J19: Acyclovir 200 mg | K19: 211 | L19: A | M19: المناقصة الثانية 2015-2016 | N19: 2015-2016 | O19: 2 | Q19: مناقصة | T19: ساري | U19: 60 | V19: 90 | W19: 20 | X19: A | Y19: 270 | Z19: Cycloviral
A20: 0.65 | B20: 16.20 | C20: tablet | E20: pharo pharma | F20: Virustat 200 | G20: ابن سينا فارما | H20: Capsules or Tablets | I20: أسيكلوفير 200 مجم | J20: Acyclovir 200 mg | K20: 211 | L20: B | M20: المناقصة الثانية 2015-2016 | N20: 2015-2016 | O20: 2 | Q20: مناقصة | T20: ساري | U20: 750 | V20: 2010 | W20: 11.19402985 | X20: A | Y20: 6030 | Z20: Virustat 200
A21: 0.914 | B21: 35.00 | C21: tablet | E21: pharo pharma | F21: Virustat 400 mg | G21: ابن سينا فارما | H21: Capsules or Tablets | I21: أسيكلوفير 400 مجم | J21: Acyclovir 400 mg | K21: 212 | L21: A | M21: المناقصة الثانية 2018-2019 | N21: 2019-2018 | O21: 2 | Q21: مناقصة | T21: ساري | U21: 20 | V21: 0 | Y21: 0
A22: 49 | B22: 56 | C22: Vial | E22: Mylan | F22: Acyclovir 250 mg | G22: رامكو فارم لتجارة الادوية | H22: Injection | I22: اسيكلوفير250 مجم | J22: Acyclovir 250 mg | K22: 183 | L22: A | M22: مناقصة الاستكمال الرابعة 2014-2015 | N22: 2014-2015 | O22: 4 | Q22: استكمال | R22: Yes | T22: ساري | U22: 1330 | V22: 2900 | W22: 13.75862069 | X22: A | Y22: 8700 | Z22: Acyclovir 250 mg
A23: 65.6 | B23: 80/ViaL | C23: VL | E23: MYLAN | F23: Acyclovir 500 mg | G23: الشركة المصرية لتجارة الأدوية | H23: Injection | I23: أسيكلوفير 500 مجم | J23: Acyclovir 500 mg | K23: 210 | L23: A | M23: المناقصة الثانية 2018-2019 | N23: 2019-2018 | O23: 2 | Q23: مناقصة | R23: Yes | T23: ساري | U23: 0 | V23: 2000 | W23: 0 | X23: A | Y23: 6000 | Z23: Acyclovir 500 mg
A24: 33 | B24: 47.00 L.E | C24: BOTTLE 100 ML | E24: GSK - E | F24: Zovirax Double strength | G24: ابن سينا فارما | H24: Bottle (100ml) | I24: أسيكلوفير 400 مجم / 5 مللي معلق | J24: Acyclovir 400 mg / 5 ml Suspension | K24: 213 | L24: A | M24: المناقصة الثانية 2018-2019 | N24: 2019-2018 | O24: 2 | Q24: مناقصة | T24: ساري | U24: 0 | V24: 0 | Y24: 0
A25: 3.15 | B25: 5.5 | C25: Tube 10 gm | E25: pharo pharma | F25: Virustat 5% Cream | G25: ابن سينا فارما | H25: Tube (10gm) | I25: أسيكلوفير 5% كريم | J25: Acyclovir 5% Cream | K25: 417 | L25: A | M25: المناقصة الرابعة 2018-2019 | N25: 2018/2019 | O25: 4 | Q25: مناقصة | T25: ساري | U25: 0 | V25: 0 | Y25: 0
A26: 2.3 | B26: 268.00/100A | C26: ampule | E26: misr | F26: Epinephrine | G26: الشركة المصرية لتجارة الأدوية | H26: Injection | I26: أدرينالين1مجم/مللي | J26: Adrenaline 1 mg / ml | K26: 444 | L26: A | M26: المناقصة الرابعة 2018-2019 | N26: 2018/2019 | O26: 4 | Q26: مناقصة | R26: Yes | T26: ساري | U26: 1550 | V26: 8010 | W26: 5.805243446 | X26: A | Y26: 24030 | Z26: Epinephrine
A27: 2.3 | B27: 26.00/10 amp. | C27: ampule | E27: Chemipharm | F27: Adrenamax | G27: الشركة المصرية لتجارة الأدوية | H27: Injection | I27: أدرينالين1مجم/مللي | J27: Adrenaline 1 mg / ml | K27: 444 | L27: B | M27: المناقصة الرابعة 2018-2019 | N27: 2018/2019 | O27: 4 | Q27: مناقصة | R27: Yes | T27: ساري | U27: 19000 | V27: 6000 | W27: 95 | X27: C | Y27: 18000
A28: 5.89 | B28: tender price | C28: Carton box containing aluminium tube | E28: zad industrial pharma | F28: Zadema | G28: المتحدة للصيادلة | H28: Tube (40mg) | I28: آيسين 1% + داي ايثيل أمينو ساليسيلات 5% جل | J28: Aescin 1% + Diethylamino Salicylate 5% gel | K28: 75 | L28: A | M28: المناقصة الأولى 2018-2019 | N28: 2019-2018 | O28: 1 | Q28: مناقصة | T28: ساري | U28: 61850 | V28: 18850 | W28: 98.43501326 | X28: C | Y28: 56550
A29: 0.585 | B29: 0.825 | C29: Tablet | D29: محلي | E29: CID | F29: Reparil | G29: المصرية لتجارة الأدوية | H29: Capsule or Tablet | I29: آيسين 40 مجم | J29: Aescin 40mg | K29: 72 | L29: A | M29: المناقصة الأولى 2015-2016 | N29: 2015-2016 | O29: 1 | Q29: مناقصة | T29: ساري | U29: 122 | V29: 300 | W29: 12.2 | X29: A | Y29: 900 | Z29: Reparil
A30: 3.19 | B30: 6.75زجاجة20 مللي | C30: 20 ml | E30: Eipico | F30: Alzental | G30: ايبيكو | H30: Bottle (20ml) | I30: ألبيندازول 100 مجم / 5 مللي شراب | J30: Albendazole 100mg/5ml syrup | K30: 158 | L30: A | M30: مناقصة الأستكمال الثانية 2017-2018 | N30: 2017-2018 | O30: 2 | Q30: استكمال | T30: ساري | U30: 257 | V30: 178 | W30: 43.31460674 | X30: B | Y30: 534 | Z30: Alzental
A31: 1.74 | B31: 2.625/ tab | C31: Tablet | E31: Eipico | F31: Alzental | G31: ايبيكو | H31: Capsules or Tablets | I31: ألبيندازول 200 مجم | J31: Albendazole 200mg Capsules or Tablets | K31: 159 | L31: A | M31: مناقصة الأستكمال الثانية 2017-2018 | N31: 2017-2018 | O31: 2 | Q31: استكمال | T31: ساري | U31: 0 | V31: 1000 | W31: 0 | X31: A | Y31: 3000 | Z31: Alzental
A32: 0.66 | B32: 1.5/ tab | C32: Tablet | E32: Mina Pharm | F32: Bon-One 0.25 mcg Tablets | G32: مينا فارم | H32: Capsules or Tablets | I32: الفاكلسيدول 0,25 ميكروجرام | J32: Alfacalcidol 0.25mcg | K32: 201 | L32: A | M32: مناقصة الأستكمال الثانية 2017-2018 | N32: 2017-2018 | O32: 2 | Q32: استكمال | R32: Yes | T32: ساري | U32: 7470 | V32: 11500 | W32: 19.48695652 | X32: A | Y32: 34500 | Z32: Bon-One 0.25 mcg Tablets
A33: 0.7425 | B33: 1.916666667 | C33: Capsule | E33: Arab Company for Gelatin لصالح مالتى كير | F33: BoneCare 0.5 | G33: فارما أوفر سيز | H33: Capsule or Tablet | I33: الفاكلسيدول 0,5 ميكروجرام | J33: AlfaCalcidol 0.5 mcg | K33: 771 | L33: A | M33: المناقصة الثامنة 2015-2016 | N33: 2015-2016 | O33: 8 | Q33: مناقصة | R33: Yes | T33: ساري | U33: 4000 | V33: 1000 | W33: 120 | X33: C | Y33: 3000
A34: 0.936 | B34: 1.95 | C34: Capsule | E34: Arab Company for Gelatin لصالح مالتى كير | F34: BoneCare 1 | G34: فارما أوفر سيز | H34: Capsule or Tablet | I34: الفاكلسيدول 1 ميكروجرام | J34: AlfaCalcidol 1 mcg | K34: 772 | L34: A | M34: المناقصة الثامنة 2015-2016 | N34: 2015-2016 | O34: 8 | Q34: مناقصة | R34: Yes | T34: ساري | U34: 49000 | V34: 18000 | W34: 81.66666667 | X34: C | Y34: 54000 | Z34: BoneCare 1
A35: 14.29714286 | B35: 21.6 | C35: Ampoule | E35: Alexandria for Rotabiogen | F35: Alfabonid | G35: ابن سينا فارما | H35: Injection | I35: الفاكلسيدول 2 ميكروجرام/مللي | J35: AlfaCalcidol 2 mcg / ml | K35: 773 | L35: A | M35: المناقصة الثامنة 2015-2016 | N35: 2015-2016 | O35: 8 | Q35: مناقصة | R35: Yes | T35: ساري | U35: 700 | V35: 750 | W35: 28 | X35: A | Y35: 2250 | Z35: Alfabonid
A36: 49.5 | B36: 130 | C36: Bottle | E36: Alesraa for Rotabiogen | F36: Alfabonid | G36: ابن سينا فارما | H36: Bottle 20 ml | I36: الفاكلسيدول 2ميكروجرام/مللي نقط | J36: AlfaCalcidol 2 mcg / ml Oral Drops | K36: 774 | L36: A | M36: المناقصة الثامنة 2015-2016 | N36: 2015-2016 | O36: 8 | Q36: مناقصة | R36: Yes | T36: ساري | U36: 6963 | V36: 31040 | W36: 6.729703608 | X36: A | Y36: 93120 | Z36: Alfabonid
A37: 0.239 | B37: 12.00 علبة 50 قرص | C37: Tablet | E37: Eipico | F37: Nouric | G37: ايبيكو | H37: Capsules or Tablets | I37: أللوبيورينول 100 مجم | J37: Allopurinol 100 mg | K37: 78 | L37: A | M37: المناقصة الأولى 2018-2019 | N37: 2019-2018 | O37: 1 | Q37: مناقصة | T37: ساري | U37: 0 | V37: 5000 | W37: 0 | X37: A | Y37: 15000 | Z37: Nouric
A38: 0.32 | B38: 5.25/10tab. | C38: Tablet | E38: Memphis | F38: Crystazol | G38: الشركة المصرية لتجارة الأدوية | H38: Capsules or Tablets | I38: أللوبيورينول 300 مجم | J38: Allopurinol 300 mg | K38: 79 | L38: A | M38: المناقصة الأولى 2018-2019 | N38: 2019-2018 | O38: 1 | Q38: مناقصة | T38: ساري | U38: 0 | V38: 5220 | W38: 0 | X38: A | Y38: 15660 | Z38: Crystazol
A39: 3200 | B39: 4050 | C39: injection | E39: Boehringer Ingelheim | F39: Actilyse 50mg injection | G39: المصرية لتجارة الأدوية | H39: injection | I39: التيبلاز 50مجم | J39: Alteplase 50mg | K39: 4 | L39: A | M39: مناقصة بدائل الاستربتوكينياز 2017-2018 | N39: 2017-2018 | P39: Streptokinase بدائل | Q39: مناقصة | R39: Yes | S39: Thrombolytics | T39: ساري | U39: 110 | V39: 490 | W39: 6.734693878 | X39: A | Y39: 1470 | Z39: Actilyse 50mg injection
A40: 0.32 | C40: Tab | E40: sedico | F40: Magaldrate Chewable | G40: سيديكو | H40: Capsules or Tablets | I40: مضاد للحموضة أقراص تحتوي على ألومونيوم هيدروكسيد و ماجنيزيوم هيدروكسيد | J40: Aluminum Hydroxide Gel & Magnesium Salts Or Comb. Antacid | K40: 482 | L40: A | M40: المناقصة الخامسة 2018-2019 | N40: 2018/2019 | O40: 5 | Q40: مناقصة | T40: ساري | U40: 0 | V40: 0 | Y40: 0
A41: 4.4685 | B41: 6 | C41: Bottle 100 ml | E41: Pharco | F41: Miopan susp. | G41: فاركو للأدوية | H41: Bottle 100 ml | I41: مضاد للحموضةشراب تحتوي على ألومونيوم هيدروكسيد و ماجنيزيوم هيدروكسيد | J41: Aluminum Hydroxide Gel & Magnesium salts or comb. antacid syrup | K41: 426 | L41: A | M41: المناقصة الخامسة 2015-2016 | N41: 2015-2016 | O41: 5 | Q41: مناقصة | T41: ساري | U41: 17160 | V41: 25500 | W41: 20.18823529 | X41: A | Y41: 76500 | Z41: Miopan susp.
A42: 0.27 | B42: 0.35 | C42: Capsule | E42: Rameda | F42: Adamin | G42: ابن سينا فارما | H42: Capsule or Tablet | I42: أمانتادين 100 مجم | J42: Amantadine 100mg | K42: 194 | L42: A | M42: المناقصة الثانية 2015-2016 | N42: 2015-2016 | O42: 2 | Q42: مناقصة | T42: ساري | U42: 260 | V42: 2260 | W42: 3.451327434 | X42: A | Y42: 6780 | Z42: Adamin
A43: 4 | B43: 5.00 LE /Bottle 15 ml | C43: Bottle 15 ml | E43: Rameda | F43: Mucosin Oral Drops | G43: فارما أوفر سيز | H43: Bottle (15ml) | I43: امبروكسول نقط فم | J43: Ambroxol oral drops | K43: 280 | L43: A | M43: مناقصة الاستكمال الثالثة 2017-2018 | N43: 2017-2018 | O43: 3 | Q43: استكمال | T43: ساري | U43: 170 | V43: 290 | W43: 17.5862069 | X43: A | Y43: 870 | Z43: Mucosin Oral Drops
A44: 4.9 | B44: 5.00للفيال | C44: Vial 2ml | E44: Eipico | F44: Amikacin | G44: ايبيكو | H44: Injection | I44: أميكاسين 100 مجم | J44: Amikacin 100mg Injection | K44: 51 | L44: A | M44: مناقصةا الاستكمال الاولى 2017-2018 | N44: 2017-2018 | O44: 1 | Q44: استكمال | R44: Yes | T44: ساري | U44: 0 | V44: 0 | Y44: 0
A45: 7.25 | B45: 11 | C45: Vial | E45: HSPحكمة المتخصصة | F45: Emijectacin 500 mg | G45: ابن سينا فارما | H45: Injection | I45: أميكاسين 500 مجم | J45: Amikacin 500 mg | K45: 163 | L45: A | M45: المناقصة الثانية 2018-2019 | N45: 2019-2018 | O45: 2 | Q45: مناقصة | R45: Yes | T45: ساري | U45: 0 | V45: 0 | Y45: 0
A46: 15.99 | B46: 21.75 | C46: Bottle 100ml | E46: ACDIMA | F46: Amikacin Lotion Spray | G46: المتحدة للصيادلة | H46: Bottle | I46: بخاخة مضاد حيوى تحتوي على اميكاسين | J46: Amikacin antibiotic spray | K46: 94 | L46: A | M46: مناقصةا الاستكمال الاولى 2017-2018 | N46: 2017-2018 | O46: 1 | Q46: استكمال | T46: ساري | U46: 5600 | V46: 10800 | W46: 15.55555556 | X46: A | Y46: 32400 | Z46: Amikacin Lotion Spray
A47: 0.15 | B47: 9.5/30 tab. | C47: Tablet | E47: Kahira | F47: Moduretic | G47: الشركة المصرية لتجارة الأدوية | H47: Capsules or Tablets | I47: اميلورايد 5 مجم+هيدروكلوروثيازيد 50 مجم | J47: Amiloride 5 mg + Hydrochlorothiazide 50 mg | K47: 312 | L47: A | M47: المناقصة الثالثة 2018-2019 | N47: 2018/2019 | O47: 3 | Q47: مناقصة | T47: ساري | U47: 72620 | V47: 98800 | W47: 22.05060729 | X47: A | Y47: 296400 | Z47: Moduretic
A48: 51 | B48: 72 | C48: Bottle 500 ml WITH rubber cap | E48: مصر اوتسوكا | F48: امينوليبان | G48: مصر اوتسوكا للمستحضرات الطبية | H48: Bottle 500 ml WITH Rubber Cap | I48: احمااض أمنية للحقن الوريدي لمرضى الكبد | J48: Amino acid Combination I.V. Solution for Hepatic Patient | K48: 748 | L48: A | M48: المناقصة الثامنة 2015-2016 | N48: 2015-2016 | O48: 8 | Q48: مناقصة | T48: ساري | U48: 84000 | V48: 122000 | W48: 20.6557377 | X48: A | Y48: 366000 | Z48: امينوليبان
A49: 36 | B49: 57 | C49: Bottle 100 ml | E49: Fresenius Kabi | F49: Aminoven Infant 10% | G49: المصرية لتجارة الأدوية | H49: Bottle 100ml WITH Rubber Cap | I49: احماض امينية للحقن الوريدى أطفال | J49: Amino acid Combination I.V. Solution for infants | K49: 747 | L49: A | M49: المناقصة الثامنة 2015-2016 | N49: 2015-2016 | O49: 8 | Q49: مناقصة | T49: ساري | U49: 0 | V49: 300 | W49: 0 | X49: A | Y49: 900 | Z49: Aminoven Infant 10%
A50: 54 | B50: Tenders | C50: Bottle 500 ml WITH rubber cap | E50: مصر اوتسوكا | F50: كيدمين | G50: مصر اوتسوكا للمستحضرات الطبية | H50: Bottle 500 ml WITH Rubber Cap | I50: احمااض أمنية لمرضى الكلى | J50: Amino acid Combination I.V. Solution for Renal Patient | K50: 749 | L50: A | M50: المناقصة الثامنة 2015-2016 | N50: 2015-2016 | O50: 8 | Q50: مناقصة | T50: ساري | U50: 0 | V50: 0 | Y50: 0
A51: 5.45 | B51: 7.50/120 ml | C51: Bottle 100 ml | E51: Alexandria | F51: Neo- minophylline | G51: المصرية لتجارة الأدوية | H51: Bottle 100 ml | I51: امينوفيللين او الثيوفيللين شراب | J51: Aminophylline or other theophylline syrup | K51: 107 | L51: A | M51: مناقصةا الاستكمال الاولى 2017-2018 | N51: 2017-2018 | O51: 1 | Q51: استكمال | T51: ساري | U51: 0 | V51: 0 | Y51: 0
A52: 0.34 | B52: 0.358 | C52: Tablet | E52: Amriya | F52: Theophylline, S.R | G52: أبوقير للتجارة الدولية | H52: Capsule or Tablet | I52: امينوفيللين اوالثيوفيللين 200مجم | J52: Aminophylline or other theophylline 200mg Capsules or Tablets | K52: 108 | L52: A | M52: مناقصةا الاستكمال الاولى 2017-2018 | N52: 2017-2018 | O52: 1 | Q52: استكمال | T52: ساري | U52: 16020 | V52: 33060 | W52: 14.53720508 | X52: A | Y52: 99180 | Z52: Theophylline, S.R
A53: 0.18 | B53: Tender | C53: Tablet | E53: Pharo Pharma | F53: Retaphylline 300 mg tablets | G53: ابن سينا فارما | H53: Capsule or Tablet | I53: امينوفيللين اوالثيوفيللين 300مجم | J53: Aminophylline or other theophylline 300mg Capsules or Tablets | K53: 109 | L53: A | M53: مناقصةا الاستكمال الاولى 2017-2018 | N53: 2017-2018 | O53: 1 | Q53: استكمال | T53: ساري | U53: 50958 | V53: 47140 | W53: 32.42978362 | X53: B | Y53: 141420 | Z53: Retaphylline 300 mg tablets
A54: 0.39 | B54: 12 | C54: Tab | E54: ElNileلصالح موندى | F54: Uniphylline continus 400 mg | G54: ابن سينا فارما | H54: Capsules or Tablets | I54: الثيوفيللين 400مجم طويل المفعول | J54: Theophylline 400 mg SR | K54: 768 | L54: A | M54: المناقصة السابعة 2018-2019 | N54: 2018/2019 | O54: 7 | Q54: مناقصة | T54: ساري | U54: 34000 | V54: 17000 | W54: 60 | X54: B | Y54: 51000 | Z54: Uniphylline continus 400 mg
A55: 2.45 | B55: 2.5 | C55: Ampoule | E55: Sedico | F55: Aminophylline | G55: سيديكو | H55: Injection | I55: امينوفيللين او الثيوفيللين | J55: Aminophylline or other theophylline Injection | K55: 106 | L55: A | M55: مناقصةا الاستكمال الاولى 2017-2018 | N55: 2017-2018 | O55: 1 | Q55: استكمال | R55: Yes | T55: ساري | U55: 500 | V55: 1500 | W55: 10 | X55: A | Y55: 4500 | Z55: Aminophylline
A56: 0.825 | B56: 1.5 | C56: Suppository | E56: Alexandria | F56: Minophylline | G56: المصرية لتجارة الأدوية | H56: Suppository | I56: امينوفيللين اوالثيوفيللين بحد أقصي 500مجم (كبار) | J56: Aminophylline or other theophylline up to 500mg (adult) | K56: 615 | L56: A | M56: المناقصة السابعة 2015-2016 | N56: 2015-2016 | O56: 7 | Q56: مناقصة | T56: ساري | U56: 40270 | V56: 40300 | W56: 29.97766749 | X56: A | Y56: 120900 | Z56: Minophylline
A57: 1.976047904 | B57: 2 | C57: Ampoule | E57: Sedico | F57: Amiron | G57: سيديكو | H57: Injection | I57: أميودارون 150 مجم | J57: Amiodarone 150mg | K57: 238 | L57: A | M57: المناقصة الثالثة 2015-2016 | N57: 2015-2016 | O57: 3 | Q57: مناقصة | R57: Yes | T57: ساري | U57: 125000 | V57: 493000 | W57: 7.606490872 | X57: A | Y57: 1479000 | Z57: Amiron
A58: 0.45 | B58: 0.7 | C58: Tablet | E58: Mepaco | F58: Cardio-mep Tab. | G58: ايمك | H58: Capsule or Tablet | I58: أميودارون 200 مجم | J58: Amiodarone 200mg | K58: 239 | L58: A | M58: المناقصة الثالثة 2015-2016 | N58: 2015-2016 | O58: 3 | Q58: مناقصة | T58: ساري | U58: 8500 | V58: 2000 | W58: 127.5 | X58: C | Y58: 6000
A59: 0.195 | B59: .4/ tab | C59: Tablet | E59: El Kahira | F59: Tryptizol 25 mg | G59: المصرية لتجارة الأدوية | H59: Capsules or Tablets | I59: اميتربتيلين 25 مجم | J59: Amitriptyline 25mg | K59: 215 | L59: A | M59: مناقصة الأستكمال الثانية 2017-2018 | N59: 2017-2018 | O59: 2 | Q59: استكمال | S59: Psychoactive Drugs | T59: ساري | U59: 2625 | V59: 2535 | W59: 31.06508876 | X59: B | Y59: 7605 | Z59: Tryptizol 25 mg
A60: 0.1 | B60: 0.2125/ tab | C60: Tablet | E60: El Kahira | F60: Tryptizole 10 mg | G60: المصرية لتجارة الأدوية | H60: Capsules or Tablets | I60: اميتربتيلين 10 مجم | J60: Amitriptyline 10mg | K60: 216 | L60: A | M60: مناقصة الأستكمال الثانية 2017-2018 | N60: 2017-2018 | O60: 2 | Q60: استكمال | S60: Psychoactive Drugs | T60: ساري | U60: 1245 | V60: 450 | W60: 83 | X60: C | Y60: 1350 | Z60: Tryptizole 10 mg
A61: 0.096 | B61: 8.00/10tab. | C61: Tablet | E61: Adco | F61: Vazopin | G61: الشركة المصرية لتجارة الأدوية | H61: Capsules or Tablets | I61: املوديبين 5 مجم | J61: Amlodipine 5 mg | K61: 302 | L61: A | M61: المناقصة الثالثة 2018-2019 | N61: 2018/2019 | O61: 3 | Q61: مناقصة | T61: ساري | U61: 176000 | V61: 51000 | W61: 103.5294118 | X61: C | Y61: 153000
A62: 0.154 | B62: 11.00علبة10 قرص | C62: Tablet | E62: Eipico | F62: Regcor | G62: ايبيكو | H62: Capsules or Tablets | I62: املوديبين 10 مجم | J62: Amlodipine 10 mg | K62: 303 | L62: A | M62: المناقصة الثالثة 2018-2019 | N62: 2018/2019 | O62: 3 | Q62: مناقصة | T62: ساري | U62: 0 | V62: 0 | Y62: 0
A63: 0.725 | B63: 36.00 | C63: Tab | E63: Apex Pharma | F63: ErastapexCo 5 mg/ 20 mg | G63: المتحدة للصيادلة | H63: Film coated tablets | I63: مثبطات مستقبلات الانجيوتنسين + أملوديبين 5 مجم | J63: ARBs + Amlodipine 5 mg | K63: 282 | L63: A | M63: المناقصة الثالثة 2018-2019 | N63: 2018/2019 | O63: 3 | Q63: مناقصة | T63: ساري | U63: 0 | V63: 0 | Y63: 0
A64: 1 | C64: tab | E64: أفروس | F64: Mesartanveros | G64: ابن سينا فارما | H64: Film coated tablets | I64: مثبطات مستقبلات الانجيوتنسين + أملوديبين 10 مجم | J64: ARBs + Amlodipine 10 mg | K64: 283 | L64: A | M64: المناقصة الثالثة 2018-2019 | N64: 2018/2019 | O64: 3 | Q64: مناقصة | T64: ساري | U64: 0 | V64: 0 | Y64: 0
A65: 0.8 | C65: tab | E65: أفروس | F65: Averothiazide | G65: ابن سينا فارما | H65: Film coated tablets | I65: مثبطات مستقبلات الانجيوتنسين + أملوديبين 5 مجم + هيدروكلوروثيازيد 12.5 مجم | J65: ARBs + Amlodipine 5 mg + hydrochlorthiazide 12.5 mg | K65: 284 | L65: A | M65: المناقصة الثالثة 2018-2019 | N65: 2018/2019 | O65: 3 | Q65: مناقصة | T65: ساري | U65: 0 | V65: 0 | Y65: 0
A66: 1.025 | B66: 78.00 | C66: Tab | E66: Apex Pharma | F66: Erastapex Trio 10/40/25 mg | G66: المتحدة للصيادلة | H66: Film coated tablets | I66: مثبطات مستقبلات الانجيوتنسين + أملوديبين 10 مجم + هيدروكلوروثيازيد 25 | J66: ARBs + Amlodipine 10 mg + hydrochlorthiazide 25 mg | K66: 285 | L66: A | M66: المناقصة الثالثة 2018-2019 | N66: 2018/2019 | O66: 3 | Q66: مناقصة | T66: ساري | U66: 0 | V66: 0 | Y66: 0
A67: 9.99 | B67: 11.25 | C67: bottle 80 ml | E67: Sedico | F67: Flucamox | G67: سيديكو | H67: Bottle 80 ml + Water for Reconstitution | I67: أموكسيسيللين 125 مجم + فلوكساسيللين 125 مجم معلق | J67: Amoxicillin 125mg + Fluoxacillin 125mg Suspension | K67: 35 | L67: A | M67: مناقصةا الاستكمال الاولى 2017-2018 | N67: 2017-2018 | O67: 1 | Q67: استكمال | T67: ساري | U67: 0 | V67: 0 | Y67: =IFERROR(($V67)*3,"") -> 0 | Z67: =CHOOSE(($U67<$Y67)+($Y67="")+1,"",F67) -> 
A68: 11.7 | B68: 21.75 | C68: 156.25 mg/5 ml | E68: Sedico | F68: Magna-biotic | G68: سيديكو | H68: Bottle (80ml) + Water for reconstitution | I68: أموكسيسيللين 125 مجم + حمض كلافيولينيك 31 مجم / 5 مللي | J68: Amoxicillin 125 mg + Clavulanic acid 31 mg / 5 ml Suspension | K68: 101 | L68: A | M68: المناقصة الثانية 2018-2019 | N68: 2019-2018 | O68: 2 | Q68: مناقصة | T68: ساري | U68: 400 | V68: 700 | W68: 17.14285714 | X68: A | Y68: 2100 | Z68: Magna-biotic
A69: 11.7 | B69: Tender | C69: (80ml) + Water | E69: Eipico | F69: Emoxclave | G69: ايبيكو | H69: Bottle (80ml) + Water for reconstitution | I69: أموكسيسيللين 125 مجم + حمض كلافيولينيك 31 مجم / 5 مللي | J69: Amoxicillin 125 mg + Clavulanic acid 31 mg / 5 ml Suspension | K69: 101 | L69: B | M69: المناقصة الثانية 2018-2019 | N69: 2019-2018 | O69: 2 | Q69: مناقصة | T69: ساري | U69: 0 | V69: 0 | Y69: 0
A70: 21 | B70: 32.50 | C70: 312.5 mg/5 ml | E70: Sedico | F70: Magna-biotic | G70: سيديكو | H70: Bottle (80ml) + Water for reconstitution | I70: أموكسيسيللين 250 مجم + حمض كلافيولينيك 62 مجم /5 مللي | J70: Amoxicillin 250 mg + Clavulanic acid 62 mg / 5 ml Suspension | K70: 102 | L70: A | M70: المناقصة الثانية 2018-2019 | N70: 2019-2018 | O70: 2 | Q70: مناقصة | T70: ساري | U70: 3900 | V70: 17500 | W70: 6.685714286 | X70: A | Y70: 52500 | Z70: Magna-biotic
A71: 21 | B71: Tender | C71: (80ml) + Water | E71: Eipico | F71: Emoxclave | G71: ايبيكو | H71: Bottle (80ml) + Water for reconstitution | I71: أموكسيسيللين 250 مجم + حمض كلافيولينيك 62 مجم /5 مللي | J71: Amoxicillin 250 mg + Clavulanic acid 62 mg / 5 ml Suspension | K71: 102 | L71: B | M71: المناقصة الثانية 2018-2019 | N71: 2019-2018 | O71: 2 | Q71: مناقصة | T71: ساري | U71: 5400 | V71: 72 | W71: 2250 | X71: C | Y71: 216
A72: 0.633640553 | B72: 0.6875 | C72: Capsule | E72: Sedico | F72: Flucamox | G72: سيديكو | H72: Capsule or Tablet | I72: أموكسيسيللين 125 مجم + فلوكساسيللين 125 مجم | J72: Amoxicillin 125mg + Fluoxacillin 125mg | K72: 97 | L72: A | M72: المناقصة الثانية 2015-2016 | N72: 2015-2016 | O72: 2 | Q72: مناقصة | T72: ساري | U72: 3500 | V72: 5000 | W72: 21 | X72: A | Y72: 15000 | Z72: Flucamox
A73: 0.633640553 | B73: 1.1875 | C73: Capsule | E73: Eipico | F73: Flumox | G73: ايبيكو | H73: Capsule or Tablet | I73: أموكسيسيللين 125 مجم + فلوكساسيللين 125 مجم | J73: Amoxicillin 125mg + Fluoxacillin 125mg | K73: 97 | L73: B | M73: المناقصة الثانية 2015-2016 | N73: 2015-2016 | O73: 2 | Q73: مناقصة | T73: ساري | U73: 0 | V73: 0 | Y73: 0
A74: 5.95 | B74: عطاءات ومناقصات | C74: BOTTLE 80 ML | E74: M.U.P- TENDER | F74: MOXACIL125 MG DRY SUSPENSION | G74: فارما اوفر سيز | H74: Bottle (80ml) + Water for reconstitution | I74: أموكسيسيللين 125 مجم / 5 مللي معلق | J74: Amoxicillin 125 mg / 5 ml Suspension | K74: 94 | L74: A | M74: المناقصة الثانية 2018-2019 | N74: 2019-2018 | O74: 2 | Q74: مناقصة | T74: ساري | U74: 900 | V74: 120 | W74: 225 | X74: C | Y74: 360
A75: 5.95 | B75: عطاءات | C75: Bottle 80ml | E75: ريفا فارما | F75: Rivamox 125 mg dry suspension | G75: فارما اوفر سيز | H75: Bottle (80ml) + Water for reconstitution | I75: أموكسيسيللين 125 مجم / 5 مللي معلق | J75: Amoxicillin 125 mg / 5 ml Suspension | K75: 94 | L75: B | M75: المناقصة الثانية 2018-2019 | N75: 2019-2018 | O75: 2 | Q75: مناقصة | T75: ساري | U75: 660 | V75: 300 | W75: 66 | X75: C | Y75: 900 | Z75: Rivamox 125 mg dry suspension
A76: 7.49 | B76: 8.25 | C76: Vial | E76: Sedico | F76: Biomox | G76: سيديكو | H76: Vial + Solvent | I76: أموكسيسيللين 1 جم | J76: Amoxicillin 1 g | K76: 93 | L76: A | M76: المناقصة الثانية 2018-2019 | N76: 2019-2018 | O76: 2 | Q76: مناقصة | T76: ساري | U76: 100 | V76: 0 | Y76: 0
A77: 7.49 | B77: 8.25 | C77: Vial + Solvent | E77: Eipico | F77: Emox | G77: ايبيكو | H77: Vial + Solvent | I77: أموكسيسيللين 1 جم | J77: Amoxicillin 1 g | K77: 93 | L77: B | M77: المناقصة الثانية 2018-2019 | N77: 2019-2018 | O77: 2 | Q77: مناقصة | T77: ساري | U77: 100 | V77: 0 | Y77: 0
A78: 24 | B78: 29.00 | C78: Vial | E78: Sedico | F78: Magna-biotic | G78: سيديكو | H78: Vial + Solvent | I78: أموكسيسيللين 1 جم + حمض كلافيولينيك 200 مجم | J78: Amoxicillin 1 g + Clavulanic acid 200 mg | K78: 108 | L78: A | M78: المناقصة الثانية 2018-2019 | N78: 2019-2018 | O78: 2 | Q78: مناقصة | T78: ساري | U78: 100 | V78: 150 | W78: 20 | X78: A | Y78: 450 | Z78: Magna-biotic
A79: 5.99 | B79: 6.00 | C79: Vial | E79: Sedico | F79: Flucamox | G79: سيديكو | H79: Vial + Solvent | I79: أموكسيسيللين 250 مجم + فلوكساسيللين 250 مجم | J79: Amoxicillin 250 mg + Fluoxacillin 250 mg | K79: 97 | L79: A | M79: المناقصة الثانية 2018-2019 | N79: 2019-2018 | O79: 2 | Q79: مناقصة | T79: ساري | U79: 0 | V79: 0 | Y79: 0
A80: 5.99 | B80: 9.00للفيال | C80: Vial + Solvent | E80: Eipico | F80: Flumox | G80: ايبيكو | H80: Vial + Solvent | I80: أموكسيسيللين 250 مجم + فلوكساسيللين 250 مجم | J80: Amoxicillin 250 mg + Fluoxacillin 250 mg | K80: 97 | L80: B | M80: المناقصة الثانية 2018-2019 | N80: 2019-2018 | O80: 2 | Q80: مناقصة | T80: ساري | U80: 85600 | V80: 46000 | W80: 55.82608696 | X80: B | Y80: 138000 | Z80: Flumox
A81: 1.725 | B81: 3.3 | C81: Tablet | E81: Amoun | F81: HiBiotic 375 mg | G81: فارما أوفر سيز | H81: Capsule or Tablet | I81: أموكسيسيللين 250 مجم + حمض كلافيولينيك 125 مجم | J81: Amoxicillin 250mg + Clavulianic acid 125mg | K81: 104 | L81: A | M81: المناقصة الثانية 2015-2016 | N81: 2015-2016 | O81: 2 | Q81: مناقصة | T81: ساري | U81: 15100 | V81: 14800 | W81: 30.60810811 | X81: B | Y81: 44400 | Z81: HiBiotic 375 mg
A82: 0.85 | B82: 10.5 | C82: Capsule | E82: Rameda | F82: Amofluxin500mg cap | G82: ابن سينا فارما | H82: Capsules or Tablets | I82: أموكسيسيللين 250 مجم + فلوكساسيللين 250 مجم | J82: Amoxicillin 250mg + Fluoxacillin 250mg | K82: 291 | L82: A | M82: مناقصة الاستكمال الثالثة 2017-2018 | N82: 2017-2018 | O82: 3 | Q82: استكمال | T82: ساري | U82: 900 | V82: 150 | W82: 180 | X82: C | Y82: 450
A83: 5.21 | B83: 9.00/Bottle (80ml) | C83: Bottle (80ml) + Water for reconstitution | E83: misr | F83: Moxipen 250 mg / 5 ml suspension | G83: الشركة المصرية لتجارة الأدوية | H83: Bottle (80ml) + Water for reconstitution | I83: أموكسيسيللين 250 مجم / 5 مللي معلق | J83: Amoxicillin 250 mg / 5 ml Suspension | K83: 95 | L83: A | M83: المناقصة الثانية 2018-2019 | N83: 2019-2018 | O83: 2 | Q83: مناقصة | T83: ساري | U83: 1625 | V83: 250 | W83: 195 | X83: C | Y83: 750
A84: 26.85 | B84: 28 | C84: 460 mg/5 ml | E84: Sedico | F84: Magna-biotic | G84: سيديكو | H84: Bottle (80ml) + Water for reconstitution | I84: أموكسيسيللين 400 مجم + حمض كلافيولينيك 57 مجم / 5 مللي معلق | J84: Amoxicillin 400 mg + Clavulanic acid 57 mg /5ml Suspension | K84: 103 | L84: A | M84: المناقصة الثانية 2018-2019 | N84: 2019-2018 | O84: 2 | Q84: مناقصة | T84: ساري | U84: 75 | V84: 50 | W84: 45 | X84: B | Y84: 150 | Z84: Magna-biotic
A85: 26.85 | B85: 15.9 | C85: Bottle (80ml) + Water for reconstitution | E85: Alfacure | F85: Gardinova | G85: ابن سينا فارما | H85: Bottle (80ml) + Water for reconstitution | I85: أموكسيسيللين 400 مجم + حمض كلافيولينيك 57 مجم / 5 مللي معلق | J85: Amoxicillin 400 mg + Clavulanic acid 57 mg /5ml Suspension | K85: 103 | L85: B | M85: المناقصة الثانية 2018-2019 | N85: 2019-2018 | O85: 2 | Q85: مناقصة | T85: ساري | U85: 900 | V85: 300 | W85: 90 | X85: C | Y85: 900
A86: 26.85 | B86: 36/70ml | C86: (80ml) + Water | E86: Eipico | F86: Emoxclave | G86: ايبيكو | H86: Bottle (80ml) + Water for reconstitution | I86: أموكسيسيللين 400 مجم + حمض كلافيولينيك 57 مجم / 5 مللي معلق | J86: Amoxicillin 400 mg + Clavulanic acid 57 mg /5ml Suspension | K86: 103 | L86: C | M86: المناقصة الثانية 2018-2019 | N86: 2019-2018 | O86: 2 | Q86: مناقصة | T86: ساري | U86: 75 | V86: 0 | Y86: 0
A87: 26.85 | B87: 25.25 | C87: bottle 80 ml+solvent | E87: Pharco | F87: Clavimox 457 mg Suspension | G87: فاركو للأدوية | H87: Bottle (80ml) + Water for reconstitution | I87: أموكسيسيللين 400 مجم + حمض كلافيولينيك 57 مجم / 5 مللي معلق | J87: Amoxicillin 400 mg + Clavulanic acid 57 mg /5ml Suspension | K87: 103 | L87: D | M87: المناقصة الثانية 2018-2019 | N87: 2019-2018 | O87: 2 | Q87: مناقصة | T87: ساري | U87: 75 | V87: 0 | Y87: 0
A88: 26.85 | B88: 29 / 80ml | C88: bottle 80 ml + water for reconstitution | E88: شركة مصر للمستحضرات الطبية لصالح شركة الدبيكي للادوية | F88: amoxilanic | G88: فارما اوفر سيز | H88: Bottle (80ml) + Water for reconstitution | I88: أموكسيسيللين 400 مجم + حمض كلافيولينيك 57 مجم / 5 مللي معلق | J88: Amoxicillin 400 mg + Clavulanic acid 57 mg /5ml Suspension | K88: 103 | L88: E | M88: المناقصة الثانية 2018-2019 | N88: 2019-2018 | O88: 2 | Q88: مناقصة | T88: ساري | U88: 75 | V88: 0 | Y88: 0
A89: 27 | B89: 49.5 | C89: Bottle (80 ml) + water for reconstitution | E89: أفروس | F89: Averobios | G89: ابن سينا فارما | H89: Bottle (80ml) + Water for reconstitution | I89: أموكسيسيللين 600 مجم + حمض كلافيولينيك 42.9 مجم / 5 مللي معلق | J89: Amoxicillin 600 mg + Clavulanic acid 42.9 mg /5ml Suspension | K89: 104 | L89: A | M89: المناقصة الثانية 2018-2019 | N89: 2019-2018 | O89: 2 | Q89: مناقصة | T89: ساري | U89: 0 | V89: 0 | Y89: 0
A90: 0.38 | B90: 11.00 | C90: Cap | E90: Sedico | F90: Biomox | G90: سيديكو | H90: Capsules or Tablets | I90: أموكسيسيللين 500 مجم | J90: Amoxicillin 500 mg | K90: 91 | L90: A | M90: المناقصة الثانية 2018-2019 | N90: 2019-2018 | O90: 2 | Q90: مناقصة | T90: ساري | U90: 35600 | V90: 5400 | W90: 197.7777778 | X90: C | Y90: 16200
A91: 5.9 | B91: 6.5 | C91: Vial | E91: Sedico | F91: Biomox | G91: سيديكو | H91: Vial + Solvent | I91: أموكسيسيللين 500 مجم | J91: Amoxicillin 500 mg | K91: 92 | L91: A | M91: المناقصة الثانية 2018-2019 | N91: 2019-2018 | O91: 2 | Q91: مناقصة | T91: ساري | U91: 0 | V91: 0 | Y91: 0
A92: 5.9 | B92: 6 | C92: Vial + Solvent | E92: Eipico | F92: Emox | G92: ايبيكو | H92: Vial + Solvent | I92: أموكسيسيللين 500 مجم | J92: Amoxicillin 500 mg | K92: 92 | L92: B | M92: المناقصة الثانية 2018-2019 | N92: 2019-2018 | O92: 2 | Q92: مناقصة | T92: ساري | U92: 0 | V92: 0 | Y92: 0
A93: 15.8 | B93: 16.5 | C93: vial | E93: Sedico | F93: Magna-biotic | G93: سيديكو | H93: Vial + Solvent | I93: أموكسيسيللين 500 مجم + حمض كلافيولينيك 100 مجم | J93: Amoxicillin 500mg + Clavulianic acid 100mg Vial | K93: 36 | L93: A | M93: مناقصةا الاستكمال الاولى 2017-2018 | N93: 2017-2018 | O93: 1 | Q93: استكمال | T93: ساري | U93: 0 | V93: 0 | Y93: 0
A94: 2.4 | B94: 37.00 | C94: Tab | E94: Sedico | F94: Magna-biotic | G94: سيديكو | H94: Capsules or Tablets | I94: أموكسيسيللين 500 مجم + حمض كلافيولينيك 125 مجم | J94: Amoxicillin 500 mg + Clavulanic acid 125 mg | K94: 106 | L94: A | M94: المناقصة الثانية 2018-2019 | N94: 2019-2018 | O94: 2 | Q94: مناقصة | T94: ساري | U94: 1400 | V94: 1000 | W94: 42 | X94: B | Y94: 3000 | Z94: Magna-biotic
A95: 2.4 | B95: 60.00 | C95: tab | E95: hikma import | F95: Megamox 625 mg | G95: المتحدة للصيادلة | H95: Capsules or Tablets | I95: أموكسيسيللين 500 مجم + حمض كلافيولينيك 125 مجم | J95: Amoxicillin 500 mg + Clavulanic acid 125 mg | K95: 106 | L95: B | M95: المناقصة الثانية 2018-2019 | N95: 2019-2018 | O95: 2 | Q95: مناقصة | T95: ساري | U95: 1970 | V95: 200 | W95: 295.5 | X95: C | Y95: 600
A96: 2.4 | B96: 29.00 | C96: tab. | E96: Pharco | F96: Clavimox 625 mg Tab | G96: فاركو للأدوية | H96: Capsules or Tablets | I96: أموكسيسيللين 500 مجم + حمض كلافيولينيك 125 مجم | J96: Amoxicillin 500 mg + Clavulanic acid 125 mg | K96: 106 | L96: C | M96: المناقصة الثانية 2018-2019 | N96: 2019-2018 | O96: 2 | Q96: مناقصة | T96: ساري | U96: 1104 | V96: 0 | Y96: 0
A97: 7.99 | B97: 8.00 | C97: Vial | E97: Sedico | F97: Flucamox | G97: سيديكو | H97: Vial + Solvent | I97: أموكسيسيللين 500 مجم + فلوكساسيللين 500 مجم | J97: Amoxicillin 500 mg + Fluoxacillin 500 mg Vial + Solvent | K97: 99 | L97: A | M97: المناقصة الثانية 2018-2019 | N97: 2019-2018 | O97: 2 | Q97: مناقصة | T97: ساري | U97: 0 | V97: 0 | Y97: 0
A98: 7.99 | B98: 12.75للفيال | C98: Vial + Solvent | E98: Eipico | F98: Flumox | G98: ايبيكو | H98: Vial + Solvent | I98: أموكسيسيللين 500 مجم + فلوكساسيللين 500 مجم | J98: Amoxicillin 500 mg + Fluoxacillin 500 mg Vial + Solvent | K98: 99 | L98: B | M98: المناقصة الثانية 2018-2019 | N98: 2019-2018 | O98: 2 | Q98: مناقصة | T98: ساري | U98: 0 | V98: 0 | Y98: 0
A99: 0.924 | B99: 26.40 | C99: Tab | E99: ماش بريمير | F99: Pencillimox 1 gm tab | G99: فارما اوفر سيز | H99: Capsules or Tablets | I99: أموكسيسيللين 500 مجم + فلوكلوكساسيللين 500 مجم | J99: Amoxicillin 500 mg + Flucloxacillin 500 mg Capsules or Tablets | K99: 98 | L99: A | M99: المناقصة الثانية 2018-2019 | N99: 2019-2018 | O99: 2 | Q99: مناقصة | T99: ساري | U99: 1800 | V99: 300 | W99: 180 | X99: C | Y99: 900
A100: 2.33 | B100: 48.75 | C100: Tablet | E100: Gulf pharmaceutical indutries JULPHAR | F100: julmentin 2X | G100: فارما اوفر سيز | H100: Capsules or Tablets | I100: أموكسيسيللين 875 مجم + حمض كلافيولينيك 125 مجم | J100: Amoxicillin 875 mg + Clavulanic acid 125 mg | K100: 107 | L100: A | M100: المناقصة الثانية 2018-2019 | N100: 2019-2018 | O100: 2 | Q100: مناقصة | T100: ساري | U100: 0 | V100: 0 | Y100: 0
A101: 14.75 | B101: 21.75 | C101: 80 ml | E101: Sedico | F101: Magna-biotic | G101: سيديكو | H101: Bottle(80 ml) + Water for reconstitution | I101: أموكسيسيللين ترايهيدرات 200 مجم + حمض كلافيولينيك 28 مجم | J101: Amoxicillin trihydrate200 mg + Clavulianic acid 28mg | K101: 292 | L101: A | M101: مناقصة الاستكمال الثالثة 2017-2018 | N101: 2017-2018 | O101: 3 | Q101: استكمال | T101: ساري | U101: 0 | V101: 0 | Y101: 0
A102: 14.74 | B102: 24.50زجاجة75 مللي | C102: Bottle 80 ml | E102: Eipico | F102: Emoxclav | G102: ايبيكو | H102: Bottle(80 ml) + Water for reconstitution | I102: أموكسيسيللين ترايهيدرات 200 مجم + حمض كلافيولينيك 28 مجم | J102: Amoxicillin trihydrate200 mg + Clavulianic acid 28mg | K102: 292 | L102: B | M102: مناقصة الاستكمال الثالثة 2017-2018 | N102: 2017-2018 | O102: 3 | Q102: استكمال | T102: ساري | U102: 40 | V102: 200 | W102: 6 | X102: A | Y102: 600 | Z102: Emoxclav
A103: 14.74 | B103: 28.80 LE / Bottle 80ml | C103: Bottle 80ml | E103: Delta Pharma | F103: Deltaclav 228.5 | G103: فارما أوفر سيز | H103: Bottle(80 ml) + Water for reconstitution | I103: أموكسيسيللين ترايهيدرات 200 مجم + حمض كلافيولينيك 28 مجم | J103: Amoxicillin trihydrate200 mg + Clavulianic acid 28mg | K103: 292 | L103: C | M103: مناقصة الاستكمال الثالثة 2017-2018 | N103: 2017-2018 | O103: 3 | Q103: استكمال | T103: ساري | U103: 0 | V103: 0 | Y103: 0
A104: 14.74 | B104: 21.00 LE / Bottle 80ml | C104: bottle 80 ml | E104: مصر للمستحضرات لصالح شركة الدبيكى | F104: amoxilanic | G104: فارما أوفر سيز | H104: Bottle(80 ml) + Water for reconstitution | I104: أموكسيسيللين ترايهيدرات 200 مجم + حمض كلافيولينيك 28 مجم | J104: Amoxicillin trihydrate200 mg + Clavulianic acid 28mg | K104: 292 | L104: D | M104: مناقصة الاستكمال الثالثة 2017-2018 | N104: 2017-2018 | O104: 3 | Q104: استكمال | T104: ساري | U104: 0 | V104: 0 | Y104: 0
A105: 54 | B105: 55.00 | C105: amp | E105: Cipla | F105: Photercin | G105: المتحدة للصيادلة | H105: Injection | I105: امفوتريسين ب 50 مجم | J105: Amphotericin B 50 mg | K105: 232 | L105: A | M105: المناقصة الثانية 2018-2019 | N105: 2019-2018 | O105: 2 | Q105: مناقصة | R105: Yes | T105: ساري | U105: 0 | V105: 8000 | W105: 0 | X105: A | Y105: 24000 | Z105: Photercin
A106: 4.45 | B106: 5.50/ Vial | C106: Vial + Solvent | E106: misr | F106: Ampicillin 1 gm | G106: الشركة المصرية لتجارة الأدوية | H106: Vial + Solvent | I106: أمبيسيللين 1 جم | J106: Ampicillin 1 g | K106: 88 | L106: A | M106: المناقصة الثانية 2018-2019 | N106: 2019-2018 | O106: 2 | Q106: مناقصة | T106: ساري | U106: 0 | V106: 0 | Y106: 0
A107: 7.11 | B107: tender | C107: Bottle (80ml) + Water for reconstitution | E107: misr | F107: Ampicillin 250 mg / 5 ml suspension | G107: الشركة المصرية لتجارة الأدوية | H107: Bottle (80ml) + Water for reconstitution | I107: أمبيسيللين 250 مجم / 5 مللي معلق | J107: Ampicillin 250 mg / 5 ml Suspension | K107: 90 | L107: A | M107: المناقصة الثانية 2018-2019 | N107: 2019-2018 | O107: 2 | Q107: مناقصة | T107: ساري | U107: 0 | V107: 0 | Y107: 0
A108: 4.8 | B108: Tenders | C108: Bottle 80 ml + Water for Reconstitution | E108: El Nasr | F108: Ampicillin | G108: المصرية لتجارة الأدوية | H108: Bottle 80 ml + Water for Reconstitution | I108: امبيسيللين 125 مجم/5مللي معلق | J108: Ampicillin 125mg/5ml Suspension | K108: 89 | L108: A | M108: المناقصة الثانية 2015-2016 | N108: 2015-2016 | O108: 2 | Q108: مناقصة | T108: ساري | U108: 0 | V108: 0 | Y108: 0
A109: 13.15 | B109: 13.20 | C109: Vial | E109: Sedico | F109: Ultracillin | G109: سيديكو | H109: Vial + Solvent | I109: أمبيسيللين 1 جم + سالبكتام 500 مجم | J109: Ampicillin 1 gm + Sulbactam 500 mg | K109: 113 | L109: A | M109: المناقصة الثانية 2018-2019 | N109: 2019-2018 | O109: 2 | Q109: مناقصة | T109: ساري | U109: 0 | V109: 0 | Y109: 0
A110: 13.15 | B110: 17.25/ | C110: one vial +one amp.5ml distilled water | E110: Nile | F110: Ampictam | G110: الشركة المصرية لتجارة الأدوية | H110: Vial + Solvent | I110: أمبيسيللين 1 جم + سالبكتام 500 مجم | J110: Ampicillin 1 gm + Sulbactam 500 mg | K110: 113 | L110: B | M110: المناقصة الثانية 2018-2019 | N110: 2019-2018 | O110: 2 | Q110: مناقصة | T110: ساري | U110: 0 | V110: 0 | Y110: 0
A111: 13.15 | B111: 17.25للفيال | C111: Vial + Solvent | E111: Eipico | F111: NOVACTA | G111: ايبيكو | H111: Vial + Solvent | I111: أمبيسيللين 1 جم + سالبكتام 500 مجم | J111: Ampicillin 1 gm + Sulbactam 500 mg | K111: 113 | L111: C | M111: المناقصة الثانية 2018-2019 | N111: 2019-2018 | O111: 2 | Q111: مناقصة | T111: ساري | U111: 0 | V111: 0 | Y111: 0
A112: 13.15 | B112: 20.75 | C112: vial+solvent | E112: Pharco | F112: Sulbin 1,5gm | G112: فاركو للأدوية | H112: Vial + Solvent | I112: أمبيسيللين 1 جم + سالبكتام 500 مجم | J112: Ampicillin 1 gm + Sulbactam 500 mg | K112: 113 | L112: D | M112: المناقصة الثانية 2018-2019 | N112: 2019-2018 | O112: 2 | Q112: مناقصة | T112: ساري | U112: 400 | V112: 1500 | W112: 8 | X112: A | Y112: 4500 | Z112: Sulbin 1,5gm
A113: 13.15 | B113: 20.00 | C113: ONE VIAL | E113: M U P | F113: UNICTAM 1.5 GM VIAL | G113: فارما اوفر سيز | H113: Vial + Solvent | I113: أمبيسيللين 1 جم + سالبكتام 500 مجم | J113: Ampicillin 1 gm + Sulbactam 500 mg | K113: 113 | L113: E | M113: المناقصة الثانية 2018-2019 | N113: 2019-2018 | O113: 2 | Q113: مناقصة | T113: ساري | U113: 0 | V113: 0 | Y113: 0
A114: 1.99 | B114: 45/12tab | C114: Tablet | E114: MUP | F114: UNICTAM 375 MG TAB | G114: ابن سينا فارما | H114: Capsules or Tablets | I114: أمبيسيللين 250 مجم + سلباكتام 125 مجم | J114: Ampicillin 250mg+Sulbactam 125mg | K114: 294 | L114: A | M114: مناقصة الاستكمال الثالثة 2017-2018 | N114: 2017-2018 | O114: 3 | Q114: استكمال | T114: ساري | U114: 0 | V114: 0 | Y114: 0
A115: 0.622 | B115: 9.25/12CAP | C115: 10 Capsules | E115: misr | F115: Ampicillin 500 mg | G115: الشركة المصرية لتجارة الأدوية | H115: Capsules or Tablets | I115: أمبيسيللين 500 مجم | J115: Ampicillin 500 mg | K115: 86 | L115: A | M115: المناقصة الثانية 2018-2019 | N115: 2019-2018 | O115: 2 | Q115: مناقصة | T115: ساري | U115: 49500 | V115: 9000 | W115: 165 | X115: C | Y115: 27000
A116: 3.5 | B116: 5.00/ Vial | C116: Vial + Solvent | E116: misr | F116: Ampicillin 500 mg | G116: الشركة المصرية لتجارة الأدوية | H116: Vial + Solvent | I116: أمبيسيللين 500 مجم | J116: Ampicillin 500 mg | K116: 87 | L116: A | M116: المناقصة الثانية 2018-2019 | N116: 2019-2018 | O116: 2 | Q116: مناقصة | T116: ساري | U116: 53000 | V116: 121500 | W116: 13.08641975 | X116: A | Y116: 364500 | Z116: Ampicillin 500 mg
A117: 7.99 | B117: 8.00 | C117: Vial | E117: Sedico | F117: Ultracillin | G117: سيديكو | H117: Vial + Solvent | I117: أمبيسيللين 500 مجم + سالبكتام 250 مجم | J117: Ampicillin 500 mg + Sulbactam 250 mg | K117: 112 | L117: A | M117: المناقصة الثانية 2018-2019 | N117: 2019-2018 | O117: 2 | Q117: مناقصة | T117: ساري | U117: 0 | V117: 0 | Y117: 0
A118: 7.99 | B118: 14.75 | C118: Vial + Solvent | E118: Alfacure | F118: Sabect | G118: ابن سينا فارما | H118: Vial + Solvent | I118: أمبيسيللين 500 مجم + سالبكتام 250 مجم | J118: Ampicillin 500 mg + Sulbactam 250 mg | K118: 112 | L118: B | M118: المناقصة الثانية 2018-2019 | N118: 2019-2018 | O118: 2 | Q118: مناقصة | T118: ساري | U118: 0 | V118: 0 | Y118: 0
A119: 7.99 | B119: 12.00/ | C119: one vial +one amp.2ml distilled water | E119: Nile | F119: Ampictam | G119: الشركة المصرية لتجارة الأدوية | H119: Vial + Solvent | I119: أمبيسيللين 500 مجم + سالبكتام 250 مجم | J119: Ampicillin 500 mg + Sulbactam 250 mg | K119: 112 | L119: C | M119: المناقصة الثانية 2018-2019 | N119: 2019-2018 | O119: 2 | Q119: مناقصة | T119: ساري | U119: 0 | V119: 0 | Y119: 0
A120: 7.99 | B120: 12.00للفيال | C120: Vial + Solvent | E120: Eipico | F120: NOVACTA | G120: ايبيكو | H120: Vial + Solvent | I120: أمبيسيللين 500 مجم + سالبكتام 250 مجم | J120: Ampicillin 500 mg + Sulbactam 250 mg | K120: 112 | L120: D | M120: المناقصة الثانية 2018-2019 | N120: 2019-2018 | O120: 2 | Q120: مناقصة | T120: ساري | U120: 700 | V120: 0 | Y120: 0
A121: 7.99 | B121: 12.00 | C121: ONE VIAL | E121: M U P | F121: UNICTAM 750 MG VIAL | G121: فارما اوفر سيز | H121: Vial + Solvent | I121: أمبيسيللين 500 مجم + سالبكتام 250 مجم | J121: Ampicillin 500 mg + Sulbactam 250 mg | K121: 112 | L121: E | M121: المناقصة الثانية 2018-2019 | N121: 2019-2018 | O121: 2 | Q121: مناقصة | T121: ساري | U121: 0 | V121: 0 | Y121: 0
A122: 24 | B122: 38/60ml | C122: Bottle 60 ml | E122: MUP | F122: UNICTAM 250 MG SUSPENSION | G122: ابن سينا فارما | H122: Bottle (60ml) + Water for reconstitution | I122: أمبيسيللين 250 مجم + سلباكتام 125 مجم | J122: Ampicillin125mg + Sulbactam 125mg | K122: 293 | L122: A | M122: مناقصة الاستكمال الثالثة 2017-2018 | N122: 2017-2018 | O122: 3 | Q122: استكمال | T122: ساري | U122: 0 | V122: 0 | Y122: 0
A123: 5.99 | B123: 6.00 | C123: Vial | E123: Sedico | F123: Ultracillin | G123: سيديكو | H123: Vial + Solvent | I123: أمبيسيللين 250 مجم + سالبكتام 125 مجم | J123: Ampicillin 250 mg + Sulbactam 125 mg | K123: 111 | L123: A | M123: المناقصة الثانية 2018-2019 | N123: 2019-2018 | O123: 2 | Q123: مناقصة | T123: ساري | U123: 0 | V123: 0 | Y123: 0
A124: 5.99 | B124: 8.75 | C124: ONE VIAL | E124: M U P | F124: UNICTAM 375 MG VIAL | G124: فارما اوفر سيز | H124: Vial + Solvent | I124: أمبيسيللين 250 مجم + سالبكتام 125 مجم | J124: Ampicillin 250 mg + Sulbactam 125 mg | K124: 111 | L124: B | M124: المناقصة الثانية 2018-2019 | N124: 2019-2018 | O124: 2 | Q124: مناقصة | T124: ساري | U124: 0 | V124: 0 | Y124: 0
A125: 5 | B125: =400/28 -> 14.28571429 | C125: Tablet | E125: Astrazeneca | F125: Arimidex 1 mg | G125: المتحدة للصيادلة | H125: Capsules or Tablets | I125: اناسترازول 1 مجم | J125: Anastrozole 1 mg | K125: 3 | L125: A | M125: شراء موحد أدوية الأورام List 51 | N125: 2018 | O125: 51 | P125: Oncology | Q125: مناقصة | R125: Yes | S125: Oncology | T125: ساري | U125: 0 | V125: 0 | Y125: 0
A126: 5 | B126: 14.28571429 | C126: Tablet | E126: Astrazeneca | F126: Arimidex 1 mg | G126: رامكو فارم لتجارة الادوية | H126: Capsules or Tablets | I126: اناسترازول 1 مجم | J126: Anastrozole 1 mg | K126: 3 | L126: B | M126: شراء موحد أدوية الأورام List 51 | N126: 2018 | O126: 51 | P126: Oncology | Q126: مناقصة | R126: Yes | S126: Oncology | T126: ساري | U126: 0 | V126: 0 | Y126: 0
A127: 0.207 | B127: 9 | C127: cap. | E127: pharco | F127: Urinex cap. | G127: ابن سينا فارما | H127: Capsules or Tablets | I127: انيثول + برونول + ببين + كامبفين + فنكون + سينول | J127: Anethole +Broneol +Pinene + Camphene + Fenchone + Cineole | K127: 532 | L127: A | M127: المناقصة الخامسة 2018-2019 | N127: 2018/2019 | O127: 5 | Q127: مناقصة | T127: ساري | U127: 4008 | V127: 12240 | W127: 9.823529412 | X127: A | Y127: 36720 | Z127: Urinex cap.
A128: 0.126 | B128: 0.285 | C128: Tablet | E128: El Kahira | F128: Flatidyl | G128: المصرية لتجارة الأدوية | H128: Chewable Tablet | I128: مضاد للحموضة يحتوي على سايميثيكون | J128: Antacids Containing Simethicone | K128: 117 | L128: A | M128: مناقصة الاستكمال الثانية 2013-2014 | N128: 2013-2014 | O128: 2 | Q128: استكمال | T128: ساري | U128: 0 | V128: 0 | Y128: 0
A129: 4.97 | B129: 12 | C129: Bottle 10 ml | E129: Orchidia Pharmaceutical Industries | F129: Trillerg | G129: ابن سينا فارما | H129: Bottle (10ml) | I129: أنتازولين هيدروكلوريد + تيتريزولين هيدروكلوريد قطرة عين | J129: Antazoline hydrochloride+ tetryzoline hydrochloride Eye drops | K129: 270 | L129: A | M129: مناقصة الاستكمال الثالثة 2017-2018 | N129: 2017-2018 | O129: 3 | Q129: استكمال | T129: ساري | U129: 3250 | V129: 1500 | W129: 65 | X129: C | Y129: 4500 | Z129: Trillerg
A130: 20 | B130: 27.600 / Can 150 ml | C130: Can 150 ml | E130: MUP | F130: Dermotracin Spray | G130: ابن سينا فارما | H130: Bottle | I130: بخاخة مضاد حيوى تحتوي على نيوميسن | J130: Antibiotic spray containing neomycin | K130: 93 | L130: A | M130: مناقصةا الاستكمال الاولى 2017-2018 | N130: 2017-2018 | O130: 1 | Q130: استكمال | T130: ساري | U130: 17110 | V130: 17852 | W130: 28.75308089 | X130: A | Y130: 53556 | Z130: Dermotracin Spray
A131: 6 | B131: 6.25 | C131: Tube 20 gm | E131: El Nile | F131: Hemocure topical gel | G131: المصرية لتجارة الأدوية | H131: Tube (20gm) | I131: جل مضاد للتجلط | J131: Anticoagulant gel | K131: 27 | L131: A | M131: مناقصةا الاستكمال الاولى 2017-2018 | N131: 2017-2018 | O131: 1 | Q131: استكمال | T131: ساري | U131: 71400 | V131: 73000 | W131: 29.34246575 | X131: A | Y131: =IFERROR(($V131)*3,"") -> 219000 | Z131: =CHOOSE(($U131<$Y131)+($Y131="")+1,"",F131) -> Hemocure topical gel
A132: 6.9 | B132: 12.75 | C132: Bottle 10 ml | E132: اكتوبر فارما | F132: Collomak paint | G132: فارما اوفر سيز | H132: Bottle (10ml) | I132: دهان لعلاج الكالو | J132: Anti-corn Paint | K132: 432 | L132: A | M132: المناقصة الرابعة 2018-2019 | N132: 2018/2019 | O132: 4 | Q132: مناقصة | T132: ساري | U132: 37550 | V132: 90020 | W132: 12.5138858 | X132: A | Y132: 270060 | Z132: Collomak paint
A133: 4.4 | B133: 4.550/120 ML | C133: Bottle 120 ml | E133: MUP | F133: SIMETHICONE ADULT SUSPENSION | G133: ابن سينا فارما | H133: Bottle (100ml) | I133: شراب مضاد للإنتفاخ يحتوي على سايميثيكون | J133: Anti-flatulance syrup containing Simethicone | K133: 137 | L133: A | M133: مناقصة الأستكمال الثانية 2017-2018 | N133: 2017-2018 | O133: 2 | Q133: استكمال | T133: ساري | U133: 26650 | V133: 79000 | W133: 10.12025316 | X133: A | Y133: 237000 | Z133: SIMETHICONE ADULT SUSPENSION
A134: 0.245 | B134: .25 / lozenge | C134: Lozenge | E134: Medizen | F134: Bradozen Lozenges | G134: فارما أوفر سيز | H134: lozenge Tablet | I134: أقراص استحلاب مطهرة | J134: antiseptic lozenges | K134: 119 | L134: A | M134: مناقصة الأستكمال الثانية 2017-2018 | N134: 2017-2018 | O134: 2 | Q134: استكمال | T134: ساري | U134: 650 | V134: 730 | W134: 26.71232877 | X134: A | Y134: 2190 | Z134: Bradozen Lozenges
A135: 52.5 | B135: Tenders | C135: 5 L | E135: El Nasr | F135: Cidexin | G135: المصرية لتجارة الأدوية | H135: Container 5 liter | I135: محلول لتعقيم المناظير و الأدوات الجراحية تحتوي علي الدهايد | J135: Antiseptic solution for endoscopy and surgical instruments contains aldhyde | K135: 109 | L135: A | M135: مناقصة الاستكمال الأولي 2013-2014 | N135: 2013-2014 | O135: 1 | Q135: استكمال | T135: ساري | U135: 340 | V135: 15050 | W135: 0.6777408638 | X135: A | Y135: 45150 | Z135: Cidexin
A136: 7.5 | B136: 11 | C136: plastic bottle 250 ml | E136: الدبيكى للصناعات الدوائية | F136: Microfree | G136: المصرية لتجارة الأدوية | H136: Sachet or Bottle | I136: غسول مهبلى مطهر | J136: Antiseptic vaginal douche | K136: 676 | L136: A | M136: المناقصة السابعة 2015-2016 | N136: 2015-2016 | O136: 7 | Q136: مناقصة | T136: ساري | U136: 218000 | V136: 294500 | W136: 22.20713073 | X136: A | Y136: 883500 | Z136: Microfree
A137: 7 | B137: 276.00 | C137: Tablet | E137: Pfizer | F137: Eliquis 5 mg | G137: فايزر مصر للادويه | H137: Capsules or Tablets | I137: أبيكسابان 5 مجم | J137: Apixaban 5 mg | K137: 360 | L137: A | M137: المناقصة الثالثة 2018-2019 | N137: 2018/2019 | O137: 3 | Q137: مناقصة | T137: ساري | U137: 189940 | V137: 15880 | W137: 358.8287154 | X137: C | Y137: 47640
A138: 3.5 | B138: 248.25 | C138: Tab | E138: Multi Apex | F138: Iksaront 2.5 mg | G138: المتحدة للصيادلة | H138: Capsules or Tablets | I138: أبيكسابان 2.5 مجم | J138: Apixaban 2.5 mg | K138: 361 | L138: A | M138: المناقصة الثالثة 2018-2019 | N138: 2018/2019 | O138: 3 | Q138: مناقصة | T138: ساري | U138: 60000 | V138: 15680 | W138: 114.7959184 | X138: C | Y138: 47040
A139: 0.349 | B139: 3 | C139: Tablet | E139: Adwia | F139: Adwiprazole 10mg tab | G139: فارما أوفر سيز | H139: Capsule or Tablet | I139: أريبيبرازول 10 مجم | J139: Aripiprazole 10 mg | K139: 3 | L139: A | M139: المناقصة النفسية 2015-2016 | N139: 2015-2016 | O139: 6 | P139: نفسية | Q139: مناقصة | T139: ساري | U139: 60000 | V139: 14000 | W139: 128.5714286 | X139: C | Y139: 42000
A140: 0.399 | B140: 4 | C140: Tablet | E140: Adwia | F140: adwiprazole 30mg tab | G140: فارما أوفر سيز | H140: Capsule or Tablet | I140: أريبيبرازول 30 مجم | J140: Aripiprazole 30 mg | K140: 4 | L140: A | M140: المناقصة النفسية 2015-2016 | N140: 2015-2016 | O140: 6 | P140: نفسية | Q140: مناقصة | T140: ساري | U140: 123000 | V140: 4000 | W140: 922.5 | X140: C | Y140: 12000
A141: 2.589230769 | B141: 8.5 | C141: Bottle 15 ml | E141: Orchidia Pharmaceutical Industries | F141: Orchatears Plus | G141: المتحدة للصيادلة | H141: Bottle 15 ml | I141: دموع صناعية نقط عين | J141: Artificial Tears Eye Drops | K141: 721 | L141: A | M141: المناقصة الثامنة 2015-2016 | N141: 2015-2016 | O141: 8 | Q141: مناقصة | T141: ساري | U141: 120030 | V141: 5120 | W141: 703.3007812 | X141: C | Y141: 15360
A142: 0.207 | B142: 0.6375 | C142: Tablet | E142: El Kahira | F142: Ruta - C | G142: المصرية لتجارة الأدوية | H142: Capsule or Tablet | I142: فيتامين سي 160 مجم + روتن 60 مجم | J142: Ascorbic Acid 160 mg + Rutin 60 mg | K142: 5 | L142: A | M142: المناقصة النفسية 2015-2016 | N142: 2015-2016 | O142: 6 | P142: نفسية | Q142: مناقصة | T142: ساري | U142: 175000 | V142: 11000 | W142: 477.2727273 | X142: C | Y142: 33000
A143: 0.134 | B143: 1.75 | C143: Tab | E143: Sedico | F143: Atenolol 50 mg | G143: سيديكو | H143: Capsules or Tablets | I143: أتينولول 50 مجم | J143: Atenolol 50 mg | K143: 289 | L143: A | M143: المناقصة الثالثة 2018-2019 | N143: 2018/2019 | O143: 3 | Q143: مناقصة | T143: ساري | U143: 144000 | V143: 11000 | W143: 392.7272727 | X143: C | Y143: 33000
A144: 0.134 | B144: Tender | C144: Tablet | E144: Cid | F144: Atenoblok | G144: الشركة المصرية لتجارة الأدوية | H144: Capsules or Tablets | I144: أتينولول 50 مجم | J144: Atenolol 50 mg | K144: 289 | L144: B | M144: المناقصة الثالثة 2018-2019 | N144: 2018/2019 | O144: 3 | Q144: مناقصة | T144: ساري | U144: 0 | V144: 0 | Y144: 0
A145: 0.134 | B145: 5.25علبة20 قرص | C145: Tablet | E145: Eipico | F145: Ateno | G145: ايبيكو | H145: Capsules or Tablets | I145: أتينولول 50 مجم | J145: Atenolol 50 mg | K145: 289 | L145: C | M145: المناقصة الثالثة 2018-2019 | N145: 2018/2019 | O145: 3 | Q145: مناقصة | T145: ساري | U145: 8650 | V145: 1300 | W145: 199.6153846 | X145: C | Y145: 3900
A146: 0.174 | B146: 2.80 | C146: Tab | E146: Sedico | F146: Atenolol 100 mg | G146: سيديكو | H146: Capsules or Tablets | I146: أتينولول 100 مجم | J146: Atenolol 100 mg | K146: 290 | L146: A | M146: المناقصة الثالثة 2018-2019 | N146: 2018/2019 | O146: 3 | Q146: مناقصة | T146: ساري | U146: 19000 | V146: 6000 | W146: 95 | X146: C | Y146: 18000
A147: 0.174 | B147: 6.25علبة20 قرص | C147: Tablet | E147: Eipico | F147: Ateno | G147: ايبيكو | H147: Capsules or Tablets | I147: أتينولول 100 مجم | J147: Atenolol 100 mg | K147: 290 | L147: B | M147: المناقصة الثالثة 2018-2019 | N147: 2018/2019 | O147: 3 | Q147: مناقصة | T147: ساري | U147: 4490 | V147: 14300 | W147: 9.41958042 | X147: A | Y147: 42900 | Z147: Ateno
A148: 2.4 | B148: 3 | C148: Capsule | E148: Multi Apex Pharma | F148: Atomoxapex 10 mg | G148: ابن سينا فارما | H148: Capsule or Tablet | I148: اتوموكستين 10 مجم | J148: Atomoxtine 10 mg | K148: 6 | L148: A | M148: المناقصة النفسية 2015-2016 | N148: 2015-2016 | O148: 6 | P148: نفسية | Q148: مناقصة | T148: ساري | U148: 6640 | V148: 3900 | W148: 51.07692308 | X148: B | Y148: 11700 | Z148: Atomoxapex 10 mg
A149: 5.366 | B149: 8 | C149: Tablet | E149: Mash Premiere | F149: ATTENSERA | G149: ابن سينا فارما | H149: Capsule or Tablet | I149: اتوموكستين 40 مجم | J149: Atomoxtine 40 mg | K149: 7 | L149: A | M149: المناقصة النفسية 2015-2016 | N149: 2015-2016 | O149: 6 | P149: نفسية | Q149: مناقصة | T149: ساري | U149: 15400 | V149: 10990 | W149: 42.03821656 | X149: B | Y149: 32970 | Z149: ATTENSERA
A150: 0.189 | B150: 21.6 | C150: tab | E150: pharo pharma | F150: lipicole 10 | G150: ابن سينا فارما | H150: Capsules or Tablets | I150: اتورفاستاتين 10مجم | J150: Atorvastatin 10 mg | K150: 331 | L150: A | M150: المناقصة الثالثة 2018-2019 | N150: 2018/2019 | O150: 3 | Q150: مناقصة | T150: ساري | U150: 28200 | V150: 26000 | W150: 32.53846154 | X150: B | Y150: 78000 | Z150: lipicole 10
A151: 0.224 | B151: 24 | C151: tab | E151: pharo pharma | F151: lipicole 20 | G151: ابن سينا فارما | H151: Capsules or Tablets | I151: اتورفاستاتين 20مجم | J151: Atorvastatin 20 mg | K151: 332 | L151: A | M151: المناقصة الثالثة 2018-2019 | N151: 2018/2019 | O151: 3 | Q151: مناقصة | T151: ساري | U151: 20000 | V151: 23000 | W151: 26.08695652 | X151: A | Y151: 69000 | Z151: lipicole 20
A152: 0.394 | B152: 25.2 | C152: tab | E152: pharo pharma | F152: Lipicole 40 | G152: ابن سينا فارما | H152: Capsules or Tablets | I152: اتورفاستاتين 40مجم | J152: Atorvastatin 40 mg | K152: 333 | L152: A | M152: المناقصة الثالثة 2018-2019 | N152: 2018/2019 | O152: 3 | Q152: مناقصة | T152: ساري | U152: 0 | V152: 0 | Y152: 0
A153: 2.01 | B153: 40 | C153: tab. | E153: DELTA PHARMA | F153: Atorstat 80mg | G153: ابن سينا فارما | H153: Capsules or Tablets | I153: اتورفاستاتين 80مجم | J153: Atorvastatin 80 mg | K153: 334 | L153: A | M153: المناقصة الثالثة 2018-2019 | N153: 2018/2019 | O153: 3 | Q153: مناقصة | T153: ساري | U153: 0 | V153: 0 | Y153: 0
A154: 9.9 | B154: 127.50 | C154: Amp | E154: شركة اسكندرية للأدوية لصالح ايجي فارما | F154: Atracurium Besylate50mg | G154: فارما اوفر سيز | H154: Injection | I154: اتراكيوريوم 50 مجم | J154: Atracurium 50 mg | K154: 27 | L154: A | M154: المناقصة الأولى 2018-2019 | N154: 2019-2018 | O154: 1 | Q154: مناقصة | R154: Yes | T154: ساري | U154: 0 | V154: 576 | W154: 0 | X154: A | Y154: 1728 | Z154: Atracurium Besylate50mg
A155: 7.29 | B155: 86.00 | C155: Amp | E155: شركة اسكندرية للأدوية لصالح ايجي فارما | F155: Atrabesylate 10mg/ml I.V | G155: فارما اوفر سيز | H155: Injection | I155: اتراكيوريوم 25 مجم | J155: Atracurium 25 mg | K155: 28 | L155: A | M155: المناقصة الأولى 2018-2019 | N155: 2019-2018 | O155: 1 | Q155: مناقصة | T155: ساري | U155: 0 | V155: 0 | Y155: 0
A156: 1.995 | B156: 2.06 | C156: Amp | E156: Nile | F156: Atropine | G156: الشركة المصرية لتجارة الأدوية | H156: Injection | I156: أتروبين 1 مجم / مللي | J156: Atropine 1 mg / ml | K156: 22 | L156: A | M156: المناقصة الأولى 2018-2019 | N156: 2019-2018 | O156: 1 | Q156: مناقصة | T156: ساري | U156: 667 | V156: 1870 | W156: 10.70053476 | X156: A | Y156: 5610 | Z156: Atropine
A157: 5.87 | B157: 6.5 | C157: Bottle 5 ml | E157: Alcon | F157: Isopto- Atropine Eye Drops | G157: المتحدة للصيادلة | H157: Bottle 5 ml | I157: أتروبين 0.1% قطرة عين | J157: Atropine 1% Eye Drops | K157: 220 | L157: A | M157: مناقصة الاستكمال الثانية 2013-2014 | N157: 2013-2014 | O157: 2 | Q157: استكمال | T157: ساري | U157: 0 | V157: 0 | Y157: 0
A158: 0.885 | B158: 1.425 | C158: Tablet | E158: RBG استيراد المكتب التجاري الدولي | F158: Azathioprine 50 mg | G158: ابن سينا فارما | H158: Capsule or Tablet | I158: ازاثيوبرين 50 مجم | J158: Azathioprine 50 mg | K158: 8 | L158: A | M158: المناقصة النفسية 2015-2016 | N158: 2015-2016 | O158: 6 | P158: نفسية | Q158: مناقصة | T158: ساري | U158: 8200 | V158: 3200 | W158: 76.875 | X158: C | Y158: 9600 | Z158: Azathioprine 50 mg
A159: 17 | B159: 21.600 / 30 GM | C159: TUBE 30 GM | E159: MUP | F159: AZADERM CREAM | G159: ابن سينا فارما | H159: Tube (30gm) | I159: حمض الأزيليك 20% كريم | J159: Azelaic Acid 20% Cream | K159: 418 | L159: A | M159: المناقصة الرابعة 2018-2019 | N159: 2018/2019 | O159: 4 | Q159: مناقصة | T159: ساري | U159: 0 | V159: 40 | W159: 0 | X159: A | Y159: 120 | Z159: AZADERM CREAM
A160: 5.43 | B160: 15 | C160: bottle 15 ml+ Water for reconstitution | E160: riva pharma | F160: azatribact | G160: ابن سينا فارما | H160: Bottle (15ml) + Water for reconstitution | I160: أزيثرومايسين 200 مجم /5 مللي معلق | J160: Azithromycin 200 mg / 5 ml Suspension | K160: 154 | L160: A | M160: المناقصة الثانية 2018-2019 | N160: 2019-2018 | O160: 2 | Q160: مناقصة | T160: ساري | U160: 40 | V160: 2251 | W160: 0.5330964016 | X160: A | Y160: 6753 | Z160: azatribact
A161: 2.066 | C161: Capsule | E161: Unipharma | F161: Unizithrin | G161: فارما أوفر سيز | H161: Capsules or Tablets | I161: أزيثرومايسين 500 مجم | J161: Azithromycin 500 mg | K161: 298 | L161: A | M161: مناقصة الاستكمال الثالثة 2017-2018 | N161: 2017-2018 | O161: 3 | Q161: استكمال | T161: ساري | U161: 0 | V161: 0 | Y161: 0
A162: 100 | B162: 160 | C162: Vial | E162: Pfizer | F162: Zithromax 500 mg vial | G162: فايزر مصر للادويه | H162: Vial + Solvent | I162: ازيثروميسين 500 مجم للحقن بالوريد | J162: Azithromycin 500mg I.V | K162: 39 | L162: A | M162: مناقصةا الاستكمال الاولى 2017-2018 | N162: 2017-2018 | O162: 1 | Q162: استكمال | R162: Yes | T162: ساري | U162: 0 | V162: 0 | Y162: 0
A163: 0.147 | B163: 6.50 | C163: tab | E163: pharo pharma | F163: Mylobac | G163: ابن سينا فارما | H163: Capsules or Tablets | I163: باكلوفين 10مجم | J163: Baclofen 10 mg | K163: 71 | L163: A | M163: المناقصة الاولي 2018-2019 | N163: 2018/2019 | O163: 1 | Q163: مناقصة | T163: ساري | U163: 17160 | V163: 71000 | W163: 7.250704225 | X163: A | Y163: 213000 | Z163: Mylobac
A164: 0.45 | B164: 21.75 | C164: tab | E164: شركة مصر للمستحضرات الطبية لصالح شركة الدلتا لتجارة الادوية | F164: Baclofen | G164: ابن سينا فارما | H164: Capsules or Tablets | I164: باكلوفين 25مجم | J164: Baclofen 25 mg | K164: 72 | L164: A | M164: المناقصة الاولي 2018-2019 | N164: 2018/2019 | O164: 1 | Q164: مناقصة | T164: ساري | U164: 975 | V164: 676 | W164: 43.26923077 | X164: B | Y164: 2028 | Z164: Baclofen
A165: 33.75 | B165: 45 | C165: Bottle 500 ml WITH rubber cap | E165: مصر اوتسوكا | F165: بانامين جي | G165: مصر اوتسوكا للمستحضرات الطبية | H165: Bottle 500 ml WITH Rubber Cap | I165: احماض امينية متوازنة للحقن الوريدى | J165: Balanced Amino Acid Combination I.V Solution for Adults | K165: 746 | L165: A | M165: المناقصة الثامنة 2015-2016 | N165: 2015-2016 | O165: 8 | Q165: مناقصة | T165: ساري | U165: 0 | V165: 0 | Y165: 0
A166: 0.54 | B166: 6.000 / 10 SCHT | C166: Sachet | E166: MUP | F166: Vagyl Powder | G166: ابن سينا فارما | H166: Sachets or Bottle | I166: غسول مهبلى قاعدى | J166: Basic vaginal douche | K166: 329 | L166: A | M166: مناقصة الاستكمال الثالثة 2017-2018 | N166: 2017-2018 | O166: 3 | Q166: استكمال | T166: ساري | U166: 0 | V166: 0 | Y166: 0
A167: 13 | B167: 22.5/ 200 dose | C167: inhaler | E167: Adco | F167: Beclosonenon CFC | G167: الشركة المصرية لتجارة الأدوية | H167: inhaler | I167: بكلوميثازون 50 ميكروجم/جرعة | J167: Beclomethasone 50 mcg / Dose | K167: 766 | L167: A | M167: المناقصة السابعة 2018-2019 | N167: 2018/2019 | O167: 7 | Q167: مناقصة | T167: ساري | U167: 50 | V167: 10 | W167: 150 | X167: C | Y167: 30
A168: 24 | B168: 28.80 | C168: Aerosolbottle | E168: Adco | F168: Beclosone forte | G168: المصرية لتجارة الأدوية | H168: inhaler | I168: بيكلوميثازون استنشاق | J168: Beclomethasone 100 mcg/dose Inhalation | K168: 128 | L168: A | M168: مناقصة الأستكمال الثانية 2017-2018 | N168: 2017-2018 | O168: 2 | Q168: استكمال | T168: ساري | U168: 0 | V168: 900 | W168: 0 | X168: A | Y168: 2700 | Z168: Beclosone forte
A169: 24 | B169: 28.8 | C169: Aerosol 200 doses | E169: Adco | F169: Beclosone forte | G169: المصرية لتجارة الأدوية | H169: Inhaler | I169: بيكلوميثازون استنشاق | J169: Beclomethasone 250 mcg/dose Inhalation | K169: 186 | L169: A | M169: مناقصة الاستكمال الثانية 2013-2014 | N169: 2013-2014 | O169: 2 | Q169: استكمال | T169: ساري | U169: 0 | V169: 0 | Y169: 0
A170: 4.32 | B170: 6 | C170: Bottle 10 ml | E170: Eipico | F170: Benox | G170: ايبيكو | H170: Bottle 10 ml | I170: بينوكسينات هيدروكلورايد 0.4% نقط عين | J170: Benoxinate HCl 0.4 % Eye Drops | K170: 720 | L170: A | M170: المناقصة الثامنة 2015-2016 | N170: 2015-2016 | O170: 8 | Q170: مناقصة | T170: ساري | U170: 8590 | V170: 17240 | W170: 14.94779582 | X170: A | Y170: 51720 | Z170: Benox
A171: 6 | B171: 7.00/ vial + solvent | C171: Vial | E171: El Nile | F171: Durapen - S | G171: المصرية لتجارة الأدوية | H171: Vial + Solvent | I171: بنزاثين بنيسيللين 1200000 وحدة دولية | J171: Benzathine penicillin 1200000 I.U. | K171: 285 | L171: A | M171: مناقصة الاستكمال الثالثة 2017-2018 | N171: 2017-2018 | O171: 3 | Q171: استكمال | R171: Yes | T171: ساري | U171: 670 | V171: 202 | W171: 99.5049505 | X171: C | Y171: 606
A172: 4.425 | B172: 9 | C172: Tube 15 gm | E172: مصر للمستحضرات الطبية لصالح شركة الدلتا لتجارة الادوية | F172: dermacure oint | G172: ابن سينا فارما | H172: Tube 15 gm | I172: حمض البنزويك 6%+حمض الساليسيك 3%مرهم | J172: Benzoic acid 6% + Salicylic acid 3% Ointment | K172: 364 | L172: A | M172: المناقصة الرابعة 2015-2016 | N172: 2015-2016 | O172: 4 | Q172: مناقصة | T172: ساري | U172: 3200 | V172: 400 | W172: 240 | X172: C | Y172: 1200
A173: 4.2 | B173: 4.250 / 20 GM | C173: TUBE 20 GM | E173: MUP | F173: AKNEROXID-5 GEL | G173: ابن سينا فارما | H173: Tube (20gm) | I173: بنزويل بيراوكسيد 5% جيل | J173: Benzoyl Peroxide 5% Gel | K173: 387 | L173: A | M173: المناقصة الرابعة 2018-2019 | N173: 2018/2019 | O173: 4 | Q173: مناقصة | T173: ساري | U173: 3450 | V173: 2450 | W173: 42.24489796 | X173: B | Y173: 7350 | Z173: AKNEROXID-5 GEL
A174: 0.4485 | B174: 0.75 | C174: Tablet | E174: El Kahira | F174: Cogentol | G174: المصرية لتجارة الأدوية | H174: Capsule or Tablet | I174: بينزتروبين 2 مجم | J174: Benztropine 2 mg | K174: 10 | L174: A | M174: المناقصة النفسية 2015-2016 | N174: 2015-2016 | O174: 6 | P174: نفسية | Q174: مناقصة | T174: ساري | U174: 1340 | V174: 6570 | W174: 6.118721461 | X174: A | Y174: 19710 | Z174: Cogentol
A175: 4.49 | B175: 6.75زجاجة125 مللي | C175: (125ml) | E175: Eipico | F175: Tantum verd | G175: ايبيكو | H175: Bottle | I175: بنزيدامين 0.15% غسول فم | J175: Benzydamine 0.15% Mouth Wash | K175: 460 | L175: A | M175: المناقصة الرابعة 2018-2019 | N175: 2018/2019 | O175: 4 | Q175: مناقصة | T175: ساري | U175: 425 | V175: 120 | W175: 106.25 | X175: C | Y175: 360
A176: 4.425 | B176: 7.5 | C176: Tube 20 gm | E176: Eipico | F176: Tantm gel | G176: ايبيكو | H176: Tube 20 gm | I176: بنزيدامين 5% جيل | J176: Benzydamine 5% Gel | K176: 403 | L176: A | M176: المناقصة الرابعة 2015-2016 | N176: 2015-2016 | O176: 4 | Q176: مناقصة | T176: ساري | U176: 0 | V176: 0 | Y176: 0
A177: 3.3 | B177: Tenders | C177: Bottle 120 ml | E177: UCCMA | F177: Scabidol lotion 25% | G177: المتحدة للكيماويات والمستحضرات الطبية | H177: Bottle 120 ml | I177: بنزويل بيراوكسيد 25% لوسيون | J177: Benzyl benzoate 25% lotion | K177: 367 | L177: A | M177: المناقصة الرابعة 2015-2016 | N177: 2015-2016 | O177: 4 | Q177: مناقصة | T177: ساري | U177: 0 | V177: 0 | Y177: 0
A178: 2.775 | B178: 3.9 | C178: Tube 40 gm | E178: Pharo Pharma | F178: Benzyl Benzoate Topical Cream | G178: فارما أوفر سيز | H178: Tube( 40gm) | I178: بنزيل بنزوات 20% كريم | J178: benzyl benzoate 20% Cream | K178: 93 | L178: A | M178: مناقصة الاستكمال الأولي 2013-2014 | N178: 2013-2014 | O178: 1 | Q178: استكمال | T178: ساري | U178: 0 | V178: 0 | Y178: 0
A179: 4.9 | B179: 7.5/ vial | C179: Vial + Solvent | E179: misr | F179: Benzyl penicillin G 1.000.000 I.U | G179: الشركة المصرية لتجارة الأدوية | H179: Vial + Solvent | I179: بنزيل بنسيللين ج صوديوم 1,000,000 وحدة دولية | J179: Benzyl Penicillin G Sodium 1,000,000 I.U. | K179: 83 | L179: A | M179: المناقصة الثانية 2018-2019 | N179: 2019-2018 | O179: 2 | Q179: مناقصة | R179: Yes | T179: ساري | U179: 59600 | V179: 100820 | W179: 17.73457647 | X179: A | Y179: 302460 | Z179: Benzyl penicillin G 1.000.000 I.U
A180: 0.255 | B180: 1.35 | C180: Tablet | E180: Chemipharm | F180: Versrc 16 mg | G180: المصرية لتجارة الأدوية | H180: Capsule or Tablet | I180: بيتاهيستين 16مجم | J180: Betahistine 16 mg | K180: 11 | L180: A | M180: المناقصة النفسية 2015-2016 | N180: 2015-2016 | O180: 6 | P180: نفسية | Q180: مناقصة | T180: ساري | U180: 6600 | V180: 300 | W180: 660 | X180: C | Y180: 900
A181: 0.15 | B181: 0.825 | C181: Tablet | E181: Future Pharmaceutical Industries | F181: Steady Futal 8mg | G181: ابن سينا فارما | H181: Capsule or Tablet | I181: بيتاهيستين 8مجم | J181: Betahistine 8 mg | K181: 12 | L181: A | M181: المناقصة النفسية 2015-2016 | N181: 2015-2016 | O181: 6 | P181: نفسية | Q181: مناقصة | T181: ساري | U181: 2000 | V181: 600 | W181: 100 | X181: C | Y181: 1800
A182: 9 | B182: 12.00 L.E | C182: Bottle 30 ml | E182: Gsk - E | F182: Betnovate Scalp Lotion. | G182: ابن سينا فارما | H182: Bottle 15 ml | I182: بيتاميتازون 0.1% لوسيون | J182: Betamethasone 0 .1% Lotion | K182: 87 | L182: A | M182: مناقصةا الاستكمال الاولى 2017-2018 | N182: 2017-2018 | O182: 1 | Q182: استكمال | T182: ساري | U182: 0 | V182: 0 | Y182: 0
A183: 2.6 | B183: 4.00 | C183: Tube 15 gm | E183: pharo pharma | F183: Cronomesone cream | G183: فارما اوفر سيز | H183: Tube | I183: بيتاميتازون 0.1% كريم | J183: Betamethasone 0.1 % Cream | K183: 395 | L183: A | M183: المناقصة الرابعة 2018-2019 | N183: 2018/2019 | O183: 4 | Q183: مناقصة | T183: ساري | U183: 1000 | V183: 850 | W183: 35.29411765 | X183: B | Y183: 2550 | Z183: Cronomesone cream
A184: 2.8 | B184: 4.00 | C184: Tube 15 gm | E184: pharo pharma | F184: Cronomesone ointment | G184: فارما اوفر سيز | H184: Tube | I184: بيتاميتازون 0.1% مرهم | J184: Betamethasone 0.1 % Ointment | K184: 396 | L184: A | M184: المناقصة الرابعة 2018-2019 | N184: 2018/2019 | O184: 4 | Q184: مناقصة | T184: ساري | U184: 20000 | V184: 76520 | W184: 7.841087297 | X184: A | Y184: 229560 | Z184: Cronomesone ointment
A185: 7.071428571 | B185: 9 | C185: Bottle 30 ml | E185: Memphis | F185: Betasalic | G185: المصرية لتجارة الأدوية | H185: Bottle 30 ml | I185: بيتاميتازون 0.05% +حمض الساليسليك 3% لوسيون | J185: Betamethasone 0.05%+ Salicylic acid 2% Lotion | K185: 161 | L185: A | M185: مناقصة الاستكمال الرابعة 2014-2015 | N185: 2014-2015 | O185: 4 | Q185: استكمال | T185: ساري | U185: 464000 | V185: 1053050 | W185: 13.21874555 | X185: A | Y185: 3159150 | Z185: Betasalic
A186: 8.75 | B186: سعر الجمهور للامبول الواحد | C186: Ampoule | E186: Marcyrl | F186: Dexaglobe ampoule | G186: شركة رامكو | H186: Injection | I186: بيتاميثازون دايبروبيونات10مجم+ بيتاميثازون صوديوم فوسفات 4مجم | J186: Betamethasone dipropionate 10 mg+ Betamethasone Na PO4 4 mg | K186: 765 | L186: A | M186: المناقصة السابعة 2018-2019 | N186: 7 | O186: 7 | Q186: مناقصة | T186: ساري | U186: 90 | V186: 90 | W186: 30 | X186: A | Y186: 270 | Z186: Dexaglobe ampoule
A187: 3646 | B187: 4096 | E187: Roche | F187: Avastin 100mg | G187: المصرية لتجارة الأدوية | H187: Injection | J187: Bevacizumab 100mg | K187: 4 | L187: A | M187: شراء موحد أدوية الأورام List 51 | N187: 2018 | O187: 51 | P187: Oncology | Q187: مناقصة | R187: Yes | S187: Oncology | T187: ساري | U187: 73500 | V187: 223875 | W187: 9.849246231 | X187: A | Y187: 671625 | Z187: Avastin 100mg
A188: 3646 | B188: 4096 | E188: Roche | F188: Avastin 100mg | G188: فارما أوفر سيز | H188: Injection | J188: Bevacizumab 100mg | K188: 4 | L188: B | M188: شراء موحد أدوية الأورام List 51 | N188: 2018 | O188: 51 | P188: Oncology | Q188: مناقصة | R188: Yes | S188: Oncology | T188: ساري | U188: 0 | V188: 0 | Y188: 0
A189: 13051 | B189: 13501 | E189: Roche | F189: Avastin 400mg | G189: المصرية لتجارة الأدوية | H189: Injection | J189: Bevacizumab 400mg | K189: 5 | L189: A | M189: شراء موحد أدوية الأورام List 51 | N189: 2018 | O189: 51 | P189: Oncology | Q189: مناقصة | R189: Yes | S189: Oncology | T189: ساري | U189: 3981 | V189: 9790 | W189: 12.19918284 | X189: A | Y189: 29370 | Z189: Avastin 400mg
A190: 13051 | B190: 13501 | E190: Roche | F190: Avastin 400mg | G190: فارما أوفر سيز | H190: Injection | J190: Bevacizumab 400mg | K190: 5 | L190: B | M190: شراء موحد أدوية الأورام List 51 | N190: 2018 | O190: 51 | P190: Oncology | Q190: مناقصة | R190: Yes | S190: Oncology | T190: ساري | U190: 0 | V190: 0 | Y190: 0
A191: 18.75 | B191: =720/28 -> 25.71428571 | C191: Tablet | D191: مستورد | E191: Astrazeneca | F191: Casodex 50 mg | G191: ابن سينا فارما | H191: Capsules or Tablets | I191: بيكليوتامايد 50 مجم | J191: Bicalutamide 50 mg | K191: 6 | L191: A | M191: شراء موحد أدوية الأورام List 51 | N191: 2018 | O191: 51 لضمان التوافر | P191: Oncology | Q191: مناقصة | R191: Yes | S191: Oncology | T191: ساري | U191: 11540 | V191: 9900 | W191: 34.96969697 | X191: B | Y191: 29700 | Z191: Casodex 50 mg
A192: 0.2997275204 | B192: 0.44 | C192: Tablet | E192: Pharco | F192: Biperiden Tab | G192: فاركو للأدوية | H192: Capsule or Tablet | I192: بيبريدين 2 مجم | J192: Biperiden 2 mg | K192: 13 | L192: A | M192: المناقصة النفسية 2015-2016 | N192: 2015-2016 | O192: 6 | P192: نفسية | Q192: مناقصة | T192: ساري | U192: 28000 | V192: 20600 | W192: 40.77669903 | X192: B | Y192: 61800 | Z192: Biperiden Tab
A193: 6.325 | B193: 9.2 | C193: Ampoule | E193: Delta Pharma | F193: Kinoprid | G193: فارما أوفر سيز | H193: Injection | I193: بيبريدين 5 مجم/ مللي | J193: Biperiden 5 mg / ml | K193: 14 | L193: A | M193: المناقصة النفسية 2015-2016 | N193: 2015-2016 | O193: 6 | P193: نفسية | Q193: مناقصة | T193: ساري | U193: 4300 | V193: 4300 | W193: 30 | X193: A | Y193: 12900 | Z193: Kinoprid
A194: 0.244 | B194: 0.25/ tab | C194: Tablet | E194: Amriya | F194: Bisadyl | G194: أبوقير للتجارة الدولية | H194: Capsules or Tablets | I194: بيساكوديل 5 مجم | J194: Bisacodyl 5mg Capsules or Tablets | K194: 144 | L194: A | M194: مناقصة الأستكمال الثانية 2017-2018 | N194: 2017-2018 | O194: 2 | Q194: استكمال | T194: ساري | U194: 0 | V194: 0 | Y194: 0
A195: 0.199 | B195: 0.525 | C195: tab | E195: hikma pharma | F195: Bistol 2.5 mg | G195: ابن سينا فارما | H195: Capsules or Tablets | I195: بيسوبرولول 2.5 مجم | J195: Bisoprolol 2.5 mg | K195: 246 | L195: A | M195: المناقصة الثالثة 2018-2019 | N195: 2018-2019 | O195: 3 | Q195: مناقصة | T195: ساري | U195: 0 | V195: 0 | Y195: =IFERROR(($V195)*3,"") -> 0 | Z195: =CHOOSE(($U195<$Y195)+($Y195="")+1,"",F195) -> 
A196: 0.144 | B196: 0.65 | C196: tab | E196: EGPI | F196: egypro 5mg | G196: ابن سينا فارما | H196: Capsules or Tablets | I196: بيسوبرولول 5 مجم | J196: Bisoprolol 5 mg | K196: 247 | L196: A | M196: المناقصة الثالثة 2018-2019 | N196: 2018-2019 | O196: 3 | Q196: مناقصة | T196: ساري | U196: 313000 | V196: 55000 | W196: 170.7272727 | X196: C | Y196: 165000
A197: 0.344 | B197: 400 | C197: Tab | E197: unipharma | F197: unibisol | G197: فارما اوفر سيز | H197: Capsules or Tablets | I197: بيسوبرولول 10 مجم | J197: Bisoprolol 10 mg | K197: 248 | L197: A | M197: المناقصة الثالثة 2018-2019 | N197: 2018-2019 | O197: 3 | Q197: مناقصة | T197: ساري | U197: 0 | V197: 0 | Y197: 0
A198: 0.2665 | B198: 0.75 | C198: tab | E198: hikma pharma | F198: Bistol plus 5/12.5 mg | G198: ابن سينا فارما | H198: Capsules or Tablets | I198: بيسوبرولول 5 مجم+ هيدروكلوروثيايد 12.5مجم | J198: Bisoprolol 5 mg + Hydrochlorothiazide 12.5 mg | K198: 249 | L198: A | M198: المناقصة الثالثة 2018-2019 | N198: 2018-2019 | O198: 3 | Q198: مناقصة | T198: ساري | U198: 0 | V198: 0 | Y198: 0
A199: 105 | B199: 119 | C199: 1 Vial | D199: مستورد | E199: Cipla | F199: Belocip | G199: ستار انترناشونال | H199: Injection | I199: بليوميسين 15 وحدة | J199: Bleomycin 15 I.U. | K199: 2 | L199: A | M199: شراء موحد أدوية الأورام List 50 | N199: 2018 | O199: 50 لضمان التوافر | P199: Oncology | Q199: مناقصة | R199: Yes | S199: Oncology | T199: ساري | U199: 0 | V199: 0 | Y199: 0
A200: 0.191 | B200: 5.9 | C200: cap. | E200: pharco | F200: Bilicol cap. | G200: ابن سينا فارما | H200: Capsules or Tablets | I200: بورنيول +بينين +كامفين +مينيتول +سينيول +مينيتون | J200: Borneol + Pinene + Camphene + Menthol + Cineole + Menthone | K200: 529 | L200: A | M200: المناقصة الخامسة 2018-2019 | N200: 2018/2019 | O200: 5 | Q200: مناقصة | T200: ساري | U200: 879 | V200: 7473 | W200: 3.528703332 | X200: A | Y200: 22419 | Z200: Bilicol cap.
... 1241 more rows

Sheet نفقة دولة
A1: سعر الترسية للوحدة | B1: سعر السوق الحالي بالوحدة | C1: الوحدة | D1: محلي/ مستورد | E1: الشركة المنتجة | F1: الاسم التجارى | G1: اسم الشركة الموزعة | H1: العبوة | I1: الاسم العلمى | J1: الاسم العام | K1: رقم البند | L1: Serial of Trade | M1: اسم المناقصة | N1: عام المناقصة | O1: رقم المناقصة | P1: تخصص المناقصة | Q1: مناقصة / استكمال / ممارسة | R1: Life Saving | S1: Category | T1: حالة البند | U1: الرصيد | V1: متوسط الاستهلاك الشهري | W1: معدل التغطية باليوم | X1: Class
A2: 11.5 | B2: 20 | C2: Tablet | E2: Amoun | F2: إم - إكس أقراص | G2: رامكو فارم لتجارة الادوية | H2: Capsule or Tablet | I2: مثبطات السيريتونين ضد القئ | J2: 5 HT antagonist antiemtic | K2: 434 | L2: A | M2: المناقصة الخامسة 2015-2016 | N2: 2015-2016 | O2: 5 | Q2: مناقصة | T2: ساري | W2: =IFERROR(($U2/$V2)*30,"") ->  | X2: =IF($W2="","",IF($W2<=30,"A",IF($W2<=60,"B",IF($W2>60,"C")))) -> 
A3: 9.5 | B3: 9.95 | C3: Ampoule | E3: Hikma - EUP | F3: Utoral 250 mg | G3: فارما أوفر سيز | H3: Injection | I3: 5فلورويوراسيل 250مجم | J3: 5-Fluorouracil 250 mg | K3: 1 | L3: A | M3: شراء موحد أدوية الأورام List 51 | N3: 2018 | O3: 51 | P3: Oncology | Q3: مناقصة | R3: Yes | S3: Oncology | T3: ساري
A4: 9.5 | B4: 9.95 | C4: Ampoule | E4: Hikma - EUP | F4: Utoral 250 mg | G4: المتحدة للصيادلة | H4: Injection | I4: 5فلورويوراسيل 250مجم | J4: 5-Fluorouracil 250 mg | K4: 1 | L4: B | M4: شراء موحد أدوية الأورام List 51 | N4: 2018 | O4: 51 | P4: Oncology | Q4: مناقصة | R4: Yes | S4: Oncology | T4: ساري
A5: 9.5 | B5: 9.95 | C5: Ampoule | E5: Hikma - EUP | F5: Utoral 250 mg | G5: رامكو فارم لتجارة الادوية | H5: Injection | I5: 5فلورويوراسيل 250مجم | J5: 5-Fluorouracil 250 mg | K5: 1 | L5: C | M5: شراء موحد أدوية الأورام List 51 | N5: 2018 | O5: 51 | P5: Oncology | Q5: مناقصة | R5: Yes | S5: Oncology | T5: ساري
A6: 12.8 | B6: 16.5 | C6: Vial | E6: Hikma - EUP | F6: Utoral 500 mg | G6: فارما أوفر سيز | H6: Injection | I6: 5فلورويوراسيل 500مجم | J6: 5-Fluorouracil 500 mg | K6: 2 | L6: A | M6: شراء موحد أدوية الأورام List 51 | N6: 2018 | O6: 51 | P6: Oncology | Q6: مناقصة | R6: Yes | S6: Oncology | T6: ساري
A7: 12.8 | B7: 16.5 | C7: Vial | E7: Hikma - EUP | F7: Utoral 500 mg | G7: المتحدة للصيادلة | H7: Injection | I7: 5فلورويوراسيل 500مجم | J7: 5-Fluorouracil 500 mg | K7: 2 | L7: B | M7: شراء موحد أدوية الأورام List 51 | N7: 2018 | O7: 51 | P7: Oncology | Q7: مناقصة | R7: Yes | S7: Oncology | T7: ساري
A8: 12.8 | B8: 16.5 | C8: Vial | E8: Hikma - EUP | F8: Utoral 500 mg | G8: رامكو فارم لتجارة الادوية | H8: Injection | I8: 5فلورويوراسيل 500مجم | J8: 5-Fluorouracil 500 mg | K8: 2 | L8: C | M8: شراء موحد أدوية الأورام List 51 | N8: 2018 | O8: 51 | P8: Oncology | Q8: مناقصة | R8: Yes | S8: Oncology | T8: ساري
A9: 0.15 | B9: 4.000 | C9: Tablet | E9: Amoun | F9: Cortilon 0.1mg | G9: المتحدة للصيادلة | H9: Capsule or Tablet | I9: فلودروهيدروكورتيزون 0.1 مجم | J9: 9-alpha fludrohydrocortisone 0.1mg | K9: 332 | L9: A | M9: المناقصة الثالثة 2010-2011 | N9: 2010-2011 | O9: 3 | Q9: مناقصة | T9: ساري
A10: 0.807 | B10: 1 | C10: Tablet | E10: Hikma Pharma | F10: glucobay 50mg | G10: سوفيكو فارم | H10: Capsule or Tablet | I10: اكربوز 50 مجم | J10: Acarbose 50 mg | K10: 16 | L10: A | M10: ممارسة استكمال الاورام و أدوية متنوعة 2012-2013 | N10: 2012-2013 | P10: Oncology | Q10: استكمال | S10: Oncology | T10: ساري
A11: 0.3105555556 | B11: 0.325 | C11: Tablet | E11: CID | F11: Cidamex | G11: المصرية لتجارة الأدوية | H11: Capsule or Tablet | I11: اسيتازولاميد 250 مجم | J11: Acetazolamide 250 mg | K11: 690 | L11: A | M11: المناقصة الثامنة 2015-2016 | N11: 2015-2016 | O11: 8 | Q11: مناقصة | T11: ساري
A12: 0.053 | B12: 0.106 | C12: Tablet | E12: Alexandria | F12: Aspin | G12: المصرية لتجارة الأدوية | H12: Capsule or Tablet | I12: اسيتيل ساليسيك اسيد 300 مجم | J12: Acetyl salicylic acid 300mg | K12: 78 | L12: A | M12: المناقصة الاولي 2013-2014 | N12: 2013-2014 | O12: 1 | Q12: مناقصة | T12: ساري
A13: 0.053 | B13: 0.158 | C13: Tablet | E13: Adco | F13: Rivo | G13: المصرية لتجارة الأدوية | H13: Capsule or Tablet | I13: اسيتيل ساليسيك اسيد 300 مجم | J13: Acetyl salicylic acid 300mg | K13: 78 | L13: B | M13: المناقصة الاولي 2013-2014 | N13: 2013-2014 | O13: 1 | Q13: مناقصة | T13: ساري
A14: 0.119 | B14: 391.70/1000tab. | C14: Tablet | E14: Adco | F14: Rivo 75 mg | G14: الشركة المصرية لتجارة الأدوية | H14: Capsules or Tablets | I14: اسيتيل ساليسيك اسيد 75 مجم | J14: Acetyl Salicylic Acid 75 mg | K14: 328 | L14: A | M14: المناقصة الثالثة 2018-2019 | N14: 2018/2019 | O14: 3 | Q14: مناقصة | R14: Yes | T14: ساري
A15: 69 | B15: 85 | C15: vial | E15: الشركة العربية للمستحضرات الطبية (ارابكوميد) لصالح شركة بيوكابيتال توزيع شركة ايجي فارما | F15: Rotacysteine 20% I.V Infusion | G15: فارما اوفر سيز | H15: Vial | I15: اسيتيل سيستايين | J15: ACETYL CYSTIENE | K15: 1 | L15: A | M15: المناقصة العامة لتوريد أدوية علاج السموم جلسة 13/11/2016 | Q15: مناقصة | T15: ساري
A16: 0.8357142857 | B16: 1.4 | C16: Sachet | E16: Sedico | F16: Acetylcistein | G16: سيديكو | H16: Sachet | I16: اسيتيل سيستايين 200مجم | J16: acetylcysteine 200mg | K16: 637 | L16: A | M16: المناقصة السابعة 2015-2016 | N16: 2015-2016 | O16: 7 | Q16: مناقصة | T16: ساري
A17: 0.8357142857 | B17: 0.9 | C17: Sachet | E17: Pharco | F17: Windy Effervescent | G17: فاركو للأدوية | H17: Sachet | I17: اسيتيل سيستايين 200مجم | J17: acetylcysteine 200mg | K17: 637 | L17: B | M17: المناقصة السابعة 2015-2016 | N17: 2015-2016 | O17: 7 | Q17: مناقصة | T17: ساري
A18: 7.333333333 | B18: 11 | C18: Bottle 250 ml | E18: Mash Premiere | F18: DOUCHEAL | G18: ابن سينا فارما | H18: Sachet or Bottle | I18: غسول مهبلى حامضى | J18: Acidic vaginal douche | K18: 678 | L18: A | M18: المناقصة السابعة 2015-2016 | N18: 2015-2016 | O18: 7 | Q18: مناقصة | T18: ساري
A19: 0.65 | B19: 25.20 | C19: Tab | E19: Sedico | F19: Cycloviral | G19: سيديكو | H19: Capsules or Tablets | I19: أسيكلوفير 200 مجم | J19: Acyclovir 200 mg | K19: 211 | L19: A | M19: المناقصة الثانية 2015-2016 | N19: 2015-2016 | O19: 2 | Q19: مناقصة | T19: ساري
A20: 0.65 | B20: 16.20 | C20: tablet | E20: pharo pharma | F20: Virustat 200 | G20: ابن سينا فارما | H20: Capsules or Tablets | I20: أسيكلوفير 200 مجم | J20: Acyclovir 200 mg | K20: 211 | L20: B | M20: المناقصة الثانية 2015-2016 | N20: 2015-2016 | O20: 2 | Q20: مناقصة | T20: ساري
A21: 0.914 | B21: 35.00 | C21: tablet | E21: pharo pharma | F21: Virustat 400 mg | G21: ابن سينا فارما | H21: Capsules or Tablets | I21: أسيكلوفير 400 مجم | J21: Acyclovir 400 mg | K21: 212 | L21: A | M21: المناقصة الثانية 2018-2019 | N21: 2019-2018 | O21: 2 | Q21: مناقصة | T21: ساري
A22: 49 | B22: 56 | C22: Vial | E22: Mylan | F22: Acyclovir 250 mg | G22: رامكو فارم لتجارة الادوية | H22: Injection | I22: اسيكلوفير250 مجم | J22: Acyclovir 250 mg | K22: 183 | L22: A | M22: مناقصة الاستكمال الرابعة 2014-2015 | N22: 2014-2015 | O22: 4 | Q22: استكمال | R22: Yes | T22: ساري
A23: 65.6 | B23: 80/ViaL | C23: VL | E23: MYLAN | F23: Acyclovir 500 mg | G23: الشركة المصرية لتجارة الأدوية | H23: Injection | I23: أسيكلوفير 500 مجم | J23: Acyclovir 500 mg | K23: 210 | L23: A | M23: المناقصة الثانية 2018-2019 | N23: 2019-2018 | O23: 2 | Q23: مناقصة | R23: Yes | T23: ساري
A24: 33 | B24: 47.00 L.E | C24: BOTTLE 100 ML | E24: GSK - E | F24: Zovirax Double strength | G24: ابن سينا فارما | H24: Bottle (100ml) | I24: أسيكلوفير 400 مجم / 5 مللي معلق | J24: Acyclovir 400 mg / 5 ml Suspension | K24: 213 | L24: A | M24: المناقصة الثانية 2018-2019 | N24: 2019-2018 | O24: 2 | Q24: مناقصة | T24: ساري
A25: 3.15 | B25: 5.5 | C25: Tube 10 gm | E25: pharo pharma | F25: Virustat 5% Cream | G25: ابن سينا فارما | H25: Tube (10gm) | I25: أسيكلوفير 5% كريم | J25: Acyclovir 5% Cream | K25: 417 | L25: A | M25: المناقصة الرابعة 2018-2019 | N25: 2018/2019 | O25: 4 | Q25: مناقصة | T25: ساري
A26: 2.3 | B26: 268.00/100A | C26: ampule | E26: misr | F26: Epinephrine | G26: الشركة المصرية لتجارة الأدوية | H26: Injection | I26: أدرينالين1مجم/مللي | J26: Adrenaline 1 mg / ml | K26: 444 | L26: A | M26: المناقصة الرابعة 2018-2019 | N26: 2018/2019 | O26: 4 | Q26: مناقصة | R26: Yes | T26: ساري
A27: 2.3 | B27: 26.00/10 amp. | C27: ampule | E27: Chemipharm | F27: Adrenamax | G27: الشركة المصرية لتجارة الأدوية | H27: Injection | I27: أدرينالين1مجم/مللي | J27: Adrenaline 1 mg / ml | K27: 444 | L27: B | M27: المناقصة الرابعة 2018-2019 | N27: 2018/2019 | O27: 4 | Q27: مناقصة | R27: Yes | T27: ساري
A28: 5.89 | B28: tender price | C28: Carton box containing aluminium tube | E28: zad industrial pharma | F28: Zadema | G28: المتحدة للصيادلة | H28: Tube (40mg) | I28: آيسين 1% + داي ايثيل أمينو ساليسيلات 5% جل | J28: Aescin 1% + Diethylamino Salicylate 5% gel | K28: 75 | L28: A | M28: المناقصة الأولى 2018-2019 | N28: 2019-2018 | O28: 1 | Q28: مناقصة | T28: ساري
A29: 0.585 | B29: 0.825 | C29: Tablet | D29: محلي | E29: CID | F29: Reparil | G29: المصرية لتجارة الأدوية | H29: Capsule or Tablet | I29: آيسين 40 مجم | J29: Aescin 40mg | K29: 72 | L29: A | M29: المناقصة الأولى 2015-2016 | N29: 2015-2016 | O29: 1 | Q29: مناقصة | T29: ساري
A30: 3.19 | B30: 6.75زجاجة20 مللي | C30: 20 ml | E30: Eipico | F30: Alzental | G30: ايبيكو | H30: Bottle (20ml) | I30: ألبيندازول 100 مجم / 5 مللي شراب | J30: Albendazole 100mg/5ml syrup | K30: 158 | L30: A | M30: مناقصة الأستكمال الثانية 2017-2018 | N30: 2017-2018 | O30: 2 | Q30: استكمال | T30: ساري
A31: 1.74 | B31: 2.625/ tab | C31: Tablet | E31: Eipico | F31: Alzental | G31: ايبيكو | H31: Capsules or Tablets | I31: ألبيندازول 200 مجم | J31: Albendazole 200mg Capsules or Tablets | K31: 159 | L31: A | M31: مناقصة الأستكمال الثانية 2017-2018 | N31: 2017-2018 | O31: 2 | Q31: استكمال | T31: ساري
A32: 0.66 | B32: 1.5/ tab | C32: Tablet | E32: Mina Pharm | F32: Bon-One 0.25 mcg Tablets | G32: مينا فارم | H32: Capsules or Tablets | I32: الفاكلسيدول 0,25 ميكروجرام | J32: Alfacalcidol 0.25mcg | K32: 201 | L32: A | M32: مناقصة الأستكمال الثانية 2017-2018 | N32: 2017-2018 | O32: 2 | Q32: استكمال | R32: Yes | T32: ساري
A33: 0.7425 | B33: 1.916666667 | C33: Capsule | E33: Arab Company for Gelatin لصالح مالتى كير | F33: BoneCare 0.5 | G33: فارما أوفر سيز | H33: Capsule or Tablet | I33: الفاكلسيدول 0,5 ميكروجرام | J33: AlfaCalcidol 0.5 mcg | K33: 771 | L33: A | M33: المناقصة الثامنة 2015-2016 | N33: 2015-2016 | O33: 8 | Q33: مناقصة | R33: Yes | T33: ساري
A34: 0.936 | B34: 1.95 | C34: Capsule | E34: Arab Company for Gelatin لصالح مالتى كير | F34: BoneCare 1 | G34: فارما أوفر سيز | H34: Capsule or Tablet | I34: الفاكلسيدول 1 ميكروجرام | J34: AlfaCalcidol 1 mcg | K34: 772 | L34: A | M34: المناقصة الثامنة 2015-2016 | N34: 2015-2016 | O34: 8 | Q34: مناقصة | R34: Yes | T34: ساري
A35: 14.29714286 | B35: 21.6 | C35: Ampoule | E35: Alexandria for Rotabiogen | F35: Alfabonid | G35: ابن سينا فارما | H35: Injection | I35: الفاكلسيدول 2 ميكروجرام/مللي | J35: AlfaCalcidol 2 mcg / ml | K35: 773 | L35: A | M35: المناقصة الثامنة 2015-2016 | N35: 2015-2016 | O35: 8 | Q35: مناقصة | R35: Yes | T35: ساري
A36: 49.5 | B36: 130 | C36: Bottle | E36: Alesraa for Rotabiogen | F36: Alfabonid | G36: ابن سينا فارما | H36: Bottle 20 ml | I36: الفاكلسيدول 2ميكروجرام/مللي نقط | J36: AlfaCalcidol 2 mcg / ml Oral Drops | K36: 774 | L36: A | M36: المناقصة الثامنة 2015-2016 | N36: 2015-2016 | O36: 8 | Q36: مناقصة | R36: Yes | T36: ساري
A37: 0.239 | B37: 12.00 علبة 50 قرص | C37: Tablet | E37: Eipico | F37: Nouric | G37: ايبيكو | H37: Capsules or Tablets | I37: أللوبيورينول 100 مجم | J37: Allopurinol 100 mg | K37: 78 | L37: A | M37: المناقصة الأولى 2018-2019 | N37: 2019-2018 | O37: 1 | Q37: مناقصة | T37: ساري
A38: 0.32 | B38: 5.25/10tab. | C38: Tablet | E38: Memphis | F38: Crystazol | G38: الشركة المصرية لتجارة الأدوية | H38: Capsules or Tablets | I38: أللوبيورينول 300 مجم | J38: Allopurinol 300 mg | K38: 79 | L38: A | M38: المناقصة الأولى 2018-2019 | N38: 2019-2018 | O38: 1 | Q38: مناقصة | T38: ساري
A39: 3200 | B39: 4050 | C39: injection | E39: Boehringer Ingelheim | F39: Actilyse 50mg injection | G39: المصرية لتجارة الأدوية | H39: injection | I39: التيبلاز 50مجم | J39: Alteplase 50mg | K39: 4 | L39: A | M39: مناقصة بدائل الاستربتوكينياز 2017-2018 | N39: 2017-2018 | P39: Streptokinase بدائل | Q39: مناقصة | R39: Yes | S39: Thrombolytics | T39: ساري
A40: 0.32 | C40: Tab | E40: sedico | F40: Magaldrate Chewable | G40: سيديكو | H40: Capsules or Tablets | I40: مضاد للحموضة أقراص تحتوي على ألومونيوم هيدروكسيد و ماجنيزيوم هيدروكسيد | J40: Aluminum Hydroxide Gel & Magnesium Salts Or Comb. Antacid | K40: 482 | L40: A | M40: المناقصة الخامسة 2018-2019 | N40: 2018/2019 | O40: 5 | Q40: مناقصة | T40: ساري
A41: 4.4685 | B41: 6 | C41: Bottle 100 ml | E41: Pharco | F41: Miopan susp. | G41: فاركو للأدوية | H41: Bottle 100 ml | I41: مضاد للحموضةشراب تحتوي على ألومونيوم هيدروكسيد و ماجنيزيوم هيدروكسيد | J41: Aluminum Hydroxide Gel & Magnesium salts or comb. antacid syrup | K41: 426 | L41: A | M41: المناقصة الخامسة 2015-2016 | N41: 2015-2016 | O41: 5 | Q41: مناقصة | T41: ساري
A42: 0.27 | B42: 0.35 | C42: Capsule | E42: Rameda | F42: Adamin | G42: ابن سينا فارما | H42: Capsule or Tablet | I42: أمانتادين 100 مجم | J42: Amantadine 100mg | K42: 194 | L42: A | M42: المناقصة الثانية 2015-2016 | N42: 2015-2016 | O42: 2 | Q42: مناقصة | T42: ساري
A43: 4 | B43: 5.00 LE /Bottle 15 ml | C43: Bottle 15 ml | E43: Rameda | F43: Mucosin Oral Drops | G43: فارما أوفر سيز | H43: Bottle (15ml) | I43: امبروكسول نقط فم | J43: Ambroxol oral drops | K43: 280 | L43: A | M43: مناقصة الاستكمال الثالثة 2017-2018 | N43: 2017-2018 | O43: 3 | Q43: استكمال | T43: ساري
A44: 4.9 | B44: 5.00للفيال | C44: Vial 2ml | E44: Eipico | F44: Amikacin | G44: ايبيكو | H44: Injection | I44: أميكاسين 100 مجم | J44: Amikacin 100mg Injection | K44: 51 | L44: A | M44: مناقصةا الاستكمال الاولى 2017-2018 | N44: 2017-2018 | O44: 1 | Q44: استكمال | R44: Yes | T44: ساري
A45: 7.25 | B45: 11 | C45: Vial | E45: HSPحكمة المتخصصة | F45: Emijectacin 500 mg | G45: ابن سينا فارما | H45: Injection | I45: أميكاسين 500 مجم | J45: Amikacin 500 mg | K45: 163 | L45: A | M45: المناقصة الثانية 2018-2019 | N45: 2019-2018 | O45: 2 | Q45: مناقصة | R45: Yes | T45: ساري
A46: 15.99 | B46: 21.75 | C46: Bottle 100ml | E46: ACDIMA | F46: Amikacin Lotion Spray | G46: المتحدة للصيادلة | H46: Bottle | I46: بخاخة مضاد حيوى تحتوي على اميكاسين | J46: Amikacin antibiotic spray | K46: 94 | L46: A | M46: مناقصةا الاستكمال الاولى 2017-2018 | N46: 2017-2018 | O46: 1 | Q46: استكمال | T46: ساري
A47: 0.15 | B47: 9.5/30 tab. | C47: Tablet | E47: Kahira | F47: Moduretic | G47: الشركة المصرية لتجارة الأدوية | H47: Capsules or Tablets | I47: اميلورايد 5 مجم+هيدروكلوروثيازيد 50 مجم | J47: Amiloride 5 mg + Hydrochlorothiazide 50 mg | K47: 312 | L47: A | M47: المناقصة الثالثة 2018-2019 | N47: 2018/2019 | O47: 3 | Q47: مناقصة | T47: ساري
A48: 51 | B48: 72 | C48: Bottle 500 ml WITH rubber cap | E48: مصر اوتسوكا | F48: امينوليبان | G48: مصر اوتسوكا للمستحضرات الطبية | H48: Bottle 500 ml WITH Rubber Cap | I48: احمااض أمنية للحقن الوريدي لمرضى الكبد | J48: Amino acid Combination I.V. Solution for Hepatic Patient | K48: 748 | L48: A | M48: المناقصة الثامنة 2015-2016 | N48: 2015-2016 | O48: 8 | Q48: مناقصة | T48: ساري
A49: 36 | B49: 57 | C49: Bottle 100 ml | E49: Fresenius Kabi | F49: Aminoven Infant 10% | G49: المصرية لتجارة الأدوية | H49: Bottle 100ml WITH Rubber Cap | I49: احماض امينية للحقن الوريدى أطفال | J49: Amino acid Combination I.V. Solution for infants | K49: 747 | L49: A | M49: المناقصة الثامنة 2015-2016 | N49: 2015-2016 | O49: 8 | Q49: مناقصة | T49: ساري
A50: 54 | B50: Tenders | C50: Bottle 500 ml WITH rubber cap | E50: مصر اوتسوكا | F50: كيدمين | G50: مصر اوتسوكا للمستحضرات الطبية | H50: Bottle 500 ml WITH Rubber Cap | I50: احمااض أمنية لمرضى الكلى | J50: Amino acid Combination I.V. Solution for Renal Patient | K50: 749 | L50: A | M50: المناقصة الثامنة 2015-2016 | N50: 2015-2016 | O50: 8 | Q50: مناقصة | T50: ساري
A51: 5.45 | B51: 7.50/120 ml | C51: Bottle 100 ml | E51: Alexandria | F51: Neo- minophylline | G51: المصرية لتجارة الأدوية | H51: Bottle 100 ml | I51: امينوفيللين او الثيوفيللين شراب | J51: Aminophylline or other theophylline syrup | K51: 107 | L51: A | M51: مناقصةا الاستكمال الاولى 2017-2018 | N51: 2017-2018 | O51: 1 | Q51: استكمال | T51: ساري
A52: 0.34 | B52: 0.358 | C52: Tablet | E52: Amriya | F52: Theophylline, S.R | G52: أبوقير للتجارة الدولية | H52: Capsule or Tablet | I52: امينوفيللين اوالثيوفيللين 200مجم | J52: Aminophylline or other theophylline 200mg Capsules or Tablets | K52: 108 | L52: A | M52: مناقصةا الاستكمال الاولى 2017-2018 | N52: 2017-2018 | O52: 1 | Q52: استكمال | T52: ساري
A53: 0.18 | B53: Tender | C53: Tablet | E53: Pharo Pharma | F53: Retaphylline 300 mg tablets | G53: ابن سينا فارما | H53: Capsule or Tablet | I53: امينوفيللين اوالثيوفيللين 300مجم | J53: Aminophylline or other theophylline 300mg Capsules or Tablets | K53: 109 | L53: A | M53: مناقصةا الاستكمال الاولى 2017-2018 | N53: 2017-2018 | O53: 1 | Q53: استكمال | T53: ساري
A54: 0.39 | B54: 12 | C54: Tab | E54: ElNileلصالح موندى | F54: Uniphylline continus 400 mg | G54: ابن سينا فارما | H54: Capsules or Tablets | I54: الثيوفيللين 400مجم طويل المفعول | J54: Theophylline 400 mg SR | K54: 768 | L54: A | M54: المناقصة السابعة 2018-2019 | N54: 2018/2019 | O54: 7 | Q54: مناقصة | T54: ساري
A55: 2.45 | B55: 2.5 | C55: Ampoule | E55: Sedico | F55: Aminophylline | G55: سيديكو | H55: Injection | I55: امينوفيللين او الثيوفيللين | J55: Aminophylline or other theophylline Injection | K55: 106 | L55: A | M55: مناقصةا الاستكمال الاولى 2017-2018 | N55: 2017-2018 | O55: 1 | Q55: استكمال | R55: Yes | T55: ساري
A56: 0.825 | B56: 1.5 | C56: Suppository | E56: Alexandria | F56: Minophylline | G56: المصرية لتجارة الأدوية | H56: Suppository | I56: امينوفيللين اوالثيوفيللين بحد أقصي 500مجم (كبار) | J56: Aminophylline or other theophylline up to 500mg (adult) | K56: 615 | L56: A | M56: المناقصة السابعة 2015-2016 | N56: 2015-2016 | O56: 7 | Q56: مناقصة | T56: ساري
A57: 1.976047904 | B57: 2 | C57: Ampoule | E57: Sedico | F57: Amiron | G57: سيديكو | H57: Injection | I57: أميودارون 150 مجم | J57: Amiodarone 150mg | K57: 238 | L57: A | M57: المناقصة الثالثة 2015-2016 | N57: 2015-2016 | O57: 3 | Q57: مناقصة | R57: Yes | T57: ساري
A58: 0.45 | B58: 0.7 | C58: Tablet | E58: Mepaco | F58: Cardio-mep Tab. | G58: ايمك | H58: Capsule or Tablet | I58: أميودارون 200 مجم | J58: Amiodarone 200mg | K58: 239 | L58: A | M58: المناقصة الثالثة 2015-2016 | N58: 2015-2016 | O58: 3 | Q58: مناقصة | T58: ساري
A59: 0.195 | B59: .4/ tab | C59: Tablet | E59: El Kahira | F59: Tryptizol 25 mg | G59: المصرية لتجارة الأدوية | H59: Capsules or Tablets | I59: اميتربتيلين 25 مجم | J59: Amitriptyline 25mg | K59: 215 | L59: A | M59: مناقصة الأستكمال الثانية 2017-2018 | N59: 2017-2018 | O59: 2 | Q59: استكمال | S59: Psychoactive Drugs | T59: ساري
A60: 0.1 | B60: 0.2125/ tab | C60: Tablet | E60: El Kahira | F60: Tryptizole 10 mg | G60: المصرية لتجارة الأدوية | H60: Capsules or Tablets | I60: اميتربتيلين 10 مجم | J60: Amitriptyline 10mg | K60: 216 | L60: A | M60: مناقصة الأستكمال الثانية 2017-2018 | N60: 2017-2018 | O60: 2 | Q60: استكمال | S60: Psychoactive Drugs | T60: ساري
A61: 0.096 | B61: 8.00/10tab. | C61: Tablet | E61: Adco | F61: Vazopin | G61: الشركة المصرية لتجارة الأدوية | H61: Capsules or Tablets | I61: املوديبين 5 مجم | J61: Amlodipine 5 mg | K61: 302 | L61: A | M61: المناقصة الثالثة 2018-2019 | N61: 2018/2019 | O61: 3 | Q61: مناقصة | T61: ساري
A62: 0.154 | B62: 11.00علبة10 قرص | C62: Tablet | E62: Eipico | F62: Regcor | G62: ايبيكو | H62: Capsules or Tablets | I62: املوديبين 10 مجم | J62: Amlodipine 10 mg | K62: 303 | L62: A | M62: المناقصة الثالثة 2018-2019 | N62: 2018/2019 | O62: 3 | Q62: مناقصة | T62: ساري
A63: 0.725 | B63: 36.00 | C63: Tab | E63: Apex Pharma | F63: ErastapexCo 5 mg/ 20 mg | G63: المتحدة للصيادلة | H63: Film coated tablets | I63: مثبطات مستقبلات الانجيوتنسين + أملوديبين 5 مجم | J63: ARBs + Amlodipine 5 mg | K63: 282 | L63: A | M63: المناقصة الثالثة 2018-2019 | N63: 2018/2019 | O63: 3 | Q63: مناقصة | T63: ساري
A64: 1 | C64: tab | E64: أفروس | F64: Mesartanveros | G64: ابن سينا فارما | H64: Film coated tablets | I64: مثبطات مستقبلات الانجيوتنسين + أملوديبين 10 مجم | J64: ARBs + Amlodipine 10 mg | K64: 283 | L64: A | M64: المناقصة الثالثة 2018-2019 | N64: 2018/2019 | O64: 3 | Q64: مناقصة | T64: ساري
A65: 0.8 | C65: tab | E65: أفروس | F65: Averothiazide | G65: ابن سينا فارما | H65: Film coated tablets | I65: مثبطات مستقبلات الانجيوتنسين + أملوديبين 5 مجم + هيدروكلوروثيازيد 12.5 مجم | J65: ARBs + Amlodipine 5 mg + hydrochlorthiazide 12.5 mg | K65: 284 | L65: A | M65: المناقصة الثالثة 2018-2019 | N65: 2018/2019 | O65: 3 | Q65: مناقصة | T65: ساري
A66: 1.025 | B66: 78.00 | C66: Tab | E66: Apex Pharma | F66: Erastapex Trio 10/40/25 mg | G66: المتحدة للصيادلة | H66: Film coated tablets | I66: مثبطات مستقبلات الانجيوتنسين + أملوديبين 10 مجم + هيدروكلوروثيازيد 25 | J66: ARBs + Amlodipine 10 mg + hydrochlorthiazide 25 mg | K66: 285 | L66: A | M66: المناقصة الثالثة 2018-2019 | N66: 2018/2019 | O66: 3 | Q66: مناقصة | T66: ساري
A67: 9.99 | B67: 11.25 | C67: bottle 80 ml | E67: Sedico | F67: Flucamox | G67: سيديكو | H67: Bottle 80 ml + Water for Reconstitution | I67: أموكسيسيللين 125 مجم + فلوكساسيللين 125 مجم معلق | J67: Amoxicillin 125mg + Fluoxacillin 125mg Suspension | K67: 35 | L67: A | M67: مناقصةا الاستكمال الاولى 2017-2018 | N67: 2017-2018 | O67: 1 | Q67: استكمال | T67: ساري
A68: 11.7 | B68: 21.75 | C68: 156.25 mg/5 ml | E68: Sedico | F68: Magna-biotic | G68: سيديكو | H68: Bottle (80ml) + Water for reconstitution | I68: أموكسيسيللين 125 مجم + حمض كلافيولينيك 31 مجم / 5 مللي | J68: Amoxicillin 125 mg + Clavulanic acid 31 mg / 5 ml Suspension | K68: 101 | L68: A | M68: المناقصة الثانية 2018-2019 | N68: 2019-2018 | O68: 2 | Q68: مناقصة | T68: ساري
A69: 11.7 | B69: Tender | C69: (80ml) + Water | E69: Eipico | F69: Emoxclave | G69: ايبيكو | H69: Bottle (80ml) + Water for reconstitution | I69: أموكسيسيللين 125 مجم + حمض كلافيولينيك 31 مجم / 5 مللي | J69: Amoxicillin 125 mg + Clavulanic acid 31 mg / 5 ml Suspension | K69: 101 | L69: B | M69: المناقصة الثانية 2018-2019 | N69: 2019-2018 | O69: 2 | Q69: مناقصة | T69: ساري
A70: 21 | B70: 32.50 | C70: 312.5 mg/5 ml | E70: Sedico | F70: Magna-biotic | G70: سيديكو | H70: Bottle (80ml) + Water for reconstitution | I70: أموكسيسيللين 250 مجم + حمض كلافيولينيك 62 مجم /5 مللي | J70: Amoxicillin 250 mg + Clavulanic acid 62 mg / 5 ml Suspension | K70: 102 | L70: A | M70: المناقصة الثانية 2018-2019 | N70: 2019-2018 | O70: 2 | Q70: مناقصة | T70: ساري
A71: 21 | B71: Tender | C71: (80ml) + Water | E71: Eipico | F71: Emoxclave | G71: ايبيكو | H71: Bottle (80ml) + Water for reconstitution | I71: أموكسيسيللين 250 مجم + حمض كلافيولينيك 62 مجم /5 مللي | J71: Amoxicillin 250 mg + Clavulanic acid 62 mg / 5 ml Suspension | K71: 102 | L71: B | M71: المناقصة الثانية 2018-2019 | N71: 2019-2018 | O71: 2 | Q71: مناقصة | T71: ساري
A72: 0.633640553 | B72: 0.6875 | C72: Capsule | E72: Sedico | F72: Flucamox | G72: سيديكو | H72: Capsule or Tablet | I72: أموكسيسيللين 125 مجم + فلوكساسيللين 125 مجم | J72: Amoxicillin 125mg + Fluoxacillin 125mg | K72: 97 | L72: A | M72: المناقصة الثانية 2015-2016 | N72: 2015-2016 | O72: 2 | Q72: مناقصة | T72: ساري
A73: 0.633640553 | B73: 1.1875 | C73: Capsule | E73: Eipico | F73: Flumox | G73: ايبيكو | H73: Capsule or Tablet | I73: أموكسيسيللين 125 مجم + فلوكساسيللين 125 مجم | J73: Amoxicillin 125mg + Fluoxacillin 125mg | K73: 97 | L73: B | M73: المناقصة الثانية 2015-2016 | N73: 2015-2016 | O73: 2 | Q73: مناقصة | T73: ساري
A74: 5.95 | B74: عطاءات ومناقصات | C74: BOTTLE 80 ML | E74: M.U.P- TENDER | F74: MOXACIL125 MG DRY SUSPENSION | G74: فارما اوفر سيز | H74: Bottle (80ml) + Water for reconstitution | I74: أموكسيسيللين 125 مجم / 5 مللي معلق | J74: Amoxicillin 125 mg / 5 ml Suspension | K74: 94 | L74: A | M74: المناقصة الثانية 2018-2019 | N74: 2019-2018 | O74: 2 | Q74: مناقصة | T74: ساري
A75: 5.95 | B75: عطاءات | C75: Bottle 80ml | E75: ريفا فارما | F75: Rivamox 125 mg dry suspension | G75: فارما اوفر سيز | H75: Bottle (80ml) + Water for reconstitution | I75: أموكسيسيللين 125 مجم / 5 مللي معلق | J75: Amoxicillin 125 mg / 5 ml Suspension | K75: 94 | L75: B | M75: المناقصة الثانية 2018-2019 | N75: 2019-2018 | O75: 2 | Q75: مناقصة | T75: ساري
A76: 7.49 | B76: 8.25 | C76: Vial | E76: Sedico | F76: Biomox | G76: سيديكو | H76: Vial + Solvent | I76: أموكسيسيللين 1 جم | J76: Amoxicillin 1 g | K76: 93 | L76: A | M76: المناقصة الثانية 2018-2019 | N76: 2019-2018 | O76: 2 | Q76: مناقصة | T76: ساري
A77: 7.49 | B77: 8.25 | C77: Vial + Solvent | E77: Eipico | F77: Emox | G77: ايبيكو | H77: Vial + Solvent | I77: أموكسيسيللين 1 جم | J77: Amoxicillin 1 g | K77: 93 | L77: B | M77: المناقصة الثانية 2018-2019 | N77: 2019-2018 | O77: 2 | Q77: مناقصة | T77: ساري
A78: 24 | B78: 29.00 | C78: Vial | E78: Sedico | F78: Magna-biotic | G78: سيديكو | H78: Vial + Solvent | I78: أموكسيسيللين 1 جم + حمض كلافيولينيك 200 مجم | J78: Amoxicillin 1 g + Clavulanic acid 200 mg | K78: 108 | L78: A | M78: المناقصة الثانية 2018-2019 | N78: 2019-2018 | O78: 2 | Q78: مناقصة | T78: ساري
A79: 5.99 | B79: 6.00 | C79: Vial | E79: Sedico | F79: Flucamox | G79: سيديكو | H79: Vial + Solvent | I79: أموكسيسيللين 250 مجم + فلوكساسيللين 250 مجم | J79: Amoxicillin 250 mg + Fluoxacillin 250 mg | K79: 97 | L79: A | M79: المناقصة الثانية 2018-2019 | N79: 2019-2018 | O79: 2 | Q79: مناقصة | T79: ساري
A80: 5.99 | B80: 9.00للفيال | C80: Vial + Solvent | E80: Eipico | F80: Flumox | G80: ايبيكو | H80: Vial + Solvent | I80: أموكسيسيللين 250 مجم + فلوكساسيللين 250 مجم | J80: Amoxicillin 250 mg + Fluoxacillin 250 mg | K80: 97 | L80: B | M80: المناقصة الثانية 2018-2019 | N80: 2019-2018 | O80: 2 | Q80: مناقصة | T80: ساري
A81: 1.725 | B81: 3.3 | C81: Tablet | E81: Amoun | F81: HiBiotic 375 mg | G81: فارما أوفر سيز | H81: Capsule or Tablet | I81: أموكسيسيللين 250 مجم + حمض كلافيولينيك 125 مجم | J81: Amoxicillin 250mg + Clavulianic acid 125mg | K81: 104 | L81: A | M81: المناقصة الثانية 2015-2016 | N81: 2015-2016 | O81: 2 | Q81: مناقصة | T81: ساري
A82: 0.85 | B82: 10.5 | C82: Capsule | E82: Rameda | F82: Amofluxin500mg cap | G82: ابن سينا فارما | H82: Capsules or Tablets | I82: أموكسيسيللين 250 مجم + فلوكساسيللين 250 مجم | J82: Amoxicillin 250mg + Fluoxacillin 250mg | K82: 291 | L82: A | M82: مناقصة الاستكمال الثالثة 2017-2018 | N82: 2017-2018 | O82: 3 | Q82: استكمال | T82: ساري
A83: 5.21 | B83: 9.00/Bottle (80ml) | C83: Bottle (80ml) + Water for reconstitution | E83: misr | F83: Moxipen 250 mg / 5 ml suspension | G83: الشركة المصرية لتجارة الأدوية | H83: Bottle (80ml) + Water for reconstitution | I83: أموكسيسيللين 250 مجم / 5 مللي معلق | J83: Amoxicillin 250 mg / 5 ml Suspension | K83: 95 | L83: A | M83: المناقصة الثانية 2018-2019 | N83: 2019-2018 | O83: 2 | Q83: مناقصة | T83: ساري
A84: 26.85 | B84: 28 | C84: 460 mg/5 ml | E84: Sedico | F84: Magna-biotic | G84: سيديكو | H84: Bottle (80ml) + Water for reconstitution | I84: أموكسيسيللين 400 مجم + حمض كلافيولينيك 57 مجم / 5 مللي معلق | J84: Amoxicillin 400 mg + Clavulanic acid 57 mg /5ml Suspension | K84: 103 | L84: A | M84: المناقصة الثانية 2018-2019 | N84: 2019-2018 | O84: 2 | Q84: مناقصة | T84: ساري
A85: 26.85 | B85: 15.9 | C85: Bottle (80ml) + Water for reconstitution | E85: Alfacure | F85: Gardinova | G85: ابن سينا فارما | H85: Bottle (80ml) + Water for reconstitution | I85: أموكسيسيللين 400 مجم + حمض كلافيولينيك 57 مجم / 5 مللي معلق | J85: Amoxicillin 400 mg + Clavulanic acid 57 mg /5ml Suspension | K85: 103 | L85: B | M85: المناقصة الثانية 2018-2019 | N85: 2019-2018 | O85: 2 | Q85: مناقصة | T85: ساري
A86: 26.85 | B86: 36/70ml | C86: (80ml) + Water | E86: Eipico | F86: Emoxclave | G86: ايبيكو | H86: Bottle (80ml) + Water for reconstitution | I86: أموكسيسيللين 400 مجم + حمض كلافيولينيك 57 مجم / 5 مللي معلق | J86: Amoxicillin 400 mg + Clavulanic acid 57 mg /5ml Suspension | K86: 103 | L86: C | M86: المناقصة الثانية 2018-2019 | N86: 2019-2018 | O86: 2 | Q86: مناقصة | T86: ساري
A87: 26.85 | B87: 25.25 | C87: bottle 80 ml+solvent | E87: Pharco | F87: Clavimox 457 mg Suspension | G87: فاركو للأدوية | H87: Bottle (80ml) + Water for reconstitution | I87: أموكسيسيللين 400 مجم + حمض كلافيولينيك 57 مجم / 5 مللي معلق | J87: Amoxicillin 400 mg + Clavulanic acid 57 mg /5ml Suspension | K87: 103 | L87: D | M87: المناقصة الثانية 2018-2019 | N87: 2019-2018 | O87: 2 | Q87: مناقصة | T87: ساري
A88: 26.85 | B88: 29 / 80ml | C88: bottle 80 ml + water for reconstitution | E88: شركة مصر للمستحضرات الطبية لصالح شركة الدبيكي للادوية | F88: amoxilanic | G88: فارما اوفر سيز | H88: Bottle (80ml) + Water for reconstitution | I88: أموكسيسيللين 400 مجم + حمض كلافيولينيك 57 مجم / 5 مللي معلق | J88: Amoxicillin 400 mg + Clavulanic acid 57 mg /5ml Suspension | K88: 103 | L88: E | M88: المناقصة الثانية 2018-2019 | N88: 2019-2018 | O88: 2 | Q88: مناقصة | T88: ساري
A89: 27 | B89: 49.5 | C89: Bottle (80 ml) + water for reconstitution | E89: أفروس | F89: Averobios | G89: ابن سينا فارما | H89: Bottle (80ml) + Water for reconstitution | I89: أموكسيسيللين 600 مجم + حمض كلافيولينيك 42.9 مجم / 5 مللي معلق | J89: Amoxicillin 600 mg + Clavulanic acid 42.9 mg /5ml Suspension | K89: 104 | L89: A | M89: المناقصة الثانية 2018-2019 | N89: 2019-2018 | O89: 2 | Q89: مناقصة | T89: ساري
A90: 0.38 | B90: 11.00 | C90: Cap | E90: Sedico | F90: Biomox | G90: سيديكو | H90: Capsules or Tablets | I90: أموكسيسيللين 500 مجم | J90: Amoxicillin 500 mg | K90: 91 | L90: A | M90: المناقصة الثانية 2018-2019 | N90: 2019-2018 | O90: 2 | Q90: مناقصة | T90: ساري
A91: 5.9 | B91: 6.5 | C91: Vial | E91: Sedico | F91: Biomox | G91: سيديكو | H91: Vial + Solvent | I91: أموكسيسيللين 500 مجم | J91: Amoxicillin 500 mg | K91: 92 | L91: A | M91: المناقصة الثانية 2018-2019 | N91: 2019-2018 | O91: 2 | Q91: مناقصة | T91: ساري
A92: 5.9 | B92: 6 | C92: Vial + Solvent | E92: Eipico | F92: Emox | G92: ايبيكو | H92: Vial + Solvent | I92: أموكسيسيللين 500 مجم | J92: Amoxicillin 500 mg | K92: 92 | L92: B | M92: المناقصة الثانية 2018-2019 | N92: 2019-2018 | O92: 2 | Q92: مناقصة | T92: ساري
A93: 15.8 | B93: 16.5 | C93: vial | E93: Sedico | F93: Magna-biotic | G93: سيديكو | H93: Vial + Solvent | I93: أموكسيسيللين 500 مجم + حمض كلافيولينيك 100 مجم | J93: Amoxicillin 500mg + Clavulianic acid 100mg Vial | K93: 36 | L93: A | M93: مناقصةا الاستكمال الاولى 2017-2018 | N93: 2017-2018 | O93: 1 | Q93: استكمال | T93: ساري
A94: 2.4 | B94: 37.00 | C94: Tab | E94: Sedico | F94: Magna-biotic | G94: سيديكو | H94: Capsules or Tablets | I94: أموكسيسيللين 500 مجم + حمض كلافيولينيك 125 مجم | J94: Amoxicillin 500 mg + Clavulanic acid 125 mg | K94: 106 | L94: A | M94: المناقصة الثانية 2018-2019 | N94: 2019-2018 | O94: 2 | Q94: مناقصة | T94: ساري
A95: 2.4 | B95: 60.00 | C95: tab | E95: hikma import | F95: Megamox 625 mg | G95: المتحدة للصيادلة | H95: Capsules or Tablets | I95: أموكسيسيللين 500 مجم + حمض كلافيولينيك 125 مجم | J95: Amoxicillin 500 mg + Clavulanic acid 125 mg | K95: 106 | L95: B | M95: المناقصة الثانية 2018-2019 | N95: 2019-2018 | O95: 2 | Q95: مناقصة | T95: ساري
A96: 2.4 | B96: 29.00 | C96: tab. | E96: Pharco | F96: Clavimox 625 mg Tab | G96: فاركو للأدوية | H96: Capsules or Tablets | I96: أموكسيسيللين 500 مجم + حمض كلافيولينيك 125 مجم | J96: Amoxicillin 500 mg + Clavulanic acid 125 mg | K96: 106 | L96: C | M96: المناقصة الثانية 2018-2019 | N96: 2019-2018 | O96: 2 | Q96: مناقصة | T96: ساري
A97: 7.99 | B97: 8.00 | C97: Vial | E97: Sedico | F97: Flucamox | G97: سيديكو | H97: Vial + Solvent | I97: أموكسيسيللين 500 مجم + فلوكساسيللين 500 مجم | J97: Amoxicillin 500 mg + Fluoxacillin 500 mg Vial + Solvent | K97: 99 | L97: A | M97: المناقصة الثانية 2018-2019 | N97: 2019-2018 | O97: 2 | Q97: مناقصة | T97: ساري
A98: 7.99 | B98: 12.75للفيال | C98: Vial + Solvent | E98: Eipico | F98: Flumox | G98: ايبيكو | H98: Vial + Solvent | I98: أموكسيسيللين 500 مجم + فلوكساسيللين 500 مجم | J98: Amoxicillin 500 mg + Fluoxacillin 500 mg Vial + Solvent | K98: 99 | L98: B | M98: المناقصة الثانية 2018-2019 | N98: 2019-2018 | O98: 2 | Q98: مناقصة | T98: ساري
A99: 0.924 | B99: 26.40 | C99: Tab | E99: ماش بريمير | F99: Pencillimox 1 gm tab | G99: فارما اوفر سيز | H99: Capsules or Tablets | I99: أموكسيسيللين 500 مجم + فلوكلوكساسيللين 500 مجم | J99: Amoxicillin 500 mg + Flucloxacillin 500 mg Capsules or Tablets | K99: 98 | L99: A | M99: المناقصة الثانية 2018-2019 | N99: 2019-2018 | O99: 2 | Q99: مناقصة | T99: ساري
A100: 2.33 | B100: 48.75 | C100: Tablet | E100: Gulf pharmaceutical indutries JULPHAR | F100: julmentin 2X | G100: فارما اوفر سيز | H100: Capsules or Tablets | I100: أموكسيسيللين 875 مجم + حمض كلافيولينيك 125 مجم | J100: Amoxicillin 875 mg + Clavulanic acid 125 mg | K100: 107 | L100: A | M100: المناقصة الثانية 2018-2019 | N100: 2019-2018 | O100: 2 | Q100: مناقصة | T100: ساري
A101: 14.75 | B101: 21.75 | C101: 80 ml | E101: Sedico | F101: Magna-biotic | G101: سيديكو | H101: Bottle(80 ml) + Water for reconstitution | I101: أموكسيسيللين ترايهيدرات 200 مجم + حمض كلافيولينيك 28 مجم | J101: Amoxicillin trihydrate200 mg + Clavulianic acid 28mg | K101: 292 | L101: A | M101: مناقصة الاستكمال الثالثة 2017-2018 | N101: 2017-2018 | O101: 3 | Q101: استكمال | T101: ساري
A102: 14.74 | B102: 24.50زجاجة75 مللي | C102: Bottle 80 ml | E102: Eipico | F102: Emoxclav | G102: ايبيكو | H102: Bottle(80 ml) + Water for reconstitution | I102: أموكسيسيللين ترايهيدرات 200 مجم + حمض كلافيولينيك 28 مجم | J102: Amoxicillin trihydrate200 mg + Clavulianic acid 28mg | K102: 292 | L102: B | M102: مناقصة الاستكمال الثالثة 2017-2018 | N102: 2017-2018 | O102: 3 | Q102: استكمال | T102: ساري
A103: 14.74 | B103: 28.80 LE / Bottle 80ml | C103: Bottle 80ml | E103: Delta Pharma | F103: Deltaclav 228.5 | G103: فارما أوفر سيز | H103: Bottle(80 ml) + Water for reconstitution | I103: أموكسيسيللين ترايهيدرات 200 مجم + حمض كلافيولينيك 28 مجم | J103: Amoxicillin trihydrate200 mg + Clavulianic acid 28mg | K103: 292 | L103: C | M103: مناقصة الاستكمال الثالثة 2017-2018 | N103: 2017-2018 | O103: 3 | Q103: استكمال | T103: ساري
A104: 14.74 | B104: 21.00 LE / Bottle 80ml | C104: bottle 80 ml | E104: مصر للمستحضرات لصالح شركة الدبيكى | F104: amoxilanic | G104: فارما أوفر سيز | H104: Bottle(80 ml) + Water for reconstitution | I104: أموكسيسيللين ترايهيدرات 200 مجم + حمض كلافيولينيك 28 مجم | J104: Amoxicillin trihydrate200 mg + Clavulianic acid 28mg | K104: 292 | L104: D | M104: مناقصة الاستكمال الثالثة 2017-2018 | N104: 2017-2018 | O104: 3 | Q104: استكمال | T104: ساري
A105: 54 | B105: 55.00 | C105: amp | E105: Cipla | F105: Photercin | G105: المتحدة للصيادلة | H105: Injection | I105: امفوتريسين ب 50 مجم | J105: Amphotericin B 50 mg | K105: 232 | L105: A | M105: المناقصة الثانية 2018-2019 | N105: 2019-2018 | O105: 2 | Q105: مناقصة | R105: Yes | T105: ساري
A106: 4.45 | B106: 5.50/ Vial | C106: Vial + Solvent | E106: misr | F106: Ampicillin 1 gm | G106: الشركة المصرية لتجارة الأدوية | H106: Vial + Solvent | I106: أمبيسيللين 1 جم | J106: Ampicillin 1 g | K106: 88 | L106: A | M106: المناقصة الثانية 2018-2019 | N106: 2019-2018 | O106: 2 | Q106: مناقصة | T106: ساري
A107: 7.11 | B107: tender | C107: Bottle (80ml) + Water for reconstitution | E107: misr | F107: Ampicillin 250 mg / 5 ml suspension | G107: الشركة المصرية لتجارة الأدوية | H107: Bottle (80ml) + Water for reconstitution | I107: أمبيسيللين 250 مجم / 5 مللي معلق | J107: Ampicillin 250 mg / 5 ml Suspension | K107: 90 | L107: A | M107: المناقصة الثانية 2018-2019 | N107: 2019-2018 | O107: 2 | Q107: مناقصة | T107: ساري
A108: 4.8 | B108: Tenders | C108: Bottle 80 ml + Water for Reconstitution | E108: El Nasr | F108: Ampicillin | G108: المصرية لتجارة الأدوية | H108: Bottle 80 ml + Water for Reconstitution | I108: امبيسيللين 125 مجم/5مللي معلق | J108: Ampicillin 125mg/5ml Suspension | K108: 89 | L108: A | M108: المناقصة الثانية 2015-2016 | N108: 2015-2016 | O108: 2 | Q108: مناقصة | T108: ساري
A109: 13.15 | B109: 13.20 | C109: Vial | E109: Sedico | F109: Ultracillin | G109: سيديكو | H109: Vial + Solvent | I109: أمبيسيللين 1 جم + سالبكتام 500 مجم | J109: Ampicillin 1 gm + Sulbactam 500 mg | K109: 113 | L109: A | M109: المناقصة الثانية 2018-2019 | N109: 2019-2018 | O109: 2 | Q109: مناقصة | T109: ساري
A110: 13.15 | B110: 17.25/ | C110: one vial +one amp.5ml distilled water | E110: Nile | F110: Ampictam | G110: الشركة المصرية لتجارة الأدوية | H110: Vial + Solvent | I110: أمبيسيللين 1 جم + سالبكتام 500 مجم | J110: Ampicillin 1 gm + Sulbactam 500 mg | K110: 113 | L110: B | M110: المناقصة الثانية 2018-2019 | N110: 2019-2018 | O110: 2 | Q110: مناقصة | T110: ساري
A111: 13.15 | B111: 17.25للفيال | C111: Vial + Solvent | E111: Eipico | F111: NOVACTA | G111: ايبيكو | H111: Vial + Solvent | I111: أمبيسيللين 1 جم + سالبكتام 500 مجم | J111: Ampicillin 1 gm + Sulbactam 500 mg | K111: 113 | L111: C | M111: المناقصة الثانية 2018-2019 | N111: 2019-2018 | O111: 2 | Q111: مناقصة | T111: ساري
A112: 13.15 | B112: 20.75 | C112: vial+solvent | E112: Pharco | F112: Sulbin 1,5gm | G112: فاركو للأدوية | H112: Vial + Solvent | I112: أمبيسيللين 1 جم + سالبكتام 500 مجم | J112: Ampicillin 1 gm + Sulbactam 500 mg | K112: 113 | L112: D | M112: المناقصة الثانية 2018-2019 | N112: 2019-2018 | O112: 2 | Q112: مناقصة | T112: ساري
A113: 13.15 | B113: 20.00 | C113: ONE VIAL | E113: M U P | F113: UNICTAM 1.5 GM VIAL | G113: فارما اوفر سيز | H113: Vial + Solvent | I113: أمبيسيللين 1 جم + سالبكتام 500 مجم | J113: Ampicillin 1 gm + Sulbactam 500 mg | K113: 113 | L113: E | M113: المناقصة الثانية 2018-2019 | N113: 2019-2018 | O113: 2 | Q113: مناقصة | T113: ساري
A114: 1.99 | B114: 45/12tab | C114: Tablet | E114: MUP | F114: UNICTAM 375 MG TAB | G114: ابن سينا فارما | H114: Capsules or Tablets | I114: أمبيسيللين 250 مجم + سلباكتام 125 مجم | J114: Ampicillin 250mg+Sulbactam 125mg | K114: 294 | L114: A | M114: مناقصة الاستكمال الثالثة 2017-2018 | N114: 2017-2018 | O114: 3 | Q114: استكمال | T114: ساري
A115: 0.622 | B115: 9.25/12CAP | C115: 10 Capsules | E115: misr | F115: Ampicillin 500 mg | G115: الشركة المصرية لتجارة الأدوية | H115: Capsules or Tablets | I115: أمبيسيللين 500 مجم | J115: Ampicillin 500 mg | K115: 86 | L115: A | M115: المناقصة الثانية 2018-2019 | N115: 2019-2018 | O115: 2 | Q115: مناقصة | T115: ساري
A116: 3.5 | B116: 5.00/ Vial | C116: Vial + Solvent | E116: misr | F116: Ampicillin 500 mg | G116: الشركة المصرية لتجارة الأدوية | H116: Vial + Solvent | I116: أمبيسيللين 500 مجم | J116: Ampicillin 500 mg | K116: 87 | L116: A | M116: المناقصة الثانية 2018-2019 | N116: 2019-2018 | O116: 2 | Q116: مناقصة | T116: ساري
A117: 7.99 | B117: 8.00 | C117: Vial | E117: Sedico | F117: Ultracillin | G117: سيديكو | H117: Vial + Solvent | I117: أمبيسيللين 500 مجم + سالبكتام 250 مجم | J117: Ampicillin 500 mg + Sulbactam 250 mg | K117: 112 | L117: A | M117: المناقصة الثانية 2018-2019 | N117: 2019-2018 | O117: 2 | Q117: مناقصة | T117: ساري
A118: 7.99 | B118: 14.75 | C118: Vial + Solvent | E118: Alfacure | F118: Sabect | G118: ابن سينا فارما | H118: Vial + Solvent | I118: أمبيسيللين 500 مجم + سالبكتام 250 مجم | J118: Ampicillin 500 mg + Sulbactam 250 mg | K118: 112 | L118: B | M118: المناقصة الثانية 2018-2019 | N118: 2019-2018 | O118: 2 | Q118: مناقصة | T118: ساري
A119: 7.99 | B119: 12.00/ | C119: one vial +one amp.2ml distilled water | E119: Nile | F119: Ampictam | G119: الشركة المصرية لتجارة الأدوية | H119: Vial + Solvent | I119: أمبيسيللين 500 مجم + سالبكتام 250 مجم | J119: Ampicillin 500 mg + Sulbactam 250 mg | K119: 112 | L119: C | M119: المناقصة الثانية 2018-2019 | N119: 2019-2018 | O119: 2 | Q119: مناقصة | T119: ساري
A120: 7.99 | B120: 12.00للفيال | C120: Vial + Solvent | E120: Eipico | F120: NOVACTA | G120: ايبيكو | H120: Vial + Solvent | I120: أمبيسيللين 500 مجم + سالبكتام 250 مجم | J120: Ampicillin 500 mg + Sulbactam 250 mg | K120: 112 | L120: D | M120: المناقصة الثانية 2018-2019 | N120: 2019-2018 | O120: 2 | Q120: مناقصة | T120: ساري
A121: 7.99 | B121: 12.00 | C121: ONE VIAL | E121: M U P | F121: UNICTAM 750 MG VIAL | G121: فارما اوفر سيز | H121: Vial + Solvent | I121: أمبيسيللين 500 مجم + سالبكتام 250 مجم | J121: Ampicillin 500 mg + Sulbactam 250 mg | K121: 112 | L121: E | M121: المناقصة الثانية 2018-2019 | N121: 2019-2018 | O121: 2 | Q121: مناقصة | T121: ساري
A122: 24 | B122: 38/60ml | C122: Bottle 60 ml | E122: MUP | F122: UNICTAM 250 MG SUSPENSION | G122: ابن سينا فارما | H122: Bottle (60ml) + Water for reconstitution | I122: أمبيسيللين 250 مجم + سلباكتام 125 مجم | J122: Ampicillin125mg + Sulbactam 125mg | K122: 293 | L122: A | M122: مناقصة الاستكمال الثالثة 2017-2018 | N122: 2017-2018 | O122: 3 | Q122: استكمال | T122: ساري
A123: 5.99 | B123: 6.00 | C123: Vial | E123: Sedico | F123: Ultracillin | G123: سيديكو | H123: Vial + Solvent | I123: أمبيسيللين 250 مجم + سالبكتام 125 مجم | J123: Ampicillin 250 mg + Sulbactam 125 mg | K123: 111 | L123: A | M123: المناقصة الثانية 2018-2019 | N123: 2019-2018 | O123: 2 | Q123: مناقصة | T123: ساري
A124: 5.99 | B124: 8.75 | C124: ONE VIAL | E124: M U P | F124: UNICTAM 375 MG VIAL | G124: فارما اوفر سيز | H124: Vial + Solvent | I124: أمبيسيللين 250 مجم + سالبكتام 125 مجم | J124: Ampicillin 250 mg + Sulbactam 125 mg | K124: 111 | L124: B | M124: المناقصة الثانية 2018-2019 | N124: 2019-2018 | O124: 2 | Q124: مناقصة | T124: ساري
A125: 5 | B125: =400/28 -> 14.28571429 | C125: Tablet | E125: Astrazeneca | F125: Arimidex 1 mg | G125: المتحدة للصيادلة | H125: Capsules or Tablets | I125: اناسترازول 1 مجم | J125: Anastrozole 1 mg | K125: 3 | L125: A | M125: شراء موحد أدوية الأورام List 51 | N125: 2018 | O125: 51 | P125: Oncology | Q125: مناقصة | R125: Yes | S125: Oncology | T125: ساري
A126: 5 | B126: 14.28571429 | C126: Tablet | E126: Astrazeneca | F126: Arimidex 1 mg | G126: رامكو فارم لتجارة الادوية | H126: Capsules or Tablets | I126: اناسترازول 1 مجم | J126: Anastrozole 1 mg | K126: 3 | L126: B | M126: شراء موحد أدوية الأورام List 51 | N126: 2018 | O126: 51 | P126: Oncology | Q126: مناقصة | R126: Yes | S126: Oncology | T126: ساري
A127: 0.207 | B127: 9 | C127: cap. | E127: pharco | F127: Urinex cap. | G127: ابن سينا فارما | H127: Capsules or Tablets | I127: انيثول + برونول + ببين + كامبفين + فنكون + سينول | J127: Anethole +Broneol +Pinene + Camphene + Fenchone + Cineole | K127: 532 | L127: A | M127: المناقصة الخامسة 2018-2019 | N127: 2018/2019 | O127: 5 | Q127: مناقصة | T127: ساري
A128: 0.126 | B128: 0.285 | C128: Tablet | E128: El Kahira | F128: Flatidyl | G128: المصرية لتجارة الأدوية | H128: Chewable Tablet | I128: مضاد للحموضة يحتوي على سايميثيكون | J128: Antacids Containing Simethicone | K128: 117 | L128: A | M128: مناقصة الاستكمال الثانية 2013-2014 | N128: 2013-2014 | O128: 2 | Q128: استكمال | T128: ساري
A129: 4.97 | B129: 12 | C129: Bottle 10 ml | E129: Orchidia Pharmaceutical Industries | F129: Trillerg | G129: ابن سينا فارما | H129: Bottle (10ml) | I129: أنتازولين هيدروكلوريد + تيتريزولين هيدروكلوريد قطرة عين | J129: Antazoline hydrochloride+ tetryzoline hydrochloride Eye drops | K129: 270 | L129: A | M129: مناقصة الاستكمال الثالثة 2017-2018 | N129: 2017-2018 | O129: 3 | Q129: استكمال | T129: ساري
A130: 20 | B130: 27.600 / Can 150 ml | C130: Can 150 ml | E130: MUP | F130: Dermotracin Spray | G130: ابن سينا فارما | H130: Bottle | I130: بخاخة مضاد حيوى تحتوي على نيوميسن | J130: Antibiotic spray containing neomycin | K130: 93 | L130: A | M130: مناقصةا الاستكمال الاولى 2017-2018 | N130: 2017-2018 | O130: 1 | Q130: استكمال | T130: ساري
A131: 6 | B131: 6.25 | C131: Tube 20 gm | E131: El Nile | F131: Hemocure topical gel | G131: المصرية لتجارة الأدوية | H131: Tube (20gm) | I131: جل مضاد للتجلط | J131: Anticoagulant gel | K131: 27 | L131: A | M131: مناقصةا الاستكمال الاولى 2017-2018 | N131: 2017-2018 | O131: 1 | Q131: استكمال | T131: ساري
A132: 6.9 | B132: 12.75 | C132: Bottle 10 ml | E132: اكتوبر فارما | F132: Collomak paint | G132: فارما اوفر سيز | H132: Bottle (10ml) | I132: دهان لعلاج الكالو | J132: Anti-corn Paint | K132: 432 | L132: A | M132: المناقصة الرابعة 2018-2019 | N132: 2018/2019 | O132: 4 | Q132: مناقصة | T132: ساري
A133: 4.4 | B133: 4.550/120 ML | C133: Bottle 120 ml | E133: MUP | F133: SIMETHICONE ADULT SUSPENSION | G133: ابن سينا فارما | H133: Bottle (100ml) | I133: شراب مضاد للإنتفاخ يحتوي على سايميثيكون | J133: Anti-flatulance syrup containing Simethicone | K133: 137 | L133: A | M133: مناقصة الأستكمال الثانية 2017-2018 | N133: 2017-2018 | O133: 2 | Q133: استكمال | T133: ساري
A134: 0.245 | B134: .25 / lozenge | C134: Lozenge | E134: Medizen | F134: Bradozen Lozenges | G134: فارما أوفر سيز | H134: lozenge Tablet | I134: أقراص استحلاب مطهرة | J134: antiseptic lozenges | K134: 119 | L134: A | M134: مناقصة الأستكمال الثانية 2017-2018 | N134: 2017-2018 | O134: 2 | Q134: استكمال | T134: ساري
A135: 52.5 | B135: Tenders | C135: 5 L | E135: El Nasr | F135: Cidexin | G135: المصرية لتجارة الأدوية | H135: Container 5 liter | I135: محلول لتعقيم المناظير و الأدوات الجراحية تحتوي علي الدهايد | J135: Antiseptic solution for endoscopy and surgical instruments contains aldhyde | K135: 109 | L135: A | M135: مناقصة الاستكمال الأولي 2013-2014 | N135: 2013-2014 | O135: 1 | Q135: استكمال | T135: ساري
A136: 7.5 | B136: 11 | C136: plastic bottle 250 ml | E136: الدبيكى للصناعات الدوائية | F136: Microfree | G136: المصرية لتجارة الأدوية | H136: Sachet or Bottle | I136: غسول مهبلى مطهر | J136: Antiseptic vaginal douche | K136: 676 | L136: A | M136: المناقصة السابعة 2015-2016 | N136: 2015-2016 | O136: 7 | Q136: مناقصة | T136: ساري
A137: 7 | B137: 276.00 | C137: Tablet | E137: Pfizer | F137: Eliquis 5 mg | G137: فايزر مصر للادويه | H137: Capsules or Tablets | I137: أبيكسابان 5 مجم | J137: Apixaban 5 mg | K137: 360 | L137: A | M137: المناقصة الثالثة 2018-2019 | N137: 2018/2019 | O137: 3 | Q137: مناقصة | T137: ساري
A138: 3.5 | B138: 248.25 | C138: Tab | E138: Multi Apex | F138: Iksaront 2.5 mg | G138: المتحدة للصيادلة | H138: Capsules or Tablets | I138: أبيكسابان 2.5 مجم | J138: Apixaban 2.5 mg | K138: 361 | L138: A | M138: المناقصة الثالثة 2018-2019 | N138: 2018/2019 | O138: 3 | Q138: مناقصة | T138: ساري
A139: 0.349 | B139: 3 | C139: Tablet | E139: Adwia | F139: Adwiprazole 10mg tab | G139: فارما أوفر سيز | H139: Capsule or Tablet | I139: أريبيبرازول 10 مجم | J139: Aripiprazole 10 mg | K139: 3 | L139: A | M139: المناقصة النفسية 2015-2016 | N139: 2015-2016 | O139: 6 | P139: نفسية | Q139: مناقصة | T139: ساري
A140: 0.399 | B140: 4 | C140: Tablet | E140: Adwia | F140: adwiprazole 30mg tab | G140: فارما أوفر سيز | H140: Capsule or Tablet | I140: أريبيبرازول 30 مجم | J140: Aripiprazole 30 mg | K140: 4 | L140: A | M140: المناقصة النفسية 2015-2016 | N140: 2015-2016 | O140: 6 | P140: نفسية | Q140: مناقصة | T140: ساري
A141: 2.589230769 | B141: 8.5 | C141: Bottle 15 ml | E141: Orchidia Pharmaceutical Industries | F141: Orchatears Plus | G141: المتحدة للصيادلة | H141: Bottle 15 ml | I141: دموع صناعية نقط عين | J141: Artificial Tears Eye Drops | K141: 721 | L141: A | M141: المناقصة الثامنة 2015-2016 | N141: 2015-2016 | O141: 8 | Q141: مناقصة | T141: ساري
A142: 0.207 | B142: 0.6375 | C142: Tablet | E142: El Kahira | F142: Ruta - C | G142: المصرية لتجارة الأدوية | H142: Capsule or Tablet | I142: فيتامين سي 160 مجم + روتن 60 مجم | J142: Ascorbic Acid 160 mg + Rutin 60 mg | K142: 5 | L142: A | M142: المناقصة النفسية 2015-2016 | N142: 2015-2016 | O142: 6 | P142: نفسية | Q142: مناقصة | T142: ساري
A143: 0.134 | B143: 1.75 | C143: Tab | E143: Sedico | F143: Atenolol 50 mg | G143: سيديكو | H143: Capsules or Tablets | I143: أتينولول 50 مجم | J143: Atenolol 50 mg | K143: 289 | L143: A | M143: المناقصة الثالثة 2018-2019 | N143: 2018/2019 | O143: 3 | Q143: مناقصة | T143: ساري
A144: 0.134 | B144: Tender | C144: Tablet | E144: Cid | F144: Atenoblok | G144: الشركة المصرية لتجارة الأدوية | H144: Capsules or Tablets | I144: أتينولول 50 مجم | J144: Atenolol 50 mg | K144: 289 | L144: B | M144: المناقصة الثالثة 2018-2019 | N144: 2018/2019 | O144: 3 | Q144: مناقصة | T144: ساري
A145: 0.134 | B145: 5.25علبة20 قرص | C145: Tablet | E145: Eipico | F145: Ateno | G145: ايبيكو | H145: Capsules or Tablets | I145: أتينولول 50 مجم | J145: Atenolol 50 mg | K145: 289 | L145: C | M145: المناقصة الثالثة 2018-2019 | N145: 2018/2019 | O145: 3 | Q145: مناقصة | T145: ساري
A146: 0.174 | B146: 2.80 | C146: Tab | E146: Sedico | F146: Atenolol 100 mg | G146: سيديكو | H146: Capsules or Tablets | I146: أتينولول 100 مجم | J146: Atenolol 100 mg | K146: 290 | L146: A | M146: المناقصة الثالثة 2018-2019 | N146: 2018/2019 | O146: 3 | Q146: مناقصة | T146: ساري
A147: 0.174 | B147: 6.25علبة20 قرص | C147: Tablet | E147: Eipico | F147: Ateno | G147: ايبيكو | H147: Capsules or Tablets | I147: أتينولول 100 مجم | J147: Atenolol 100 mg | K147: 290 | L147: B | M147: المناقصة الثالثة 2018-2019 | N147: 2018/2019 | O147: 3 | Q147: مناقصة | T147: ساري
A148: 2.4 | B148: 3 | C148: Capsule | E148: Multi Apex Pharma | F148: Atomoxapex 10 mg | G148: ابن سينا فارما | H148: Capsule or Tablet | I148: اتوموكستين 10 مجم | J148: Atomoxtine 10 mg | K148: 6 | L148: A | M148: المناقصة النفسية 2015-2016 | N148: 2015-2016 | O148: 6 | P148: نفسية | Q148: مناقصة | T148: ساري
A149: 5.366 | B149: 8 | C149: Tablet | E149: Mash Premiere | F149: ATTENSERA | G149: ابن سينا فارما | H149: Capsule or Tablet | I149: اتوموكستين 40 مجم | J149: Atomoxtine 40 mg | K149: 7 | L149: A | M149: المناقصة النفسية 2015-2016 | N149: 2015-2016 | O149: 6 | P149: نفسية | Q149: مناقصة | T149: ساري
A150: 0.189 | B150: 21.6 | C150: tab | E150: pharo pharma | F150: lipicole 10 | G150: ابن سينا فارما | H150: Capsules or Tablets | I150: اتورفاستاتين 10مجم | J150: Atorvastatin 10 mg | K150: 331 | L150: A | M150: المناقصة الثالثة 2018-2019 | N150: 2018/2019 | O150: 3 | Q150: مناقصة | T150: ساري
A151: 0.224 | B151: 24 | C151: tab | E151: pharo pharma | F151: lipicole 20 | G151: ابن سينا فارما | H151: Capsules or Tablets | I151: اتورفاستاتين 20مجم | J151: Atorvastatin 20 mg | K151: 332 | L151: A | M151: المناقصة الثالثة 2018-2019 | N151: 2018/2019 | O151: 3 | Q151: مناقصة | T151: ساري
A152: 0.394 | B152: 25.2 | C152: tab | E152: pharo pharma | F152: Lipicole 40 | G152: ابن سينا فارما | H152: Capsules or Tablets | I152: اتورفاستاتين 40مجم | J152: Atorvastatin 40 mg | K152: 333 | L152: A | M152: المناقصة الثالثة 2018-2019 | N152: 2018/2019 | O152: 3 | Q152: مناقصة | T152: ساري
A153: 2.01 | B153: 40 | C153: tab. | E153: DELTA PHARMA | F153: Atorstat 80mg | G153: ابن سينا فارما | H153: Capsules or Tablets | I153: اتورفاستاتين 80مجم | J153: Atorvastatin 80 mg | K153: 334 | L153: A | M153: المناقصة الثالثة 2018-2019 | N153: 2018/2019 | O153: 3 | Q153: مناقصة | T153: ساري
A154: 9.9 | B154: 127.50 | C154: Amp | E154: شركة اسكندرية للأدوية لصالح ايجي فارما | F154: Atracurium Besylate50mg | G154: فارما اوفر سيز | H154: Injection | I154: اتراكيوريوم 50 مجم | J154: Atracurium 50 mg | K154: 27 | L154: A | M154: المناقصة الأولى 2018-2019 | N154: 2019-2018 | O154: 1 | Q154: مناقصة | R154: Yes | T154: ساري
A155: 7.29 | B155: 86.00 | C155: Amp | E155: شركة اسكندرية للأدوية لصالح ايجي فارما | F155: Atrabesylate 10mg/ml I.V | G155: فارما اوفر سيز | H155: Injection | I155: اتراكيوريوم 25 مجم | J155: Atracurium 25 mg | K155: 28 | L155: A | M155: المناقصة الأولى 2018-2019 | N155: 2019-2018 | O155: 1 | Q155: مناقصة | T155: ساري
A156: 1.995 | B156: 2.06 | C156: Amp | E156: Nile | F156: Atropine | G156: الشركة المصرية لتجارة الأدوية | H156: Injection | I156: أتروبين 1 مجم / مللي | J156: Atropine 1 mg / ml | K156: 22 | L156: A | M156: المناقصة الأولى 2018-2019 | N156: 2019-2018 | O156: 1 | Q156: مناقصة | T156: ساري
A157: 5.87 | B157: 6.5 | C157: Bottle 5 ml | E157: Alcon | F157: Isopto- Atropine Eye Drops | G157: المتحدة للصيادلة | H157: Bottle 5 ml | I157: أتروبين 0.1% قطرة عين | J157: Atropine 1% Eye Drops | K157: 220 | L157: A | M157: مناقصة الاستكمال الثانية 2013-2014 | N157: 2013-2014 | O157: 2 | Q157: استكمال | T157: ساري
A158: 0.885 | B158: 1.425 | C158: Tablet | E158: RBG استيراد المكتب التجاري الدولي | F158: Azathioprine 50 mg | G158: ابن سينا فارما | H158: Capsule or Tablet | I158: ازاثيوبرين 50 مجم | J158: Azathioprine 50 mg | K158: 8 | L158: A | M158: المناقصة النفسية 2015-2016 | N158: 2015-2016 | O158: 6 | P158: نفسية | Q158: مناقصة | T158: ساري
A159: 17 | B159: 21.600 / 30 GM | C159: TUBE 30 GM | E159: MUP | F159: AZADERM CREAM | G159: ابن سينا فارما | H159: Tube (30gm) | I159: حمض الأزيليك 20% كريم | J159: Azelaic Acid 20% Cream | K159: 418 | L159: A | M159: المناقصة الرابعة 2018-2019 | N159: 2018/2019 | O159: 4 | Q159: مناقصة | T159: ساري
A160: 5.43 | B160: 15 | C160: bottle 15 ml+ Water for reconstitution | E160: riva pharma | F160: azatribact | G160: ابن سينا فارما | H160: Bottle (15ml) + Water for reconstitution | I160: أزيثرومايسين 200 مجم /5 مللي معلق | J160: Azithromycin 200 mg / 5 ml Suspension | K160: 154 | L160: A | M160: المناقصة الثانية 2018-2019 | N160: 2019-2018 | O160: 2 | Q160: مناقصة | T160: ساري
A161: 2.066 | C161: Capsule | E161: Unipharma | F161: Unizithrin | G161: فارما أوفر سيز | H161: Capsules or Tablets | I161: أزيثرومايسين 500 مجم | J161: Azithromycin 500 mg | K161: 298 | L161: A | M161: مناقصة الاستكمال الثالثة 2017-2018 | N161: 2017-2018 | O161: 3 | Q161: استكمال | T161: ساري
A162: 100 | B162: 160 | C162: Vial | E162: Pfizer | F162: Zithromax 500 mg vial | G162: فايزر مصر للادويه | H162: Vial + Solvent | I162: ازيثروميسين 500 مجم للحقن بالوريد | J162: Azithromycin 500mg I.V | K162: 39 | L162: A | M162: مناقصةا الاستكمال الاولى 2017-2018 | N162: 2017-2018 | O162: 1 | Q162: استكمال | R162: Yes | T162: ساري
A163: 0.147 | B163: 6.50 | C163: tab | E163: pharo pharma | F163: Mylobac | G163: ابن سينا فارما | H163: Capsules or Tablets | I163: باكلوفين 10مجم | J163: Baclofen 10 mg | K163: 71 | L163: A | M163: المناقصة الاولي 2018-2019 | N163: 2018/2019 | O163: 1 | Q163: مناقصة | T163: ساري
A164: 0.45 | B164: 21.75 | C164: tab | E164: شركة مصر للمستحضرات الطبية لصالح شركة الدلتا لتجارة الادوية | F164: Baclofen | G164: ابن سينا فارما | H164: Capsules or Tablets | I164: باكلوفين 25مجم | J164: Baclofen 25 mg | K164: 72 | L164: A | M164: المناقصة الاولي 2018-2019 | N164: 2018/2019 | O164: 1 | Q164: مناقصة | T164: ساري
A165: 33.75 | B165: 45 | C165: Bottle 500 ml WITH rubber cap | E165: مصر اوتسوكا | F165: بانامين جي | G165: مصر اوتسوكا للمستحضرات الطبية | H165: Bottle 500 ml WITH Rubber Cap | I165: احماض امينية متوازنة للحقن الوريدى | J165: Balanced Amino Acid Combination I.V Solution for Adults | K165: 746 | L165: A | M165: المناقصة الثامنة 2015-2016 | N165: 2015-2016 | O165: 8 | Q165: مناقصة | T165: ساري
A166: 0.54 | B166: 6.000 / 10 SCHT | C166: Sachet | E166: MUP | F166: Vagyl Powder | G166: ابن سينا فارما | H166: Sachets or Bottle | I166: غسول مهبلى قاعدى | J166: Basic vaginal douche | K166: 329 | L166: A | M166: مناقصة الاستكمال الثالثة 2017-2018 | N166: 2017-2018 | O166: 3 | Q166: استكمال | T166: ساري
A167: 13 | B167: 22.5/ 200 dose | C167: inhaler | E167: Adco | F167: Beclosonenon CFC | G167: الشركة المصرية لتجارة الأدوية | H167: inhaler | I167: بكلوميثازون 50 ميكروجم/جرعة | J167: Beclomethasone 50 mcg / Dose | K167: 766 | L167: A | M167: المناقصة السابعة 2018-2019 | N167: 2018/2019 | O167: 7 | Q167: مناقصة | T167: ساري
A168: 24 | B168: 28.80 | C168: Aerosolbottle | E168: Adco | F168: Beclosone forte | G168: المصرية لتجارة الأدوية | H168: inhaler | I168: بيكلوميثازون استنشاق | J168: Beclomethasone 100 mcg/dose Inhalation | K168: 128 | L168: A | M168: مناقصة الأستكمال الثانية 2017-2018 | N168: 2017-2018 | O168: 2 | Q168: استكمال | T168: ساري
A169: 24 | B169: 28.8 | C169: Aerosol 200 doses | E169: Adco | F169: Beclosone forte | G169: المصرية لتجارة الأدوية | H169: Inhaler | I169: بيكلوميثازون استنشاق | J169: Beclomethasone 250 mcg/dose Inhalation | K169: 186 | L169: A | M169: مناقصة الاستكمال الثانية 2013-2014 | N169: 2013-2014 | O169: 2 | Q169: استكمال | T169: ساري
A170: 4.32 | B170: 6 | C170: Bottle 10 ml | E170: Eipico | F170: Benox | G170: ايبيكو | H170: Bottle 10 ml | I170: بينوكسينات هيدروكلورايد 0.4% نقط عين | J170: Benoxinate HCl 0.4 % Eye Drops | K170: 720 | L170: A | M170: المناقصة الثامنة 2015-2016 | N170: 2015-2016 | O170: 8 | Q170: مناقصة | T170: ساري
A171: 6 | B171: 7.00/ vial + solvent | C171: Vial | E171: El Nile | F171: Durapen - S | G171: المصرية لتجارة الأدوية | H171: Vial + Solvent | I171: بنزاثين بنيسيللين 1200000 وحدة دولية | J171: Benzathine penicillin 1200000 I.U. | K171: 285 | L171: A | M171: مناقصة الاستكمال الثالثة 2017-2018 | N171: 2017-2018 | O171: 3 | Q171: استكمال | R171: Yes | T171: ساري
A172: 4.425 | B172: 9 | C172: Tube 15 gm | E172: مصر للمستحضرات الطبية لصالح شركة الدلتا لتجارة الادوية | F172: dermacure oint | G172: ابن سينا فارما | H172: Tube 15 gm | I172: حمض البنزويك 6%+حمض الساليسيك 3%مرهم | J172: Benzoic acid 6% + Salicylic acid 3% Ointment | K172: 364 | L172: A | M172: المناقصة الرابعة 2015-2016 | N172: 2015-2016 | O172: 4 | Q172: مناقصة | T172: ساري
A173: 4.2 | B173: 4.250 / 20 GM | C173: TUBE 20 GM | E173: MUP | F173: AKNEROXID-5 GEL | G173: ابن سينا فارما | H173: Tube (20gm) | I173: بنزويل بيراوكسيد 5% جيل | J173: Benzoyl Peroxide 5% Gel | K173: 387 | L173: A | M173: المناقصة الرابعة 2018-2019 | N173: 2018/2019 | O173: 4 | Q173: مناقصة | T173: ساري
A174: 0.4485 | B174: 0.75 | C174: Tablet | E174: El Kahira | F174: Cogentol | G174: المصرية لتجارة الأدوية | H174: Capsule or Tablet | I174: بينزتروبين 2 مجم | J174: Benztropine 2 mg | K174: 10 | L174: A | M174: المناقصة النفسية 2015-2016 | N174: 2015-2016 | O174: 6 | P174: نفسية | Q174: مناقصة | T174: ساري
A175: 4.49 | B175: 6.75زجاجة125 مللي | C175: (125ml) | E175: Eipico | F175: Tantum verd | G175: ايبيكو | H175: Bottle | I175: بنزيدامين 0.15% غسول فم | J175: Benzydamine 0.15% Mouth Wash | K175: 460 | L175: A | M175: المناقصة الرابعة 2018-2019 | N175: 2018/2019 | O175: 4 | Q175: مناقصة | T175: ساري
A176: 4.425 | B176: 7.5 | C176: Tube 20 gm | E176: Eipico | F176: Tantm gel | G176: ايبيكو | H176: Tube 20 gm | I176: بنزيدامين 5% جيل | J176: Benzydamine 5% Gel | K176: 403 | L176: A | M176: المناقصة الرابعة 2015-2016 | N176: 2015-2016 | O176: 4 | Q176: مناقصة | T176: ساري
A177: 3.3 | B177: Tenders | C177: Bottle 120 ml | E177: UCCMA | F177: Scabidol lotion 25% | G177: المتحدة للكيماويات والمستحضرات الطبية | H177: Bottle 120 ml | I177: بنزويل بيراوكسيد 25% لوسيون | J177: Benzyl benzoate 25% lotion | K177: 367 | L177: A | M177: المناقصة الرابعة 2015-2016 | N177: 2015-2016 | O177: 4 | Q177: مناقصة | T177: ساري
A178: 2.775 | B178: 3.9 | C178: Tube 40 gm | E178: Pharo Pharma | F178: Benzyl Benzoate Topical Cream | G178: فارما أوفر سيز | H178: Tube( 40gm) | I178: بنزيل بنزوات 20% كريم | J178: benzyl benzoate 20% Cream | K178: 93 | L178: A | M178: مناقصة الاستكمال الأولي 2013-2014 | N178: 2013-2014 | O178: 1 | Q178: استكمال | T178: ساري
A179: 4.9 | B179: 7.5/ vial | C179: Vial + Solvent | E179: misr | F179: Benzyl penicillin G 1.000.000 I.U | G179: الشركة المصرية لتجارة الأدوية | H179: Vial + Solvent | I179: بنزيل بنسيللين ج صوديوم 1,000,000 وحدة دولية | J179: Benzyl Penicillin G Sodium 1,000,000 I.U. | K179: 83 | L179: A | M179: المناقصة الثانية 2018-2019 | N179: 2019-2018 | O179: 2 | Q179: مناقصة | R179: Yes | T179: ساري
A180: 0.255 | B180: 1.35 | C180: Tablet | E180: Chemipharm | F180: Versrc 16 mg | G180: المصرية لتجارة الأدوية | H180: Capsule or Tablet | I180: بيتاهيستين 16مجم | J180: Betahistine 16 mg | K180: 11 | L180: A | M180: المناقصة النفسية 2015-2016 | N180: 2015-2016 | O180: 6 | P180: نفسية | Q180: مناقصة | T180: ساري
A181: 0.15 | B181: 0.825 | C181: Tablet | E181: Future Pharmaceutical Industries | F181: Steady Futal 8mg | G181: ابن سينا فارما | H181: Capsule or Tablet | I181: بيتاهيستين 8مجم | J181: Betahistine 8 mg | K181: 12 | L181: A | M181: المناقصة النفسية 2015-2016 | N181: 2015-2016 | O181: 6 | P181: نفسية | Q181: مناقصة | T181: ساري
A182: 9 | B182: 12.00 L.E | C182: Bottle 30 ml | E182: Gsk - E | F182: Betnovate Scalp Lotion. | G182: ابن سينا فارما | H182: Bottle 15 ml | I182: بيتاميتازون 0.1% لوسيون | J182: Betamethasone 0 .1% Lotion | K182: 87 | L182: A | M182: مناقصةا الاستكمال الاولى 2017-2018 | N182: 2017-2018 | O182: 1 | Q182: استكمال | T182: ساري
A183: 2.6 | B183: 4.00 | C183: Tube 15 gm | E183: pharo pharma | F183: Cronomesone cream | G183: فارما اوفر سيز | H183: Tube | I183: بيتاميتازون 0.1% كريم | J183: Betamethasone 0.1 % Cream | K183: 395 | L183: A | M183: المناقصة الرابعة 2018-2019 | N183: 2018/2019 | O183: 4 | Q183: مناقصة | T183: ساري
A184: 2.8 | B184: 4.00 | C184: Tube 15 gm | E184: pharo pharma | F184: Cronomesone ointment | G184: فارما اوفر سيز | H184: Tube | I184: بيتاميتازون 0.1% مرهم | J184: Betamethasone 0.1 % Ointment | K184: 396 | L184: A | M184: المناقصة الرابعة 2018-2019 | N184: 2018/2019 | O184: 4 | Q184: مناقصة | T184: ساري
A185: 7.071428571 | B185: 9 | C185: Bottle 30 ml | E185: Memphis | F185: Betasalic | G185: المصرية لتجارة الأدوية | H185: Bottle 30 ml | I185: بيتاميتازون 0.05% +حمض الساليسليك 3% لوسيون | J185: Betamethasone 0.05%+ Salicylic acid 2% Lotion | K185: 161 | L185: A | M185: مناقصة الاستكمال الرابعة 2014-2015 | N185: 2014-2015 | O185: 4 | Q185: استكمال | T185: ساري
A186: 8.75 | B186: سعر الجمهور للامبول الواحد | C186: Ampoule | E186: Marcyrl | F186: Dexaglobe ampoule | G186: شركة رامكو | H186: Injection | I186: بيتاميثازون دايبروبيونات10مجم+ بيتاميثازون صوديوم فوسفات 4مجم | J186: Betamethasone dipropionate 10 mg+ Betamethasone Na PO4 4 mg | K186: 765 | L186: A | M186: المناقصة السابعة 2018-2019 | N186: 7 | O186: 7 | Q186: مناقصة | T186: ساري
A187: 3646 | B187: 4096 | E187: Roche | F187: Avastin 100mg | G187: المصرية لتجارة الأدوية | H187: Injection | J187: Bevacizumab 100mg | K187: 4 | L187: A | M187: شراء موحد أدوية الأورام List 51 | N187: 2018 | O187: 51 | P187: Oncology | Q187: مناقصة | R187: Yes | S187: Oncology | T187: ساري
A188: 3646 | B188: 4096 | E188: Roche | F188: Avastin 100mg | G188: فارما أوفر سيز | H188: Injection | J188: Bevacizumab 100mg | K188: 4 | L188: B | M188: شراء موحد أدوية الأورام List 51 | N188: 2018 | O188: 51 | P188: Oncology | Q188: مناقصة | R188: Yes | S188: Oncology | T188: ساري
A189: 13051 | B189: 13501 | E189: Roche | F189: Avastin 400mg | G189: المصرية لتجارة الأدوية | H189: Injection | J189: Bevacizumab 400mg | K189: 5 | L189: A | M189: شراء موحد أدوية الأورام List 51 | N189: 2018 | O189: 51 | P189: Oncology | Q189: مناقصة | R189: Yes | S189: Oncology | T189: ساري
A190: 13051 | B190: 13501 | E190: Roche | F190: Avastin 400mg | G190: فارما أوفر سيز | H190: Injection | J190: Bevacizumab 400mg | K190: 5 | L190: B | M190: شراء موحد أدوية الأورام List 51 | N190: 2018 | O190: 51 | P190: Oncology | Q190: مناقصة | R190: Yes | S190: Oncology | T190: ساري
A191: 18.75 | B191: =720/28 -> 25.71428571 | C191: Tablet | D191: مستورد | E191: Astrazeneca | F191: Casodex 50 mg | G191: ابن سينا فارما | H191: Capsules or Tablets | I191: بيكليوتامايد 50 مجم | J191: Bicalutamide 50 mg | K191: 6 | L191: A | M191: شراء موحد أدوية الأورام List 51 | N191: 2018 | O191: 51 لضمان التوافر | P191: Oncology | Q191: مناقصة | R191: Yes | S191: Oncology | T191: ساري
A192: 0.2997275204 | B192: 0.44 | C192: Tablet | E192: Pharco | F192: Biperiden Tab | G192: فاركو للأدوية | H192: Capsule or Tablet | I192: بيبريدين 2 مجم | J192: Biperiden 2 mg | K192: 13 | L192: A | M192: المناقصة النفسية 2015-2016 | N192: 2015-2016 | O192: 6 | P192: نفسية | Q192: مناقصة | T192: ساري
A193: 6.325 | B193: 9.2 | C193: Ampoule | E193: Delta Pharma | F193: Kinoprid | G193: فارما أوفر سيز | H193: Injection | I193: بيبريدين 5 مجم/ مللي | J193: Biperiden 5 mg / ml | K193: 14 | L193: A | M193: المناقصة النفسية 2015-2016 | N193: 2015-2016 | O193: 6 | P193: نفسية | Q193: مناقصة | T193: ساري
A194: 0.244 | B194: 0.25/ tab | C194: Tablet | E194: Amriya | F194: Bisadyl | G194: أبوقير للتجارة الدولية | H194: Capsules or Tablets | I194: بيساكوديل 5 مجم | J194: Bisacodyl 5mg Capsules or Tablets | K194: 144 | L194: A | M194: مناقصة الأستكمال الثانية 2017-2018 | N194: 2017-2018 | O194: 2 | Q194: استكمال | T194: ساري
A195: 0.199 | B195: 0.525 | C195: tab | E195: hikma pharma | F195: Bistol 2.5 mg | G195: ابن سينا فارما | H195: Capsules or Tablets | I195: بيسوبرولول 2.5 مجم | J195: Bisoprolol 2.5 mg | K195: 246 | L195: A | M195: المناقصة الثالثة 2018-2019 | N195: 2018-2019 | O195: 3 | Q195: مناقصة | T195: ساري
A196: 0.144 | B196: 0.65 | C196: tab | E196: EGPI | F196: egypro 5mg | G196: ابن سينا فارما | H196: Capsules or Tablets | I196: بيسوبرولول 5 مجم | J196: Bisoprolol 5 mg | K196: 247 | L196: A | M196: المناقصة الثالثة 2018-2019 | N196: 2018-2019 | O196: 3 | Q196: مناقصة | T196: ساري
A197: 0.344 | B197: 400 | C197: Tab | E197: unipharma | F197: unibisol | G197: فارما اوفر سيز | H197: Capsules or Tablets | I197: بيسوبرولول 10 مجم | J197: Bisoprolol 10 mg | K197: 248 | L197: A | M197: المناقصة الثالثة 2018-2019 | N197: 2018-2019 | O197: 3 | Q197: مناقصة | T197: ساري
A198: 0.2665 | B198: 0.75 | C198: tab | E198: hikma pharma | F198: Bistol plus 5/12.5 mg | G198: ابن سينا فارما | H198: Capsules or Tablets | I198: بيسوبرولول 5 مجم+ هيدروكلوروثيايد 12.5مجم | J198: Bisoprolol 5 mg + Hydrochlorothiazide 12.5 mg | K198: 249 | L198: A | M198: المناقصة الثالثة 2018-2019 | N198: 2018-2019 | O198: 3 | Q198: مناقصة | T198: ساري
A199: 105 | B199: 119 | C199: 1 Vial | D199: مستورد | E199: Cipla | F199: Belocip | G199: ستار انترناشونال | H199: Injection | I199: بليوميسين 15 وحدة | J199: Bleomycin 15 I.U. | K199: 2 | L199: A | M199: شراء موحد أدوية الأورام List 50 | N199: 2018 | O199: 50 لضمان التوافر | P199: Oncology | Q199: مناقصة | R199: Yes | S199: Oncology | T199: ساري
A200: 0.191 | B200: 5.9 | C200: cap. | E200: pharco | F200: Bilicol cap. | G200: ابن سينا فارما | H200: Capsules or Tablets | I200: بورنيول +بينين +كامفين +مينيتول +سينيول +مينيتون | J200: Borneol + Pinene + Camphene + Menthol + Cineole + Menthone | K200: 529 | L200: A | M200: المناقصة الخامسة 2018-2019 | N200: 2018/2019 | O200: 5 | Q200: مناقصة | T200: ساري
... 1241 more rows

Sheet أدوية خارج المناقصة
A1: سعر التوريد | B1: سعر السوق الحالي بالوحدة | C1: الوحدة | D1: محلي/ مستورد | E1: الشركة المنتجة | F1: الاسم التجارى | G1: الكمية | H1: معدل استهلاك | I1: العبوة | J1: الاسم العلمى | K1: التوريد من مناقصات او ممارسات اخرى | L1: ملاحظات | M1: حالة البند

Sheet SALIM
A2: سعر الترسية للوحدة | B2: سعر السوق الحالي بالوحدة | C2: الوحدة | D2: محلي/ مستورد | E2: الشركة المنتجة | F2: الاسم التجارى | G2: اسم الشركة الموزعة | H2: العبوة | I2: الاسم العلمى | J2: الاسم العام | K2: رقم البند | L2: Serial of Trade | M2: اسم المناقصة | N2: عام المناقصة | O2: رقم المناقصة | P2: تخصص المناقصة | Q2: مناقصة / استكمال / ممارسة | R2: Life Saving | S2: Category | T2: حالة البند | U2: الرصيد | V2: متوسط الاستهلاك الشهري | W2: معدل التغطية باليوم | X2: Class | Y2: معدل 3 شهور | Z2: Class1
A3: 11.5 | B3: 20 | C3: Tablet | E3: Amoun | F3: إم - إكس أقراص | G3: رامكو فارم لتجارة الادوية | H3: Capsule or Tablet | I3: مثبطات السيريتونين ضد القئ | J3: 5 HT antagonist antiemtic | K3: 434 | L3: A | M3: المناقصة الخامسة 2015-2016 | N3: 2015-2016 | O3: 5 | Q3: مناقصة | T3: ساري | U3: 810 | V3: 990 | W3: 24.54545455 | X3: A | Y3: 2970 | Z3: إم - إكس أقراص
A4: 9.5 | B4: 9.95 | C4: Ampoule | E4: Hikma - EUP | F4: Utoral 250 mg | G4: فارما أوفر سيز | H4: Injection | I4: 5فلورويوراسيل 250مجم | J4: 5-Fluorouracil 250 mg | K4: 1 | L4: A | M4: شراء موحد أدوية الأورام List 51 | N4: 2018 | O4: 51 | P4: Oncology | Q4: مناقصة | R4: Yes | S4: Oncology | T4: ساري | U4: 2700 | V4: 3900 | W4: 20.76923077 | X4: A | Y4: 11700 | Z4: Utoral 250 mg
A5: 0.807 | B5: 1 | C5: Tablet | E5: Hikma Pharma | F5: glucobay 50mg | G5: سوفيكو فارم | H5: Capsule or Tablet | I5: اكربوز 50 مجم | J5: Acarbose 50 mg | K5: 16 | L5: A | M5: ممارسة استكمال الاورام و أدوية متنوعة 2012-2013 | N5: 2012-2013 | P5: Oncology | Q5: استكمال | S5: Oncology | T5: ساري | U5: 780000 | V5: 350000 | W5: 66.85714286 | X5: C | Y5: 1050000 | Z5: glucobay 50mg
A6: 0.3105555556 | B6: 0.325 | C6: Tablet | E6: CID | F6: Cidamex | G6: المصرية لتجارة الأدوية | H6: Capsule or Tablet | I6: اسيتازولاميد 250 مجم | J6: Acetazolamide 250 mg | K6: 690 | L6: A | M6: المناقصة الثامنة 2015-2016 | N6: 2015-2016 | O6: 8 | Q6: مناقصة | T6: ساري | U6: 4000 | V6: 2300 | W6: 52.17391304 | X6: B | Y6: 6900 | Z6: Cidamex
A7: 0.119 | B7: 391.70/1000tab. | C7: Tablet | E7: Adco | F7: Rivo 75 mg | G7: الشركة المصرية لتجارة الأدوية | H7: Capsules or Tablets | I7: اسيتيل ساليسيك اسيد 75 مجم | J7: Acetyl Salicylic Acid 75 mg | K7: 328 | L7: A | M7: المناقصة الثالثة 2018-2019 | N7: 2018/2019 | O7: 3 | Q7: مناقصة | R7: Yes | T7: ساري | U7: 710000 | V7: 300000 | W7: 71 | X7: C | Y7: 900000 | Z7: Rivo 75 mg
A8: 69 | B8: 85 | C8: vial | E8: الشركة العربية للمستحضرات الطبية (ارابكوميد) لصالح شركة بيوكابيتال توزيع شركة ايجي فارما | F8: Rotacysteine 20% I.V Infusion | G8: فارما اوفر سيز | H8: Vial | I8: اسيتيل سيستايين | J8: ACETYL CYSTIENE | K8: 1 | L8: A | M8: المناقصة العامة لتوريد أدوية علاج السموم جلسة 13/11/2016 | Q8: مناقصة | T8: ساري | U8: 100 | V8: 300 | W8: 10 | X8: A | Y8: 900 | Z8: Rotacysteine 20% I.V Infusion
A9: 0.8357142857 | B9: 1.4 | C9: Sachet | E9: Sedico | F9: Acetylcistein | G9: سيديكو | H9: Sachet | I9: اسيتيل سيستايين 200مجم | J9: acetylcysteine 200mg | K9: 637 | L9: A | M9: المناقصة السابعة 2015-2016 | N9: 2015-2016 | O9: 7 | Q9: مناقصة | T9: ساري | U9: 225 | V9: 130 | W9: 51.92307692 | X9: B | Y9: 390 | Z9: Acetylcistein
A10: 0.65 | B10: 25.2 | C10: Tab | E10: Sedico | F10: Cycloviral | G10: سيديكو | H10: Capsules or Tablets | I10: أسيكلوفير 200 مجم | J10: Acyclovir 200 mg | K10: 211 | L10: A | M10: المناقصة الثانية 2015-2016 | N10: 2015-2016 | O10: 2 | Q10: مناقصة | T10: ساري | U10: 60 | V10: 90 | W10: 20 | X10: A | Y10: 270 | Z10: Cycloviral
A11: 0.65 | B11: 16.2 | C11: tablet | E11: pharo pharma | F11: Virustat 200 | G11: ابن سينا فارما | H11: Capsules or Tablets | I11: أسيكلوفير 200 مجم | J11: Acyclovir 200 mg | K11: 211 | L11: B | M11: المناقصة الثانية 2015-2016 | N11: 2015-2016 | O11: 2 | Q11: مناقصة | T11: ساري | U11: 750 | V11: 2010 | W11: 11.19402985 | X11: A | Y11: 6030 | Z11: Virustat 200
A12: 49 | B12: 56 | C12: Vial | E12: Mylan | F12: Acyclovir 250 mg | G12: رامكو فارم لتجارة الادوية | H12: Injection | I12: اسيكلوفير250 مجم | J12: Acyclovir 250 mg | K12: 183 | L12: A | M12: مناقصة الاستكمال الرابعة 2014-2015 | N12: 2014-2015 | O12: 4 | Q12: استكمال | R12: Yes | T12: ساري | U12: 1330 | V12: 2900 | W12: 13.75862069 | X12: A | Y12: 8700 | Z12: Acyclovir 250 mg
A13: 65.6 | B13: 80/ViaL | C13: VL | E13: MYLAN | F13: Acyclovir 500 mg | G13: الشركة المصرية لتجارة الأدوية | H13: Injection | I13: أسيكلوفير 500 مجم | J13: Acyclovir 500 mg | K13: 210 | L13: A | M13: المناقصة الثانية 2018-2019 | N13: 2019-2018 | O13: 2 | Q13: مناقصة | R13: Yes | T13: ساري | U13: 0 | V13: 2000 | W13: 0 | X13: A | Y13: 6000 | Z13: Acyclovir 500 mg
A14: 2.3 | B14: 268.00/100A | C14: ampule | E14: misr | F14: Epinephrine | G14: الشركة المصرية لتجارة الأدوية | H14: Injection | I14: أدرينالين1مجم/مللي | J14: Adrenaline 1 mg / ml | K14: 444 | L14: A | M14: المناقصة الرابعة 2018-2019 | N14: 2018/2019 | O14: 4 | Q14: مناقصة | R14: Yes | T14: ساري | U14: 1550 | V14: 8010 | W14: 5.805243446 | X14: A | Y14: 24030 | Z14: Epinephrine
A15: 0.585 | B15: 0.825 | C15: Tablet | D15: محلي | E15: CID | F15: Reparil | G15: المصرية لتجارة الأدوية | H15: Capsule or Tablet | I15: آيسين 40 مجم | J15: Aescin 40mg | K15: 72 | L15: A | M15: المناقصة الأولى 2015-2016 | N15: 2015-2016 | O15: 1 | Q15: مناقصة | T15: ساري | U15: 122 | V15: 300 | W15: 12.2 | X15: A | Y15: 900 | Z15: Reparil
A16: 3.19 | B16: 6.75زجاجة20 مللي | C16: 20 ml | E16: Eipico | F16: Alzental | G16: ايبيكو | H16: Bottle (20ml) | I16: ألبيندازول 100 مجم / 5 مللي شراب | J16: Albendazole 100mg/5ml syrup | K16: 158 | L16: A | M16: مناقصة الأستكمال الثانية 2017-2018 | N16: 2017-2018 | O16: 2 | Q16: استكمال | T16: ساري | U16: 257 | V16: 178 | W16: 43.31460674 | X16: B | Y16: 534 | Z16: Alzental
A17: 1.74 | B17: 2.625/ tab | C17: Tablet | E17: Eipico | F17: Alzental | G17: ايبيكو | H17: Capsules or Tablets | I17: ألبيندازول 200 مجم | J17: Albendazole 200mg Capsules or Tablets | K17: 159 | L17: A | M17: مناقصة الأستكمال الثانية 2017-2018 | N17: 2017-2018 | O17: 2 | Q17: استكمال | T17: ساري | U17: 0 | V17: 1000 | W17: 0 | X17: A | Y17: 3000 | Z17: Alzental
A18: 0.66 | B18: 1.5/ tab | C18: Tablet | E18: Mina Pharm | F18: Bon-One 0.25 mcg Tablets | G18: مينا فارم | H18: Capsules or Tablets | I18: الفاكلسيدول 0,25 ميكروجرام | J18: Alfacalcidol 0.25mcg | K18: 201 | L18: A | M18: مناقصة الأستكمال الثانية 2017-2018 | N18: 2017-2018 | O18: 2 | Q18: استكمال | R18: Yes | T18: ساري | U18: 7470 | V18: 11500 | W18: 19.48695652 | X18: A | Y18: 34500 | Z18: Bon-One 0.25 mcg Tablets
A19: 0.936 | B19: 1.95 | C19: Capsule | E19: Arab Company for Gelatin لصالح مالتى كير | F19: BoneCare 1 | G19: فارما أوفر سيز | H19: Capsule or Tablet | I19: الفاكلسيدول 1 ميكروجرام | J19: AlfaCalcidol 1 mcg | K19: 772 | L19: A | M19: المناقصة الثامنة 2015-2016 | N19: 2015-2016 | O19: 8 | Q19: مناقصة | R19: Yes | T19: ساري | U19: 49000 | V19: 18000 | W19: 81.66666667 | X19: C | Y19: 54000 | Z19: BoneCare 1
A20: 14.29714286 | B20: 21.6 | C20: Ampoule | E20: Alexandria for Rotabiogen | F20: Alfabonid | G20: ابن سينا فارما | H20: Injection | I20: الفاكلسيدول 2 ميكروجرام/مللي | J20: AlfaCalcidol 2 mcg / ml | K20: 773 | L20: A | M20: المناقصة الثامنة 2015-2016 | N20: 2015-2016 | O20: 8 | Q20: مناقصة | R20: Yes | T20: ساري | U20: 700 | V20: 750 | W20: 28 | X20: A | Y20: 2250 | Z20: Alfabonid
A21: 49.5 | B21: 130 | C21: Bottle | E21: Alesraa for Rotabiogen | F21: Alfabonid | G21: ابن سينا فارما | H21: Bottle 20 ml | I21: الفاكلسيدول 2ميكروجرام/مللي نقط | J21: AlfaCalcidol 2 mcg / ml Oral Drops | K21: 774 | L21: A | M21: المناقصة الثامنة 2015-2016 | N21: 2015-2016 | O21: 8 | Q21: مناقصة | R21: Yes | T21: ساري | U21: 6963 | V21: 31040 | W21: 6.729703608 | X21: A | Y21: 93120 | Z21: Alfabonid
A22: 0.239 | B22: 12.00 علبة 50 قرص | C22: Tablet | E22: Eipico | F22: Nouric | G22: ايبيكو | H22: Capsules or Tablets | I22: أللوبيورينول 100 مجم | J22: Allopurinol 100 mg | K22: 78 | L22: A | M22: المناقصة الأولى 2018-2019 | N22: 2019-2018 | O22: 1 | Q22: مناقصة | T22: ساري | U22: 0 | V22: 5000 | W22: 0 | X22: A | Y22: 15000 | Z22: Nouric
A23: 0.32 | B23: 5.25/10tab. | C23: Tablet | E23: Memphis | F23: Crystazol | G23: الشركة المصرية لتجارة الأدوية | H23: Capsules or Tablets | I23: أللوبيورينول 300 مجم | J23: Allopurinol 300 mg | K23: 79 | L23: A | M23: المناقصة الأولى 2018-2019 | N23: 2019-2018 | O23: 1 | Q23: مناقصة | T23: ساري | U23: 0 | V23: 5220 | W23: 0 | X23: A | Y23: 15660 | Z23: Crystazol
A24: 3200 | B24: 4050 | C24: injection | E24: Boehringer Ingelheim | F24: Actilyse 50mg injection | G24: المصرية لتجارة الأدوية | H24: injection | I24: التيبلاز 50مجم | J24: Alteplase 50mg | K24: 4 | L24: A | M24: مناقصة بدائل الاستربتوكينياز 2017-2018 | N24: 2017-2018 | P24: Streptokinase بدائل | Q24: مناقصة | R24: Yes | S24: Thrombolytics | T24: ساري | U24: 110 | V24: 490 | W24: 6.734693878 | X24: A | Y24: 1470 | Z24: Actilyse 50mg injection
A25: 4.4685 | B25: 6 | C25: Bottle 100 ml | E25: Pharco | F25: Miopan susp. | G25: فاركو للأدوية | H25: Bottle 100 ml | I25: مضاد للحموضةشراب تحتوي على ألومونيوم هيدروكسيد و ماجنيزيوم هيدروكسيد | J25: Aluminum Hydroxide Gel & Magnesium salts or comb. antacid syrup | K25: 426 | L25: A | M25: المناقصة الخامسة 2015-2016 | N25: 2015-2016 | O25: 5 | Q25: مناقصة | T25: ساري | U25: 17160 | V25: 25500 | W25: 20.18823529 | X25: A | Y25: 76500 | Z25: Miopan susp.
A26: 0.27 | B26: 0.35 | C26: Capsule | E26: Rameda | F26: Adamin | G26: ابن سينا فارما | H26: Capsule or Tablet | I26: أمانتادين 100 مجم | J26: Amantadine 100mg | K26: 194 | L26: A | M26: المناقصة الثانية 2015-2016 | N26: 2015-2016 | O26: 2 | Q26: مناقصة | T26: ساري | U26: 260 | V26: 2260 | W26: 3.451327434 | X26: A | Y26: 6780 | Z26: Adamin
A27: 4 | B27: 5.00 LE /Bottle 15 ml | C27: Bottle 15 ml | E27: Rameda | F27: Mucosin Oral Drops | G27: فارما أوفر سيز | H27: Bottle (15ml) | I27: امبروكسول نقط فم | J27: Ambroxol oral drops | K27: 280 | L27: A | M27: مناقصة الاستكمال الثالثة 2017-2018 | N27: 2017-2018 | O27: 3 | Q27: استكمال | T27: ساري | U27: 170 | V27: 290 | W27: 17.5862069 | X27: A | Y27: 870 | Z27: Mucosin Oral Drops
A28: 15.99 | B28: 21.75 | C28: Bottle 100ml | E28: ACDIMA | F28: Amikacin Lotion Spray | G28: المتحدة للصيادلة | H28: Bottle | I28: بخاخة مضاد حيوى تحتوي على اميكاسين | J28: Amikacin antibiotic spray | K28: 94 | L28: A | M28: مناقصةا الاستكمال الاولى 2017-2018 | N28: 2017-2018 | O28: 1 | Q28: استكمال | T28: ساري | U28: 5600 | V28: 10800 | W28: 15.55555556 | X28: A | Y28: 32400 | Z28: Amikacin Lotion Spray
A29: 0.15 | B29: 9.5/30 tab. | C29: Tablet | E29: Kahira | F29: Moduretic | G29: الشركة المصرية لتجارة الأدوية | H29: Capsules or Tablets | I29: اميلورايد 5 مجم+هيدروكلوروثيازيد 50 مجم | J29: Amiloride 5 mg + Hydrochlorothiazide 50 mg | K29: 312 | L29: A | M29: المناقصة الثالثة 2018-2019 | N29: 2018/2019 | O29: 3 | Q29: مناقصة | T29: ساري | U29: 72620 | V29: 98800 | W29: 22.05060729 | X29: A | Y29: 296400 | Z29: Moduretic
A30: 51 | B30: 72 | C30: Bottle 500 ml WITH rubber cap | E30: مصر اوتسوكا | F30: امينوليبان | G30: مصر اوتسوكا للمستحضرات الطبية | H30: Bottle 500 ml WITH Rubber Cap | I30: احمااض أمنية للحقن الوريدي لمرضى الكبد | J30: Amino acid Combination I.V. Solution for Hepatic Patient | K30: 748 | L30: A | M30: المناقصة الثامنة 2015-2016 | N30: 2015-2016 | O30: 8 | Q30: مناقصة | T30: ساري | U30: 84000 | V30: 122000 | W30: 20.6557377 | X30: A | Y30: 366000 | Z30: امينوليبان
A31: 36 | B31: 57 | C31: Bottle 100 ml | E31: Fresenius Kabi | F31: Aminoven Infant 10% | G31: المصرية لتجارة الأدوية | H31: Bottle 100ml WITH Rubber Cap | I31: احماض امينية للحقن الوريدى أطفال | J31: Amino acid Combination I.V. Solution for infants | K31: 747 | L31: A | M31: المناقصة الثامنة 2015-2016 | N31: 2015-2016 | O31: 8 | Q31: مناقصة | T31: ساري | U31: 0 | V31: 300 | W31: 0 | X31: A | Y31: 900 | Z31: Aminoven Infant 10%
A32: 0.34 | B32: 0.358 | C32: Tablet | E32: Amriya | F32: Theophylline, S.R | G32: أبوقير للتجارة الدولية | H32: Capsule or Tablet | I32: امينوفيللين اوالثيوفيللين 200مجم | J32: Aminophylline or other theophylline 200mg Capsules or Tablets | K32: 108 | L32: A | M32: مناقصةا الاستكمال الاولى 2017-2018 | N32: 2017-2018 | O32: 1 | Q32: استكمال | T32: ساري | U32: 16020 | V32: 33060 | W32: 14.53720508 | X32: A | Y32: 99180 | Z32: Theophylline, S.R
A33: 0.18 | B33: Tender | C33: Tablet | E33: Pharo Pharma | F33: Retaphylline 300 mg tablets | G33: ابن سينا فارما | H33: Capsule or Tablet | I33: امينوفيللين اوالثيوفيللين 300مجم | J33: Aminophylline or other theophylline 300mg Capsules or Tablets | K33: 109 | L33: A | M33: مناقصةا الاستكمال الاولى 2017-2018 | N33: 2017-2018 | O33: 1 | Q33: استكمال | T33: ساري | U33: 50958 | V33: 47140 | W33: 32.42978362 | X33: B | Y33: 141420 | Z33: Retaphylline 300 mg tablets
A34: 0.39 | B34: 12 | C34: Tab | E34: ElNileلصالح موندى | F34: Uniphylline continus 400 mg | G34: ابن سينا فارما | H34: Capsules or Tablets | I34: الثيوفيللين 400مجم طويل المفعول | J34: Theophylline 400 mg SR | K34: 768 | L34: A | M34: المناقصة السابعة 2018-2019 | N34: 2018/2019 | O34: 7 | Q34: مناقصة | T34: ساري | U34: 34000 | V34: 17000 | W34: 60 | X34: B | Y34: 51000 | Z34: Uniphylline continus 400 mg
A35: 2.45 | B35: 2.5 | C35: Ampoule | E35: Sedico | F35: Aminophylline | G35: سيديكو | H35: Injection | I35: امينوفيللين او الثيوفيللين | J35: Aminophylline or other theophylline Injection | K35: 106 | L35: A | M35: مناقصةا الاستكمال الاولى 2017-2018 | N35: 2017-2018 | O35: 1 | Q35: استكمال | R35: Yes | T35: ساري | U35: 500 | V35: 1500 | W35: 10 | X35: A | Y35: 4500 | Z35: Aminophylline
A36: 0.825 | B36: 1.5 | C36: Suppository | E36: Alexandria | F36: Minophylline | G36: المصرية لتجارة الأدوية | H36: Suppository | I36: امينوفيللين اوالثيوفيللين بحد أقصي 500مجم (كبار) | J36: Aminophylline or other theophylline up to 500mg (adult) | K36: 615 | L36: A | M36: المناقصة السابعة 2015-2016 | N36: 2015-2016 | O36: 7 | Q36: مناقصة | T36: ساري | U36: 40270 | V36: 40300 | W36: 29.97766749 | X36: A | Y36: 120900 | Z36: Minophylline
A37: 1.976047904 | B37: 2 | C37: Ampoule | E37: Sedico | F37: Amiron | G37: سيديكو | H37: Injection | I37: أميودارون 150 مجم | J37: Amiodarone 150mg | K37: 238 | L37: A | M37: المناقصة الثالثة 2015-2016 | N37: 2015-2016 | O37: 3 | Q37: مناقصة | R37: Yes | T37: ساري | U37: 125000 | V37: 493000 | W37: 7.606490872 | X37: A | Y37: 1479000 | Z37: Amiron
A38: 0.195 | B38: .4/ tab | C38: Tablet | E38: El Kahira | F38: Tryptizol 25 mg | G38: المصرية لتجارة الأدوية | H38: Capsules or Tablets | I38: اميتربتيلين 25 مجم | J38: Amitriptyline 25mg | K38: 215 | L38: A | M38: مناقصة الأستكمال الثانية 2017-2018 | N38: 2017-2018 | O38: 2 | Q38: استكمال | S38: Psychoactive Drugs | T38: ساري | U38: 2625 | V38: 2535 | W38: 31.06508876 | X38: B | Y38: 7605 | Z38: Tryptizol 25 mg
A39: 0.1 | B39: 0.2125/ tab | C39: Tablet | E39: El Kahira | F39: Tryptizole 10 mg | G39: المصرية لتجارة الأدوية | H39: Capsules or Tablets | I39: اميتربتيلين 10 مجم | J39: Amitriptyline 10mg | K39: 216 | L39: A | M39: مناقصة الأستكمال الثانية 2017-2018 | N39: 2017-2018 | O39: 2 | Q39: استكمال | S39: Psychoactive Drugs | T39: ساري | U39: 1245 | V39: 450 | W39: 83 | X39: C | Y39: 1350 | Z39: Tryptizole 10 mg
A40: 11.7 | B40: 21.75 | C40: 156.25 mg/5 ml | E40: Sedico | F40: Magna-biotic | G40: سيديكو | H40: Bottle (80ml) + Water for reconstitution | I40: أموكسيسيللين 125 مجم + حمض كلافيولينيك 31 مجم / 5 مللي | J40: Amoxicillin 125 mg + Clavulanic acid 31 mg / 5 ml Suspension | K40: 101 | L40: A | M40: المناقصة الثانية 2018-2019 | N40: 2019-2018 | O40: 2 | Q40: مناقصة | T40: ساري | U40: 400 | V40: 700 | W40: 17.14285714 | X40: A | Y40: 2100 | Z40: Magna-biotic
A41: 21 | B41: 32.5 | C41: 312.5 mg/5 ml | E41: Sedico | F41: Magna-biotic | G41: سيديكو | H41: Bottle (80ml) + Water for reconstitution | I41: أموكسيسيللين 250 مجم + حمض كلافيولينيك 62 مجم /5 مللي | J41: Amoxicillin 250 mg + Clavulanic acid 62 mg / 5 ml Suspension | K41: 102 | L41: A | M41: المناقصة الثانية 2018-2019 | N41: 2019-2018 | O41: 2 | Q41: مناقصة | T41: ساري | U41: 3900 | V41: 17500 | W41: 6.685714286 | X41: A | Y41: 52500 | Z41: Magna-biotic
A42: 0.633640553 | B42: 0.6875 | C42: Capsule | E42: Sedico | F42: Flucamox | G42: سيديكو | H42: Capsule or Tablet | I42: أموكسيسيللين 125 مجم + فلوكساسيللين 125 مجم | J42: Amoxicillin 125mg + Fluoxacillin 125mg | K42: 97 | L42: A | M42: المناقصة الثانية 2015-2016 | N42: 2015-2016 | O42: 2 | Q42: مناقصة | T42: ساري | U42: 3500 | V42: 5000 | W42: 21 | X42: A | Y42: 15000 | Z42: Flucamox
A43: 5.95 | B43: عطاءات | C43: Bottle 80ml | E43: ريفا فارما | F43: Rivamox 125 mg dry suspension | G43: فارما اوفر سيز | H43: Bottle (80ml) + Water for reconstitution | I43: أموكسيسيللين 125 مجم / 5 مللي معلق | J43: Amoxicillin 125 mg / 5 ml Suspension | K43: 94 | L43: B | M43: المناقصة الثانية 2018-2019 | N43: 2019-2018 | O43: 2 | Q43: مناقصة | T43: ساري | U43: 660 | V43: 300 | W43: 66 | X43: C | Y43: 900 | Z43: Rivamox 125 mg dry suspension
A44: 24 | B44: 29 | C44: Vial | E44: Sedico | F44: Magna-biotic | G44: سيديكو | H44: Vial + Solvent | I44: أموكسيسيللين 1 جم + حمض كلافيولينيك 200 مجم | J44: Amoxicillin 1 g + Clavulanic acid 200 mg | K44: 108 | L44: A | M44: المناقصة الثانية 2018-2019 | N44: 2019-2018 | O44: 2 | Q44: مناقصة | T44: ساري | U44: 100 | V44: 150 | W44: 20 | X44: A | Y44: 450 | Z44: Magna-biotic
A45: 5.99 | B45: 9.00للفيال | C45: Vial + Solvent | E45: Eipico | F45: Flumox | G45: ايبيكو | H45: Vial + Solvent | I45: أموكسيسيللين 250 مجم + فلوكساسيللين 250 مجم | J45: Amoxicillin 250 mg + Fluoxacillin 250 mg | K45: 97 | L45: B | M45: المناقصة الثانية 2018-2019 | N45: 2019-2018 | O45: 2 | Q45: مناقصة | T45: ساري | U45: 85600 | V45: 46000 | W45: 55.82608696 | X45: B | Y45: 138000 | Z45: Flumox
A46: 1.725 | B46: 3.3 | C46: Tablet | E46: Amoun | F46: HiBiotic 375 mg | G46: فارما أوفر سيز | H46: Capsule or Tablet | I46: أموكسيسيللين 250 مجم + حمض كلافيولينيك 125 مجم | J46: Amoxicillin 250mg + Clavulianic acid 125mg | K46: 104 | L46: A | M46: المناقصة الثانية 2015-2016 | N46: 2015-2016 | O46: 2 | Q46: مناقصة | T46: ساري | U46: 15100 | V46: 14800 | W46: 30.60810811 | X46: B | Y46: 44400 | Z46: HiBiotic 375 mg
A47: 26.85 | B47: 28 | C47: 460 mg/5 ml | E47: Sedico | F47: Magna-biotic | G47: سيديكو | H47: Bottle (80ml) + Water for reconstitution | I47: أموكسيسيللين 400 مجم + حمض كلافيولينيك 57 مجم / 5 مللي معلق | J47: Amoxicillin 400 mg + Clavulanic acid 57 mg /5ml Suspension | K47: 103 | L47: A | M47: المناقصة الثانية 2018-2019 | N47: 2019-2018 | O47: 2 | Q47: مناقصة | T47: ساري | U47: 75 | V47: 50 | W47: 45 | X47: B | Y47: 150 | Z47: Magna-biotic
A48: 2.4 | B48: 37 | C48: Tab | E48: Sedico | F48: Magna-biotic | G48: سيديكو | H48: Capsules or Tablets | I48: أموكسيسيللين 500 مجم + حمض كلافيولينيك 125 مجم | J48: Amoxicillin 500 mg + Clavulanic acid 125 mg | K48: 106 | L48: A | M48: المناقصة الثانية 2018-2019 | N48: 2019-2018 | O48: 2 | Q48: مناقصة | T48: ساري | U48: 1400 | V48: 1000 | W48: 42 | X48: B | Y48: 3000 | Z48: Magna-biotic
A49: 14.74 | B49: 24.50زجاجة75 مللي | C49: Bottle 80 ml | E49: Eipico | F49: Emoxclav | G49: ايبيكو | H49: Bottle(80 ml) + Water for reconstitution | I49: أموكسيسيللين ترايهيدرات 200 مجم + حمض كلافيولينيك 28 مجم | J49: Amoxicillin trihydrate200 mg + Clavulianic acid 28mg | K49: 292 | L49: B | M49: مناقصة الاستكمال الثالثة 2017-2018 | N49: 2017-2018 | O49: 3 | Q49: استكمال | T49: ساري | U49: 40 | V49: 200 | W49: 6 | X49: A | Y49: 600 | Z49: Emoxclav
A50: 54 | B50: 55 | C50: amp | E50: Cipla | F50: Photercin | G50: المتحدة للصيادلة | H50: Injection | I50: امفوتريسين ب 50 مجم | J50: Amphotericin B 50 mg | K50: 232 | L50: A | M50: المناقصة الثانية 2018-2019 | N50: 2019-2018 | O50: 2 | Q50: مناقصة | R50: Yes | T50: ساري | U50: 0 | V50: 8000 | W50: 0 | X50: A | Y50: 24000 | Z50: Photercin
A51: 13.15 | B51: 20.75 | C51: vial+solvent | E51: Pharco | F51: Sulbin 1,5gm | G51: فاركو للأدوية | H51: Vial + Solvent | I51: أمبيسيللين 1 جم + سالبكتام 500 مجم | J51: Ampicillin 1 gm + Sulbactam 500 mg | K51: 113 | L51: D | M51: المناقصة الثانية 2018-2019 | N51: 2019-2018 | O51: 2 | Q51: مناقصة | T51: ساري | U51: 400 | V51: 1500 | W51: 8 | X51: A | Y51: 4500 | Z51: Sulbin 1,5gm
A52: 3.5 | B52: 5.00/ Vial | C52: Vial + Solvent | E52: misr | F52: Ampicillin 500 mg | G52: الشركة المصرية لتجارة الأدوية | H52: Vial + Solvent | I52: أمبيسيللين 500 مجم | J52: Ampicillin 500 mg | K52: 87 | L52: A | M52: المناقصة الثانية 2018-2019 | N52: 2019-2018 | O52: 2 | Q52: مناقصة | T52: ساري | U52: 53000 | V52: 121500 | W52: 13.08641975 | X52: A | Y52: 364500 | Z52: Ampicillin 500 mg
A53: 0.207 | B53: 9 | C53: cap. | E53: pharco | F53: Urinex cap. | G53: ابن سينا فارما | H53: Capsules or Tablets | I53: انيثول + برونول + ببين + كامبفين + فنكون + سينول | J53: Anethole +Broneol +Pinene + Camphene + Fenchone + Cineole | K53: 532 | L53: A | M53: المناقصة الخامسة 2018-2019 | N53: 2018/2019 | O53: 5 | Q53: مناقصة | T53: ساري | U53: 4008 | V53: 12240 | W53: 9.823529412 | X53: A | Y53: 36720 | Z53: Urinex cap.
A54: 4.97 | B54: 12 | C54: Bottle 10 ml | E54: Orchidia Pharmaceutical Industries | F54: Trillerg | G54: ابن سينا فارما | H54: Bottle (10ml) | I54: أنتازولين هيدروكلوريد + تيتريزولين هيدروكلوريد قطرة عين | J54: Antazoline hydrochloride+ tetryzoline hydrochloride Eye drops | K54: 270 | L54: A | M54: مناقصة الاستكمال الثالثة 2017-2018 | N54: 2017-2018 | O54: 3 | Q54: استكمال | T54: ساري | U54: 3250 | V54: 1500 | W54: 65 | X54: C | Y54: 4500 | Z54: Trillerg
A55: 20 | B55: 27.600 / Can 150 ml | C55: Can 150 ml | E55: MUP | F55: Dermotracin Spray | G55: ابن سينا فارما | H55: Bottle | I55: بخاخة مضاد حيوى تحتوي على نيوميسن | J55: Antibiotic spray containing neomycin | K55: 93 | L55: A | M55: مناقصةا الاستكمال الاولى 2017-2018 | N55: 2017-2018 | O55: 1 | Q55: استكمال | T55: ساري | U55: 17110 | V55: 17852 | W55: 28.75308089 | X55: A | Y55: 53556 | Z55: Dermotracin Spray
A56: 6 | B56: 6.25 | C56: Tube 20 gm | E56: El Nile | F56: Hemocure topical gel | G56: المصرية لتجارة الأدوية | H56: Tube (20gm) | I56: جل مضاد للتجلط | J56: Anticoagulant gel | K56: 27 | L56: A | M56: مناقصةا الاستكمال الاولى 2017-2018 | N56: 2017-2018 | O56: 1 | Q56: استكمال | T56: ساري | U56: 71400 | V56: 73000 | W56: 29.34246575 | X56: A | Y56: 219000 | Z56: Hemocure topical gel
A57: 6.9 | B57: 12.75 | C57: Bottle 10 ml | E57: اكتوبر فارما | F57: Collomak paint | G57: فارما اوفر سيز | H57: Bottle (10ml) | I57: دهان لعلاج الكالو | J57: Anti-corn Paint | K57: 432 | L57: A | M57: المناقصة الرابعة 2018-2019 | N57: 2018/2019 | O57: 4 | Q57: مناقصة | T57: ساري | U57: 37550 | V57: 90020 | W57: 12.5138858 | X57: A | Y57: 270060 | Z57: Collomak paint
A58: 4.4 | B58: 4.550/120 ML | C58: Bottle 120 ml | E58: MUP | F58: SIMETHICONE ADULT SUSPENSION | G58: ابن سينا فارما | H58: Bottle (100ml) | I58: شراب مضاد للإنتفاخ يحتوي على سايميثيكون | J58: Anti-flatulance syrup containing Simethicone | K58: 137 | L58: A | M58: مناقصة الأستكمال الثانية 2017-2018 | N58: 2017-2018 | O58: 2 | Q58: استكمال | T58: ساري | U58: 26650 | V58: 79000 | W58: 10.12025316 | X58: A | Y58: 237000 | Z58: SIMETHICONE ADULT SUSPENSION
A59: 0.245 | B59: .25 / lozenge | C59: Lozenge | E59: Medizen | F59: Bradozen Lozenges | G59: فارما أوفر سيز | H59: lozenge Tablet | I59: أقراص استحلاب مطهرة | J59: antiseptic lozenges | K59: 119 | L59: A | M59: مناقصة الأستكمال الثانية 2017-2018 | N59: 2017-2018 | O59: 2 | Q59: استكمال | T59: ساري | U59: 650 | V59: 730 | W59: 26.71232877 | X59: A | Y59: 2190 | Z59: Bradozen Lozenges
A60: 52.5 | B60: Tenders | C60: 5 L | E60: El Nasr | F60: Cidexin | G60: المصرية لتجارة الأدوية | H60: Container 5 liter | I60: محلول لتعقيم المناظير و الأدوات الجراحية تحتوي علي الدهايد | J60: Antiseptic solution for endoscopy and surgical instruments contains aldhyde | K60: 109 | L60: A | M60: مناقصة الاستكمال الأولي 2013-2014 | N60: 2013-2014 | O60: 1 | Q60: استكمال | T60: ساري | U60: 340 | V60: 15050 | W60: 0.6777408638 | X60: A | Y60: 45150 | Z60: Cidexin
A61: 7.5 | B61: 11 | C61: plastic bottle 250 ml | E61: الدبيكى للصناعات الدوائية | F61: Microfree | G61: المصرية لتجارة الأدوية | H61: Sachet or Bottle | I61: غسول مهبلى مطهر | J61: Antiseptic vaginal douche | K61: 676 | L61: A | M61: المناقصة السابعة 2015-2016 | N61: 2015-2016 | O61: 7 | Q61: مناقصة | T61: ساري | U61: 218000 | V61: 294500 | W61: 22.20713073 | X61: A | Y61: 883500 | Z61: Microfree
A62: 0.174 | B62: 6.25علبة20 قرص | C62: Tablet | E62: Eipico | F62: Ateno | G62: ايبيكو | H62: Capsules or Tablets | I62: أتينولول 100 مجم | J62: Atenolol 100 mg | K62: 290 | L62: B | M62: المناقصة الثالثة 2018-2019 | N62: 2018/2019 | O62: 3 | Q62: مناقصة | T62: ساري | U62: 4490 | V62: 14300 | W62: 9.41958042 | X62: A | Y62: 42900 | Z62: Ateno
A63: 2.4 | B63: 3 | C63: Capsule | E63: Multi Apex Pharma | F63: Atomoxapex 10 mg | G63: ابن سينا فارما | H63: Capsule or Tablet | I63: اتوموكستين 10 مجم | J63: Atomoxtine 10 mg | K63: 6 | L63: A | M63: المناقصة النفسية 2015-2016 | N63: 2015-2016 | O63: 6 | P63: نفسية | Q63: مناقصة | T63: ساري | U63: 6640 | V63: 3900 | W63: 51.07692308 | X63: B | Y63: 11700 | Z63: Atomoxapex 10 mg
A64: 5.366 | B64: 8 | C64: Tablet | E64: Mash Premiere | F64: ATTENSERA | G64: ابن سينا فارما | H64: Capsule or Tablet | I64: اتوموكستين 40 مجم | J64: Atomoxtine 40 mg | K64: 7 | L64: A | M64: المناقصة النفسية 2015-2016 | N64: 2015-2016 | O64: 6 | P64: نفسية | Q64: مناقصة | T64: ساري | U64: 15400 | V64: 10990 | W64: 42.03821656 | X64: B | Y64: 32970 | Z64: ATTENSERA
A65: 0.189 | B65: 21.6 | C65: tab | E65: pharo pharma | F65: lipicole 10 | G65: ابن سينا فارما | H65: Capsules or Tablets | I65: اتورفاستاتين 10مجم | J65: Atorvastatin 10 mg | K65: 331 | L65: A | M65: المناقصة الثالثة 2018-2019 | N65: 2018/2019 | O65: 3 | Q65: مناقصة | T65: ساري | U65: 28200 | V65: 26000 | W65: 32.53846154 | X65: B | Y65: 78000 | Z65: lipicole 10
A66: 0.224 | B66: 24 | C66: tab | E66: pharo pharma | F66: lipicole 20 | G66: ابن سينا فارما | H66: Capsules or Tablets | I66: اتورفاستاتين 20مجم | J66: Atorvastatin 20 mg | K66: 332 | L66: A | M66: المناقصة الثالثة 2018-2019 | N66: 2018/2019 | O66: 3 | Q66: مناقصة | T66: ساري | U66: 20000 | V66: 23000 | W66: 26.08695652 | X66: A | Y66: 69000 | Z66: lipicole 20
A67: 9.9 | B67: 127.5 | C67: Amp | E67: شركة اسكندرية للأدوية لصالح ايجي فارما | F67: Atracurium Besylate50mg | G67: فارما اوفر سيز | H67: Injection | I67: اتراكيوريوم 50 مجم | J67: Atracurium 50 mg | K67: 27 | L67: A | M67: المناقصة الأولى 2018-2019 | N67: 2019-2018 | O67: 1 | Q67: مناقصة | R67: Yes | T67: ساري | U67: 0 | V67: 576 | W67: 0 | X67: A | Y67: 1728 | Z67: Atracurium Besylate50mg
A68: 1.995 | B68: 2.06 | C68: Amp | E68: Nile | F68: Atropine | G68: الشركة المصرية لتجارة الأدوية | H68: Injection | I68: أتروبين 1 مجم / مللي | J68: Atropine 1 mg / ml | K68: 22 | L68: A | M68: المناقصة الأولى 2018-2019 | N68: 2019-2018 | O68: 1 | Q68: مناقصة | T68: ساري | U68: 667 | V68: 1870 | W68: 10.70053476 | X68: A | Y68: 5610 | Z68: Atropine
A69: 0.885 | B69: 1.425 | C69: Tablet | E69: RBG استيراد المكتب التجاري الدولي | F69: Azathioprine 50 mg | G69: ابن سينا فارما | H69: Capsule or Tablet | I69: ازاثيوبرين 50 مجم | J69: Azathioprine 50 mg | K69: 8 | L69: A | M69: المناقصة النفسية 2015-2016 | N69: 2015-2016 | O69: 6 | P69: نفسية | Q69: مناقصة | T69: ساري | U69: 8200 | V69: 3200 | W69: 76.875 | X69: C | Y69: 9600 | Z69: Azathioprine 50 mg
A70: 17 | B70: 21.600 / 30 GM | C70: TUBE 30 GM | E70: MUP | F70: AZADERM CREAM | G70: ابن سينا فارما | H70: Tube (30gm) | I70: حمض الأزيليك 20% كريم | J70: Azelaic Acid 20% Cream | K70: 418 | L70: A | M70: المناقصة الرابعة 2018-2019 | N70: 2018/2019 | O70: 4 | Q70: مناقصة | T70: ساري | U70: 0 | V70: 40 | W70: 0 | X70: A | Y70: 120 | Z70: AZADERM CREAM
A71: 5.43 | B71: 15 | C71: bottle 15 ml+ Water for reconstitution | E71: riva pharma | F71: azatribact | G71: ابن سينا فارما | H71: Bottle (15ml) + Water for reconstitution | I71: أزيثرومايسين 200 مجم /5 مللي معلق | J71: Azithromycin 200 mg / 5 ml Suspension | K71: 154 | L71: A | M71: المناقصة الثانية 2018-2019 | N71: 2019-2018 | O71: 2 | Q71: مناقصة | T71: ساري | U71: 40 | V71: 2251 | W71: 0.5330964016 | X71: A | Y71: 6753 | Z71: azatribact
A72: 0.147 | B72: 6.5 | C72: tab | E72: pharo pharma | F72: Mylobac | G72: ابن سينا فارما | H72: Capsules or Tablets | I72: باكلوفين 10مجم | J72: Baclofen 10 mg | K72: 71 | L72: A | M72: المناقصة الاولي 2018-2019 | N72: 2018/2019 | O72: 1 | Q72: مناقصة | T72: ساري | U72: 17160 | V72: 71000 | W72: 7.250704225 | X72: A | Y72: 213000 | Z72: Mylobac
A73: 0.45 | B73: 21.75 | C73: tab | E73: شركة مصر للمستحضرات الطبية لصالح شركة الدلتا لتجارة الادوية | F73: Baclofen | G73: ابن سينا فارما | H73: Capsules or Tablets | I73: باكلوفين 25مجم | J73: Baclofen 25 mg | K73: 72 | L73: A | M73: المناقصة الاولي 2018-2019 | N73: 2018/2019 | O73: 1 | Q73: مناقصة | T73: ساري | U73: 975 | V73: 676 | W73: 43.26923077 | X73: B | Y73: 2028 | Z73: Baclofen
A74: 24 | B74: 28.8 | C74: Aerosolbottle | E74: Adco | F74: Beclosone forte | G74: المصرية لتجارة الأدوية | H74: inhaler | I74: بيكلوميثازون استنشاق | J74: Beclomethasone 100 mcg/dose Inhalation | K74: 128 | L74: A | M74: مناقصة الأستكمال الثانية 2017-2018 | N74: 2017-2018 | O74: 2 | Q74: استكمال | T74: ساري | U74: 0 | V74: 900 | W74: 0 | X74: A | Y74: 2700 | Z74: Beclosone forte
A75: 4.32 | B75: 6 | C75: Bottle 10 ml | E75: Eipico | F75: Benox | G75: ايبيكو | H75: Bottle 10 ml | I75: بينوكسينات هيدروكلورايد 0.4% نقط عين | J75: Benoxinate HCl 0.4 % Eye Drops | K75: 720 | L75: A | M75: المناقصة الثامنة 2015-2016 | N75: 2015-2016 | O75: 8 | Q75: مناقصة | T75: ساري | U75: 8590 | V75: 17240 | W75: 14.94779582 | X75: A | Y75: 51720 | Z75: Benox
A76: 4.2 | B76: 4.250 / 20 GM | C76: TUBE 20 GM | E76: MUP | F76: AKNEROXID-5 GEL | G76: ابن سينا فارما | H76: Tube (20gm) | I76: بنزويل بيراوكسيد 5% جيل | J76: Benzoyl Peroxide 5% Gel | K76: 387 | L76: A | M76: المناقصة الرابعة 2018-2019 | N76: 2018/2019 | O76: 4 | Q76: مناقصة | T76: ساري | U76: 3450 | V76: 2450 | W76: 42.24489796 | X76: B | Y76: 7350 | Z76: AKNEROXID-5 GEL
A77: 0.4485 | B77: 0.75 | C77: Tablet | E77: El Kahira | F77: Cogentol | G77: المصرية لتجارة الأدوية | H77: Capsule or Tablet | I77: بينزتروبين 2 مجم | J77: Benztropine 2 mg | K77: 10 | L77: A | M77: المناقصة النفسية 2015-2016 | N77: 2015-2016 | O77: 6 | P77: نفسية | Q77: مناقصة | T77: ساري | U77: 1340 | V77: 6570 | W77: 6.118721461 | X77: A | Y77: 19710 | Z77: Cogentol
A78: 4.9 | B78: 7.5/ vial | C78: Vial + Solvent | E78: misr | F78: Benzyl penicillin G 1.000.000 I.U | G78: الشركة المصرية لتجارة الأدوية | H78: Vial + Solvent | I78: بنزيل بنسيللين ج صوديوم 1,000,000 وحدة دولية | J78: Benzyl Penicillin G Sodium 1,000,000 I.U. | K78: 83 | L78: A | M78: المناقصة الثانية 2018-2019 | N78: 2019-2018 | O78: 2 | Q78: مناقصة | R78: Yes | T78: ساري | U78: 59600 | V78: 100820 | W78: 17.73457647 | X78: A | Y78: 302460 | Z78: Benzyl penicillin G 1.000.000 I.U
A79: 2.6 | B79: 4 | C79: Tube 15 gm | E79: pharo pharma | F79: Cronomesone cream | G79: فارما اوفر سيز | H79: Tube | I79: بيتاميتازون 0.1% كريم | J79: Betamethasone 0.1 % Cream | K79: 395 | L79: A | M79: المناقصة الرابعة 2018-2019 | N79: 2018/2019 | O79: 4 | Q79: مناقصة | T79: ساري | U79: 1000 | V79: 850 | W79: 35.29411765 | X79: B | Y79: 2550 | Z79: Cronomesone cream
A80: 2.8 | B80: 4 | C80: Tube 15 gm | E80: pharo pharma | F80: Cronomesone ointment | G80: فارما اوفر سيز | H80: Tube | I80: بيتاميتازون 0.1% مرهم | J80: Betamethasone 0.1 % Ointment | K80: 396 | L80: A | M80: المناقصة الرابعة 2018-2019 | N80: 2018/2019 | O80: 4 | Q80: مناقصة | T80: ساري | U80: 20000 | V80: 76520 | W80: 7.841087297 | X80: A | Y80: 229560 | Z80: Cronomesone ointment
A81: 7.071428571 | B81: 9 | C81: Bottle 30 ml | E81: Memphis | F81: Betasalic | G81: المصرية لتجارة الأدوية | H81: Bottle 30 ml | I81: بيتاميتازون 0.05% +حمض الساليسليك 3% لوسيون | J81: Betamethasone 0.05%+ Salicylic acid 2% Lotion | K81: 161 | L81: A | M81: مناقصة الاستكمال الرابعة 2014-2015 | N81: 2014-2015 | O81: 4 | Q81: استكمال | T81: ساري | U81: 464000 | V81: 1053050 | W81: 13.21874555 | X81: A | Y81: 3159150 | Z81: Betasalic
A82: 8.75 | B82: سعر الجمهور للامبول الواحد | C82: Ampoule | E82: Marcyrl | F82: Dexaglobe ampoule | G82: شركة رامكو | H82: Injection | I82: بيتاميثازون دايبروبيونات10مجم+ بيتاميثازون صوديوم فوسفات 4مجم | J82: Betamethasone dipropionate 10 mg+ Betamethasone Na PO4 4 mg | K82: 765 | L82: A | M82: المناقصة السابعة 2018-2019 | N82: 7 | O82: 7 | Q82: مناقصة | T82: ساري | U82: 90 | V82: 90 | W82: 30 | X82: A | Y82: 270 | Z82: Dexaglobe ampoule
A83: 3646 | B83: 4096 | E83: Roche | F83: Avastin 100mg | G83: المصرية لتجارة الأدوية | H83: Injection | J83: Bevacizumab 100mg | K83: 4 | L83: A | M83: شراء موحد أدوية الأورام List 51 | N83: 2018 | O83: 51 | P83: Oncology | Q83: مناقصة | R83: Yes | S83: Oncology | T83: ساري | U83: 73500 | V83: 223875 | W83: 9.849246231 | X83: A | Y83: 671625 | Z83: Avastin 100mg
A84: 13051 | B84: 13501 | E84: Roche | F84: Avastin 400mg | G84: المصرية لتجارة الأدوية | H84: Injection | J84: Bevacizumab 400mg | K84: 5 | L84: A | M84: شراء موحد أدوية الأورام List 51 | N84: 2018 | O84: 51 | P84: Oncology | Q84: مناقصة | R84: Yes | S84: Oncology | T84: ساري | U84: 3981 | V84: 9790 | W84: 12.19918284 | X84: A | Y84: 29370 | Z84: Avastin 400mg
A85: 18.75 | B85: 25.71428571 | C85: Tablet | D85: مستورد | E85: Astrazeneca | F85: Casodex 50 mg | G85: ابن سينا فارما | H85: Capsules or Tablets | I85: بيكليوتامايد 50 مجم | J85: Bicalutamide 50 mg | K85: 6 | L85: A | M85: شراء موحد أدوية الأورام List 51 | N85: 2018 | O85: 51 لضمان التوافر | P85: Oncology | Q85: مناقصة | R85: Yes | S85: Oncology | T85: ساري | U85: 11540 | V85: 9900 | W85: 34.96969697 | X85: B | Y85: 29700 | Z85: Casodex 50 mg
A86: 0.2997275204 | B86: 0.44 | C86: Tablet | E86: Pharco | F86: Biperiden Tab | G86: فاركو للأدوية | H86: Capsule or Tablet | I86: بيبريدين 2 مجم | J86: Biperiden 2 mg | K86: 13 | L86: A | M86: المناقصة النفسية 2015-2016 | N86: 2015-2016 | O86: 6 | P86: نفسية | Q86: مناقصة | T86: ساري | U86: 28000 | V86: 20600 | W86: 40.77669903 | X86: B | Y86: 61800 | Z86: Biperiden Tab
A87: 6.325 | B87: 9.2 | C87: Ampoule | E87: Delta Pharma | F87: Kinoprid | G87: فارما أوفر سيز | H87: Injection | I87: بيبريدين 5 مجم/ مللي | J87: Biperiden 5 mg / ml | K87: 14 | L87: A | M87: المناقصة النفسية 2015-2016 | N87: 2015-2016 | O87: 6 | P87: نفسية | Q87: مناقصة | T87: ساري | U87: 4300 | V87: 4300 | W87: 30 | X87: A | Y87: 12900 | Z87: Kinoprid
A88: 0.191 | B88: 5.9 | C88: cap. | E88: pharco | F88: Bilicol cap. | G88: ابن سينا فارما | H88: Capsules or Tablets | I88: بورنيول +بينين +كامفين +مينيتول +سينيول +مينيتون | J88: Borneol + Pinene + Camphene + Menthol + Cineole + Menthone | K88: 529 | L88: A | M88: المناقصة الخامسة 2018-2019 | N88: 2018/2019 | O88: 5 | Q88: مناقصة | T88: ساري | U88: 879 | V88: 7473 | W88: 3.528703332 | X88: A | Y88: 22419 | Z88: Bilicol cap.
A89: 12.576 | B89: 31.2 | C89: Bottle 5 ml | E89: Orchidia Pharmaceutical Industries | F89: Alphanova | G89: المتحدة للصيادلة | H89: Bottle 5 ml | I89: بريموندين 0.15% نقط عين | J89: Brimonidine 0.15 % Eye Drops | K89: 717 | L89: A | M89: المناقصة الثامنة 2015-2016 | N89: 2015-2016 | O89: 8 | Q89: مناقصة | T89: ساري | U89: 1155 | V89: 530 | W89: 65.37735849 | X89: C | Y89: 1590 | Z89: Alphanova
A90: 0.15495 | B90: 0.36 | C90: Tablet | E90: GSK - E | F90: Calmepam | G90: المصرية لتجارة الأدوية | H90: Capsule or Tablet | I90: برومازيبام 1,5 مجم | J90: Bromazepam 1.5 mg | K90: 15 | L90: A | M90: المناقصة النفسية 2015-2016 | N90: 2015-2016 | O90: 6 | P90: نفسية | Q90: مناقصة | T90: ساري | U90: 130340 | V90: 330680 | W90: 11.82472481 | X90: A | Y90: 992040 | Z90: Calmepam
A91: 0.1875 | B91: 0.43 | C91: Tablet | E91: GSK - E | F91: Calmepam | G91: المصرية لتجارة الأدوية | H91: Capsule or Tablet | I91: برومازيبام 3 مجم | J91: Bromazepam 3 mg | K91: 16 | L91: A | M91: المناقصة النفسية 2015-2016 | N91: 2015-2016 | O91: 6 | P91: نفسية | Q91: مناقصة | T91: ساري | U91: 5360 | V91: 2120 | W91: 75.8490566 | X91: C | Y91: 6360 | Z91: Calmepam
A92: 0.124 | B92: 4.55 | C92: Tab. | E92: Amriya | F92: Bromhexine | G92: ابن سينا فارما | H92: Capsules or Tablets | I92: بروموهكسين 8 مجم | J92: Bromhexine 8 mg | K92: 806 | L92: A | M92: المناقصة السابعة 2018-2019 | N92: 2018/2019 | O92: 7 | Q92: مناقصة | R92: Yes | T92: ساري | U92: 24 | V92: 60 | W92: 12 | X92: A | Y92: 180 | Z92: Bromhexine
A93: 23.04 | B93: 28.8 | C93: Bottle of 120 dose | E93: Astrazeneca | F93: Rhinocort aqua 32 meg/dose( 0.64mg/ml) | G93: رامكو فارم لتجارة الادوية | H93: Bottle | I93: بيوديسونيد 32 مكجم/جرعة واحدة بخاخ للأنف | J93: Budesonide 32 mcg/dose Nasal Spray | K93: 658 | L93: A | M93: المناقصة السابعة 2015-2016 | N93: 2015-2016 | O93: 7 | Q93: مناقصة | T93: ساري | U93: 179600 | V93: 139600 | W93: 38.59598854 | X93: B | Y93: 418800 | Z93: Rhinocort aqua 32 meg/dose( 0.64mg/ml)
A94: 99.94 | C94: turbo haller 60 dose | E94: Astrazeneca | F94: Symbicort 320 ug | G94: فارما أوفر سيز | H94: tubuhaler | I94: بيوداسونيد 320ميكروجرام + فورميتيرول 9ميكروجرام | J94: Budesonide 320mcg+ Formoterol 9mcg | K94: 284 | L94: A | M94: مناقصة الاستكمال الثالثة 2017-2018 | N94: 2017-2018 | O94: 3 | Q94: استكمال | T94: ساري | U94: 103000 | V94: 93816 | W94: 32.93681248 | X94: B | Y94: 281448 | Z94: Symbicort 320 ug
A95: 0.59 | C95: Tablet | E95: Future Pharmaceutical Industries | F95: Exupar 15mg | G95: فارما أوفر سيز | H95: Capsules or Tablets | I95: باسبيرون 15 مجم | J95: Buspirone 15mg | K95: 341 | L95: A | M95: مناقصة الاستكمال الثالثة 2017-2018 | N95: 2017-2018 | O95: 3 | Q95: استكمال | S95: Psychoactive Drugs | T95: ساري | U95: 4800 | V95: 4800 | W95: 30 | X95: A | Y95: 14400 | Z95: Exupar 15mg
A96: 0.2 | B96: 10.50/ (box / 30cap.) | C96: Capsule | E96: Multi Apex Pharma | F96: DILASAL 250mg | G96: مالتى فارما للادوية | H96: Capsule or Tablet | I96: كالسيوم دوبيسيلات250مجم | J96: Ca dobesilate 250mg | K96: 359 | L96: A | M96: المناقصة الرابعة 2010-2011 | N96: 2010-2011 | O96: 4 | Q96: مناقصة | T96: ساري | U96: 19200 | V96: 20050 | W96: 28.72817955 | X96: A | Y96: 60150 | Z96: DILASAL 250mg
A97: 23 | B97: 30 | C97: 1vial | E97: Inspire | F97: Caffeinospire I V | G97: المتحدة للصيادلة | H97: Injection | I97: سترات الكافيين 20 مجم / مل | J97: Caffeine Citrate 20 mg / ml | K97: 848 | L97: A | M97: المناقصة السابعة 2018-2019 | N97: 2018/2019 | O97: 7 | Q97: مناقصة | T97: ساري | U97: 96000 | V97: 216000 | W97: 13.33333333 | X97: A | Y97: 648000 | Z97: Caffeinospire I V
A98: 16.5 | B98: 45 | C98: Tube 15 gm | E98: Utopia | F98: Plaqverazone | G98: ابن سينا فارما | H98: Tube 15 gm | I98: كالسيبوتريول + بيتاميتازون مرهم | J98: Calcipotriol + Betamethasone Ointment | K98: 347 | L98: A | M98: المناقصة الرابعة 2015-2016 | N98: 2015-2016 | O98: 4 | Q98: مناقصة | T98: ساري | U98: 29030 | V98: 30020 | W98: 29.01065956 | X98: A | Y98: 90060 | Z98: Plaqverazone
A99: 16.5 | B99: Tenders | C99: 15 gm | E99: Zad Industrial Pharma | F99: Trument | G99: المتحدة للصيادلة | H99: Tube 15 gm | I99: كالسيبوتريول + بيتاميتازون مرهم | J99: Calcipotriol + Betamethasone Ointment | K99: 347 | L99: B | M99: المناقصة الرابعة 2015-2016 | N99: 2015-2016 | O99: 4 | Q99: مناقصة | T99: ساري | U99: 75000 | V99: 60000 | W99: 37.5 | X99: B | Y99: 180000 | Z99: Trument
A100: 134 | B100: 210.00/tube | C100: bottle | E100: LEO | F100: Xamiol Gel | G100: الشركة المصرية لتجارة الأدوية | H100: Bottle | I100: كالسيبوتريول + بيتاميتازون جيل | J100: Calcipotriol + Betamethasone gel | K100: 394 | L100: A | M100: المناقصة الرابعة 2018-2019 | N100: 2018/2019 | O100: 4 | Q100: مناقصة | T100: ساري | U100: 182000 | V100: 258000 | W100: 21.1627907 | X100: A | Y100: 774000 | Z100: Xamiol Gel
A101: 0.132 | B101: 0.8 | C101: Tablet | E101: Pharo Pharma | F101: Pharocal tablet | G101: ابن سينا فارما | H101: Capsule or Tablet | I101: كالسيوم كاربونات 500 مجم | J101: Calcium Carbonate 500 mg | K101: 768 | L101: A | M101: المناقصة الثامنة 2015-2016 | N101: 2015-2016 | O101: 8 | Q101: مناقصة | T101: ساري | U101: 25100 | V101: 34050 | W101: 22.11453744 | X101: A | Y101: 102150 | Z101: Pharocal tablet
A102: 3.675 | B102: 5.4 | C102: Ampoule 10 ml | E102: Memphis | F102: Calcionate | G102: المصرية لتجارة الأدوية | H102: Injection | I102: كالسيوم جلوكونات 10% | J102: Calcium Gluconate 10% | K102: 845 | L102: A | M102: المناقصة الثامنة 2013-2014 | N102: 2013-2014 | O102: 8 | Q102: مناقصة | R102: Yes | T102: ساري | U102: 89140 | V102: 303200 | W102: 8.819920844 | X102: A | Y102: 909600 | Z102: Calcionate
A103: 45 | B103: 3250 | C103: vial | E103: الشركة العربية للمستحضرات الطبية (ارابكوميد) لصالح شركة بيوكابيتال توزيع شركة ايجي فارما | F103: Folinobiogen 10mg/ml | G103: فارما اوفر سيز | H103: Ampoule | I103: كالسيوم ليكوفرين | J103: CALCIUM LEUCOVERIN | K103: 3 | L103: A | M103: المناقصة العامة لتوريد أدوية علاج السموم جلسة 13/11/2016 | Q103: مناقصة | T103: ساري | U103: 54000 | V103: 76600 | W103: 21.14882507 | X103: A | Y103: 229800 | Z103: Folinobiogen 10mg/ml
A104: 4.375 | B104: 9.75 | C104: Bottle Plastic 250 ml | E104: المتحدون فارما (أوتسوكا) | F104: SHERIMENT (Pediment) | G104: فارما أوفر سيز | H104: Bottle 250 ml | I104: كالسيوم جلوكونات + دكستروز + بوتاسيوم كلوريد + صوديوم كلورد | J104: Calcium gluconate + DextrosePotassium chloride + sodium chloride | K104: 134 | L104: A | M104: مناقصة الاستكمال الرابعة 2014-2015 | N104: 2014-2015 | O104: 4 | Q104: استكمال | T104: ساري | U104: 30 | V104: 4000 | W104: 0.225 | X104: A | Y104: 12000 | Z104: SHERIMENT (Pediment)
A105: 1.15 | B105: 47.00/14 tabs | C105: Tablet | E105: Future Pharmaceutical Industries | F105: candalkan 16+ | G105: ابن سينا فارما | H105: Capsules or Tablets | I105: كانديسرتان16مجم + هيدروكلوروثيازيد 12.5مجم | J105: Candesartan Cilexetil 16 mg + Hydrochlorothiazide 12.5 mg | K105: 264 | L105: A | M105: مناقصة الاستكمال الثالثة 2017-2018 | N105: 2017-2018 | O105: 3 | Q105: استكمال | T105: ساري | U105: 15050 | V105: 78600 | W105: 5.744274809 | X105: A | Y105: 235800 | Z105: candalkan 16+
A106: 1.15 | B106: 18.00 / strip 10 tablet | C106: Tablet | E106: pharco | F106: candyeblock -d | G106: فاركو للأدوية | H106: Capsules or Tablets | I106: كانديسرتان16مجم + هيدروكلوروثيازيد 12.5مجم | J106: Candesartan Cilexetil 16 mg + Hydrochlorothiazide 12.5 mg | K106: 264 | L106: B | M106: مناقصة الاستكمال الثالثة 2017-2018 | N106: 2017-2018 | O106: 3 | Q106: استكمال | T106: ساري | U106: 35800 | V106: 181000 | W106: 5.933701657 | X106: A | Y106: 543000 | Z106: candyeblock -d
A107: 1.15 | C107: Tablet | E107: Marcyrl for Geopharma | F107: Geocand Plus | G107: فارما أوفر سيز | H107: Capsules or Tablets | I107: كانديسرتان16مجم + هيدروكلوروثيازيد 12.5مجم | J107: Candesartan Cilexetil 16 mg + Hydrochlorothiazide 12.5 mg | K107: 264 | L107: C | M107: مناقصة الاستكمال الثالثة 2017-2018 | N107: 2017-2018 | O107: 3 | Q107: استكمال | T107: ساري | U107: 18000 | V107: 46000 | W107: 11.73913043 | X107: A | Y107: 138000 | Z107: Geocand Plus
A108: 0.5 | C108: Tablet | E108: Pharo Pharma | F108: Candisar 4 mg Tablets | G108: فارما أوفر سيز | H108: Capsules or Tablets | I108: كانديسرتان 4 مجم | J108: Candesartan Cilexetil 4 mg | K108: 262 | L108: A | M108: مناقصة الاستكمال الثالثة 2017-2018 | N108: 2017-2018 | O108: 3 | Q108: استكمال | T108: ساري | U108: 4400 | V108: 5600 | W108: 23.57142857 | X108: A | Y108: 16800 | Z108: Candisar 4 mg Tablets
A109: 0.7 | C109: Tablet | E109: Pharo Pharma | F109: Candisar 8 mg Tablets | G109: فارما أوفر سيز | H109: Capsules or Tablets | I109: كانديسرتان 8 مجم | J109: Candesartan Cilexetil 8 mg | K109: 263 | L109: C | M109: مناقصة الاستكمال الثالثة 2017-2018 | N109: 2017-2018 | O109: 3 | Q109: استكمال | T109: ساري | U109: 60 | V109: 180 | W109: 10 | X109: A | Y109: 540 | Z109: Candisar 8 mg Tablets
A110: 16.875 | B110: 17.29166667 | C110: Tablet | D110: مستورد | E110: Roche | F110: Xeloda 500 mg | G110: المصرية لتجارة الأدوية | H110: Capsules or Tablets | I110: كابيسيتابين 500مجم | J110: Capecitabine 500 mg | K110: 7 | L110: A | M110: شراء موحد أدوية الأورام List 51 | N110: 2018 | O110: 51 | P110: Oncology | Q110: مناقصة | S110: Oncology | T110: ساري | U110: 60 | V110: 300 | W110: 6 | X110: A | Y110: 900 | Z110: Xeloda 500 mg
A111: 0.257 | B111: 0.725/ tab | C111: Tablet | E111: Mepaco | F111: Calcium D3 F | G111: المصرية لتجارة الأدوية | H111: Capsules or Tablets | I111: فيتامين د + كالسيوم | J111: Capsules or Tablets Containing Vitamin D + Calcium | K111: 192 | L111: A | M111: مناقصة الأستكمال الثانية 2017-2018 | N111: 2017-2018 | O111: 2 | Q111: استكمال | T111: ساري | U111: 2400 | V111: 2640 | W111: 27.27272727 | X111: A | Y111: 7920 | Z111: Calcium D3 F
A112: 0.269 | B112: 20.4 | C112: tab | E112: pharo pharma | F112: Angiopress Comp | G112: ابن سينا فارما | H112: Capsules or Tablets | I112: كابتوبريل 50مجم+هيدروكلوروثيازيد 25 مجم | J112: Captopril 50 mg + Hydrochlorothiazide 25 mg | K112: 266 | L112: A | M112: المناقصة الثالثة 2018-2019 | N112: 2018-2019 | O112: 3 | Q112: مناقصة | T112: ساري | U112: 162320 | V112: 389460 | W112: 12.50346634 | X112: A | Y112: 1168380 | Z112: Angiopress Comp
A113: 0.1245 | B113: 11.00/20tab. | C113: Tablet | E113: Kahira | F113: Lotensine | G113: الشركة المصرية لتجارة الأدوية | H113: Capsules or Tablets | I113: كابتوبريل 25 مجم | J113: Captopril 25 mg | K113: 267 | L113: A | M113: المناقصة الثالثة 2018-2019 | N113: 2018-2019 | O113: 3 | Q113: مناقصة | T113: ساري | U113: 200 | V113: 1200 | W113: 5 | X113: A | Y113: 3600 | Z113: Lotensine
A114: 0.1245 | B114: 8.40علبة20 قرص | C114: Tablet | E114: Eipico | F114: Capotril | G114: ايبيكو | H114: Capsules or Tablets | I114: كابتوبريل 25 مجم | J114: Captopril 25 mg | K114: 267 | L114: B | M114: المناقصة الثالثة 2018-2019 | N114: 2018-2019 | O114: 3 | Q114: مناقصة | T114: ساري | U114: 44000 | V114: 25000 | W114: 52.8 | X114: B | Y114: 75000 | Z114: Capotril
A115: 0.72 | B115: 0.8 | C115: Tablet | E115: Unipharma | F115: mazemal400mgcr | G115: ابن سينا فارما | H115: Capsule or Tablet | I115: كاربامازيبين 400 مجم س.ر | J115: carbamazepine 400 mg C.R | K115: 21 | L115: A | M115: المناقصة النفسية 2015-2016 | N115: 2015-2016 | O115: 6 | P115: نفسية | Q115: مناقصة | T115: ساري | U115: 15500 | V115: 8500 | W115: 54.70588235 | X115: B | Y115: 25500 | Z115: mazemal400mgcr
A116: 0.72 | B116: 1.44 | C116: Tablet | E116: Alfacure Pharmaceuticals | F116: Levocar | G116: فارما أوفر سيز | H116: Capsule or Tablet | I116: كاربيدوبا 25 مجم + ليفودوبا 250 مجم | J116: Carbidopa 25 mg + Levodopa 250 mg | K116: 22 | L116: A | M116: المناقصة النفسية 2015-2016 | N116: 2015-2016 | O116: 6 | P116: نفسية | Q116: مناقصة | T116: ساري | U116: 480 | V116: 9280 | W116: 1.551724138 | X116: A | Y116: 27840 | Z116: Levocar
A117: 0.185 | B117: 9.5لل 50 قرص | C117: قرص | E117: سيد | F117: Carbimazole 5 mg tab | G117: ابن سينا فارما | H117: Capsules or Tablets | I117: كاربيمازول 5 مجم | J117: Carbimazole 5 mg | K117: 569 | L117: A | M117: المناقصة الخامسة 2018-2019 | N117: 2018/2019 | O117: 5 | Q117: مناقصة | T117: ساري | U117: 21790 | V117: 10000 | W117: 65.37 | X117: C | Y117: 30000 | Z117: Carbimazole 5 mg tab
A118: 0.185 | B118: 10 | C118: Tablet | E118: Royal link pharma | F118: Thyrocarbin 5mg | G118: فارما اوفر سيز | H118: Capsules or Tablets | I118: كاربيمازول 5 مجم | J118: Carbimazole 5 mg | K118: 569 | L118: B | M118: المناقصة الخامسة 2018-2019 | N118: 2018/2019 | O118: 5 | Q118: مناقصة | T118: ساري | U118: 32800 | V118: 59200 | W118: 16.62162162 | X118: A | Y118: 177600 | Z118: Thyrocarbin 5mg
A119: 0.63 | B119: 1.1 | C119: tab | E119: جلوبال نابى | F119: CARVIPRESS 12.5 MG (2Stp) | G119: رامكو فارم لتجارة الادوية | H119: Capsules or Tablets | I119: كارفيديلول 12.5 مجم | J119: Carvedilol 12.5 mg | K119: 294 | L119: A | M119: المناقصة الثالثة 2018-2019 | N119: 2018/2019 | O119: 3 | Q119: مناقصة | T119: ساري | U119: 1000 | V119: 400 | W119: 75 | X119: C | Y119: 1200 | Z119: CARVIPRESS 12.5 MG (2Stp)
A120: 0.4 | B120: 1.20 LE /Tab | C120: Tab | E120: Marcyrl | F120: Cardilol 25mg | G120: فارما اوفر سيز | H120: Capsules or Tablets | I120: كارفيديلول 25مجم | J120: Carvedilol 25 mg | K120: 295 | L120: A | M120: المناقصة الثالثة 2018-2019 | N120: 2018/2019 | O120: 3 | Q120: مناقصة | T120: ساري | U120: 4300 | V120: 1600 | W120: 80.625 | X120: C | Y120: 4800 | Z120: Cardilol 25mg
A121: 1.9 | B121: 18 | C121: tab | E121: pharco B | F121: Curisafe 1gm | G121: بي فاركو | H121: Capsules or Tablets | I121: سيفادروكسيل 1 جم | J121: Cefadroxil 1 g | K121: 136 | L121: A | M121: المناقصة الثانية 2018-2019 | N121: 2019-2018 | O121: 2 | Q121: مناقصة | T121: ساري | U121: 2500 | V121: 900 | W121: 83.33333333 | X121: C | Y121: 2700 | Z121: Curisafe 1gm
A122: 11.5 | B122: 15 | C122: bottle 80 ml +Solvent | E122: pharco B | F122: Curisafe 250 mg susp | G122: بي فاركو | H122: Bottle (80ml) + Water for reconstitution | I122: سيفادروكسيل 250 / 5 مللي مجم معلق | J122: Cefadroxil 250 mg / 5 ml Suspension | K122: 139 | L122: A | M122: المناقصة الثانية 2018-2019 | N122: 2019-2018 | O122: 2 | Q122: مناقصة | T122: ساري | U122: 45 | V122: 4610 | W122: 0.2928416486 | X122: A | Y122: 13830 | Z122: Curisafe 250 mg susp
A123: 0.96 | B123: 12.625 | C123: cap | E123: riva pharma | F123: mediceflexin | G123: ابن سينا فارما | H123: Capsules or Tablets | I123: سيفالكسين 500 مجم | J123: Cefalexin 500 mg | K123: 119 | L123: A | M123: المناقصة الثانية 2018-2019 | N123: 2019-2018 | O123: 2 | Q123: مناقصة | T123: ساري | U123: 0 | V123: 5000 | W123: 0 | X123: A | Y123: 15000 | Z123: mediceflexin
A124: 0.96 | B124: 12.00/ | C124: Cap. | E124: Nile | F124: Neocef 500 mg | G124: الشركة المصرية لتجارة الأدوية | H124: Capsules or Tablets | I124: سيفالكسين 500 مجم | J124: Cefalexin 500 mg | K124: 119 | L124: B | M124: المناقصة الثانية 2018-2019 | N124: 2019-2018 | O124: 2 | Q124: مناقصة | T124: ساري | U124: 129396 | V124: 388600 | W124: 9.989397838 | X124: A | Y124: 1165800 | Z124: Neocef 500 mg
A125: 16.75 | B125: 11 | C125: Vial + solvent | E125: أفروس | F125: Cinaverose | G125: ابن سينا فارما | H125: Vial + Solvent | I125: سيفيبيم 500 مجم | J125: Cefepime 500 mg | K125: 150 | L125: B | M125: المناقصة الثانية 2018-2019 | N125: 2019-2018 | O125: 2 | Q125: مناقصة | T125: ساري | U125: 945 | V125: 1180 | W125: 24.02542373 | X125: A | Y125: 3540 | Z125: Cinaverose
A126: 25.15 | B126: 38 | C126: Vial + Solvent | E126: pharco B | F126: Cefepime 1 gm | G126: بي فاركو | H126: Vial + Solvent | I126: سيفيبيم 1 جم | J126: Cefepime 1 gm | K126: 151 | L126: D | M126: المناقصة الثانية 2018-2019 | N126: 2019-2018 | O126: 2 | Q126: مناقصة | T126: ساري | U126: 37200 | V126: 167000 | W126: 6.682634731 | X126: A | Y126: 501000 | Z126: Cefepime 1 gm
A127: 25.15 | B127: 25.2 | C127: ONE VIAL | E127: M U P | F127: SPECTRACEF 1 GM VIAL | G127: فارما اوفر سيز | H127: Vial + Solvent | I127: سيفيبيم 1 جم | J127: Cefepime 1 gm | K127: 151 | L127: F | M127: المناقصة الثانية 2018-2019 | N127: 2019-2018 | O127: 2 | Q127: مناقصة | T127: ساري | U127: 6450 | V127: 13300 | W127: 14.54887218 | X127: A | Y127: 39900 | Z127: SPECTRACEF 1 GM VIAL
A128: 39.95 | B128: 54 | C128: Vial + Solvent | E128: pharco B | F128: Cefepime 2 gm | G128: بي فاركو | H128: Vial + Solvent | I128: سيفيبيم 2 جم | J128: Cefepime 2 gm | K128: 152 | L128: A | M128: المناقصة الثانية 2018-2019 | N128: 2019-2018 | O128: 2 | Q128: مناقصة | T128: ساري | U128: 6000 | V128: 4000 | W128: 45 | X128: B | Y128: 12000 | Z128: Cefepime 2 gm
A129: 39.95 | B129: 40 | C129: ONE VIAL | E129: M U P | F129: SPECTRACEF 2 GM VIAL | G129: فارما اوفر سيز | H129: Vial + Solvent | I129: سيفيبيم 2 جم | J129: Cefepime 2 gm | K129: 152 | L129: B | M129: المناقصة الثانية 2018-2019 | N129: 2019-2018 | O129: 2 | Q129: مناقصة | T129: ساري | U129: 36000 | V129: 74000 | W129: 14.59459459 | X129: A | Y129: 222000 | Z129: SPECTRACEF 2 GM VIAL
A130: 5.75 | B130: 75 | C130: Cap | E130: hikma pharma | F130: Suprax 200 | G130: فارما اوفر سيز | H130: Capsules or Tablets | I130: سيفيكزيم 200 مجم | J130: Cefixime 200 mg | K130: 132 | L130: A | M130: المناقصة الثانية 2018-2019 | N130: 2019-2018 | O130: 2 | Q130: مناقصة | T130: ساري | U130: 4500 | V130: 21500 | W130: 6.279069767 | X130: A | Y130: 64500 | Z130: Suprax 200
A131: 7.9 | B131: 85 | C131: Cap | E131: hikma pharma | F131: Suprax 400 | G131: فارما اوفر سيز | H131: Capsules or Tablets | I131: سيفيكزيم 400 مجم | J131: Cefixime 400 mg | K131: 133 | L131: A | M131: المناقصة الثانية 2018-2019 | N131: 2019-2018 | O131: 2 | Q131: مناقصة | T131: ساري | U131: 1480 | V131: 4120 | W131: 10.77669903 | X131: A | Y131: 12360 | Z131: Suprax 400
A132: 7.25 | B132: 14.25 | C132: Vial + Solvent | E132: pharco B | F132: Cefazone 500 mg | G132: بي فاركو | H132: Vial + Solvent | I132: سيفوبيرازون 500 مجم | J132: Cefoperazone 500 mg | K132: 127 | L132: B | M132: المناقصة الثانية 2018-2019 | N132: 2019-2018 | O132: 2 | Q132: مناقصة | T132: ساري | U132: 114000 | V132: 139000 | W132: 24.60431655 | X132: A | Y132: 417000 | Z132: Cefazone 500 mg
A133: 9.9 | B133: 14.4 | C133: vial | E133: راميدا لصالح النصر | F133: Cefrazon | G133: الشركة المصرية لتجارة الأدوية | H133: Vial + Solvent | I133: سيفوبيرازون 1 جم | J133: Cefoperazone 1 g | K133: 128 | L133: A | M133: المناقصة الثانية 2018-2019 | N133: 2019-2018 | O133: 2 | Q133: مناقصة | T133: ساري | U133: 182200 | V133: 436000 | W133: 12.53669725 | X133: A | Y133: 1308000 | Z133: Cefrazon
A134: 24 | B134: 52.5 | C134: vial | E134: شركة أدفوكيور | F134: Sulbacef | G134: ابن سينا فارما | H134: Vial + Solvent | I134: سيفوبيرازون1 جم + سالبكتام 500 مجم | J134: Cefoperazone 1 g + Sulbactam 500 mg | K134: 129 | L134: A | M134: المناقصة الثانية 2018-2019 | N134: 2019-2018 | O134: 2 | Q134: مناقصة | T134: ساري | U134: 86000 | V134: 124000 | W134: 20.80645161 | X134: A | Y134: 372000 | Z134: Sulbacef
A135: 24 | B135: 25 | C135: Vial + Solvent | E135: pharco B | F135: zonactam 1.5 gm | G135: بي فاركو | H135: Vial + Solvent | I135: سيفوبيرازون1 جم + سالبكتام 500 مجم | J135: Cefoperazone 1 g + Sulbactam 500 mg | K135: 129 | L135: B | M135: المناقصة الثانية 2018-2019 | N135: 2019-2018 | O135: 2 | Q135: مناقصة | T135: ساري | U135: 2700 | V135: 10400 | W135: 7.788461538 | X135: A | Y135: 31200 | Z135: zonactam 1.5 gm
A136: 24 | B136: 32.5 | C136: ONE VIAL | E136: M U P | F136: XORIN 2 GM VIAL | G136: فارما اوفر سيز | H136: Vial + Solvent | I136: سيفوتاكسيم 2 جم | J136: Cefotaxime 2 gm | K136: 149 | L136: D | M136: المناقصة الثانية 2018-2019 | N136: 2019-2018 | O136: 2 | Q136: مناقصة | T136: ساري | U136: 100 | V136: 50 | W136: 60 | X136: B | Y136: 150 | Z136: XORIN 2 GM VIAL
A137: 34.92 | C137: cifoxitin 1gm in a vial + solvent | E137: Pharco B لصالح ZAD INDUSTRIAL PHARMA | F137: Primafoxin 1 gm Vial | G137: ابن سينا فارما | H137: Injection | I137: سيفوكسيتين 1جم وريدى فقط | J137: Cefoxitin 1gm i.v only | K137: 289 | L137: A | M137: المناقصة الثانية 2018-2019 | N137: 2019-2018 | O137: 2 | Q137: مناقصة | T137: ساري | U137: 0 | V137: 50 | W137: 0 | X137: A | Y137: 150 | Z137: Primafoxin 1 gm Vial
A138: 17.99 | B138: 21.75 | C138: Bottle | E138: SB - E | F138: Velosef 250mg Susp. | G138: الشرق الاوسط للكيماويات | H138: Bottle (80ml) + Water for reconstitution | I138: سيفرادين 250 مجم معلق | J138: Cephradine 250 mg Suspension | K138: 114 | L138: A | M138: المناقصة الثانية 2018-2019 | N138: 2019-2018 | O138: 2 | Q138: مناقصة | T138: ساري | U138: 43260 | V138: 56200 | W138: 23.09252669 | X138: A | Y138: 168600 | Z138: Velosef 250mg Susp.
A139: 9.37 | B139: 27.00فيال+مذيب | C139: Vial + Solvent | E139: Eipico | F139: Epicfen | G139: ايبيكو | H139: Vial + Solvent(local anesthetic) | I139: سيفترايكسون 500 مجم مع مذيب مخدر موضعى للحقن العضلي | J139: Ceftriaxone 500 mg with Local Anesthetic Solvent I.M. | K139: 141 | L139: A | M139: المناقصة الثانية 2018-2019 | N139: 2019-2018 | O139: 2 | Q139: مناقصة | T139: ساري | U139: 1200 | V139: 760 | W139: 47.36842105 | X139: B | Y139: 2280 | Z139: Epicfen
A140: 9.37 | B140: 20.75 | C140: Vial Containing powder for Injection | E140: rameda | F140: Rameceftrax 500 mg vial IM | G140: فارما اوفر سيز | H140: Vial + Solvent(local anesthetic) | I140: سيفترايكسون 500 مجم مع مذيب مخدر موضعى للحقن العضلي | J140: Ceftriaxone 500 mg with Local Anesthetic Solvent I.M. | K140: 141 | L140: D | M140: المناقصة الثانية 2018-2019 | N140: 2019-2018 | O140: 2 | Q140: مناقصة | T140: ساري | U140: 5200 | V140: 7320 | W140: 21.31147541 | X140: A | Y140: 21960 | Z140: Rameceftrax 500 mg vial IM
A141: 8.37 | B141: 25.25 | C141: Vial + Solvent | E141: pharco B | F141: Cefaxone 500 mg IV | G141: بي فاركو | H141: Vial + Solvent | I141: سيفترايكسون 500 مجم للحقن بالوريد | J141: Ceftriaxone 500 mg I.V. | K141: 142 | L141: B | M141: المناقصة الثانية 2018-2019 | N141: 2019-2018 | O141: 2 | Q141: مناقصة | T141: ساري | U141: 0 | V141: 15520 | W141: 0 | X141: A | Y141: 46560 | Z141: Cefaxone 500 mg IV
A142: 8.37 | B142: 13.5 | C142: ONE VIAL | E142: M U P | F142: XORAXON 500 MG IV VIAL | G142: فارما اوفر سيز | H142: Vial + Solvent | I142: سيفترايكسون 500 مجم للحقن بالوريد | J142: Ceftriaxone 500 mg I.V. | K142: 142 | L142: C | M142: المناقصة الثانية 2018-2019 | N142: 2019-2018 | O142: 2 | Q142: مناقصة | T142: ساري | U142: 12600 | V142: 15250 | W142: 24.78688525 | X142: A | Y142: 45750 | Z142: XORAXON 500 MG IV VIAL
A143: 8.37 | B143: 16.5 | C143: Vial Containing powder for Injection | E143: rameda | F143: Rameceftrax 500 mg vial IV | G143: فارما اوفر سيز | H143: Vial + Solvent | I143: سيفترايكسون 500 مجم للحقن بالوريد | J143: Ceftriaxone 500 mg I.V. | K143: 142 | L143: D | M143: المناقصة الثانية 2018-2019 | N143: 2019-2018 | O143: 2 | Q143: مناقصة | T143: ساري | U143: 0 | V143: 63410 | W143: 0 | X143: A | Y143: 190230 | Z143: Rameceftrax 500 mg vial IV
A144: 11.95 | C144: Vial | E144: Sedico | F144: Ceftriaxone I.V | G144: سيديكو | H144: Vial + Solvent | I144: سيفترايكسون 1 جم للحقن بالوريد | J144: Ceftriaxone 1 g I.V. | K144: 144 | L144: A | M144: المناقصة الثانية 2018-2019 | N144: 2019-2018 | O144: 2 | Q144: مناقصة | T144: ساري | U144: 2240 | V144: 1382 | W144: 48.6251809 | X144: B | Y144: 4146 | Z144: Ceftriaxone I.V
A145: 11.95 | B145: 21.75 | C145: vial | E145: sigma | F145: Mesporin 1gm IV | G145: ابن سينا فارما | H145: Vial + Solvent | I145: سيفترايكسون 1 جم للحقن بالوريد | J145: Ceftriaxone 1 g I.V. | K145: 144 | L145: B | M145: المناقصة الثانية 2018-2019 | N145: 2019-2018 | O145: 2 | Q145: مناقصة | T145: ساري | U145: 80 | V145: 280 | W145: 8.571428571 | X145: A | Y145: 840 | Z145: Mesporin 1gm IV
A146: 1.8 | B146: 30.00 LE /Box 10 Tab | C146: Tablet | E146: Mash Premiere | F146: Zimocefox | G146: فارما أوفر سيز | H146: Capsule or Tablet | I146: سيفيوروكسيم 500 مجم | J146: Cefuroxime 500mg Capsules or Tablets | K146: 38 | L146: A | M146: مناقصةا الاستكمال الاولى 2017-2018 | N146: 2017-2018 | O146: 1 | Q146: استكمال | T146: ساري | U146: 120 | V146: 60 | W146: 60 | X146: B | Y146: 180 | Z146: Zimocefox
A147: 0.6 | B147: 25.80/10 cap. | C147: Capsule | E147: memphis | F147: Celecox | G147: المصرية لتجارة الأدوية | H147: Capsule or Tablet | I147: سيلوكوكسيب 200مجم | J147: Celecoxib 200mg Capsules or Tablets | K147: 24 | L147: A | M147: مناقصةا الاستكمال الاولى 2017-2018 | N147: 2017-2018 | O147: 1 | Q147: استكمال | T147: ساري | U147: 18000 | V147: 29500 | W147: 18.30508475 | X147: A | Y147: 88500 | Z147: Celecox
A148: 0.35 | B148: 6.50/10 tab. | C148: Tab. | E148: Nile | F148: Myoflex | G148: الشركة المصرية لتجارة الأدوية | H148: Capsules or Tablets | I148: باسط للعضلات(لا يحتوي علي الاورفينادرين) + مسكن | J148: Central Muscle Relaxant (Except Orphenadrine) + Analgesic | K148: 70 | L148: A | M148: المناقصة الأولى 2018-2019 | N148: 2019-2018 | O148: 1 | Q148: مناقصة | T148: ساري | U148: 26900 | V148: 57400 | W148: 14.05923345 | X148: A | Y148: 172200 | Z148: Myoflex
A149: 39.6 | B149: 57 | C149: Ampoule | E149: Ever Neuro Pharma GmbH - Austria | F149: cerebrolysin 215.2 mg/ml | G149: المتحدة للصيادلة | H149: I.M. or I.V. Injection 5 ml | I149: سيربروليسن 215.2 مجم/مل | J149: cerebrolysin concentrate 215.2 mg/ml | K149: 15 | L149: A | M149: مناقصة الاستكمال الثالثة 2014-2015 | N149: 2014-2015 | O149: 3 | Q149: استكمال | T149: ساري | U149: 1950 | V149: 3638 | W149: 16.08026388 | X149: A | Y149: 10914 | Z149: cerebrolysin 215.2 mg/ml
A150: 2.6235 | B150: 3.75 | C150: Dropper 10 ml | E150: Pharco | F150: Otocalm Drops | G150: فاركو للأدوية | H150: Bottle 10 ml | I150: كلوروبيوتانول 1%+ فينازون 5% نقط اذن | J150: Chlorobutanol 1%+Phenazone 5% Ear Drops | K150: 667 | L150: A | M150: المناقصة السابعة 2015-2016 | N150: 2015-2016 | O150: 7 | Q150: مناقصة | T150: ساري | U150: 1500 | V150: 4550 | W150: 9.89010989 | X150: A | Y150: 13650 | Z150: Otocalm Drops
A151: 0.149 | B151: 3.00/20 tab. | C151: Tablet | E151: Nasr | F151: Malarquine | G151: الشركة المصرية لتجارة الأدوية | H151: Capsules or Tablets | I151: كلوروكين 250 مجم | J151: Chloroquine 250 mg | K151: 233 | L151: A | M151: المناقصة الثانية 2018-2019 | N151: 2019-2018 | O151: 2 | Q151: مناقصة | T151: ساري | U151: 15060 | V151: 8650 | W151: 52.23121387 | X151: B | Y151: 25950 | Z151: Malarquine
A152: 4.4 | B152: 4.50/120ml | C152: bottle | E152: Memphis | F152: Pirafene | G152: الشركة المصرية لتجارة الأدوية | H152: Bottle | I152: كلورفينيرامين 2مجم/5ملل | J152: Chlorpheniramine 2 mg / 5 ml Syrup | K152: 440 | L152: A | M152: المناقصة الرابعة 2018-2019 | N152: 2018/2019 | O152: 4 | Q152: مناقصة | T152: ساري | U152: 3630 | V152: 7120 | W152: 15.29494382 | X152: A | Y152: 21360 | Z152: Pirafene
A153: 4.4 | B153: 4.5/120 ml | C153: bottle | E153: Adco | F153: Allergyl | G153: الشركة المصرية لتجارة الأدوية | H153: Bottle | I153: كلورفينيرامين 2مجم/5ملل | J153: Chlorpheniramine 2 mg / 5 ml Syrup | K153: 440 | L153: B | M153: المناقصة الرابعة 2018-2019 | N153: 2018/2019 | O153: 4 | Q153: مناقصة | T153: ساري | U153: 19900 | V153: 7400 | W153: 80.67567568 | X153: C | Y153: 22200 | Z153: Allergyl
A154: 0.1 | B154: 9.00/60 tab. | C154: Tablet | E154: Kahira | F154: Anallerge | G154: الشركة المصرية لتجارة الأدوية | H154: Capsules or Tablets | I154: كلورفينيرامين 4 مجم | J154: Chlorpheniramine 4 mg | K154: 439 | L154: A | M154: المناقصة الرابعة 2018-2019 | N154: 2018/2019 | O154: 4 | Q154: مناقصة | T154: ساري | U154: 6000 | V154: 22350 | W154: 8.053691275 | X154: A | Y154: 67050 | Z154: Anallerge
A155: 0.1 | B155: 3.4 /20T | C155: Tablet | E155: misr | F155: chlorantine - M | G155: الشركة المصرية لتجارة الأدوية | H155: Capsules or Tablets | I155: كلورفينيرامين 4 مجم | J155: Chlorpheniramine 4 mg | K155: 439 | L155: B | M155: المناقصة الرابعة 2018-2019 | N155: 2018/2019 | O155: 4 | Q155: مناقصة | T155: ساري | U155: 3750 | V155: 6850 | W155: 16.42335766 | X155: A | Y155: 20550 | Z155: chlorantine - M
A156: 1.12 | B156: 12.00/6 amp. | C156: Ampoule | E156: memphis | F156: Pirafene | G156: المصرية لتجارة الأدوية | H156: Injection | I156: كلورفينيرامين 5 مجم | J156: Chlorpheniramine 5mg Injection | K156: 105 | L156: A | M156: مناقصةا الاستكمال الاولى 2017-2018 | N156: 2017-2018 | O156: 1 | Q156: استكمال | T156: ساري | U156: 0 | V156: 100 | W156: 0 | X156: A | Y156: 300 | Z156: Pirafene
A157: 5.4 | B157: 11.25 | C157: Ampoule | E157: Memphis | F157: Devarol-s | G157: المصرية لتجارة الأدوية | H157: Injection | I157: كوليكالسيفيرول 200000وحدة دولية/مللي | J157: cholecalciferol (Vit. D3) 200000 I.U./ml | K157: 244 | L157: A | M157: مناقصة الاستكمال الثانية 2013-2014 | N157: 2013-2014 | O157: 2 | Q157: استكمال | R157: Yes | T157: ساري | U157: 140 | V157: 50 | W157: 84 | X157: C | Y157: 150 | Z157: Devarol-s
A158: 0.475 | B158: 13.20/20tab. | E158: Nile | F158: Newbezim | G158: الشركة المصرية لتجارة الأدوية | H158: Capsules or Tablets | I158: كيموتربسين + تربسين | J158: Chymotrypsin + Trypsin | K158: 76 | L158: A | M158: المناقصة الأولى 2018-2019 | N158: 2019-2018 | O158: 1 | Q158: مناقصة | T158: ساري | U158: 105244 | V158: 44100 | W158: 71.59455782 | X158: C | Y158: 132300 | Z158: Newbezim
A159: 51 | B159: 78 | C159: One Actuator delivers 120 Actuations | E159: MDI pharma | F159: Tentavair 160 mcg | G159: فارما اوفر سيز | H159: inhaler | I159: سيسلليسونايد 160مجم | J159: Ciclesonide 160 mg | K159: 779 | L159: A | M159: المناقصة السابعة 2018-2019 | N159: 2018/2019 | O159: 7 | Q159: مناقصة | T159: ساري | U159: 14560 | V159: 5400 | W159: 80.88888889 | X159: C | Y159: 16200 | Z159: Tentavair 160 mcg
A160: 11.7 | B160: 195 /10 tab | C160: Tablet | E160: مالتى كير ايجبت للصناعات الدوائية | F160: Cinacalcet 30mg | G160: فارما اوفر سيز | H160: Capsules or Tablets | I160: سيناكالسيت 30 مجم | J160: Cinacalcet 30 mg | K160: 568 | L160: A | M160: المناقصة الخامسة 2018-2019 | N160: 2018/2019 | O160: 5 | Q160: مناقصة | T160: ساري | U160: 13220 | V160: 8680 | W160: 45.69124424 | X160: B | Y160: 26040 | Z160: Cinacalcet 30mg
A161: 0.096 | B161: 0.165 | C161: Tablet | E161: Alexandria | F161: CEREBAL | G161: المصرية لتجارة الأدوية | H161: Capsule or Tablet | I161: سينارزين25مجم | J161: Cinnarizine 25 mg | K161: 25 | L161: B | M161: المناقصة النفسية 2015-2016 | N161: 2015-2016 | O161: 6 | P161: نفسية | Q161: مناقصة | T161: ساري | U161: 28000 | V161: 13888 | W161: 60.48387097 | X161: C | Y161: 41664 | Z161: CEREBAL
A162: 32.925 | B162: 57 | C162: Vial | D162: مستورد | E162: Cipla | F162: Cytoplatin 50 | G162: ستار انترناشونال | H162: Injection | I162: سيسبلاتين 50مجم | J162: Cisplatin 50 mg | K162: 610 | L162: A | M162: أدوية الأورام المناقصة السادسة 2010/2011 | N162: 2010-2011 | O162: 6 | P162: Oncology | Q162: مناقصة | R162: Yes | S162: Oncology | T162: ساري | U162: 560 | V162: 2128 | W162: 7.894736842 | X162: A | Y162: 6384 | Z162: Cytoplatin 50
A163: 0.3481392557 | B163: 4.285714286 | C163: Tablet | E163: Sedico | F163: Sedopram | G163: سيديكو | H163: Capsule or Tablet | I163: سيتالوبرام 20 مجم | J163: Citalopram 20 mg | K163: 27 | L163: A | M163: المناقصة النفسية 2015-2016 | N163: 2015-2016 | O163: 6 | P163: نفسية | Q163: مناقصة | S163: Psychoactive Drugs | T163: ساري | U163: 32256 | V163: 43498 | W163: 22.24654007 | X163: A | Y163: 130494 | Z163: Sedopram
A164: 0.595 | B164: 5 | C164: Tablet | E164: Copad | F164: Cipramax 40 mg | G164: فارما أوفر سيز | H164: Capsule or Tablet | I164: سيتالوبرام 40 مجم | J164: Citalopram 40 mg | K164: 28 | L164: A | M164: المناقصة النفسية 2015-2016 | N164: 2015-2016 | O164: 6 | P164: نفسية | Q164: مناقصة | S164: Psychoactive Drugs | T164: ساري | U164: 10640 | V164: 19908 | W164: 16.03375527 | X164: A | Y164: 59724 | Z164: Cipramax 40 mg
A165: 10 | B165: 15 | C165: Bottle 60 ml + Water for Reconstitution | E165: Sigma | F165: Klarimix125mg susp | G165: المتحدة للصيادلة | H165: Bottle 30 ml + Water for Reconstitution | I165: كلاريثرومايسين 125 مجم /5 ملل | J165: Clarithromycin 125mg/5ml Suspension | K165: 189 | L165: A | M165: المناقصة الثانية 2013-2014 | N165: 2013-2014 | O165: 2 | Q165: مناقصة | T165: ساري | U165: 400 | V165: 1000 | W165: 12 | X165: A | Y165: 3000 | Z165: Klarimix125mg susp
A166: 2.71 | B166: 20 | C166: film coated tab | E166: EGPI | F166: infectocure 500 mg tab | G166: فارما اوفر سيز | H166: Capsules or Tablets | I166: كلاريثرومايسين 500 مجم | J166: Clarithromycin 500 mg | K166: 175 | L166: A | M166: المناقصة الثانية 2018-2019 | N166: 2019-2018 | O166: 2 | Q166: مناقصة | T166: ساري | U166: 0 | V166: 4 | W166: 0 | X166: A | Y166: 12 | Z166: infectocure 500 mg tab
A167: 0.83 | B167: 25.5 | C167: Tab | E167: Techno Pharmaلصالح فاركو | F167: Tecnovula Tab | G167: ابن سينا فارما | H167: Capsules or Tablets | I167: كلوميفين 50 مجم | J167: Clomiphene 50 mg | K167: 579 | L167: A | M167: المناقصة الخامسة 2018-2019 | N167: 2018/2019 | O167: 5 | Q167: مناقصة | T167: ساري | U167: 1220 | V167: 870 | W167: 42.06896552 | X167: B | Y167: 2610 | Z167: Tecnovula Tab
A168: 0.525 | B168: 1.05 | C168: Capsule | E168: Alfacure Pharmaceuticals | F168: Supranil | G168: فارما أوفر سيز | H168: Capsule or Tablet | I168: كلوميبرامين 25 مجم | J168: Clomipramine 25 mg | K168: 29 | L168: A | M168: المناقصة النفسية 2015-2016 | N168: 2015-2016 | O168: 6 | P168: نفسية | Q168: مناقصة | S168: Psychoactive Drugs | T168: ساري | U168: 580 | V168: 6100 | W168: 2.852459016 | X168: A | Y168: 18300 | Z168: Supranil
A169: 0.6 | B169: 0.9 | C169: Tablet | E169: Sigma | F169: Anapramine 75 mg | G169: مالتى فارما للادوية | H169: Capsule or Tablet | I169: كلوميبرامين 75 مجم | J169: Clomipramine 75mg | K169: 606 | L169: A | M169: المناقصة السادسة 2013-2014 | N169: 2013-2014 | O169: 6 | Q169: مناقصة | S169: Psychoactive Drugs | T169: ساري | U169: 20 | V169: 3062 | W169: 0.1959503592 | X169: A | Y169: 9186 | Z169: Anapramine 75 mg
A170: 0.15 | B170: 0.1716666667 | C170: Tablet | E170: Amoun | F170: Amotrile 0.5 mg | G170: المصرية لتجارة الأدوية | H170: Capsule or Tablet | I170: كلونازيبام 0,5 مجم | J170: Clonazepam 0.5 mg | K170: 31 | L170: A | M170: المناقصة النفسية 2015-2016 | N170: 2015-2016 | O170: 6 | P170: نفسية | Q170: مناقصة | T170: ساري | U170: 23206 | V170: 16172 | W170: 43.04847885 | X170: B | Y170: 48516 | Z170: Amotrile 0.5 mg
A171: 0.1701960784 | B171: 0.2333333333 | C171: Tablet | E171: Eipico | F171: Clopam 2mg tab | G171: ايبيكو | H171: Capsule or Tablet | I171: كلونازيبام 2 مجم | J171: Clonazepam 2 mg | K171: 32 | L171: A | M171: المناقصة النفسية 2015-2016 | N171: 2015-2016 | O171: 6 | P171: نفسية | Q171: مناقصة | T171: ساري | U171: 3750 | V171: 2000 | W171: 56.25 | X171: B | Y171: 6000 | Z171: Clopam 2mg tab
A172: 4.24 | B172: 7.25/15gm | C172: tube | E172: Adco | F172: Candistan | G172: الشركة المصرية لتجارة الأدوية | H172: Tube (15gm) | I172: كلوتريمازول 1% كريم | J172: Clotrimazole 1% Cream | K172: 381 | L172: B | M172: المناقصة الرابعة 2018-2019 | N172: 2018/2019 | O172: 4 | Q172: مناقصة | T172: ساري | U172: 200 | V172: 350 | W172: 17.14285714 | X172: A | Y172: 1050 | Z172: Candistan
A173: 4.24 | B173: 4.25 | C173: tube 15gm | E173: Pharco | F173: Dermatin cream | G173: فاركو للأدوية | H173: Tube (15gm) | I173: كلوتريمازول 1% كريم | J173: Clotrimazole 1% Cream | K173: 381 | L173: C | M173: المناقصة الرابعة 2018-2019 | N173: 2018/2019 | O173: 4 | Q173: مناقصة | T173: ساري | U173: 11340 | V173: 12400 | W173: 27.43548387 | X173: A | Y173: 37200 | Z173: Dermatin cream
A174: 10.9 | B174: 12.7/bottle | C174: Bottle | E174: E.E.P | F174: Closol | G174: أبوقير للتجارة الدولية | H174: Bottle | I174: كلوتريمازول 1% بخاخة | J174: Clotrimazole 1% Spray | K174: 95 | L174: A | M174: مناقصةا الاستكمال الاولى 2017-2018 | N174: 2017-2018 | O174: 1 | Q174: استكمال | T174: ساري | U174: 2620 | V174: 2170 | W174: 36.22119816 | X174: B | Y174: 6510 | Z174: Closol
A175: 0.3 | B175: 0.45/tab | C175: tablet | E175: Hi pharm | F175: Flustat | G175: المتحدة للصيادلة | H175: Capsules or Tablets | I175: أقراص او كبسولات تحتوي علي مزيل للإحتقان + مسكن +مضاد للهستامين | J175: Capsules or Tablets Containing Decongestant + Analgesic + antihistaminic | K175: 823 | L175: A | M175: المناقصة السابعة 2018-2019 | N175: 2018/2019 | O175: 7 | Q175: مناقصة | T175: ساري | U175: 1000 | V175: 2000 | W175: 15 | X175: A | Y175: 6000 | Z175: Flustat
A176: 0.3 | B176: 10علبة20 قرص | C176: Tab | E176: Eipico | F176: CETAL COLD & FLU | G176: ايبيكو | H176: Capsules or Tablets | I176: أقراص او كبسولات تحتوي علي مزيل للإحتقان + مسكن +مضاد للهستامين | J176: Capsules or Tablets Containing Decongestant + Analgesic + antihistaminic | K176: 823 | L176: B | M176: المناقصة السابعة 2018-2019 | N176: 2018/2019 | O176: 7 | Q176: مناقصة | T176: ساري | U176: 35000 | V176: 73000 | W176: 14.38356164 | X176: A | Y176: 219000 | Z176: CETAL COLD & FLU
A177: 0.645 | B177: 33.00 LE /Box 30 Tab | C177: Tablet | E177: Pharo Pharma | F177: Elasticin DS Tablets | G177: فارما أوفر سيز | H177: Capsule or Tablet | I177: تحتوي على جلوكوزامين 500مجم + كوندروتين 400مجم | J177: containing Glucosamine 500mg + Chondroitin 400mg | K177: 34 | L177: A | M177: مناقصةا الاستكمال الاولى 2017-2018 | N177: 2017-2018 | O177: 1 | Q177: استكمال | T177: ساري | U177: 8000 | V177: 13600 | W177: 17.64705882 | X177: A | Y177: 40800 | Z177: Elasticin DS Tablets
A178: 2.39 | B178: 12 | C178: Tube 15 gm | E178: EGPI | F178: propamethone | G178: فارما اوفر سيز | H178: Tube (15gm) | I178: كريم يحتوي على بيتاميتازون + جنتاميسين | J178: Cream Containing Betamethasone + Gentamicin | K178: 401 | L178: A | M178: المناقصة الرابعة 2018-2019 | N178: 2018/2019 | O178: 4 | Q178: مناقصة | T178: ساري | U178: 46650 | V178: 82200 | W178: 17.02554745 | X178: A | Y178: 246600 | Z178: propamethone
A179: 7.31 | B179: 8.25 | C179: Tube (40 gm) | E179: EVA Pharma | F179: Moov Massage Cream | G179: المتحدة للصيادلة | H179: Tube | I179: كريم او مرهم او جيل يحتوي على حمض الساليسليك +مينتول+كامفور | J179: Cream or Ointment or Gel Contain Salicylate + Menthol + Camphor | K179: 59 | L179: A | M179: المناقصة الأولى 2018-2019 | N179: 2019-2018 | O179: 1 | Q179: مناقصة | T179: ساري | U179: 2860 | V179: 7416 | W179: 11.56957929 | X179: A | Y179: 22248 | Z179: Moov Massage Cream
A180: 2.6025 | B180: 4 | C180: Ampoule | E180: Amoun | F180: Emetrex Amp. | G180: رامكو فارم لتجارة الادوية | H180: Injection | I180: سيكليزين 50 مجم | J180: Cyclizine 50mg | K180: 457 | L180: A | M180: المناقصة الخامسة 2015-2016 | N180: 2015-2016 | O180: 5 | Q180: مناقصة | R180: Yes | T180: ساري | U180: 39950 | V180: 36584 | W180: 32.76022305 | X180: B | Y180: 109752 | Z180: Emetrex Amp.
A181: 5.266666667 | B181: 8 | C181: Bottle 10 ml | E181: Chemipharm | F181: Swixolate | G181: المصرية لتجارة الأدوية | H181: Bottle 10 ml | I181: سيكلوبنتولات 1% نقط عين | J181: Cyclopentolate 1 % Eye Drops | K181: 691 | L181: A | M181: المناقصة الثامنة 2015-2016 | N181: 2015-2016 | O181: 8 | Q181: مناقصة | T181: ساري | U181: 11790 | V181: 10792 | W181: 32.77427724 | X181: B | Y181: 32376 | Z181: Swixolate
A182: 15.7 | B182: 15.75 | C182: 1 Vial | E182: EMIC | F182: Cycram | G182: ايمك | H182: Injection | I182: سيكلوفوسفامايد 200مجم | J182: Cyclophosphamide 200 mg | K182: 7 | L182: A | M182: شراء موحد أدوية الأورام List 50 | N182: 2018 | O182: 50 لضمان التوافر | P182: Oncology | Q182: مناقصة | S182: Oncology | T182: ساري | U182: 55000 | V182: 30000 | W182: 55 | X182: B | Y182: 90000 | Z182: Cycram
A183: 1.0032 | B183: 1.82 | C183: Tablet | D183: مستورد | E183: Baxter oncology | F183: Endoxan | G183: مالتى فارما للادوية | H183: Capsule or Tablet | I183: سيكلوفوسفامايد 50 مجم | J183: Cyclophosphamide 50 mg | K183: 1 | L183: A | M183: مناقصة الإستكمال التانية 2010/2011 ( أدوية الأورام) | N183: 2010-2011 | O183: 2 | P183: Oncology | Q183: استكمال | S183: Oncology | T183: ساري | U183: 2700 | V183: 950 | W183: 85.26315789 | X183: C | Y183: 2850 | Z183: Endoxan
A184: 447.7 | B184: ج.م 700.00 | C184: Bottle of 50 ml | E184: Novartis | F184: Sandimmun Neoral Oral solution | G184: ابن سينا فارما | H184: Bottle (50ml) | I184: سيكلوسبورن 100مجم/مللي شراب | J184: Cyclosporin 100 mg/ml syrup | K184: 346 | L184: A | M184: مناقصة الاستكمال الثالثة 2017-2018 | N184: 2017-2018 | O184: 3 | Q184: استكمال | T184: ساري | U184: 26005 | V184: 37005 | W184: 21.08228618 | X184: A | Y184: 111015 | Z184: Sandimmun Neoral Oral solution
A185: 9.66 | B185: 11.48 | C185: Capsule | E185: RBG استيراد المكتب التجاري الدولي | F185: Arpimune me 100 mg | G185: ابن سينا فارما | H185: Capsule or Tablet | I185: سيكلوسبورين100مجم(معلق)كبسوله | J185: Cyclosporin Preformed Microemulsion 100 mg for Autoimmune | K185: 35 | L185: A | M185: المناقصة النفسية 2015-2016 | N185: 2015-2016 | O185: 6 | P185: نفسية | Q185: مناقصة | T185: ساري | U185: 200 | V185: 350 | W185: 17.14285714 | X185: A | Y185: 1050 | Z185: Arpimune me 100 mg
A186: 9.775 | B186: 13.3 | C186: Capsule | E186: Novartis | F186: Sandimmune Neoral 100 mg. 50 Cap | G186: المصرية لتجارة الأدوية | H186: Capsule or Tablet | I186: سيكلوسبورين100مجم(معلق)كبسوله | J186: Cyclosporin Preformed Microemulsion 100 mg for Transplantation | K186: 36 | L186: A | M186: المناقصة النفسية 2015-2016 | N186: 2015-2016 | O186: 6 | P186: نفسية | Q186: مناقصة | T186: ساري | U186: 1250 | V186: 600 | W186: 62.5 | X186: C | Y186: 1800 | Z186: Sandimmune Neoral 100 mg. 50 Cap
A187: 2.6666 | B187: 3.35 | C187: Capsule | E187: RBG استيراد المكتب التجاري الدولي | F187: Arpimune me 25 mg | G187: ابن سينا فارما | H187: Capsule or Tablet | I187: سيكلوسبورين 25مجم( معلق)كبسوله | J187: Cyclosporin Preformed Microemulsion 25 mg for Autoimmune | K187: 37 | L187: A | M187: المناقصة النفسية 2015-2016 | N187: 2015-2016 | O187: 6 | P187: نفسية | Q187: مناقصة | T187: ساري | U187: 150 | V187: 1250 | W187: 3.6 | X187: A | Y187: 3750 | Z187: Arpimune me 25 mg
A188: 2.644450746 | B188: 3.47 | C188: Capsule | E188: Novartis | F188: Sandimmune Neoral 25 mg.50 Cap | G188: المصرية لتجارة الأدوية | H188: Capsule or Tablet | I188: سيكلوسبورين 25مجم( معلق)كبسوله | J188: Cyclosporin Preformed Microemulsion 25 mg for Transplantation | K188: 38 | L188: A | M188: المناقصة النفسية 2015-2016 | N188: 2015-2016 | O188: 6 | P188: نفسية | Q188: مناقصة | T188: ساري | U188: 2500 | V188: 1180 | W188: 63.55932203 | X188: C | Y188: 3540 | Z188: Sandimmune Neoral 25 mg.50 Cap
A189: 5.46 | B189: 6.16 | C189: Capsule | E189: RBG استيراد المكتب التجاري الدولي | F189: Arpimune me 50 mg | G189: ابن سينا فارما | H189: Capsule or Tablet | I189: سيكلوسبورين50مجم( معلق)كبسوله | J189: Cyclosporin Preformed Microemulsion 50 mg for Autoimmune | K189: 39 | L189: A | M189: المناقصة النفسية 2015-2016 | N189: 2015-2016 | O189: 6 | P189: نفسية | Q189: مناقصة | T189: ساري | U189: 1000 | V189: 1900 | W189: 15.78947368 | X189: A | Y189: 5700 | Z189: Arpimune me 50 mg
A190: 4.876 | B190: 6.7 | C190: Capsule | E190: Novartis | F190: Sandimmune Neoral 50 mg.50 Cap | G190: المصرية لتجارة الأدوية | H190: Capsule or Tablet | I190: سيكلوسبورين50مجم( معلق)كبسوله | J190: Cyclosporin Preformed Microemulsion 50 mg for Transplantation | K190: 40 | L190: A | M190: المناقصة النفسية 2015-2016 | N190: 2015-2016 | O190: 6 | P190: نفسية | Q190: مناقصة | T190: ساري | U190: 99950 | V190: 141000 | W190: 21.26595745 | X190: A | Y190: 423000 | Z190: Sandimmune Neoral 50 mg.50 Cap
A191: 5.1 | B191: 6 | C191: Tablet | D191: مستورد | E191: Bayer Schering | F191: Androcur 50 mg | G191: سوفيكو فارم | H191: Capsule or Tablet | I191: سيبروتيرون 50 مجم | J191: Cyproterone 50 mg | K191: 618 | L191: A | M191: أدوية الأورام المناقصة السادسة 2010/2011 | N191: 2010-2011 | O191: 6 | P191: Oncology | Q191: مناقصة | T191: غير ساري | U191: 56000 | V191: 147000 | W191: 11.42857143 | X191: A | Y191: 441000 | Z191: Androcur 50 mg
A192: 16 | B192: 22.7 | C192: Vial | E192: Hikma - EUP | F192: Tabine 100 mg | G192: فارما أوفر سيز | H192: Injection | J192: Cytarabine 100 mg | K192: 12 | L192: A | M192: شراء موحد أدوية الأورام List 51 | N192: 2018 | O192: 51 | P192: Oncology | Q192: مناقصة | R192: Yes | S192: Oncology | T192: ساري | U192: 37000 | V192: 19000 | W192: 58.42105263 | X192: B | Y192: 57000 | Z192: Tabine 100 mg
A193: 16 | B193: 22.7 | C193: Vial | E193: Hikma - EUP | F193: Tabine 100 mg | G193: المتحدة للصيادلة | H193: Injection | J193: Cytarabine 100 mg | K193: 12 | L193: B | M193: شراء موحد أدوية الأورام List 51 | N193: 2018 | O193: 51 | P193: Oncology | Q193: مناقصة | R193: Yes | S193: Oncology | T193: ساري | U193: 67900 | V193: 142960 | W193: 14.24874091 | X193: A | Y193: 428880 | Z193: Tabine 100 mg
A194: 300 | B194: Not Priced | C194: Vial | D194: مستورد | E194: Welding Medac | F194: Detimedac 200mg vial | G194: المصرية لتجارة الأدوية | H194: Injection | I194: داكاربازين 200 مجم | J194: Dacarbazine 200 mg | K194: 12 | L194: A | M194: شراء موحد أدوية الأورام List 50 | N194: 2018 | O194: 50 | P194: Oncology | Q194: مناقصة | R194: Yes | S194: Oncology | T194: ساري | U194: 9600 | V194: 22800 | W194: 12.63157895 | X194: A | Y194: 68400 | Z194: Detimedac 200mg vial
A195: 61 | B195: 120/28cap | C195: Box 28 tab | E195: European Egyptian pharmace-utical | F195: Daktavira | G195: الشرق الاوسط للكيماويات | H195: Capsules or Tablets | I195: دكلاتاسيفير 60مجم (ستون مجم) | J195: Daclatasvir 60 mg | K195: 1 | L195: B | M195: ممارسة دكلاتاسيفير 2017-2018 | N195: 2017-2018 | P195: Daclatasvir | Q195: ممارسة | T195: ساري | U195: 11000 | V195: 5600 | W195: 58.92857143 | X195: B | Y195: 16800 | Z195: Daktavira
A196: 61 | B196: 120/28cap | C196: Box 28 tab | E196: Mash Premiere | F196: دكلانورك | G196: فارما أوفر سيز | H196: Capsules or Tablets | I196: دكلاتاسيفير 60مجم (ستون مجم) | J196: Daclatasvir 60 mg | K196: 1 | L196: G | M196: ممارسة دكلاتاسيفير 2017-2018 | N196: 2017-2018 | P196: Daclatasvir | Q196: ممارسة | T196: ساري | U196: 157000 | V196: 71400 | W196: 65.96638655 | X196: C | Y196: 214200 | Z196: دكلانورك
A197: 61 | B197: 120/28cap | C197: Box 28 tab | E197: مالتي كير ايجيبت للصناعات الدوائية | F197: Javidacla 60 mg | G197: فارما أوفر سيز | H197: Capsules or Tablets | I197: دكلاتاسيفير 60مجم (ستون مجم) | J197: Daclatasvir 60 mg | K197: 1 | L197: H | M197: ممارسة دكلاتاسيفير 2017-2018 | N197: 2017-2018 | P197: Daclatasvir | Q197: ممارسة | T197: ساري | U197: 5600 | V197: 5350 | W197: 31.40186916 | X197: B | Y197: 16050 | Z197: Javidacla 60 mg
A198: 3.11 | B198: 3.8 | C198: Capsule | E198: Sanofi Aventis | F198: Danol | G198: سانوفى أفينتس | H198: Capsule or Tablet | I198: دانازول 200 مجم | J198: Danazol 200mg | K198: 545 | L198: A | M198: المناقصة الخامسة 2013-2014 | N198: 2013-2014 | O198: 5 | Q198: مناقصة | T198: ساري | U198: 0 | V198: 240 | W198: 0 | X198: A | Y198: 720 | Z198: Danol
A199: 0.2094444444 | B199: 0.325 | C199: Tablet | E199: El Nile | F199: Dapsone 50 mg | G199: المصرية لتجارة الأدوية | H199: Capsule or Tablet | I199: دابسون 50مجم | J199: Dapsone 50mg | K199: 180 | L199: A | M199: المناقصة الثانية 2015-2016 | N199: 2015-2016 | O199: 2 | Q199: مناقصة | T199: ساري | U199: 412 | V199: 982 | W199: 12.58655804 | X199: A | Y199: 2946 | Z199: Dapsone 50 mg
A200: 336 | B200: 700 | C200: Prefilled Syringe of 0.3 ml for Single Use | E200: Amgen Europe B.V minervium 7061 .nl 4817 ZK breda .the netherlands | F200: Aranesp 30 micrograms solution for injection | G200: مالتى فارما للادوية | H200: Prefilled syringe | I200: داربيبويتين الفا 30 ميكروجرام / 0.3 مل | J200: Darbepoetin-Alfa 30 mcg / 0.3 ml | K200: 41 | L200: A | M200: المناقصة النفسية 2015-2016 | N200: 2015-2016 | O200: 6 | P200: نفسية | Q200: مناقصة | S200: Erythropoiesis Stimulating Agents | T200: ساري | U200: 2751 | V200: 4236 | W200: 19.48300283 | X200: A | Y200: 12708 | Z200: Aranesp 30 micrograms solution for injection
A201: 93.33333333 | B201: 271.6666667 | E201: BMS | F201: Sprycel 50mg | G201: الشرق الاوسط للكيماويات | H201: Capsules or Tablets | J201: Dasatinib 50 mg | K201: 13 | L201: A | M201: شراء موحد أدوية الأورام List 51 | N201: 2018 | O201: 51 لضمان التوافر | P201: Oncology | Q201: مناقصة | S201: Oncology | T201: ساري | U201: 3000 | V201: 4000 | W201: 22.5 | X201: A | Y201: 12000 | Z201: Sprycel 50mg
... 362 more rows

Sheet البيان
A1: سعر الترسية للوحدة | B1: سعر السوق الحالي بالوحدة | C1: الوحدة | D1: محلي/ مستورد | E1: الشركة المنتجة | F1: الاسم التجارى | G1: اسم الشركة الموزعة | H1: العبوة | I1: الاسم العلمى | J1: الاسم العام | K1: رقم البند | L1: Serial of Trade | M1: اسم المناقصة | N1: عام المناقصة | O1: رقم المناقصة | P1: تخصص المناقصة | Q1: مناقصة / استكمال / ممارسة | R1: Life Saving | S1: Category | T1: حالة البند | U1: الرصيد | V1: متوسط الاستهلاك الشهري | W1: معدل التغطية باليوم | X1: Class | Y1: معدل 3 شهور | Z1: Class1
A2: 11.5 | B2: 20 | C2: Tablet | E2: Amoun | F2: إم - إكس أقراص | G2: رامكو فارم لتجارة الادوية | H2: Capsule or Tablet | I2: مثبطات السيريتونين ضد القئ | J2: 5 HT antagonist antiemtic | K2: 434 | L2: A | M2: المناقصة الخامسة 2015-2016 | N2: 2015-2016 | O2: 5 | Q2: مناقصة | T2: ساري | U2: 810 | V2: 990 | W2: 24.54545455 | X2: A | Y2: 2970 | Z2: إم - إكس أقراص
A3: 9.5 | B3: 9.95 | C3: Ampoule | E3: Hikma - EUP | F3: Utoral 250 mg | G3: فارما أوفر سيز | H3: Injection | I3: 5فلورويوراسيل 250مجم | J3: 5-Fluorouracil 250 mg | K3: 1 | L3: A | M3: شراء موحد أدوية الأورام List 51 | N3: 2018 | O3: 51 | P3: Oncology | Q3: مناقصة | R3: Yes | S3: Oncology | T3: ساري | U3: 2700 | V3: 3900 | W3: 20.76923077 | X3: A | Y3: 11700 | Z3: Utoral 250 mg
A4: 0.807 | B4: 1 | C4: Tablet | E4: Hikma Pharma | F4: glucobay 50mg | G4: سوفيكو فارم | H4: Capsule or Tablet | I4: اكربوز 50 مجم | J4: Acarbose 50 mg | K4: 16 | L4: A | M4: ممارسة استكمال الاورام و أدوية متنوعة 2012-2013 | N4: 2012-2013 | P4: Oncology | Q4: استكمال | S4: Oncology | T4: ساري | U4: 780000 | V4: 350000 | W4: 66.85714286 | X4: C | Y4: 1050000 | Z4: glucobay 50mg
A5: 0.3105555556 | B5: 0.325 | C5: Tablet | E5: CID | F5: Cidamex | G5: المصرية لتجارة الأدوية | H5: Capsule or Tablet | I5: اسيتازولاميد 250 مجم | J5: Acetazolamide 250 mg | K5: 690 | L5: A | M5: المناقصة الثامنة 2015-2016 | N5: 2015-2016 | O5: 8 | Q5: مناقصة | T5: ساري | U5: 4000 | V5: 2300 | W5: 52.17391304 | X5: B | Y5: 6900 | Z5: Cidamex
A6: 0.119 | B6: 391.70/1000tab. | C6: Tablet | E6: Adco | F6: Rivo 75 mg | G6: الشركة المصرية لتجارة الأدوية | H6: Capsules or Tablets | I6: اسيتيل ساليسيك اسيد 75 مجم | J6: Acetyl Salicylic Acid 75 mg | K6: 328 | L6: A | M6: المناقصة الثالثة 2018-2019 | N6: 2018/2019 | O6: 3 | Q6: مناقصة | R6: Yes | T6: ساري | U6: 710000 | V6: 300000 | W6: 71 | X6: C | Y6: 900000 | Z6: Rivo 75 mg
A7: 69 | B7: 85 | C7: vial | E7: الشركة العربية للمستحضرات الطبية (ارابكوميد) لصالح شركة بيوكابيتال توزيع شركة ايجي فارما | F7: Rotacysteine 20% I.V Infusion | G7: فارما اوفر سيز | H7: Vial | I7: اسيتيل سيستايين | J7: ACETYL CYSTIENE | K7: 1 | L7: A | M7: المناقصة العامة لتوريد أدوية علاج السموم جلسة 13/11/2016 | Q7: مناقصة | T7: ساري | U7: 100 | V7: 300 | W7: 10 | X7: A | Y7: 900 | Z7: Rotacysteine 20% I.V Infusion
A8: 0.8357142857 | B8: 1.4 | C8: Sachet | E8: Sedico | F8: Acetylcistein | G8: سيديكو | H8: Sachet | I8: اسيتيل سيستايين 200مجم | J8: acetylcysteine 200mg | K8: 637 | L8: A | M8: المناقصة السابعة 2015-2016 | N8: 2015-2016 | O8: 7 | Q8: مناقصة | T8: ساري | U8: 225 | V8: 130 | W8: 51.92307692 | X8: B | Y8: 390 | Z8: Acetylcistein
A9: 0.65 | B9: 25.20 | C9: Tab | E9: Sedico | F9: Cycloviral | G9: سيديكو | H9: Capsules or Tablets | I9: أسيكلوفير 200 مجم | J9: Acyclovir 200 mg | K9: 211 | L9: A | M9: المناقصة الثانية 2015-2016 | N9: 2015-2016 | O9: 2 | Q9: مناقصة | T9: ساري | U9: 60 | V9: 90 | W9: 20 | X9: A | Y9: 270 | Z9: Cycloviral
A10: 0.65 | B10: 16.20 | C10: tablet | E10: pharo pharma | F10: Virustat 200 | G10: ابن سينا فارما | H10: Capsules or Tablets | I10: أسيكلوفير 200 مجم | J10: Acyclovir 200 mg | K10: 211 | L10: B | M10: المناقصة الثانية 2015-2016 | N10: 2015-2016 | O10: 2 | Q10: مناقصة | T10: ساري | U10: 750 | V10: 2010 | W10: 11.19402985 | X10: A | Y10: 6030 | Z10: Virustat 200
A11: 49 | B11: 56 | C11: Vial | E11: Mylan | F11: Acyclovir 250 mg | G11: رامكو فارم لتجارة الادوية | H11: Injection | I11: اسيكلوفير250 مجم | J11: Acyclovir 250 mg | K11: 183 | L11: A | M11: مناقصة الاستكمال الرابعة 2014-2015 | N11: 2014-2015 | O11: 4 | Q11: استكمال | R11: Yes | T11: ساري | U11: 1330 | V11: 2900 | W11: 13.75862069 | X11: A | Y11: 8700 | Z11: Acyclovir 250 mg
A12: 65.6 | B12: 80/ViaL | C12: VL | E12: MYLAN | F12: Acyclovir 500 mg | G12: الشركة المصرية لتجارة الأدوية | H12: Injection | I12: أسيكلوفير 500 مجم | J12: Acyclovir 500 mg | K12: 210 | L12: A | M12: المناقصة الثانية 2018-2019 | N12: 2019-2018 | O12: 2 | Q12: مناقصة | R12: Yes | T12: ساري | U12: 0 | V12: 2000 | W12: 0 | X12: A | Y12: 6000 | Z12: Acyclovir 500 mg
A13: 2.3 | B13: 268.00/100A | C13: ampule | E13: misr | F13: Epinephrine | G13: الشركة المصرية لتجارة الأدوية | H13: Injection | I13: أدرينالين1مجم/مللي | J13: Adrenaline 1 mg / ml | K13: 444 | L13: A | M13: المناقصة الرابعة 2018-2019 | N13: 2018/2019 | O13: 4 | Q13: مناقصة | R13: Yes | T13: ساري | U13: 1550 | V13: 8010 | W13: 5.805243446 | X13: A | Y13: 24030 | Z13: Epinephrine
A14: 0.585 | B14: 0.825 | C14: Tablet | D14: محلي | E14: CID | F14: Reparil | G14: المصرية لتجارة الأدوية | H14: Capsule or Tablet | I14: آيسين 40 مجم | J14: Aescin 40mg | K14: 72 | L14: A | M14: المناقصة الأولى 2015-2016 | N14: 2015-2016 | O14: 1 | Q14: مناقصة | T14: ساري | U14: 122 | V14: 300 | W14: 12.2 | X14: A | Y14: 900 | Z14: Reparil
A15: 3.19 | B15: 6.75زجاجة20 مللي | C15: 20 ml | E15: Eipico | F15: Alzental | G15: ايبيكو | H15: Bottle (20ml) | I15: ألبيندازول 100 مجم / 5 مللي شراب | J15: Albendazole 100mg/5ml syrup | K15: 158 | L15: A | M15: مناقصة الأستكمال الثانية 2017-2018 | N15: 2017-2018 | O15: 2 | Q15: استكمال | T15: ساري | U15: 257 | V15: 178 | W15: 43.31460674 | X15: B | Y15: 534 | Z15: Alzental
A16: 1.74 | B16: 2.625/ tab | C16: Tablet | E16: Eipico | F16: Alzental | G16: ايبيكو | H16: Capsules or Tablets | I16: ألبيندازول 200 مجم | J16: Albendazole 200mg Capsules or Tablets | K16: 159 | L16: A | M16: مناقصة الأستكمال الثانية 2017-2018 | N16: 2017-2018 | O16: 2 | Q16: استكمال | T16: ساري | U16: 0 | V16: 1000 | W16: 0 | X16: A | Y16: 3000 | Z16: Alzental
A17: 0.66 | B17: 1.5/ tab | C17: Tablet | E17: Mina Pharm | F17: Bon-One 0.25 mcg Tablets | G17: مينا فارم | H17: Capsules or Tablets | I17: الفاكلسيدول 0,25 ميكروجرام | J17: Alfacalcidol 0.25mcg | K17: 201 | L17: A | M17: مناقصة الأستكمال الثانية 2017-2018 | N17: 2017-2018 | O17: 2 | Q17: استكمال | R17: Yes | T17: ساري | U17: 7470 | V17: 11500 | W17: 19.48695652 | X17: A | Y17: 34500 | Z17: Bon-One 0.25 mcg Tablets
A18: 0.936 | B18: 1.95 | C18: Capsule | E18: Arab Company for Gelatin لصالح مالتى كير | F18: BoneCare 1 | G18: فارما أوفر سيز | H18: Capsule or Tablet | I18: الفاكلسيدول 1 ميكروجرام | J18: AlfaCalcidol 1 mcg | K18: 772 | L18: A | M18: المناقصة الثامنة 2015-2016 | N18: 2015-2016 | O18: 8 | Q18: مناقصة | R18: Yes | T18: ساري | U18: 49000 | V18: 18000 | W18: 81.66666667 | X18: C | Y18: 54000 | Z18: BoneCare 1
A19: 14.29714286 | B19: 21.6 | C19: Ampoule | E19: Alexandria for Rotabiogen | F19: Alfabonid | G19: ابن سينا فارما | H19: Injection | I19: الفاكلسيدول 2 ميكروجرام/مللي | J19: AlfaCalcidol 2 mcg / ml | K19: 773 | L19: A | M19: المناقصة الثامنة 2015-2016 | N19: 2015-2016 | O19: 8 | Q19: مناقصة | R19: Yes | T19: ساري | U19: 700 | V19: 750 | W19: 28 | X19: A | Y19: 2250 | Z19: Alfabonid
A20: 49.5 | B20: 130 | C20: Bottle | E20: Alesraa for Rotabiogen | F20: Alfabonid | G20: ابن سينا فارما | H20: Bottle 20 ml | I20: الفاكلسيدول 2ميكروجرام/مللي نقط | J20: AlfaCalcidol 2 mcg / ml Oral Drops | K20: 774 | L20: A | M20: المناقصة الثامنة 2015-2016 | N20: 2015-2016 | O20: 8 | Q20: مناقصة | R20: Yes | T20: ساري | U20: 6963 | V20: 31040 | W20: 6.729703608 | X20: A | Y20: 93120 | Z20: Alfabonid
A21: 0.239 | B21: 12.00 علبة 50 قرص | C21: Tablet | E21: Eipico | F21: Nouric | G21: ايبيكو | H21: Capsules or Tablets | I21: أللوبيورينول 100 مجم | J21: Allopurinol 100 mg | K21: 78 | L21: A | M21: المناقصة الأولى 2018-2019 | N21: 2019-2018 | O21: 1 | Q21: مناقصة | T21: ساري | U21: 0 | V21: 5000 | W21: 0 | X21: A | Y21: 15000 | Z21: Nouric
A22: 0.32 | B22: 5.25/10tab. | C22: Tablet | E22: Memphis | F22: Crystazol | G22: الشركة المصرية لتجارة الأدوية | H22: Capsules or Tablets | I22: أللوبيورينول 300 مجم | J22: Allopurinol 300 mg | K22: 79 | L22: A | M22: المناقصة الأولى 2018-2019 | N22: 2019-2018 | O22: 1 | Q22: مناقصة | T22: ساري | U22: 0 | V22: 5220 | W22: 0 | X22: A | Y22: 15660 | Z22: Crystazol
